Workbook

Sheet Introductie
B2: Laatste update 23/11/2022 Indien u met de meest recente indexcijfers wilt werken, gelieve deze tool elke maand te downloaden op de Buildwise-website
B4: Tot op heden gaan de gegevens van Revtool slechts terug tot 1 januari 2018 !
C5: Welkom, deze heeft als doel om ondernemers bewust te maken van de indexering in de sector. Opgepast! Deze tool is geen juridisch instrument, maar louter een berekeningstool.
C7: Aan de slag in 4 stappen!
B14: Extra info: Profiteer van de volgende bonuspagina's als u verder onderzoek wilt doen (ze zijn standaard verborgen, klik op de witte knoppen om ze te laten verschijnen)
C15: Werkblad | D15: U kunt op deze pagina een prognose maken van wat de prijs na een bepaalde periode zou kunnen zijn. (Indien het project bijvoorbeeld pas over 10 maanden van start zal gaan.)
D16: De resultaten van deze prognoses blijven gebaseerd op inschattingen. Helaas kunnen wij toekomstige prijsontwikkelingen niet exact voorspellen.
C18: Werkblad | D18: Hier kunt u nagaan welke toeslagpercentages men kan gebruiken zonder dat de catalogusprijzen van uw leveranciers worden overschreden.
D19: U kunt ook de uiteindelijke impact op het budget van de klant berekenen door de prijswijziging als eerste opslag en het BTW-tarief als tweede opslag toe te passen. Op die manier kunt u het verschil zien tussen het uiteindelijke budget van de klant en het oorspronkelijke budget door ze te vergelijken.
C21: Werkbladen | D21: Deze werkbladen doen dienst als achtergrondinformatie. Hier kan je het cijfermateriaal raadplegen dat gebruikt wordt in de berekeningen.
D22: Je vindt op deze pagina’s ook tal van grafieken die de cijfers visueel voorstellen.
D23: Deze pagina's worden elke maand bijgewerkt. Vergeet niet telkens de laatste nieuwe versie te downloaden.
C25: Wij willen er op wijzen dat prijsindexering niet automatisch gebeurt. De met de klant overeengekomen prijs moet worden gerespecteerd en kan niet eenzijdig worden aangepast. In sommige gevallen voorzien de contractuele documenten of de aanbestedingsdocumenten in het gebruik van een herzieningsformule. In dit geval maakt het gebruik van deze formule het mogelijk een verandering in de prijs van materialen en arbeid door te voeren. (zowel naar boven als naar beneden) RevTool is ontwikkeld door Buildwise om haar leden bewust te maken van de impact van inflatie op de bouwprijzen. Buildwise kan niet verantwoordelijk worden gehouden voor de juiste toepassing van de tool. De berekeningen zijn afhankelijk van de overeenkomsten tussen de contracterende partijen. Buildwise biedt geen expliciete of impliciete garantie en de garantie van geschiktheid voor een specifiek doel is uitgesloten. De Gebruiker zal nagaan of de aldus verkregen resultaten kunnen worden gebruikt in het kader van zijn professionele doelstellingen en zal deze steeds controleren. Hij is als enige verantwoordelijk voor de nauwkeurigheid van de resultaten. Buildwise garandeert niet dat Revtool volledig vrij is van bugs of fouten. Buildwise zal alle redelijke inspanningen leveren om de goede werking van de tool te waarborgen.
C32: Voor vragen over de tool en het gebruik ervan kan je de afdeling "Beheer en kwaliteit" van Buildwise contacteren
C33: gebe@buildwise.be | D33: https://www.buildwise.be/expertise-ondersteuning/bedrijfsbeheer-bim/
C35: Voor juridische vragen over de toepassing van de herzieningsformules, modeldocumenten of juridische clausules kan je contact opnemen met Embuild of Bouwunie
C36: https://embuild.be/nl | D36: https://www.bouwunie.be/nl/
C44: naar de Juridische clausule van Buildwise

Sheet Grafiek evolutie van indexen
B2: Op dit blad ziet u de evolutie van alle prijsindexen die in deze tool beschikbaar zijn (vanaf 2018 tot op heden). U kunt de grafieken personaliseren met behulp van de grafiekfilterfunctie alnaargelang uw voorkeuren. Om de filterfunctionaliteit te gebruiken, klikt u op de grafiek en selecteert u het 3e symbool dat in de rechterbovenhoek verschijnt. Selecteer vervolgens de gegevens en perioden die u wilt tonen.
A9: ← | B9: klik op "+" / "-" → "toon" / "verberg" de inleiding → Wat kan ik op dit blad doen?
L108: Materiaaltype | M108: Natuursteen-materialen en Zand | AR108: Metalen | BS108: Hout | CA108: Bakstenen en cement | CG108: Cement | CL108: Betonproducten | CU108: Brandstoffen en Bitumineuze Materialen | DL108: kunststoffen | DQ108: Elektriciteit 04.5.1.0 | DR108: Aardgas 04.5.2.1 | DS108: Water 04.4.1.0 | DT108: CPI Consumptie Prijs Index Statbel | DU108: Inflatie Index Statbel | DV108: Gezondheids Index Statbel | DW108: Afzetprijsindex in de bouwnijverheid Statbel
L109: Naam van het materiaal | M109: Porfierslag | R109: Zandsteenslag | W109: Kalksteen | AC109: Binnenlands zand | AF109: Binnenlands grind | AL109: Grind Rijnland | AO109: Rivierzand Waal | AR109: Koudgewalste dunne platen | AS109: Profielstaal, kwaliteitsstaal | AW109: Staafstaal, andere kwaliteiten | AZ109: Dikke platen, kwaliteitsstaal | BD109: platen gemiddeldes | BE109: betonijzer | BH109: Warmgewalste dunne platen | BL109: Damplanken | BM109: vorm- gietijzer | BN109: roestvrij staal | BO109: lood | BP109: Elektrolytisch koper | BQ109: zink | BR109: aluminium | BS109: Gezaagd inlands naaldhout | BV109: Gezaagd naaldhout Noorse grenen | BY109: platen OSB | BZ109: platen MDF | CA109: geperforeerde bouwblokken | CD109: bakstenen | CG109: cement | CL109: betonproducten voor het wegennetwerk | CR109: betonproducten voor de bouwsector | CU109: Diesel B7 aan de pomp | CY109: Gasolie verwarming | DB109: Eurosuper 95 aan de pomp | DF109: LPG | DG109: Oliebitumen | DJ109: asfalt | DL109: polyester (UP) | DM109: PVC | DN109: polyethyleen lage dichtheid | DO109: polyethyleen hoge dichtheid | DP109: buizen in polyethyleen
L110: Detail van het materiaal | M110: 40/56 | N110: 20/32 | O110: 6/20 | P110: 2/6 | Q110: gemiddelde | R110: 32/56 | S110: 20/32 | T110: 6/20 | U110: 2/6 | V110: gemiddelde | W110: 20/32 | X110: 14/20 | Y110: 6/14 | Z110: 2/6 | AA110: 0/2 - 0/4 | AB110: gemiddelde | AC110: voor gestabiliseerd zand | AD110: voor beton | AE110: gemiddelde | AF110: grind 4/28 | AG110: zand van de maas | AH110: gebroken 2/6 | AI110: gebroken 6/20 | AJ110: gebroken 2/32 | AK110: gemiddelde | AL110: kaai Brussel | AM110: kaai Antwerpen | AN110: gemiddelde | AO110: kaai Brussel | AP110: kaai Antwerpen | AQ110: gemiddelde | AR110: 1mm | AS110: staal AE 355 D | AT110: staal AE 235 C | AU110: courant staal AE 235 A | AV110: gemiddelde | AW110: courant staal AE 235 A | AX110: staal AE 355 C | AY110: gemiddelde | AZ110: staal AE 355 D | BA110: staal AE 235 A | BB110: courant staal A 320 | BC110: gemiddelde | BD110: aciers courants A320 | BE110: BE 500 grof | BF110: diam. 10 tot 40 mm | BG110: gemiddelde | BH110: courant staal A 320 1,5 mm | BI110: courant staal A 320 2 mm | BJ110: courant staal A 320 2,75 mm | BK110: gemiddelde | BL110: profielen AZ 18 PAE 320 | BM110: - | BN110: AISI 304 staven | BO110: onbehandeld | BP110: onbehandeld | BQ110: behandeld | BR110: onbehandeld | BS110: 2½ x 7 | BT110: inlands timmerhout 4/4 x 4 | BU110: gemiddelde | BV110: 2½ x 7 | BW110: Noorse berd 4/4 x 4 | BX110: gemiddelde | BY110: OSB type 3 244/59 cm 18 mm | BZ110: MDF standaard 244/122 cm 18 mm | CA110: L : 290 B : 140 H : 90 | CB110: L : 290 B : 140 H : 140 | CC110: gemiddelde | CD110: West-Vl. + Doornik L : 190 B : 90 H : 65 | CE110: gevelstenen L : 190 B : 90 H : 50 | CF110: gemiddelde | CG110: klasse 32,5 | CH110: klasse 42,5 | CI110: klasse 52,5 | CJ110: zakken | CK110: gemiddelde | CL110: betonnen tegels 30/30/6 cm | CM110: betonnen straatstenen 22/11/10 cm | CN110: boordstenen 21-411 type 1A 100/35/15 | CO110: buizen ongewapend L : 2,5 m diam. 80cm | CP110: buizen ongewapend L : 2 m diam. 80cm | CQ110: gemiddelde | CR110: holle betonblokken klasse p 0,8 39/19/19 | CS110: volle betonblokken klasse p 2,2 39/19/19 | CT110: gemiddelde | CU110: 10 ppm | CV110: 50 ppm | CW110: - | CX110: gemiddelde | CY110: 1000 ppm | CZ110: 2000 ppm | DA110: gemiddelde | DB110: 10 ppm | DC110: 50 ppm | DD110: - | DE110: gemiddelde | DF110: - | DG110: vaten | DH110: bulk | DI110: gemiddelde | DJ110: type 1 et 2 | DK110: type 4 et 5 | DL110: vloeibaar | DM110: Polyvinylchloride | DN110: PE/LD lage dichtheid | DO110: PE/HD hoge dichtheid | DP110: PE/HD hoge dichtheid | EB110: Services | EN110: Secteurs
L111: Eenheid | M111: ton | N111: ton | O111: ton | P111: ton | Q111: - | R111: ton | S111: ton | T111: ton | U111: ton | V111: - | W111: ton | X111: ton | Y111: ton | Z111: ton | AA111: ton | AB111: - | AC111: ton | AD111: ton | AE111: - | AF111: ton | AG111: ton | AH111: ton | AI111: ton | AJ111: ton | AK111: - | AL111: ton | AM111: ton | AN111: - | AO111: ton | AP111: ton | AQ111: - | AR111: ton | AS111: ton | AT111: ton | AU111: ton | AV111: - | AW111: ton | AX111: ton | AY111: - | AZ111: ton | BA111: ton | BB111: ton | BC111: - | BD111: ton | BE111: ton | BF111: ton | BG111: - | BH111: ton | BI111: ton | BJ111: ton | BK111: - | BL111: ton | BM111: ton | BN111: kg | BO111: kg | BP111: kg | BQ111: kg | BR111: kg | BS111: m | BT111: m² | BU111: - | BV111: m | BW111: m² | BX111: - | BY111: m² | BZ111: m² | CA111: ton | CB111: ton | CC111: - | CD111: ton | CE111: ton | CF111: - | CG111: ton | CH111: ton | CI111: ton | CJ111: ton | CK111: - | CL111: m² | CM111: m² | CN111: m | CO111: pièce | CP111: pièce | CQ111: - | CR111: 1000 pièces | CS111: 1000 pièces | CT111: - | CU111: liter | CV111: liter | CW111: liter | CX111: - | CY111: liter | CZ111: liter | DA111: - | DB111: liter | DC111: liter | DD111: liter | DE111: - | DF111: liter | DG111: ton | DH111: ton | DI111: - | DJ111: ton | DK111: ton | DL111: kg | DM111: kg | DN111: kg | DO111: kg | DP111: kg | EA111: Code Statbel | EB111: 49.41 | EC111: 50.2 | ED111: 52.1 | EE111: 52.24 | EF111: 53.2 | EG111: 61 | EH111: 62 | EI111: 71 | EJ111: 73 | EK111: 78 | EL111: 80 | EM111: 81.2 | EN111: 90 | EO111: 255 | EP111: 257 | EQ111: 267 | ER111: 800 | ES111: 810 | ET111: 811 | EU111: 812 | EV111: 1083 | EW111: 1105 | EX111: 1393 | EY111: 1412 | EZ111: 1600 | FA111: 1610 | FB111: 1620 | FC111: 1621 | FD111: 1623 | FE111: 1700 | FF111: 1920 | FG111: 2000 | FH111: 2010 | FI111: 2012 | FJ111: 2013 | FK111: 2016 | FL111: 2030 | FM111: 2200 | FN111: 2210 | FO111: 2220 | FP111: 2221 | FQ111: 2222 | FR111: 2223 | FS111: 2300 | FT111: 2310 | FU111: 2312 | FV111: 2330 | FW111: 2332 | FX111: 2350 | FY111: 2351 | FZ111: 2360 | GA111: 2361 | GB111: 2363 | GC111: 2369 | GD111: 2370 | GE111: 2390 | GF111: 2400 | GG111: 2410 | GH111: 2430 | GI111: 2434 | GJ111: 2440 | GK111: 2444 | GL111: 2450 | GM111: 2451 | GN111: 2500 | GO111: 2510 | GP111: 2511 | GQ111: 2512 | GR111: 2520 | GS111: 2521 | GT111: 2600 | GU111: 2630 | GV111: 2700 | GW111: 2730 | GX111: 2733 | GY111: 2740 | GZ111: 2750 | HA111: 2800 | HB111: 2822 | HC111: 2900 | HD111: 3100 | HE111: 3101 | HF111: 3102 | HG111: 3200 | HH111: 3300 | HI111: 3500 | HJ111: 3510 | HK111: 3520 | HL111: 3600
B112: datum | C112: index "i" | D112: index "i2021" | E112: index "K1" | F112: index "K2" | G112: index "M" | H112: index "MM" | I112: prijsevolutie - volgens prijsherzieningsformule -index i 2021 | J112: prijsevolutie - volgens prijsherzieningsformule -index i | K112: prijsherzieningsformule - index i 2021 | L112: prijsherzieningsformule - index i | M112: 101 | N112: 102 | O112: 103 | P112: 104 | Q112: Porfierslag | R112: 109 | S112: 110 | T112: 111 | U112: 112 | V112: Zandsteenslag | W112: 117 | X112: 118 | Y112: 119 | Z112: 120 | AA112: 121 | AB112: Kalksteen | AC112: 130 | AD112: 131 | AE112: Binnenlands zand | AF112: 132 | AG112: 133 | AH112: 134 | AI112: 135 | AJ112: 136 | AK112: Binnenlands grind | AL112: 137 | AM112: 137² | AN112: Grind Rijnland | AO112: 138 | AP112: 138² | AQ112: Rivierzand Waal | AR112: Koudgewalste dunne platen | AS112: 210 | AT112: 213 | AU112: 217 | AV112: Profielstaal, kwaliteitsstaal | AW112: 211 | AX112: 219 | AY112: Staafstaal, andere kwaliteiten | AZ112: 212 | BA112: 215 | BB112: 220 | BC112: Dikke platen, kwaliteitsstaal | BD112: platen gemiddeldes | BE112: 218 | BF112: 224 | BG112: betonijzer | BH112: 221 | BI112: 222 | BJ112: 223 | BK112: Warmgewalste dunne platen | BL112: Damplanken | BM112: vorm- gietijzer | BN112: roestvrij staal | BO112: lood | BP112: Elektrolytisch koper | BQ112: zink | BR112: aluminium | BS112: 339 | BT112: 340 | BU112: Gezaagd inlands naaldhout | BV112: 341 | BW112: 342 | BX112: Gezaagd naaldhout Noorse grenen | BY112: OSB | BZ112: MDF | CA112: bouwblokken (442) | CB112: bouwblokken (443) | CC112: geperforeerde bouwblokken | CD112: bakstenen (445) | CE112: bakstenen (448) | CF112: bakstenen | CG112: cement (462) | CH112: cement (464) | CI112: cement (466) | CJ112: cement (467) | CK112: cement | CL112: betonnen tegels (470) | CM112: betonnen straatstenen (475) | CN112: boordstenen (480) | CO112: buizen ongewapend (486) | CP112: buizen ongewapend (486²) | CQ112: betonproducten voor het wegennetwerk | CR112: holle betonblokken (476) | CS112: volle betonblokken (477) | CT112: betonproducten voor de bouwsector | CU112: diesel (549) | CV112: diesel (549²) | CW112: diesel (549³) | CX112: diesel | CY112: Gasolie (550) | CZ112: Gasolie (550²) | DA112: Gasolie | DB112: euro 95 (551) | DC112: euro 95 (551²) | DD112: euro 95 (551³) | DE112: eurosuper 95 | DF112: LPG | DG112: bitume vaten (563) | DH112: bitume bulk (564) | DI112: Oliebitumen | DJ112: asfalt 1/2 | DK112: asfalt 4/5 | DL112: polyester | DM112: PVC | DN112: PE/LD | DO112: PE/HD | DP112: buizen PE/HD | DQ112: Elektriciteit | DR112: Aardgas | DS112: Water | DT112: Consumptie Prijs Index Statbel | DU112: Inflatie Index Statbel | DV112: Gezondheids Index Statbel | DW112: Afzetprijsindex in de bouwnijverheid - Statbel | EA112: periode | EB112: Goederenvervoer over de weg | EC112: Zee- en kustvaart, goederenvervoer | ED112: Opslag en bewaring | EE112: Behandeling | EF112: Andere post- en koeriersdiensten | EG112: Telecommunicatie | EH112: Programmering, advies en en andere IT-activiteiten | EI112: Architecten en ingenieurs; technische controle en analyse | EJ112: Reclame en marktonderzoek | EK112: Activiteiten in verband met werkgelegenheid | EL112: Privé onderzoek en veiligheid | EM112: Schoonmaakactiviteiten | EN112: Energie | EO112: Metallurgie en producten van metaal (24-25) | EP112: Metaalverwerking (25-30) | EQ112: Vervaardiging van elektrische machines en van audio-, video- en communicatieapparatuur (261-264 + 27) | ER112: Overige winning van delfstoffen | ES112: Winning van steen, zand en klei | ET112: Winning van bouw- en siersteen, kalksteen, gips, krijt en leisteen | EU112: Winning van grind, zand, klei en kaolien | EV112: Verwerking van thee en koffie | EW112: Vervaardiging van bier | EX112: Vervaardiging van vloerkleden en tapijt | EY112: Vervaardiging van werkkleding | EZ112: Houtindustrie en vervaardiging van artikelen van hout en van kurk, exclusief meubelen; vervaardiging van artikelen van riet en van vlechtwerk | FA112: Zagen en schaven van hout | FB112: Vervaardiging van artikelen van hout, kurk, riet of vlechtwerk | FC112: Vervaardiging van fineer en van panelen op basis van hout | FD112: Vervaardiging van ander schrijn- en timmerwerk | FE112: Vervaardiging van papier en papierwaren | FF112: Vervaardiging van geraffineerde aardolieproducten | FG112: Vervaardiging van chemische producten | FH112: Vervaardiging van chemische basisproducten, kunstmeststoffen en stikstofverbindingen en van kunststoffen en synthetische rubber in primaire vormen | FI112: Vervaardiging van kleurstoffen en pigmenten | FJ112: Vervaardiging van andere anorganische chemische basisproducten | FK112: Vervaardiging van kunststoffen in primaire vormen | FL112: Vervaardiging van verf, vernis e.d., drukinkt en mastiek | FM112: Vervaardiging van producten van rubber of kunststof | FN112: Vervaardiging van producten van rubber | FO112: Vervaardiging van producten van kunststof | FP112: Vervaardiging van platen, vellen, buizen en profielen van kunststof | FQ112: Vervaardiging van verpakkingsmateriaal van kunststof | FR112: Vervaardiging van kunststofartikelen voor de bouw | FS112: Vervaardiging van andere niet-metaalhoudende minerale producten | FT112: Vervaardiging van glas en glaswerk | FU112: Vormen en bewerken van vlakglas | FV112: Vervaardiging van producten voor de bouw, van klei | FW112: Vervaardiging van bakstenen, tegels en producten voor de bouw van gebakken klei | FX112: Vervaardiging van cement, kalk en gips | FY112: Vervaardiging van cement | FZ112: Vervaardiging van artikelen van beton, cement en gips | GA112: Vervaardiging van artikelen van beton voor de bouw | GB112: Vervaardiging van stortklare beton | GC112: Vervaardiging van andere artikelen van beton, gips en cement | GD112: Houwen, bewerken en afwerken van natuursteen | GE112: Vervaardiging van andere schuurmiddelen en niet-metaalhoudende minerale producten n.e.g. | GF112: Vervaardiging van metalen in primaire vorm | GG112: Vervaardiging van ijzer en staal en van ferrolegeringen | GH112: Vervaardiging van andere producten van de eerste verwerking van staal | GI112: Koudtrekken van draad | GJ112: Productie van edele metalen en van andere non-ferrometalen | GK112: Productie van koper | GL112: Gieten van metalen | GM112: Gieten van ijzer | GN112: Vervaardiging van informaticaproducten en van elektronische en optische producten | GO112: Vervaardiging van metalen constructiewerken | GP112: Vervaardiging van metalen constructiewerken en delen daarvan | GQ112: Vervaardiging van metalen deuren en vensters | GR112: Vervaardiging van tanks, reservoirs en bergingsmiddelen, van metaal | GS112: Vervaardiging van radiatoren en ketels voor centrale verwarming | GT112: Manufacture of computer, electronic and optical products | GU112: Communicatieapparatuur (productie) | GV112: Vervaardiging van elektrische apparatuur | GW112: Vervaardiging van kabels en van schakelaars, stekkers, stopcontacten e. d. | GX112: Vervaardiging van schakelaars, stekkers, stopcontacten e.d. | GY112: Vervaardiging van lampen en verlichtingsapparaten | GZ112: Vervaardiging van huishoudapparaten | HA112: Vervaardiging van machines, apparaten en werktuigen, n.e.g. | HB112: Vervaardiging van hijs-, hef- en transportwerktuigen | HC112: Vervaardiging en assemblage van motorvoertuigen, aanhangwagens en opleggers | HD112: Vervaardiging van meubelen | HE112: Vervaardiging van kantoor- en winkelmeubelen | HF112: Vervaardiging van keukenmeubelen | HG112: Overige industrie | HH112: Reparatie en installatie van machines en apparaten | HI112: Productie en distributie van elektriciteit, gas, stoom en gekoelde lucht | HJ112: Opwekking, transmissie en distributie van elektriciteit | HK112: Productie en distributie van gas | HL112: Winning, behandeling en distributie van water | HN112: Période | HO112: index "s" - cat A (< 10 p) | HP112: index "s" - cat A (van 10 tot 19 p) | HQ112: index "s" - cat A (≥ 20 p) | HR112: index "s" - cat B (< 10 p) | HS112: index "s" - cat B (van 10 tot 19 p) | HT112: index "s" - cat B (≥ 20 p) | HU112: index "s" - cat C (< 10 p) | HV112: index "s" - cat C (van 10 tot 19 p) | HW112: index "s" - cat C (≥ 20 p) | HX112: index "s" - cat D (< 10 p) | HY112: index "s" - cat D (van 10 tot 19 p) | HZ112: index "s" - cat D (≥ 20 p) | IA112: index "s" - elektriciens (< 10 p) | IB112: index "s" - elektriciens (≥ 10 p) | IC112: prijsevolutie - volgens prijsherzieningsformule -index i 2021 | ID112: prijsevolutie - volgens prijsherzieningsformule -index i | IE112: prijsherzieningsformule - index i 2021 | IF112: prijsherzieningsformule - index i | IG112: PC124 - manœuvre - cat. 1 | IH112: PC124 - manœuvre - cat. 1 A | II112: PC124 - arbeider - cat. 2 | IJ112: PC124 - arbeider - cat. 2 A | IK112: PC124 - arbeider - cat. 3 | IL112: PC124 - arbeider - cat. 4 | IM112: PC124 - teamleider - A | IN112: PC124 - teamleider - B | IO112: PC124 - voorman | IP112: PC200 - klasse A - Uitvoerende functies | IQ112: PC200 - klasse B - Ondersteunende functies | IR112: PC200 - Klasse C - Beheerfuncties | IS112: PC200 - Klasse D - Adviesfuncties | IT112: PC149 - klasse A - Ongeschoolde arbeider | IU112: PC149 - klasse B - Gespecialiseerde werknemer - 2e categorie | IV112: PC149 - Klasse C - Geschoold arbeider - 1e categorie | IW112: PC149 - Klasse D - Geschoold arbeider - 3e categorie | IX112: PC149 - Klasse E - Geschoold arbeider - 2e categorie | IY112: PC149 - Klasse F - Geschoold arbeider - 1e categorie | IZ112: PC116 - arbeider - 0 maanden anciënniteit | JA112: PC121 - 1.A - Routinematige reiniging | JB112: PC121 - 1.B. - Speciale reiniging - (+ stoffig, vuil, infectiegevaar, ...) | JC112: PC121 - 2.A. - Middelzware reiniging | JD112: PC121 - 2.E. - Ontsmetting | JE112: PC121 - 3.A. - Ophaling van afval, lediging en reiniging van riolen, septische putten en reservoirs | JF112: PC121 - 4.A - Gediplomeerde glazenwasser | JG112: PC121 - 7.A. - Schoorsteenveger | JH112: PC121 - 10.A. - Manœuvre - Stortplaats | JI112: PC111 - arbeiders | JJ112: PC209 - administratieve medewerkers - niveau 1 | JK112: PC209 - administratieve medewerkers - niveau 2 | JL112: PC209 - administratieve medewerkers - niveau 3 | JM112: PC209 - administratieve medewerkers - niveau 4 | JN112: PC209 - technisch personeel - niveau 1 | JO112: PC209 - technisch personeel - niveau 2 | JP112: PC209 - technisch personeel - niveau 3 | JQ112: PC209 - technisch personeel - niveau 4 | JR112: PC209 - technisch personeel - niveau 5 | JS112: PC209 - technisch personeel - niveau 6 | JT112: PC209 - technisch personeel - niveau 7 | JU112: PC209 - tekenaars - niveau 1 | JV112: PC209 - tekenaars - niveau 2 | JW112: PC209 - tekenaars - niveau 3 | JX112: PC209 - tekenaars - niveau 4 | JY112: PC209 - tekenaars - niveau 5 | JZ112: PC209 - voormannen - niveau 1 | KA112: PC209 - voormannen - niveau 2 | KB112: PC209 - voormannen - niveau 3 | KC112: PC126 - arbeiders - vanaf 21 jaar - categorie 1 | KD112: PC126 - arbeiders - vanaf 21 jaar - categorie 2 | KE112: PC126 - arbeiders - vanaf 21 jaar - categorie 3 | KF112: PC126 - arbeiders - vanaf 21 jaar - categorie 4 | KG112: PC126 - arbeiders - vanaf 21 jaar - categorie 5 | KH112: PC126 - klasse A - Uitvoerende functies | KI112: PC126 - klasse B - Ondersteunende functies | KJ112: PC126 - Klasse C - Beheerfuncties | KK112: PC126 - Klasse D - Adviesfuncties | KL112: PC115 - productiepersoneel - klasse 1 | KM112: PC115 - productiepersoneel - klasse 2 | KN112: PC115 - productiepersoneel - klasse 3 | KO112: PC115 - productiepersoneel - klasse 4 | KP112: PC115 - productiepersoneel - klasse 5 | KQ112: PC115 - productiepersoneel - klasse 6 | KR112: PC115 - onderhoudspersoneel en ondersteunende diensten - Gespecialiseerde arbeidskrachten: Groep 5 | KS112: PC115 - onderhoudspersoneel en ondersteunende diensten - Gespecialiseerde arbeidskrachten: Groep 6 | KT112: PC115 - onderhoudspersoneel en ondersteunende diensten - categorie - A | KU112: PC115 - onderhoudspersoneel en ondersteunende diensten - categorie - B | KV112: PC115 - onderhoudspersoneel en ondersteunende diensten - categorie - C | KW112: PC115 - onderhoudspersoneel en ondersteunende diensten - categorie - D | KX112: PC115 - onderhoudspersoneel en ondersteunende diensten - oversteekwachten
B113: =Tableau41326[[#This Row],[periode]] -> 2018-01-01 | C113: =IFERROR(IF(Standaardindexen!F26/Standaardindexen!F$26=0,NA(),Standaardindexen!F26/Standaardindexen!F$26),NA()) -> 1 | D113: =IFERROR(IF(Standaardindexen!G26/Standaardindexen!G$26=0,NA(),Standaardindexen!G26/Standaardindexen!G$26),NA()) -> 1 | E113: =IFERROR(IF(Standaardindexen!H26/Standaardindexen!H$26=0,NA(),Standaardindexen!H26/Standaardindexen!H$26),NA()) -> 1 | F113: =IFERROR(IF(Standaardindexen!I26/Standaardindexen!I$26=0,NA(),Standaardindexen!I26/Standaardindexen!I$26),NA()) -> 1 | G113: =IFERROR(IF(Standaardindexen!J26/Standaardindexen!J$26=0,NA(),Standaardindexen!J26/Standaardindexen!J$26),NA()) -> 1 | H113: =IFERROR(IF(Standaardindexen!K26/Standaardindexen!K$26=0,NA(),Standaardindexen!K26/Standaardindexen!K$26),NA()) -> 1 | I113: 1 | J113: 1 | K113: 1 | L113: 1 | M113: =IFERROR(IF('Materiaalindexen o.w.'!C33/'Materiaalindexen o.w.'!C$33=0,NA(),'Materiaalindexen o.w.'!C33/'Materiaalindexen o.w.'!C$33),NA()) -> 1 | N113: =IFERROR(IF('Materiaalindexen o.w.'!D33/'Materiaalindexen o.w.'!D$33=0,NA(),'Materiaalindexen o.w.'!D33/'Materiaalindexen o.w.'!D$33),NA()) -> 1 | O113: =IFERROR(IF('Materiaalindexen o.w.'!E33/'Materiaalindexen o.w.'!E$33=0,NA(),'Materiaalindexen o.w.'!E33/'Materiaalindexen o.w.'!E$33),NA()) -> 1 | P113: =IFERROR(IF('Materiaalindexen o.w.'!F33/'Materiaalindexen o.w.'!F$33=0,NA(),'Materiaalindexen o.w.'!F33/'Materiaalindexen o.w.'!F$33),NA()) -> 1 | Q113: =IFERROR(IF('Materiaalindexen o.w.'!G33/'Materiaalindexen o.w.'!G$33=0,NA(),'Materiaalindexen o.w.'!G33/'Materiaalindexen o.w.'!G$33),NA()) -> 1 | R113: =IFERROR(IF('Materiaalindexen o.w.'!H33/'Materiaalindexen o.w.'!H$33=0,NA(),'Materiaalindexen o.w.'!H33/'Materiaalindexen o.w.'!H$33),NA()) -> 1 | S113: =IFERROR(IF('Materiaalindexen o.w.'!I33/'Materiaalindexen o.w.'!I$33=0,NA(),'Materiaalindexen o.w.'!I33/'Materiaalindexen o.w.'!I$33),NA()) -> 1 | T113: =IFERROR(IF('Materiaalindexen o.w.'!J33/'Materiaalindexen o.w.'!J$33=0,NA(),'Materiaalindexen o.w.'!J33/'Materiaalindexen o.w.'!J$33),NA()) -> 1 | U113: =IFERROR(IF('Materiaalindexen o.w.'!K33/'Materiaalindexen o.w.'!K$33=0,NA(),'Materiaalindexen o.w.'!K33/'Materiaalindexen o.w.'!K$33),NA()) -> 1 | V113: =IFERROR(IF('Materiaalindexen o.w.'!L33/'Materiaalindexen o.w.'!L$33=0,NA(),'Materiaalindexen o.w.'!L33/'Materiaalindexen o.w.'!L$33),NA()) -> 1 | W113: =IFERROR(IF('Materiaalindexen o.w.'!M33/'Materiaalindexen o.w.'!M$33=0,NA(),'Materiaalindexen o.w.'!M33/'Materiaalindexen o.w.'!M$33),NA()) -> 1 | X113: =IFERROR(IF('Materiaalindexen o.w.'!N33/'Materiaalindexen o.w.'!N$33=0,NA(),'Materiaalindexen o.w.'!N33/'Materiaalindexen o.w.'!N$33),NA()) -> 1 | Y113: =IFERROR(IF('Materiaalindexen o.w.'!O33/'Materiaalindexen o.w.'!O$33=0,NA(),'Materiaalindexen o.w.'!O33/'Materiaalindexen o.w.'!O$33),NA()) -> 1 | Z113: =IFERROR(IF('Materiaalindexen o.w.'!P33/'Materiaalindexen o.w.'!P$33=0,NA(),'Materiaalindexen o.w.'!P33/'Materiaalindexen o.w.'!P$33),NA()) -> 1 | AA113: =IFERROR(IF('Materiaalindexen o.w.'!Q33/'Materiaalindexen o.w.'!Q$33=0,NA(),'Materiaalindexen o.w.'!Q33/'Materiaalindexen o.w.'!Q$33),NA()) -> 1 | AB113: =IFERROR(IF('Materiaalindexen o.w.'!R33/'Materiaalindexen o.w.'!R$33=0,NA(),'Materiaalindexen o.w.'!R33/'Materiaalindexen o.w.'!R$33),NA()) -> 1 | AC113: =IFERROR(IF('Materiaalindexen o.w.'!S33/'Materiaalindexen o.w.'!S$33=0,NA(),'Materiaalindexen o.w.'!S33/'Materiaalindexen o.w.'!S$33),NA()) -> 1 | AD113: =IFERROR(IF('Materiaalindexen o.w.'!T33/'Materiaalindexen o.w.'!T$33=0,NA(),'Materiaalindexen o.w.'!T33/'Materiaalindexen o.w.'!T$33),NA()) -> 1 | AE113: =IFERROR(IF('Materiaalindexen o.w.'!U33/'Materiaalindexen o.w.'!U$33=0,NA(),'Materiaalindexen o.w.'!U33/'Materiaalindexen o.w.'!U$33),NA()) -> 1 | AF113: =IFERROR(IF('Materiaalindexen o.w.'!V33/'Materiaalindexen o.w.'!V$33=0,NA(),'Materiaalindexen o.w.'!V33/'Materiaalindexen o.w.'!V$33),NA()) -> 1 | AG113: =IFERROR(IF('Materiaalindexen o.w.'!W33/'Materiaalindexen o.w.'!W$33=0,NA(),'Materiaalindexen o.w.'!W33/'Materiaalindexen o.w.'!W$33),NA()) -> 1 | AH113: =IFERROR(IF('Materiaalindexen o.w.'!X33/'Materiaalindexen o.w.'!X$33=0,NA(),'Materiaalindexen o.w.'!X33/'Materiaalindexen o.w.'!X$33),NA()) -> 1 | AI113: =IFERROR(IF('Materiaalindexen o.w.'!Y33/'Materiaalindexen o.w.'!Y$33=0,NA(),'Materiaalindexen o.w.'!Y33/'Materiaalindexen o.w.'!Y$33),NA()) -> 1 | AJ113: =IFERROR(IF('Materiaalindexen o.w.'!Z33/'Materiaalindexen o.w.'!Z$33=0,NA(),'Materiaalindexen o.w.'!Z33/'Materiaalindexen o.w.'!Z$33),NA()) -> 1 | AK113: =IFERROR(IF('Materiaalindexen o.w.'!AA33/'Materiaalindexen o.w.'!AA$33=0,NA(),'Materiaalindexen o.w.'!AA33/'Materiaalindexen o.w.'!AA$33),NA()) -> 1 | AL113: =IFERROR(IF('Materiaalindexen o.w.'!AB33/'Materiaalindexen o.w.'!AB$33=0,NA(),'Materiaalindexen o.w.'!AB33/'Materiaalindexen o.w.'!AB$33),NA()) -> 1 | AM113: =IFERROR(IF('Materiaalindexen o.w.'!AC33/'Materiaalindexen o.w.'!AC$33=0,NA(),'Materiaalindexen o.w.'!AC33/'Materiaalindexen o.w.'!AC$33),NA()) -> 1 | AN113: =IFERROR(IF('Materiaalindexen o.w.'!AD33/'Materiaalindexen o.w.'!AD$33=0,NA(),'Materiaalindexen o.w.'!AD33/'Materiaalindexen o.w.'!AD$33),NA()) -> 1 | AO113: =IFERROR(IF('Materiaalindexen o.w.'!AE33/'Materiaalindexen o.w.'!AE$33=0,NA(),'Materiaalindexen o.w.'!AE33/'Materiaalindexen o.w.'!AE$33),NA()) -> 1 | AP113: =IFERROR(IF('Materiaalindexen o.w.'!AF33/'Materiaalindexen o.w.'!AF$33=0,NA(),'Materiaalindexen o.w.'!AF33/'Materiaalindexen o.w.'!AF$33),NA()) -> 1 | AQ113: =IFERROR(IF('Materiaalindexen o.w.'!AG33/'Materiaalindexen o.w.'!AG$33=0,NA(),'Materiaalindexen o.w.'!AG33/'Materiaalindexen o.w.'!AG$33),NA()) -> 1 | AR113: =IFERROR(IF('Materiaalindexen o.w.'!AH33/'Materiaalindexen o.w.'!AH$33=0,NA(),'Materiaalindexen o.w.'!AH33/'Materiaalindexen o.w.'!AH$33),NA()) -> 1 | AS113: =IFERROR(IF('Materiaalindexen o.w.'!AI33/'Materiaalindexen o.w.'!AI$33=0,NA(),'Materiaalindexen o.w.'!AI33/'Materiaalindexen o.w.'!AI$33),NA()) -> 1 | AT113: =IFERROR(IF('Materiaalindexen o.w.'!AJ33/'Materiaalindexen o.w.'!AJ$33=0,NA(),'Materiaalindexen o.w.'!AJ33/'Materiaalindexen o.w.'!AJ$33),NA()) -> 1 | AU113: =IFERROR(IF('Materiaalindexen o.w.'!AK33/'Materiaalindexen o.w.'!AK$33=0,NA(),'Materiaalindexen o.w.'!AK33/'Materiaalindexen o.w.'!AK$33),NA()) -> 1 | AV113: =IFERROR(IF('Materiaalindexen o.w.'!AL33/'Materiaalindexen o.w.'!AL$33=0,NA(),'Materiaalindexen o.w.'!AL33/'Materiaalindexen o.w.'!AL$33),NA()) -> 1 | AW113: =IFERROR(IF('Materiaalindexen o.w.'!AM33/'Materiaalindexen o.w.'!AM$33=0,NA(),'Materiaalindexen o.w.'!AM33/'Materiaalindexen o.w.'!AM$33),NA()) -> 1 | AX113: =IFERROR(IF('Materiaalindexen o.w.'!AN33/'Materiaalindexen o.w.'!AN$33=0,NA(),'Materiaalindexen o.w.'!AN33/'Materiaalindexen o.w.'!AN$33),NA()) -> 1 | AY113: =IFERROR(IF('Materiaalindexen o.w.'!AO33/'Materiaalindexen o.w.'!AO$33=0,NA(),'Materiaalindexen o.w.'!AO33/'Materiaalindexen o.w.'!AO$33),NA()) -> 1 | AZ113: =IFERROR(IF('Materiaalindexen o.w.'!AP33/'Materiaalindexen o.w.'!AP$33=0,NA(),'Materiaalindexen o.w.'!AP33/'Materiaalindexen o.w.'!AP$33),NA()) -> 1 | BA113: =IFERROR(IF('Materiaalindexen o.w.'!AQ33/'Materiaalindexen o.w.'!AQ$33=0,NA(),'Materiaalindexen o.w.'!AQ33/'Materiaalindexen o.w.'!AQ$33),NA()) -> 1 | BB113: =IFERROR(IF('Materiaalindexen o.w.'!AR33/'Materiaalindexen o.w.'!AR$33=0,NA(),'Materiaalindexen o.w.'!AR33/'Materiaalindexen o.w.'!AR$33),NA()) -> 1 | BC113: =IFERROR(IF('Materiaalindexen o.w.'!AS33/'Materiaalindexen o.w.'!AS$33=0,NA(),'Materiaalindexen o.w.'!AS33/'Materiaalindexen o.w.'!AS$33),NA()) -> 1 | BD113: =IFERROR(IF('Materiaalindexen o.w.'!AT33/'Materiaalindexen o.w.'!AT$33=0,NA(),'Materiaalindexen o.w.'!AT33/'Materiaalindexen o.w.'!AT$33),NA()) -> 1 | BE113: =IFERROR(IF('Materiaalindexen o.w.'!AU33/'Materiaalindexen o.w.'!AU$33=0,NA(),'Materiaalindexen o.w.'!AU33/'Materiaalindexen o.w.'!AU$33),NA()) -> 1 | BF113: =IFERROR(IF('Materiaalindexen o.w.'!AV33/'Materiaalindexen o.w.'!AV$33=0,NA(),'Materiaalindexen o.w.'!AV33/'Materiaalindexen o.w.'!AV$33),NA()) -> 1 | BG113: =IFERROR(IF('Materiaalindexen o.w.'!AW33/'Materiaalindexen o.w.'!AW$33=0,NA(),'Materiaalindexen o.w.'!AW33/'Materiaalindexen o.w.'!AW$33),NA()) -> 1 | BH113: =IFERROR(IF('Materiaalindexen o.w.'!AX33/'Materiaalindexen o.w.'!AX$33=0,NA(),'Materiaalindexen o.w.'!AX33/'Materiaalindexen o.w.'!AX$33),NA()) -> 1 | BI113: =IFERROR(IF('Materiaalindexen o.w.'!AY33/'Materiaalindexen o.w.'!AY$33=0,NA(),'Materiaalindexen o.w.'!AY33/'Materiaalindexen o.w.'!AY$33),NA()) -> 1 | BJ113: =IFERROR(IF('Materiaalindexen o.w.'!AZ33/'Materiaalindexen o.w.'!AZ$33=0,NA(),'Materiaalindexen o.w.'!AZ33/'Materiaalindexen o.w.'!AZ$33),NA()) -> 1 | BK113: =IFERROR(IF('Materiaalindexen o.w.'!BA33/'Materiaalindexen o.w.'!BA$33=0,NA(),'Materiaalindexen o.w.'!BA33/'Materiaalindexen o.w.'!BA$33),NA()) -> 1 | BL113: =IFERROR(IF('Materiaalindexen o.w.'!BB33/'Materiaalindexen o.w.'!BB$33=0,NA(),'Materiaalindexen o.w.'!BB33/'Materiaalindexen o.w.'!BB$33),NA()) -> 1 | BM113: =IFERROR(IF('Materiaalindexen o.w.'!BC33/'Materiaalindexen o.w.'!BC$33=0,NA(),'Materiaalindexen o.w.'!BC33/'Materiaalindexen o.w.'!BC$33),NA()) -> 1 | BN113: =IFERROR(IF('Materiaalindexen o.w.'!BD33/'Materiaalindexen o.w.'!BD$33=0,NA(),'Materiaalindexen o.w.'!BD33/'Materiaalindexen o.w.'!BD$33),NA()) -> 1 | BO113: =IFERROR(IF('Materiaalindexen o.w.'!BE33/'Materiaalindexen o.w.'!BE$33=0,NA(),'Materiaalindexen o.w.'!BE33/'Materiaalindexen o.w.'!BE$33),NA()) -> 1 | BP113: =IFERROR(IF('Materiaalindexen o.w.'!BF33/'Materiaalindexen o.w.'!BF$33=0,NA(),'Materiaalindexen o.w.'!BF33/'Materiaalindexen o.w.'!BF$33),NA()) -> 1 | BQ113: =IFERROR(IF('Materiaalindexen o.w.'!BG33/'Materiaalindexen o.w.'!BG$33=0,NA(),'Materiaalindexen o.w.'!BG33/'Materiaalindexen o.w.'!BG$33),NA()) -> 1 | BR113: =IFERROR(IF('Materiaalindexen o.w.'!BH33/'Materiaalindexen o.w.'!BH$33=0,NA(),'Materiaalindexen o.w.'!BH33/'Materiaalindexen o.w.'!BH$33),NA()) -> 1 | BS113: =IFERROR(IF('Materiaalindexen o.w.'!BI33/'Materiaalindexen o.w.'!BI$33=0,NA(),'Materiaalindexen o.w.'!BI33/'Materiaalindexen o.w.'!BI$33),NA()) -> 1 | BT113: =IFERROR(IF('Materiaalindexen o.w.'!BJ33/'Materiaalindexen o.w.'!BJ$33=0,NA(),'Materiaalindexen o.w.'!BJ33/'Materiaalindexen o.w.'!BJ$33),NA()) -> 1 | BU113: =IFERROR(IF('Materiaalindexen o.w.'!BK33/'Materiaalindexen o.w.'!BK$33=0,NA(),'Materiaalindexen o.w.'!BK33/'Materiaalindexen o.w.'!BK$33),NA()) -> 1 | BV113: =IFERROR(IF('Materiaalindexen o.w.'!BL33/'Materiaalindexen o.w.'!BL$33=0,NA(),'Materiaalindexen o.w.'!BL33/'Materiaalindexen o.w.'!BL$33),NA()) -> 1 | BW113: =IFERROR(IF('Materiaalindexen o.w.'!BM33/'Materiaalindexen o.w.'!BM$33=0,NA(),'Materiaalindexen o.w.'!BM33/'Materiaalindexen o.w.'!BM$33),NA()) -> 1 | BX113: =IFERROR(IF('Materiaalindexen o.w.'!BN33/'Materiaalindexen o.w.'!BN$33=0,NA(),'Materiaalindexen o.w.'!BN33/'Materiaalindexen o.w.'!BN$33),NA()) -> 1 | BY113: =IFERROR(IF('Materiaalindexen o.w.'!BO33/'Materiaalindexen o.w.'!BO$33=0,NA(),'Materiaalindexen o.w.'!BO33/'Materiaalindexen o.w.'!BO$33),NA()) -> 1 | BZ113: =IFERROR(IF('Materiaalindexen o.w.'!BP33/'Materiaalindexen o.w.'!BP$33=0,NA(),'Materiaalindexen o.w.'!BP33/'Materiaalindexen o.w.'!BP$33),NA()) -> 1 | CA113: =IFERROR(IF('Materiaalindexen o.w.'!BQ33/'Materiaalindexen o.w.'!BQ$33=0,NA(),'Materiaalindexen o.w.'!BQ33/'Materiaalindexen o.w.'!BQ$33),NA()) -> 1 | CB113: =IFERROR(IF('Materiaalindexen o.w.'!BR33/'Materiaalindexen o.w.'!BR$33=0,NA(),'Materiaalindexen o.w.'!BR33/'Materiaalindexen o.w.'!BR$33),NA()) -> 1 | CC113: =IFERROR(IF('Materiaalindexen o.w.'!BS33/'Materiaalindexen o.w.'!BS$33=0,NA(),'Materiaalindexen o.w.'!BS33/'Materiaalindexen o.w.'!BS$33),NA()) -> 1 | CD113: =IFERROR(IF('Materiaalindexen o.w.'!BT33/'Materiaalindexen o.w.'!BT$33=0,NA(),'Materiaalindexen o.w.'!BT33/'Materiaalindexen o.w.'!BT$33),NA()) -> 1 | CE113: =IFERROR(IF('Materiaalindexen o.w.'!BU33/'Materiaalindexen o.w.'!BU$33=0,NA(),'Materiaalindexen o.w.'!BU33/'Materiaalindexen o.w.'!BU$33),NA()) -> 1 | CF113: =IFERROR(IF('Materiaalindexen o.w.'!BV33/'Materiaalindexen o.w.'!BV$33=0,NA(),'Materiaalindexen o.w.'!BV33/'Materiaalindexen o.w.'!BV$33),NA()) -> 1 | CG113: =IFERROR(IF('Materiaalindexen o.w.'!BW33/'Materiaalindexen o.w.'!BW$33=0,NA(),'Materiaalindexen o.w.'!BW33/'Materiaalindexen o.w.'!BW$33),NA()) -> 1 | CH113: =IFERROR(IF('Materiaalindexen o.w.'!BX33/'Materiaalindexen o.w.'!BX$33=0,NA(),'Materiaalindexen o.w.'!BX33/'Materiaalindexen o.w.'!BX$33),NA()) -> 1 | CI113: =IFERROR(IF('Materiaalindexen o.w.'!BY33/'Materiaalindexen o.w.'!BY$33=0,NA(),'Materiaalindexen o.w.'!BY33/'Materiaalindexen o.w.'!BY$33),NA()) -> 1 | CJ113: =IFERROR(IF('Materiaalindexen o.w.'!BZ33/'Materiaalindexen o.w.'!BZ$33=0,NA(),'Materiaalindexen o.w.'!BZ33/'Materiaalindexen o.w.'!BZ$33),NA()) -> 1 | CK113: =IFERROR(IF('Materiaalindexen o.w.'!CA33/'Materiaalindexen o.w.'!CA$33=0,NA(),'Materiaalindexen o.w.'!CA33/'Materiaalindexen o.w.'!CA$33),NA()) -> 1 | CL113: =IFERROR(IF('Materiaalindexen o.w.'!CB33/'Materiaalindexen o.w.'!CB$33=0,NA(),'Materiaalindexen o.w.'!CB33/'Materiaalindexen o.w.'!CB$33),NA()) -> 1 | CM113: =IFERROR(IF('Materiaalindexen o.w.'!CC33/'Materiaalindexen o.w.'!CC$33=0,NA(),'Materiaalindexen o.w.'!CC33/'Materiaalindexen o.w.'!CC$33),NA()) -> 1 | CN113: =IFERROR(IF('Materiaalindexen o.w.'!CD33/'Materiaalindexen o.w.'!CD$33=0,NA(),'Materiaalindexen o.w.'!CD33/'Materiaalindexen o.w.'!CD$33),NA()) -> 1 | CO113: =IFERROR(IF('Materiaalindexen o.w.'!CE33/'Materiaalindexen o.w.'!CE$33=0,NA(),'Materiaalindexen o.w.'!CE33/'Materiaalindexen o.w.'!CE$33),NA()) -> 1 | CP113: =IFERROR(IF('Materiaalindexen o.w.'!CF33/'Materiaalindexen o.w.'!CF$33=0,NA(),'Materiaalindexen o.w.'!CF33/'Materiaalindexen o.w.'!CF$33),NA()) -> 1 | CQ113: =IFERROR(IF('Materiaalindexen o.w.'!CG33/'Materiaalindexen o.w.'!CG$33=0,NA(),'Materiaalindexen o.w.'!CG33/'Materiaalindexen o.w.'!CG$33),NA()) -> 1 | CR113: =IFERROR(IF('Materiaalindexen o.w.'!CH33/'Materiaalindexen o.w.'!CH$33=0,NA(),'Materiaalindexen o.w.'!CH33/'Materiaalindexen o.w.'!CH$33),NA()) -> 1 | CS113: =IFERROR(IF('Materiaalindexen o.w.'!CI33/'Materiaalindexen o.w.'!CI$33=0,NA(),'Materiaalindexen o.w.'!CI33/'Materiaalindexen o.w.'!CI$33),NA()) -> 1 | CT113: =IFERROR(IF('Materiaalindexen o.w.'!CJ33/'Materiaalindexen o.w.'!CJ$33=0,NA(),'Materiaalindexen o.w.'!CJ33/'Materiaalindexen o.w.'!CJ$33),NA()) -> 1 | CU113: =IFERROR(IF('Materiaalindexen o.w.'!CK33/'Materiaalindexen o.w.'!CK$33=0,NA(),'Materiaalindexen o.w.'!CK33/'Materiaalindexen o.w.'!CK$33),NA()) -> 1 | CV113: =IFERROR(IF('Materiaalindexen o.w.'!CL33/'Materiaalindexen o.w.'!CL$33=0,NA(),'Materiaalindexen o.w.'!CL33/'Materiaalindexen o.w.'!CL$33),NA()) -> 1 | CW113: =IFERROR(IF('Materiaalindexen o.w.'!CM33/'Materiaalindexen o.w.'!CM$33=0,NA(),'Materiaalindexen o.w.'!CM33/'Materiaalindexen o.w.'!CM$33),NA()) -> 1 | CX113: =IFERROR(IF('Materiaalindexen o.w.'!CN33/'Materiaalindexen o.w.'!CN$33=0,NA(),'Materiaalindexen o.w.'!CN33/'Materiaalindexen o.w.'!CN$33),NA()) -> 1 | CY113: =IFERROR(IF('Materiaalindexen o.w.'!CO33/'Materiaalindexen o.w.'!CO$33=0,NA(),'Materiaalindexen o.w.'!CO33/'Materiaalindexen o.w.'!CO$33),NA()) -> 1 | CZ113: =IFERROR(IF('Materiaalindexen o.w.'!CP33/'Materiaalindexen o.w.'!CP$33=0,NA(),'Materiaalindexen o.w.'!CP33/'Materiaalindexen o.w.'!CP$33),NA()) -> 1 | DA113: =IFERROR(IF('Materiaalindexen o.w.'!CQ33/'Materiaalindexen o.w.'!CQ$33=0,NA(),'Materiaalindexen o.w.'!CQ33/'Materiaalindexen o.w.'!CQ$33),NA()) -> 1 | DB113: =IFERROR(IF('Materiaalindexen o.w.'!CR33/'Materiaalindexen o.w.'!CR$33=0,NA(),'Materiaalindexen o.w.'!CR33/'Materiaalindexen o.w.'!CR$33),NA()) -> 1 | DC113: =IFERROR(IF('Materiaalindexen o.w.'!CS33/'Materiaalindexen o.w.'!CS$33=0,NA(),'Materiaalindexen o.w.'!CS33/'Materiaalindexen o.w.'!CS$33),NA()) -> 1 | DD113: =IFERROR(IF('Materiaalindexen o.w.'!CT33/'Materiaalindexen o.w.'!CT$33=0,NA(),'Materiaalindexen o.w.'!CT33/'Materiaalindexen o.w.'!CT$33),NA()) -> 1 | DE113: =IFERROR(IF('Materiaalindexen o.w.'!CU33/'Materiaalindexen o.w.'!CU$33=0,NA(),'Materiaalindexen o.w.'!CU33/'Materiaalindexen o.w.'!CU$33),NA()) -> 1 | DF113: =IFERROR(IF('Materiaalindexen o.w.'!CV33/'Materiaalindexen o.w.'!CV$33=0,NA(),'Materiaalindexen o.w.'!CV33/'Materiaalindexen o.w.'!CV$33),NA()) -> 1 | DG113: =IFERROR(IF('Materiaalindexen o.w.'!CW33/'Materiaalindexen o.w.'!CW$33=0,NA(),'Materiaalindexen o.w.'!CW33/'Materiaalindexen o.w.'!CW$33),NA()) -> 1 | DH113: =IFERROR(IF('Materiaalindexen o.w.'!CX33/'Materiaalindexen o.w.'!CX$33=0,NA(),'Materiaalindexen o.w.'!CX33/'Materiaalindexen o.w.'!CX$33),NA()) -> 1 | DI113: =IFERROR(IF('Materiaalindexen o.w.'!CY33/'Materiaalindexen o.w.'!CY$33=0,NA(),'Materiaalindexen o.w.'!CY33/'Materiaalindexen o.w.'!CY$33),NA()) -> 1 | DJ113: =IFERROR(IF('Materiaalindexen o.w.'!CZ33/'Materiaalindexen o.w.'!CZ$33=0,NA(),'Materiaalindexen o.w.'!CZ33/'Materiaalindexen o.w.'!CZ$33),NA()) -> 1 | DK113: =IFERROR(IF('Materiaalindexen o.w.'!DA33/'Materiaalindexen o.w.'!DA$33=0,NA(),'Materiaalindexen o.w.'!DA33/'Materiaalindexen o.w.'!DA$33),NA()) -> 1 | DL113: =IFERROR(IF('Materiaalindexen o.w.'!DB33/'Materiaalindexen o.w.'!DB$33=0,NA(),'Materiaalindexen o.w.'!DB33/'Materiaalindexen o.w.'!DB$33),NA()) -> 1 | DM113: =IFERROR(IF('Materiaalindexen o.w.'!DC33/'Materiaalindexen o.w.'!DC$33=0,NA(),'Materiaalindexen o.w.'!DC33/'Materiaalindexen o.w.'!DC$33),NA()) -> 1 | DN113: =IFERROR(IF('Materiaalindexen o.w.'!DD33/'Materiaalindexen o.w.'!DD$33=0,NA(),'Materiaalindexen o.w.'!DD33/'Materiaalindexen o.w.'!DD$33),NA()) -> 1 | DO113: =IFERROR(IF('Materiaalindexen o.w.'!DE33/'Materiaalindexen o.w.'!DE$33=0,NA(),'Materiaalindexen o.w.'!DE33/'Materiaalindexen o.w.'!DE$33),NA()) -> 1 | DP113: =IFERROR(IF('Materiaalindexen o.w.'!DF33/'Materiaalindexen o.w.'!DF$33=0,NA(),'Materiaalindexen o.w.'!DF33/'Materiaalindexen o.w.'!DF$33),NA()) -> 1 | DQ113: =IFERROR(IF('Materiaalindexen o.w.'!DG33/'Materiaalindexen o.w.'!DG$33=0,NA(),'Materiaalindexen o.w.'!DG33/'Materiaalindexen o.w.'!DG$33),NA()) -> 1 | DR113: =IFERROR(IF('Materiaalindexen o.w.'!DH33/'Materiaalindexen o.w.'!DH$33=0,NA(),'Materiaalindexen o.w.'!DH33/'Materiaalindexen o.w.'!DH$33),NA()) -> 1 | DS113: =IFERROR(IF('Materiaalindexen o.w.'!DI33/'Materiaalindexen o.w.'!DI$33=0,NA(),'Materiaalindexen o.w.'!DI33/'Materiaalindexen o.w.'!DI$33),NA()) -> 1 | DT113: =IFERROR(IF('Materiaalindexen o.w.'!DJ33/'Materiaalindexen o.w.'!DJ$33=0,NA(),'Materiaalindexen o.w.'!DJ33/'Materiaalindexen o.w.'!DJ$33),NA()) -> 1 | DU113: =IFERROR(IF('Materiaalindexen o.w.'!DK33/'Materiaalindexen o.w.'!DK$33=0,NA(),'Materiaalindexen o.w.'!DK33/'Materiaalindexen o.w.'!DK$33),NA()) -> 1 | DV113: =IFERROR(IF('Materiaalindexen o.w.'!DL33/'Materiaalindexen o.w.'!DL$33=0,NA(),'Materiaalindexen o.w.'!DL33/'Materiaalindexen o.w.'!DL$33),NA()) -> 1 | DW113: =IFERROR(IF('Materiaalindexen o.w.'!DM33/'Materiaalindexen o.w.'!DM$33=0,NA(),'Materiaalindexen o.w.'!DM33/'Materiaalindexen o.w.'!DM$33),NA()) -> 1 | EA113: 2018-01-01 | EB113: =IFERROR(IF('Indexen goederen & diensten'!C27/'Indexen goederen & diensten'!C$27=0,NA(),'Indexen goederen & diensten'!C27/'Indexen goederen & diensten'!C$27),NA()) -> 1 | EC113: =IFERROR(IF('Indexen goederen & diensten'!D27/'Indexen goederen & diensten'!D$27=0,NA(),'Indexen goederen & diensten'!D27/'Indexen goederen & diensten'!D$27),NA()) -> 1 | ED113: =IFERROR(IF('Indexen goederen & diensten'!E27/'Indexen goederen & diensten'!E$27=0,NA(),'Indexen goederen & diensten'!E27/'Indexen goederen & diensten'!E$27),NA()) -> 1 | EE113: =IFERROR(IF('Indexen goederen & diensten'!F27/'Indexen goederen & diensten'!F$27=0,NA(),'Indexen goederen & diensten'!F27/'Indexen goederen & diensten'!F$27),NA()) -> 1 | EF113: =IFERROR(IF('Indexen goederen & diensten'!G27/'Indexen goederen & diensten'!G$27=0,NA(),'Indexen goederen & diensten'!G27/'Indexen goederen & diensten'!G$27),NA()) -> 1 | EG113: =IFERROR(IF('Indexen goederen & diensten'!H27/'Indexen goederen & diensten'!H$27=0,NA(),'Indexen goederen & diensten'!H27/'Indexen goederen & diensten'!H$27),NA()) -> 1 | EH113: =IFERROR(IF('Indexen goederen & diensten'!I27/'Indexen goederen & diensten'!I$27=0,NA(),'Indexen goederen & diensten'!I27/'Indexen goederen & diensten'!I$27),NA()) -> 1 | EI113: =IFERROR(IF('Indexen goederen & diensten'!J27/'Indexen goederen & diensten'!J$27=0,NA(),'Indexen goederen & diensten'!J27/'Indexen goederen & diensten'!J$27),NA()) -> 1 | EJ113: =IFERROR(IF('Indexen goederen & diensten'!K27/'Indexen goederen & diensten'!K$27=0,NA(),'Indexen goederen & diensten'!K27/'Indexen goederen & diensten'!K$27),NA()) -> 1 | EK113: =IFERROR(IF('Indexen goederen & diensten'!L27/'Indexen goederen & diensten'!L$27=0,NA(),'Indexen goederen & diensten'!L27/'Indexen goederen & diensten'!L$27),NA()) -> 1 | EL113: =IFERROR(IF('Indexen goederen & diensten'!M27/'Indexen goederen & diensten'!M$27=0,NA(),'Indexen goederen & diensten'!M27/'Indexen goederen & diensten'!M$27),NA()) -> 1 | EM113: =IFERROR(IF('Indexen goederen & diensten'!N27/'Indexen goederen & diensten'!N$27=0,NA(),'Indexen goederen & diensten'!N27/'Indexen goederen & diensten'!N$27),NA()) -> 1 | EN113: =IFERROR(IF('Indexen goederen & diensten'!O27/'Indexen goederen & diensten'!O$27=0,NA(),'Indexen goederen & diensten'!O27/'Indexen goederen & diensten'!O$27),NA()) -> 1 | EO113: =IFERROR(IF('Indexen goederen & diensten'!P27/'Indexen goederen & diensten'!P$27=0,NA(),'Indexen goederen & diensten'!P27/'Indexen goederen & diensten'!P$27),NA()) -> 1 | EP113: =IFERROR(IF('Indexen goederen & diensten'!Q27/'Indexen goederen & diensten'!Q$27=0,NA(),'Indexen goederen & diensten'!Q27/'Indexen goederen & diensten'!Q$27),NA()) -> 1 | EQ113: =IFERROR(IF('Indexen goederen & diensten'!R27/'Indexen goederen & diensten'!R$27=0,NA(),'Indexen goederen & diensten'!R27/'Indexen goederen & diensten'!R$27),NA()) -> 1 | ER113: =IFERROR(IF('Indexen goederen & diensten'!S27/'Indexen goederen & diensten'!S$27=0,NA(),'Indexen goederen & diensten'!S27/'Indexen goederen & diensten'!S$27),NA()) -> 1 | ES113: =IFERROR(IF('Indexen goederen & diensten'!T27/'Indexen goederen & diensten'!T$27=0,NA(),'Indexen goederen & diensten'!T27/'Indexen goederen & diensten'!T$27),NA()) -> 1 | ET113: =IFERROR(IF('Indexen goederen & diensten'!U27/'Indexen goederen & diensten'!U$27=0,NA(),'Indexen goederen & diensten'!U27/'Indexen goederen & diensten'!U$27),NA()) -> 1 | EU113: =IFERROR(IF('Indexen goederen & diensten'!V27/'Indexen goederen & diensten'!V$27=0,NA(),'Indexen goederen & diensten'!V27/'Indexen goederen & diensten'!V$27),NA()) -> 1 | EV113: =IFERROR(IF('Indexen goederen & diensten'!W27/'Indexen goederen & diensten'!W$27=0,NA(),'Indexen goederen & diensten'!W27/'Indexen goederen & diensten'!W$27),NA()) -> 1 | EW113: =IFERROR(IF('Indexen goederen & diensten'!X27/'Indexen goederen & diensten'!X$27=0,NA(),'Indexen goederen & diensten'!X27/'Indexen goederen & diensten'!X$27),NA()) -> 1 | EX113: =IFERROR(IF('Indexen goederen & diensten'!Y27/'Indexen goederen & diensten'!Y$27=0,NA(),'Indexen goederen & diensten'!Y27/'Indexen goederen & diensten'!Y$27),NA()) -> 1 | EY113: =IFERROR(IF('Indexen goederen & diensten'!Z27/'Indexen goederen & diensten'!Z$27=0,NA(),'Indexen goederen & diensten'!Z27/'Indexen goederen & diensten'!Z$27),NA()) -> 1 | EZ113: =IFERROR(IF('Indexen goederen & diensten'!AA27/'Indexen goederen & diensten'!AA$27=0,NA(),'Indexen goederen & diensten'!AA27/'Indexen goederen & diensten'!AA$27),NA()) -> 1 | FA113: =IFERROR(IF('Indexen goederen & diensten'!AB27/'Indexen goederen & diensten'!AB$27=0,NA(),'Indexen goederen & diensten'!AB27/'Indexen goederen & diensten'!AB$27),NA()) -> 1 | FB113: =IFERROR(IF('Indexen goederen & diensten'!AC27/'Indexen goederen & diensten'!AC$27=0,NA(),'Indexen goederen & diensten'!AC27/'Indexen goederen & diensten'!AC$27),NA()) -> 1 | FC113: =IFERROR(IF('Indexen goederen & diensten'!AD27/'Indexen goederen & diensten'!AD$27=0,NA(),'Indexen goederen & diensten'!AD27/'Indexen goederen & diensten'!AD$27),NA()) -> 1 | FD113: =IFERROR(IF('Indexen goederen & diensten'!AE27/'Indexen goederen & diensten'!AE$27=0,NA(),'Indexen goederen & diensten'!AE27/'Indexen goederen & diensten'!AE$27),NA()) -> 1 | FE113: =IFERROR(IF('Indexen goederen & diensten'!AF27/'Indexen goederen & diensten'!AF$27=0,NA(),'Indexen goederen & diensten'!AF27/'Indexen goederen & diensten'!AF$27),NA()) -> 1 | FF113: =IFERROR(IF('Indexen goederen & diensten'!AG27/'Indexen goederen & diensten'!AG$27=0,NA(),'Indexen goederen & diensten'!AG27/'Indexen goederen & diensten'!AG$27),NA()) -> 1 | FG113: =IFERROR(IF('Indexen goederen & diensten'!AH27/'Indexen goederen & diensten'!AH$27=0,NA(),'Indexen goederen & diensten'!AH27/'Indexen goederen & diensten'!AH$27),NA()) -> 1 | FH113: =IFERROR(IF('Indexen goederen & diensten'!AI27/'Indexen goederen & diensten'!AI$27=0,NA(),'Indexen goederen & diensten'!AI27/'Indexen goederen & diensten'!AI$27),NA()) -> 1 | FI113: =IFERROR(IF('Indexen goederen & diensten'!AJ27/'Indexen goederen & diensten'!AJ$27=0,NA(),'Indexen goederen & diensten'!AJ27/'Indexen goederen & diensten'!AJ$27),NA()) -> 1 | FJ113: =IFERROR(IF('Indexen goederen & diensten'!AK27/'Indexen goederen & diensten'!AK$27=0,NA(),'Indexen goederen & diensten'!AK27/'Indexen goederen & diensten'!AK$27),NA()) -> 1 | FK113: =IFERROR(IF('Indexen goederen & diensten'!AL27/'Indexen goederen & diensten'!AL$27=0,NA(),'Indexen goederen & diensten'!AL27/'Indexen goederen & diensten'!AL$27),NA()) -> 1 | FL113: =IFERROR(IF('Indexen goederen & diensten'!AM27/'Indexen goederen & diensten'!AM$27=0,NA(),'Indexen goederen & diensten'!AM27/'Indexen goederen & diensten'!AM$27),NA()) -> 1 | FM113: =IFERROR(IF('Indexen goederen & diensten'!AN27/'Indexen goederen & diensten'!AN$27=0,NA(),'Indexen goederen & diensten'!AN27/'Indexen goederen & diensten'!AN$27),NA()) -> 1 | FN113: =IFERROR(IF('Indexen goederen & diensten'!AO27/'Indexen goederen & diensten'!AO$27=0,NA(),'Indexen goederen & diensten'!AO27/'Indexen goederen & diensten'!AO$27),NA()) -> 1 | FO113: =IFERROR(IF('Indexen goederen & diensten'!AP27/'Indexen goederen & diensten'!AP$27=0,NA(),'Indexen goederen & diensten'!AP27/'Indexen goederen & diensten'!AP$27),NA()) -> 1 | FP113: =IFERROR(IF('Indexen goederen & diensten'!AQ27/'Indexen goederen & diensten'!AQ$27=0,NA(),'Indexen goederen & diensten'!AQ27/'Indexen goederen & diensten'!AQ$27),NA()) -> 1 | FQ113: =IFERROR(IF('Indexen goederen & diensten'!AR27/'Indexen goederen & diensten'!AR$27=0,NA(),'Indexen goederen & diensten'!AR27/'Indexen goederen & diensten'!AR$27),NA()) -> 1 | FR113: =IFERROR(IF('Indexen goederen & diensten'!AS27/'Indexen goederen & diensten'!AS$27=0,NA(),'Indexen goederen & diensten'!AS27/'Indexen goederen & diensten'!AS$27),NA()) -> 1 | FS113: =IFERROR(IF('Indexen goederen & diensten'!AT27/'Indexen goederen & diensten'!AT$27=0,NA(),'Indexen goederen & diensten'!AT27/'Indexen goederen & diensten'!AT$27),NA()) -> 1 | FT113: =IFERROR(IF('Indexen goederen & diensten'!AU27/'Indexen goederen & diensten'!AU$27=0,NA(),'Indexen goederen & diensten'!AU27/'Indexen goederen & diensten'!AU$27),NA()) -> 1 | FU113: =IFERROR(IF('Indexen goederen & diensten'!AV27/'Indexen goederen & diensten'!AV$27=0,NA(),'Indexen goederen & diensten'!AV27/'Indexen goederen & diensten'!AV$27),NA()) -> 1 | FV113: =IFERROR(IF('Indexen goederen & diensten'!AW27/'Indexen goederen & diensten'!AW$27=0,NA(),'Indexen goederen & diensten'!AW27/'Indexen goederen & diensten'!AW$27),NA()) -> 1 | FW113: =IFERROR(IF('Indexen goederen & diensten'!AX27/'Indexen goederen & diensten'!AX$27=0,NA(),'Indexen goederen & diensten'!AX27/'Indexen goederen & diensten'!AX$27),NA()) -> 1 | FX113: =IFERROR(IF('Indexen goederen & diensten'!AY27/'Indexen goederen & diensten'!AY$27=0,NA(),'Indexen goederen & diensten'!AY27/'Indexen goederen & diensten'!AY$27),NA()) -> 1 | FY113: =IFERROR(IF('Indexen goederen & diensten'!AZ27/'Indexen goederen & diensten'!AZ$27=0,NA(),'Indexen goederen & diensten'!AZ27/'Indexen goederen & diensten'!AZ$27),NA()) -> 1 | FZ113: =IFERROR(IF('Indexen goederen & diensten'!BA27/'Indexen goederen & diensten'!BA$27=0,NA(),'Indexen goederen & diensten'!BA27/'Indexen goederen & diensten'!BA$27),NA()) -> 1 | GA113: =IFERROR(IF('Indexen goederen & diensten'!BB27/'Indexen goederen & diensten'!BB$27=0,NA(),'Indexen goederen & diensten'!BB27/'Indexen goederen & diensten'!BB$27),NA()) -> 1 | GB113: =IFERROR(IF('Indexen goederen & diensten'!BC27/'Indexen goederen & diensten'!BC$27=0,NA(),'Indexen goederen & diensten'!BC27/'Indexen goederen & diensten'!BC$27),NA()) -> 1 | GC113: =IFERROR(IF('Indexen goederen & diensten'!BD27/'Indexen goederen & diensten'!BD$27=0,NA(),'Indexen goederen & diensten'!BD27/'Indexen goederen & diensten'!BD$27),NA()) -> 1 | GD113: =IFERROR(IF('Indexen goederen & diensten'!BE27/'Indexen goederen & diensten'!BE$27=0,NA(),'Indexen goederen & diensten'!BE27/'Indexen goederen & diensten'!BE$27),NA()) -> 1 | GE113: =IFERROR(IF('Indexen goederen & diensten'!BF27/'Indexen goederen & diensten'!BF$27=0,NA(),'Indexen goederen & diensten'!BF27/'Indexen goederen & diensten'!BF$27),NA()) -> 1 | GF113: =IFERROR(IF('Indexen goederen & diensten'!BG27/'Indexen goederen & diensten'!BG$27=0,NA(),'Indexen goederen & diensten'!BG27/'Indexen goederen & diensten'!BG$27),NA()) -> 1 | GG113: =IFERROR(IF('Indexen goederen & diensten'!BH27/'Indexen goederen & diensten'!BH$27=0,NA(),'Indexen goederen & diensten'!BH27/'Indexen goederen & diensten'!BH$27),NA()) -> 1 | GH113: =IFERROR(IF('Indexen goederen & diensten'!BI27/'Indexen goederen & diensten'!BI$27=0,NA(),'Indexen goederen & diensten'!BI27/'Indexen goederen & diensten'!BI$27),NA()) -> 1 | GI113: =IFERROR(IF('Indexen goederen & diensten'!BJ27/'Indexen goederen & diensten'!BJ$27=0,NA(),'Indexen goederen & diensten'!BJ27/'Indexen goederen & diensten'!BJ$27),NA()) -> 1 | GJ113: =IFERROR(IF('Indexen goederen & diensten'!BK27/'Indexen goederen & diensten'!BK$27=0,NA(),'Indexen goederen & diensten'!BK27/'Indexen goederen & diensten'!BK$27),NA()) -> 1 | GK113: =IFERROR(IF('Indexen goederen & diensten'!BL27/'Indexen goederen & diensten'!BL$27=0,NA(),'Indexen goederen & diensten'!BL27/'Indexen goederen & diensten'!BL$27),NA()) -> 1 | GL113: =IFERROR(IF('Indexen goederen & diensten'!BM27/'Indexen goederen & diensten'!BM$27=0,NA(),'Indexen goederen & diensten'!BM27/'Indexen goederen & diensten'!BM$27),NA()) -> 1 | GM113: =IFERROR(IF('Indexen goederen & diensten'!BN27/'Indexen goederen & diensten'!BN$27=0,NA(),'Indexen goederen & diensten'!BN27/'Indexen goederen & diensten'!BN$27),NA()) -> 1 | GN113: =IFERROR(IF('Indexen goederen & diensten'!BO27/'Indexen goederen & diensten'!BO$27=0,NA(),'Indexen goederen & diensten'!BO27/'Indexen goederen & diensten'!BO$27),NA()) -> 1 | GO113: =IFERROR(IF('Indexen goederen & diensten'!BP27/'Indexen goederen & diensten'!BP$27=0,NA(),'Indexen goederen & diensten'!BP27/'Indexen goederen & diensten'!BP$27),NA()) -> 1 | GP113: =IFERROR(IF('Indexen goederen & diensten'!BQ27/'Indexen goederen & diensten'!BQ$27=0,NA(),'Indexen goederen & diensten'!BQ27/'Indexen goederen & diensten'!BQ$27),NA()) -> 1 | GQ113: =IFERROR(IF('Indexen goederen & diensten'!BR27/'Indexen goederen & diensten'!BR$27=0,NA(),'Indexen goederen & diensten'!BR27/'Indexen goederen & diensten'!BR$27),NA()) -> 1 | GR113: =IFERROR(IF('Indexen goederen & diensten'!BS27/'Indexen goederen & diensten'!BS$27=0,NA(),'Indexen goederen & diensten'!BS27/'Indexen goederen & diensten'!BS$27),NA()) -> 1 | GS113: =IFERROR(IF('Indexen goederen & diensten'!BT27/'Indexen goederen & diensten'!BT$27=0,NA(),'Indexen goederen & diensten'!BT27/'Indexen goederen & diensten'!BT$27),NA()) -> 1 | GT113: =IFERROR(IF('Indexen goederen & diensten'!BU27/'Indexen goederen & diensten'!BU$27=0,NA(),'Indexen goederen & diensten'!BU27/'Indexen goederen & diensten'!BU$27),NA()) -> 1 | GU113: =IFERROR(IF('Indexen goederen & diensten'!BV27/'Indexen goederen & diensten'!BV$27=0,NA(),'Indexen goederen & diensten'!BV27/'Indexen goederen & diensten'!BV$27),NA()) -> 1 | GV113: =IFERROR(IF('Indexen goederen & diensten'!BW27/'Indexen goederen & diensten'!BW$27=0,NA(),'Indexen goederen & diensten'!BW27/'Indexen goederen & diensten'!BW$27),NA()) -> 1 | GW113: =IFERROR(IF('Indexen goederen & diensten'!BX27/'Indexen goederen & diensten'!BX$27=0,NA(),'Indexen goederen & diensten'!BX27/'Indexen goederen & diensten'!BX$27),NA()) -> 1 | GX113: =IFERROR(IF('Indexen goederen & diensten'!BY27/'Indexen goederen & diensten'!BY$27=0,NA(),'Indexen goederen & diensten'!BY27/'Indexen goederen & diensten'!BY$27),NA()) -> 1 | GY113: =IFERROR(IF('Indexen goederen & diensten'!BZ27/'Indexen goederen & diensten'!BZ$27=0,NA(),'Indexen goederen & diensten'!BZ27/'Indexen goederen & diensten'!BZ$27),NA()) -> 1 | GZ113: =IFERROR(IF('Indexen goederen & diensten'!CA27/'Indexen goederen & diensten'!CA$27=0,NA(),'Indexen goederen & diensten'!CA27/'Indexen goederen & diensten'!CA$27),NA()) -> 1 | HA113: =IFERROR(IF('Indexen goederen & diensten'!CB27/'Indexen goederen & diensten'!CB$27=0,NA(),'Indexen goederen & diensten'!CB27/'Indexen goederen & diensten'!CB$27),NA()) -> 1 | HB113: =IFERROR(IF('Indexen goederen & diensten'!CC27/'Indexen goederen & diensten'!CC$27=0,NA(),'Indexen goederen & diensten'!CC27/'Indexen goederen & diensten'!CC$27),NA()) -> 1 | HC113: =IFERROR(IF('Indexen goederen & diensten'!CD27/'Indexen goederen & diensten'!CD$27=0,NA(),'Indexen goederen & diensten'!CD27/'Indexen goederen & diensten'!CD$27),NA()) -> 1 | HD113: =IFERROR(IF('Indexen goederen & diensten'!CE27/'Indexen goederen & diensten'!CE$27=0,NA(),'Indexen goederen & diensten'!CE27/'Indexen goederen & diensten'!CE$27),NA()) -> 1 | HE113: =IFERROR(IF('Indexen goederen & diensten'!CF27/'Indexen goederen & diensten'!CF$27=0,NA(),'Indexen goederen & diensten'!CF27/'Indexen goederen & diensten'!CF$27),NA()) -> 1 | HF113: =IFERROR(IF('Indexen goederen & diensten'!CG27/'Indexen goederen & diensten'!CG$27=0,NA(),'Indexen goederen & diensten'!CG27/'Indexen goederen & diensten'!CG$27),NA()) -> 1 | HG113: =IFERROR(IF('Indexen goederen & diensten'!CH27/'Indexen goederen & diensten'!CH$27=0,NA(),'Indexen goederen & diensten'!CH27/'Indexen goederen & diensten'!CH$27),NA()) -> 1 | HH113: =IFERROR(IF('Indexen goederen & diensten'!CI27/'Indexen goederen & diensten'!CI$27=0,NA(),'Indexen goederen & diensten'!CI27/'Indexen goederen & diensten'!CI$27),NA()) -> 1 | HI113: =IFERROR(IF('Indexen goederen & diensten'!CJ27/'Indexen goederen & diensten'!CJ$27=0,NA(),'Indexen goederen & diensten'!CJ27/'Indexen goederen & diensten'!CJ$27),NA()) -> 1 | HJ113: =IFERROR(IF('Indexen goederen & diensten'!CK27/'Indexen goederen & diensten'!CK$27=0,NA(),'Indexen goederen & diensten'!CK27/'Indexen goederen & diensten'!CK$27),NA()) -> 1 | HK113: =IFERROR(IF('Indexen goederen & diensten'!CL27/'Indexen goederen & diensten'!CL$27=0,NA(),'Indexen goederen & diensten'!CL27/'Indexen goederen & diensten'!CL$27),NA()) -> 1 | HL113: =IFERROR(IF('Indexen goederen & diensten'!CM27/'Indexen goederen & diensten'!CM$27=0,NA(),'Indexen goederen & diensten'!CM27/'Indexen goederen & diensten'!CM$27),NA()) -> 1 | HN113: =Tableau21[[#This Row],[datum]] -> 2018-01-01 | HO113: =IFERROR(IF(Standaardindexen!L26/Standaardindexen!L$26=0,NA(),Standaardindexen!L26/Standaardindexen!L$26),NA()) -> 1 | HP113: =IFERROR(IF(Standaardindexen!M26/Standaardindexen!M$26=0,NA(),Standaardindexen!M26/Standaardindexen!M$26),NA()) -> 1 | HQ113: =IFERROR(IF(Standaardindexen!N26/Standaardindexen!N$26=0,NA(),Standaardindexen!N26/Standaardindexen!N$26),NA()) -> 1 | HR113: =IFERROR(IF(Standaardindexen!O26/Standaardindexen!O$26=0,NA(),Standaardindexen!O26/Standaardindexen!O$26),NA()) -> 1 | HS113: =IFERROR(IF(Standaardindexen!P26/Standaardindexen!P$26=0,NA(),Standaardindexen!P26/Standaardindexen!P$26),NA()) -> 1 | HT113: =IFERROR(IF(Standaardindexen!Q26/Standaardindexen!Q$26=0,NA(),Standaardindexen!Q26/Standaardindexen!Q$26),NA()) -> 1 | HU113: =IFERROR(IF(Standaardindexen!R26/Standaardindexen!R$26=0,NA(),Standaardindexen!R26/Standaardindexen!R$26),NA()) -> 1 | HV113: =IFERROR(IF(Standaardindexen!S26/Standaardindexen!S$26=0,NA(),Standaardindexen!S26/Standaardindexen!S$26),NA()) -> 1 | HW113: =IFERROR(IF(Standaardindexen!T26/Standaardindexen!T$26=0,NA(),Standaardindexen!T26/Standaardindexen!T$26),NA()) -> 1 | HX113: =IFERROR(IF(Standaardindexen!U26/Standaardindexen!U$26=0,NA(),Standaardindexen!U26/Standaardindexen!U$26),NA()) -> 1 | HY113: =IFERROR(IF(Standaardindexen!V26/Standaardindexen!V$26=0,NA(),Standaardindexen!V26/Standaardindexen!V$26),NA()) -> 1 | HZ113: =IFERROR(IF(Standaardindexen!W26/Standaardindexen!W$26=0,NA(),Standaardindexen!W26/Standaardindexen!W$26),NA()) -> 1 | IA113: =IFERROR(IF(Standaardindexen!X26/Standaardindexen!X$26=0,NA(),Standaardindexen!X26/Standaardindexen!X$26),NA()) -> 1 | IB113: =IFERROR(IF(Standaardindexen!Y26/Standaardindexen!Y$26=0,NA(),Standaardindexen!Y26/Standaardindexen!Y$26),NA()) -> 1 | IC113: =Tableau21[[#This Row],[prijsevolutie - volgens prijsherzieningsformule -index i 2021]] -> 1 | ID113: =Tableau21[[#This Row],[prijsevolutie - volgens prijsherzieningsformule -index i]] -> 1 | IE113: =Tableau21[[#This Row],[prijsherzieningsformule - index i 2021]] -> 1 | IF113: =Tableau21[[#This Row],[prijsherzieningsformule - index i]] -> 1 | IG113: =IFERROR(IF('Indexeringen Lonen per PC'!E51/'Indexeringen Lonen per PC'!E$51=0,NA(),'Indexeringen Lonen per PC'!E51/'Indexeringen Lonen per PC'!E$51),NA()) -> 1 | IH113: =IFERROR(IF('Indexeringen Lonen per PC'!F51/'Indexeringen Lonen per PC'!F$51=0,NA(),'Indexeringen Lonen per PC'!F51/'Indexeringen Lonen per PC'!F$51),NA()) -> 1 | II113: =IFERROR(IF('Indexeringen Lonen per PC'!G51/'Indexeringen Lonen per PC'!G$51=0,NA(),'Indexeringen Lonen per PC'!G51/'Indexeringen Lonen per PC'!G$51),NA()) -> 1 | IJ113: =IFERROR(IF('Indexeringen Lonen per PC'!H51/'Indexeringen Lonen per PC'!H$51=0,NA(),'Indexeringen Lonen per PC'!H51/'Indexeringen Lonen per PC'!H$51),NA()) -> 1 | IK113: =IFERROR(IF('Indexeringen Lonen per PC'!I51/'Indexeringen Lonen per PC'!I$51=0,NA(),'Indexeringen Lonen per PC'!I51/'Indexeringen Lonen per PC'!I$51),NA()) -> 1 | IL113: =IFERROR(IF('Indexeringen Lonen per PC'!J51/'Indexeringen Lonen per PC'!J$51=0,NA(),'Indexeringen Lonen per PC'!J51/'Indexeringen Lonen per PC'!J$51),NA()) -> 1 | IM113: =IFERROR(IF('Indexeringen Lonen per PC'!K51/'Indexeringen Lonen per PC'!K$51=0,NA(),'Indexeringen Lonen per PC'!K51/'Indexeringen Lonen per PC'!K$51),NA()) -> 1 | IN113: =IFERROR(IF('Indexeringen Lonen per PC'!L51/'Indexeringen Lonen per PC'!L$51=0,NA(),'Indexeringen Lonen per PC'!L51/'Indexeringen Lonen per PC'!L$51),NA()) -> 1 | IO113: =IFERROR(IF('Indexeringen Lonen per PC'!M51/'Indexeringen Lonen per PC'!M$51=0,NA(),'Indexeringen Lonen per PC'!M51/'Indexeringen Lonen per PC'!M$51),NA()) -> 1 | IP113: =IFERROR(IF('Indexeringen Lonen per PC'!T51/'Indexeringen Lonen per PC'!T$51=0,NA(),'Indexeringen Lonen per PC'!T51/'Indexeringen Lonen per PC'!T$51),NA()) -> 1 | IQ113: =IFERROR(IF('Indexeringen Lonen per PC'!U51/'Indexeringen Lonen per PC'!U$51=0,NA(),'Indexeringen Lonen per PC'!U51/'Indexeringen Lonen per PC'!U$51),NA()) -> 1 | IR113: =IFERROR(IF('Indexeringen Lonen per PC'!V51/'Indexeringen Lonen per PC'!V$51=0,NA(),'Indexeringen Lonen per PC'!V51/'Indexeringen Lonen per PC'!V$51),NA()) -> 1 | IS113: =IFERROR(IF('Indexeringen Lonen per PC'!W51/'Indexeringen Lonen per PC'!W$51=0,NA(),'Indexeringen Lonen per PC'!W51/'Indexeringen Lonen per PC'!W$51),NA()) -> 1 | IT113: =IFERROR(IF('Indexeringen Lonen per PC'!AD51/'Indexeringen Lonen per PC'!AD$51=0,NA(),'Indexeringen Lonen per PC'!AD51/'Indexeringen Lonen per PC'!AD$51),NA()) -> 1 | IU113: =IFERROR(IF('Indexeringen Lonen per PC'!AE51/'Indexeringen Lonen per PC'!AE$51=0,NA(),'Indexeringen Lonen per PC'!AE51/'Indexeringen Lonen per PC'!AE$51),NA()) -> 1 | IV113: =IFERROR(IF('Indexeringen Lonen per PC'!AF51/'Indexeringen Lonen per PC'!AF$51=0,NA(),'Indexeringen Lonen per PC'!AF51/'Indexeringen Lonen per PC'!AF$51),NA()) -> 1 | IW113: =IFERROR(IF('Indexeringen Lonen per PC'!AG51/'Indexeringen Lonen per PC'!AG$51=0,NA(),'Indexeringen Lonen per PC'!AG51/'Indexeringen Lonen per PC'!AG$51),NA()) -> 1 | IX113: =IFERROR(IF('Indexeringen Lonen per PC'!AH51/'Indexeringen Lonen per PC'!AH$51=0,NA(),'Indexeringen Lonen per PC'!AH51/'Indexeringen Lonen per PC'!AH$51),NA()) -> 1 | IY113: =IFERROR(IF('Indexeringen Lonen per PC'!AI51/'Indexeringen Lonen per PC'!AI$51=0,NA(),'Indexeringen Lonen per PC'!AI51/'Indexeringen Lonen per PC'!AI$51),NA()) -> 1 | IZ113: =IFERROR(IF('Indexeringen Lonen per PC'!AP51/'Indexeringen Lonen per PC'!AP$51=0,NA(),'Indexeringen Lonen per PC'!AP51/'Indexeringen Lonen per PC'!AP$51),NA()) -> 1 | JA113: =IFERROR(IF('Indexeringen Lonen per PC'!AW51/'Indexeringen Lonen per PC'!AW$51=0,NA(),'Indexeringen Lonen per PC'!AW51/'Indexeringen Lonen per PC'!AW$51),NA()) -> 1 | JB113: =IFERROR(IF('Indexeringen Lonen per PC'!AX51/'Indexeringen Lonen per PC'!AX$51=0,NA(),'Indexeringen Lonen per PC'!AX51/'Indexeringen Lonen per PC'!AX$51),NA()) -> 1 | JC113: =IFERROR(IF('Indexeringen Lonen per PC'!AY51/'Indexeringen Lonen per PC'!AY$51=0,NA(),'Indexeringen Lonen per PC'!AY51/'Indexeringen Lonen per PC'!AY$51),NA()) -> 1 | JD113: =IFERROR(IF('Indexeringen Lonen per PC'!AZ51/'Indexeringen Lonen per PC'!AZ$51=0,NA(),'Indexeringen Lonen per PC'!AZ51/'Indexeringen Lonen per PC'!AZ$51),NA()) -> 1 | JE113: =IFERROR(IF('Indexeringen Lonen per PC'!BA51/'Indexeringen Lonen per PC'!BA$51=0,NA(),'Indexeringen Lonen per PC'!BA51/'Indexeringen Lonen per PC'!BA$51),NA()) -> 1 | JF113: =IFERROR(IF('Indexeringen Lonen per PC'!BB51/'Indexeringen Lonen per PC'!BB$51=0,NA(),'Indexeringen Lonen per PC'!BB51/'Indexeringen Lonen per PC'!BB$51),NA()) -> 1 | JG113: =IFERROR(IF('Indexeringen Lonen per PC'!BC51/'Indexeringen Lonen per PC'!BC$51=0,NA(),'Indexeringen Lonen per PC'!BC51/'Indexeringen Lonen per PC'!BC$51),NA()) -> 1 | JH113: =IFERROR(IF('Indexeringen Lonen per PC'!BD51/'Indexeringen Lonen per PC'!BD$51=0,NA(),'Indexeringen Lonen per PC'!BD51/'Indexeringen Lonen per PC'!BD$51),NA()) -> 1 | JI113: =IFERROR(IF('Indexeringen Lonen per PC'!BK51/'Indexeringen Lonen per PC'!BK$51=0,NA(),'Indexeringen Lonen per PC'!BK51/'Indexeringen Lonen per PC'!BK$51),NA()) -> 1 | JJ113: =IFERROR(IF('Indexeringen Lonen per PC'!BR51/'Indexeringen Lonen per PC'!BR$51=0,NA(),'Indexeringen Lonen per PC'!BR51/'Indexeringen Lonen per PC'!BR$51),NA()) -> 1 | JK113: =IFERROR(IF('Indexeringen Lonen per PC'!BS51/'Indexeringen Lonen per PC'!BS$51=0,NA(),'Indexeringen Lonen per PC'!BS51/'Indexeringen Lonen per PC'!BS$51),NA()) -> 1 | JL113: =IFERROR(IF('Indexeringen Lonen per PC'!BT51/'Indexeringen Lonen per PC'!BT$51=0,NA(),'Indexeringen Lonen per PC'!BT51/'Indexeringen Lonen per PC'!BT$51),NA()) -> 1 | JM113: =IFERROR(IF('Indexeringen Lonen per PC'!BU51/'Indexeringen Lonen per PC'!BU$51=0,NA(),'Indexeringen Lonen per PC'!BU51/'Indexeringen Lonen per PC'!BU$51),NA()) -> 1 | JN113: =IFERROR(IF('Indexeringen Lonen per PC'!BV51/'Indexeringen Lonen per PC'!BV$51=0,NA(),'Indexeringen Lonen per PC'!BV51/'Indexeringen Lonen per PC'!BV$51),NA()) -> 1 | JO113: =IFERROR(IF('Indexeringen Lonen per PC'!BW51/'Indexeringen Lonen per PC'!BW$51=0,NA(),'Indexeringen Lonen per PC'!BW51/'Indexeringen Lonen per PC'!BW$51),NA()) -> 1 | JP113: =IFERROR(IF('Indexeringen Lonen per PC'!BX51/'Indexeringen Lonen per PC'!BX$51=0,NA(),'Indexeringen Lonen per PC'!BX51/'Indexeringen Lonen per PC'!BX$51),NA()) -> 1 | JQ113: =IFERROR(IF('Indexeringen Lonen per PC'!BY51/'Indexeringen Lonen per PC'!BY$51=0,NA(),'Indexeringen Lonen per PC'!BY51/'Indexeringen Lonen per PC'!BY$51),NA()) -> 1 | JR113: =IFERROR(IF('Indexeringen Lonen per PC'!BZ51/'Indexeringen Lonen per PC'!BZ$51=0,NA(),'Indexeringen Lonen per PC'!BZ51/'Indexeringen Lonen per PC'!BZ$51),NA()) -> 1 | JS113: =IFERROR(IF('Indexeringen Lonen per PC'!CA51/'Indexeringen Lonen per PC'!CA$51=0,NA(),'Indexeringen Lonen per PC'!CA51/'Indexeringen Lonen per PC'!CA$51),NA()) -> 1 | JT113: =IFERROR(IF('Indexeringen Lonen per PC'!CB51/'Indexeringen Lonen per PC'!CB$51=0,NA(),'Indexeringen Lonen per PC'!CB51/'Indexeringen Lonen per PC'!CB$51),NA()) -> 1 | JU113: =IFERROR(IF('Indexeringen Lonen per PC'!CC51/'Indexeringen Lonen per PC'!CC$51=0,NA(),'Indexeringen Lonen per PC'!CC51/'Indexeringen Lonen per PC'!CC$51),NA()) -> 1 | JV113: =IFERROR(IF('Indexeringen Lonen per PC'!CD51/'Indexeringen Lonen per PC'!CD$51=0,NA(),'Indexeringen Lonen per PC'!CD51/'Indexeringen Lonen per PC'!CD$51),NA()) -> 1 | JW113: =IFERROR(IF('Indexeringen Lonen per PC'!CE51/'Indexeringen Lonen per PC'!CE$51=0,NA(),'Indexeringen Lonen per PC'!CE51/'Indexeringen Lonen per PC'!CE$51),NA()) -> 1 | JX113: =IFERROR(IF('Indexeringen Lonen per PC'!CF51/'Indexeringen Lonen per PC'!CF$51=0,NA(),'Indexeringen Lonen per PC'!CF51/'Indexeringen Lonen per PC'!CF$51),NA()) -> 1 | JY113: =IFERROR(IF('Indexeringen Lonen per PC'!CG51/'Indexeringen Lonen per PC'!CG$51=0,NA(),'Indexeringen Lonen per PC'!CG51/'Indexeringen Lonen per PC'!CG$51),NA()) -> 1 | JZ113: =IFERROR(IF('Indexeringen Lonen per PC'!CH51/'Indexeringen Lonen per PC'!CH$51=0,NA(),'Indexeringen Lonen per PC'!CH51/'Indexeringen Lonen per PC'!CH$51),NA()) -> 1 | KA113: =IFERROR(IF('Indexeringen Lonen per PC'!CI51/'Indexeringen Lonen per PC'!CI$51=0,NA(),'Indexeringen Lonen per PC'!CI51/'Indexeringen Lonen per PC'!CI$51),NA()) -> 1 | KB113: =IFERROR(IF('Indexeringen Lonen per PC'!CJ51/'Indexeringen Lonen per PC'!CJ$51=0,NA(),'Indexeringen Lonen per PC'!CJ51/'Indexeringen Lonen per PC'!CJ$51),NA()) -> 1 | KC113: =IFERROR(IF('Indexeringen Lonen per PC'!CQ51/'Indexeringen Lonen per PC'!CQ$51=0,NA(),'Indexeringen Lonen per PC'!CQ51/'Indexeringen Lonen per PC'!CQ$51),NA()) -> 1 | KD113: =IFERROR(IF('Indexeringen Lonen per PC'!CR51/'Indexeringen Lonen per PC'!CR$51=0,NA(),'Indexeringen Lonen per PC'!CR51/'Indexeringen Lonen per PC'!CR$51),NA()) -> 1 | KE113: =IFERROR(IF('Indexeringen Lonen per PC'!CS51/'Indexeringen Lonen per PC'!CS$51=0,NA(),'Indexeringen Lonen per PC'!CS51/'Indexeringen Lonen per PC'!CS$51),NA()) -> 1 | KF113: =IFERROR(IF('Indexeringen Lonen per PC'!CT51/'Indexeringen Lonen per PC'!CT$51=0,NA(),'Indexeringen Lonen per PC'!CT51/'Indexeringen Lonen per PC'!CT$51),NA()) -> 1 | KG113: =IFERROR(IF('Indexeringen Lonen per PC'!CU51/'Indexeringen Lonen per PC'!CU$51=0,NA(),'Indexeringen Lonen per PC'!CU51/'Indexeringen Lonen per PC'!CU$51),NA()) -> 1 | KH113: =IFERROR(IF('Indexeringen Lonen per PC'!DB51/'Indexeringen Lonen per PC'!DB$51=0,NA(),'Indexeringen Lonen per PC'!DB51/'Indexeringen Lonen per PC'!DB$51),NA()) -> 1 | KI113: =IFERROR(IF('Indexeringen Lonen per PC'!DC51/'Indexeringen Lonen per PC'!DC$51=0,NA(),'Indexeringen Lonen per PC'!DC51/'Indexeringen Lonen per PC'!DC$51),NA()) -> 1 | KJ113: =IFERROR(IF('Indexeringen Lonen per PC'!DD51/'Indexeringen Lonen per PC'!DD$51=0,NA(),'Indexeringen Lonen per PC'!DD51/'Indexeringen Lonen per PC'!DD$51),NA()) -> 1 | KK113: =IFERROR(IF('Indexeringen Lonen per PC'!DE51/'Indexeringen Lonen per PC'!DE$51=0,NA(),'Indexeringen Lonen per PC'!DE51/'Indexeringen Lonen per PC'!DE$51),NA()) -> 1 | KL113: =IFERROR(IF('Indexeringen Lonen per PC'!DL51/'Indexeringen Lonen per PC'!DL$51=0,NA(),'Indexeringen Lonen per PC'!DL51/'Indexeringen Lonen per PC'!DL$51),NA()) -> 1 | KM113: =IFERROR(IF('Indexeringen Lonen per PC'!DM51/'Indexeringen Lonen per PC'!DM$51=0,NA(),'Indexeringen Lonen per PC'!DM51/'Indexeringen Lonen per PC'!DM$51),NA()) -> 1 | KN113: =IFERROR(IF('Indexeringen Lonen per PC'!DN51/'Indexeringen Lonen per PC'!DN$51=0,NA(),'Indexeringen Lonen per PC'!DN51/'Indexeringen Lonen per PC'!DN$51),NA()) -> 1 | KO113: =IFERROR(IF('Indexeringen Lonen per PC'!DO51/'Indexeringen Lonen per PC'!DO$51=0,NA(),'Indexeringen Lonen per PC'!DO51/'Indexeringen Lonen per PC'!DO$51),NA()) -> 1 | KP113: =IFERROR(IF('Indexeringen Lonen per PC'!DP51/'Indexeringen Lonen per PC'!DP$51=0,NA(),'Indexeringen Lonen per PC'!DP51/'Indexeringen Lonen per PC'!DP$51),NA()) -> 1 | KQ113: =IFERROR(IF('Indexeringen Lonen per PC'!DQ51/'Indexeringen Lonen per PC'!DQ$51=0,NA(),'Indexeringen Lonen per PC'!DQ51/'Indexeringen Lonen per PC'!DQ$51),NA()) -> 1 | KR113: =IFERROR(IF('Indexeringen Lonen per PC'!DR51/'Indexeringen Lonen per PC'!DR$51=0,NA(),'Indexeringen Lonen per PC'!DR51/'Indexeringen Lonen per PC'!DR$51),NA()) -> 1 | KS113: =IFERROR(IF('Indexeringen Lonen per PC'!DS51/'Indexeringen Lonen per PC'!DS$51=0,NA(),'Indexeringen Lonen per PC'!DS51/'Indexeringen Lonen per PC'!DS$51),NA()) -> 1 | KT113: =IFERROR(IF('Indexeringen Lonen per PC'!DT51/'Indexeringen Lonen per PC'!DT$51=0,NA(),'Indexeringen Lonen per PC'!DT51/'Indexeringen Lonen per PC'!DT$51),NA()) -> 1 | KU113: =IFERROR(IF('Indexeringen Lonen per PC'!DU51/'Indexeringen Lonen per PC'!DU$51=0,NA(),'Indexeringen Lonen per PC'!DU51/'Indexeringen Lonen per PC'!DU$51),NA()) -> 1 | KV113: =IFERROR(IF('Indexeringen Lonen per PC'!DV51/'Indexeringen Lonen per PC'!DV$51=0,NA(),'Indexeringen Lonen per PC'!DV51/'Indexeringen Lonen per PC'!DV$51),NA()) -> 1 | KW113: =IFERROR(IF('Indexeringen Lonen per PC'!DW51/'Indexeringen Lonen per PC'!DW$51=0,NA(),'Indexeringen Lonen per PC'!DW51/'Indexeringen Lonen per PC'!DW$51),NA()) -> 1 | KX113: =IFERROR(IF('Indexeringen Lonen per PC'!DX51/'Indexeringen Lonen per PC'!DX$51=0,NA(),'Indexeringen Lonen per PC'!DX51/'Indexeringen Lonen per PC'!DX$51),NA()) -> 1
B114: =Tableau41326[[#This Row],[periode]] -> 2018-02-01 | C114: =IFERROR(IF(Standaardindexen!F27/Standaardindexen!F$26=0,NA(),Standaardindexen!F27/Standaardindexen!F$26),NA()) -> 1.001776875 | D114: =IFERROR(IF(Standaardindexen!G27/Standaardindexen!G$26=0,NA(),Standaardindexen!G27/Standaardindexen!G$26),NA()) -> 1.009613397 | E114: =IFERROR(IF(Standaardindexen!H27/Standaardindexen!H$26=0,NA(),Standaardindexen!H27/Standaardindexen!H$26),NA()) -> 0.9962311558 | F114: =IFERROR(IF(Standaardindexen!I27/Standaardindexen!I$26=0,NA(),Standaardindexen!I27/Standaardindexen!I$26),NA()) -> 1 | G114: =IFERROR(IF(Standaardindexen!J27/Standaardindexen!J$26=0,NA(),Standaardindexen!J27/Standaardindexen!J$26),NA()) -> 0.9940675767 | H114: =IFERROR(IF(Standaardindexen!K27/Standaardindexen!K$26=0,NA(),Standaardindexen!K27/Standaardindexen!K$26),NA()) -> 1.006684661 | I114: 1 | J114: 1 | K114: 1 | L114: 1 | M114: =IFERROR(IF('Materiaalindexen o.w.'!C34/'Materiaalindexen o.w.'!C$33=0,NA(),'Materiaalindexen o.w.'!C34/'Materiaalindexen o.w.'!C$33),NA()) -> 1 | N114: =IFERROR(IF('Materiaalindexen o.w.'!D34/'Materiaalindexen o.w.'!D$33=0,NA(),'Materiaalindexen o.w.'!D34/'Materiaalindexen o.w.'!D$33),NA()) -> 1 | O114: =IFERROR(IF('Materiaalindexen o.w.'!E34/'Materiaalindexen o.w.'!E$33=0,NA(),'Materiaalindexen o.w.'!E34/'Materiaalindexen o.w.'!E$33),NA()) -> 1 | P114: =IFERROR(IF('Materiaalindexen o.w.'!F34/'Materiaalindexen o.w.'!F$33=0,NA(),'Materiaalindexen o.w.'!F34/'Materiaalindexen o.w.'!F$33),NA()) -> 1 | Q114: =IFERROR(IF('Materiaalindexen o.w.'!G34/'Materiaalindexen o.w.'!G$33=0,NA(),'Materiaalindexen o.w.'!G34/'Materiaalindexen o.w.'!G$33),NA()) -> 1 | R114: =IFERROR(IF('Materiaalindexen o.w.'!H34/'Materiaalindexen o.w.'!H$33=0,NA(),'Materiaalindexen o.w.'!H34/'Materiaalindexen o.w.'!H$33),NA()) -> 1 | S114: =IFERROR(IF('Materiaalindexen o.w.'!I34/'Materiaalindexen o.w.'!I$33=0,NA(),'Materiaalindexen o.w.'!I34/'Materiaalindexen o.w.'!I$33),NA()) -> 1 | T114: =IFERROR(IF('Materiaalindexen o.w.'!J34/'Materiaalindexen o.w.'!J$33=0,NA(),'Materiaalindexen o.w.'!J34/'Materiaalindexen o.w.'!J$33),NA()) -> 1 | U114: =IFERROR(IF('Materiaalindexen o.w.'!K34/'Materiaalindexen o.w.'!K$33=0,NA(),'Materiaalindexen o.w.'!K34/'Materiaalindexen o.w.'!K$33),NA()) -> 1 | V114: =IFERROR(IF('Materiaalindexen o.w.'!L34/'Materiaalindexen o.w.'!L$33=0,NA(),'Materiaalindexen o.w.'!L34/'Materiaalindexen o.w.'!L$33),NA()) -> 1 | W114: =IFERROR(IF('Materiaalindexen o.w.'!M34/'Materiaalindexen o.w.'!M$33=0,NA(),'Materiaalindexen o.w.'!M34/'Materiaalindexen o.w.'!M$33),NA()) -> 1 | X114: =IFERROR(IF('Materiaalindexen o.w.'!N34/'Materiaalindexen o.w.'!N$33=0,NA(),'Materiaalindexen o.w.'!N34/'Materiaalindexen o.w.'!N$33),NA()) -> 1 | Y114: =IFERROR(IF('Materiaalindexen o.w.'!O34/'Materiaalindexen o.w.'!O$33=0,NA(),'Materiaalindexen o.w.'!O34/'Materiaalindexen o.w.'!O$33),NA()) -> 1 | Z114: =IFERROR(IF('Materiaalindexen o.w.'!P34/'Materiaalindexen o.w.'!P$33=0,NA(),'Materiaalindexen o.w.'!P34/'Materiaalindexen o.w.'!P$33),NA()) -> 1 | AA114: =IFERROR(IF('Materiaalindexen o.w.'!Q34/'Materiaalindexen o.w.'!Q$33=0,NA(),'Materiaalindexen o.w.'!Q34/'Materiaalindexen o.w.'!Q$33),NA()) -> 1 | AB114: =IFERROR(IF('Materiaalindexen o.w.'!R34/'Materiaalindexen o.w.'!R$33=0,NA(),'Materiaalindexen o.w.'!R34/'Materiaalindexen o.w.'!R$33),NA()) -> 1 | AC114: =IFERROR(IF('Materiaalindexen o.w.'!S34/'Materiaalindexen o.w.'!S$33=0,NA(),'Materiaalindexen o.w.'!S34/'Materiaalindexen o.w.'!S$33),NA()) -> 1 | AD114: =IFERROR(IF('Materiaalindexen o.w.'!T34/'Materiaalindexen o.w.'!T$33=0,NA(),'Materiaalindexen o.w.'!T34/'Materiaalindexen o.w.'!T$33),NA()) -> 1 | AE114: =IFERROR(IF('Materiaalindexen o.w.'!U34/'Materiaalindexen o.w.'!U$33=0,NA(),'Materiaalindexen o.w.'!U34/'Materiaalindexen o.w.'!U$33),NA()) -> 1 | AF114: =IFERROR(IF('Materiaalindexen o.w.'!V34/'Materiaalindexen o.w.'!V$33=0,NA(),'Materiaalindexen o.w.'!V34/'Materiaalindexen o.w.'!V$33),NA()) -> 1 | AG114: =IFERROR(IF('Materiaalindexen o.w.'!W34/'Materiaalindexen o.w.'!W$33=0,NA(),'Materiaalindexen o.w.'!W34/'Materiaalindexen o.w.'!W$33),NA()) -> 1 | AH114: =IFERROR(IF('Materiaalindexen o.w.'!X34/'Materiaalindexen o.w.'!X$33=0,NA(),'Materiaalindexen o.w.'!X34/'Materiaalindexen o.w.'!X$33),NA()) -> 1 | AI114: =IFERROR(IF('Materiaalindexen o.w.'!Y34/'Materiaalindexen o.w.'!Y$33=0,NA(),'Materiaalindexen o.w.'!Y34/'Materiaalindexen o.w.'!Y$33),NA()) -> 1 | AJ114: =IFERROR(IF('Materiaalindexen o.w.'!Z34/'Materiaalindexen o.w.'!Z$33=0,NA(),'Materiaalindexen o.w.'!Z34/'Materiaalindexen o.w.'!Z$33),NA()) -> 1 | AK114: =IFERROR(IF('Materiaalindexen o.w.'!AA34/'Materiaalindexen o.w.'!AA$33=0,NA(),'Materiaalindexen o.w.'!AA34/'Materiaalindexen o.w.'!AA$33),NA()) -> 1 | AL114: =IFERROR(IF('Materiaalindexen o.w.'!AB34/'Materiaalindexen o.w.'!AB$33=0,NA(),'Materiaalindexen o.w.'!AB34/'Materiaalindexen o.w.'!AB$33),NA()) -> 1 | AM114: =IFERROR(IF('Materiaalindexen o.w.'!AC34/'Materiaalindexen o.w.'!AC$33=0,NA(),'Materiaalindexen o.w.'!AC34/'Materiaalindexen o.w.'!AC$33),NA()) -> 1 | AN114: =IFERROR(IF('Materiaalindexen o.w.'!AD34/'Materiaalindexen o.w.'!AD$33=0,NA(),'Materiaalindexen o.w.'!AD34/'Materiaalindexen o.w.'!AD$33),NA()) -> 1 | AO114: =IFERROR(IF('Materiaalindexen o.w.'!AE34/'Materiaalindexen o.w.'!AE$33=0,NA(),'Materiaalindexen o.w.'!AE34/'Materiaalindexen o.w.'!AE$33),NA()) -> 1 | AP114: =IFERROR(IF('Materiaalindexen o.w.'!AF34/'Materiaalindexen o.w.'!AF$33=0,NA(),'Materiaalindexen o.w.'!AF34/'Materiaalindexen o.w.'!AF$33),NA()) -> 1 | AQ114: =IFERROR(IF('Materiaalindexen o.w.'!AG34/'Materiaalindexen o.w.'!AG$33=0,NA(),'Materiaalindexen o.w.'!AG34/'Materiaalindexen o.w.'!AG$33),NA()) -> 1 | AR114: =IFERROR(IF('Materiaalindexen o.w.'!AH34/'Materiaalindexen o.w.'!AH$33=0,NA(),'Materiaalindexen o.w.'!AH34/'Materiaalindexen o.w.'!AH$33),NA()) -> 1 | AS114: =IFERROR(IF('Materiaalindexen o.w.'!AI34/'Materiaalindexen o.w.'!AI$33=0,NA(),'Materiaalindexen o.w.'!AI34/'Materiaalindexen o.w.'!AI$33),NA()) -> 1.004952724 | AT114: =IFERROR(IF('Materiaalindexen o.w.'!AJ34/'Materiaalindexen o.w.'!AJ$33=0,NA(),'Materiaalindexen o.w.'!AJ34/'Materiaalindexen o.w.'!AJ$33),NA()) -> 1.004844961 | AU114: =IFERROR(IF('Materiaalindexen o.w.'!AK34/'Materiaalindexen o.w.'!AK$33=0,NA(),'Materiaalindexen o.w.'!AK34/'Materiaalindexen o.w.'!AK$33),NA()) -> 1.004844961 | AV114: =IFERROR(IF('Materiaalindexen o.w.'!AL34/'Materiaalindexen o.w.'!AL$33=0,NA(),'Materiaalindexen o.w.'!AL34/'Materiaalindexen o.w.'!AL$33),NA()) -> 1.004882659 | AW114: =IFERROR(IF('Materiaalindexen o.w.'!AM34/'Materiaalindexen o.w.'!AM$33=0,NA(),'Materiaalindexen o.w.'!AM34/'Materiaalindexen o.w.'!AM$33),NA()) -> 1.007835455 | AX114: =IFERROR(IF('Materiaalindexen o.w.'!AN34/'Materiaalindexen o.w.'!AN$33=0,NA(),'Materiaalindexen o.w.'!AN34/'Materiaalindexen o.w.'!AN$33),NA()) -> 1.007961783 | AY114: =IFERROR(IF('Materiaalindexen o.w.'!AO34/'Materiaalindexen o.w.'!AO$33=0,NA(),'Materiaalindexen o.w.'!AO34/'Materiaalindexen o.w.'!AO$33),NA()) -> 1.007896077 | AZ114: =IFERROR(IF('Materiaalindexen o.w.'!AP34/'Materiaalindexen o.w.'!AP$33=0,NA(),'Materiaalindexen o.w.'!AP34/'Materiaalindexen o.w.'!AP$33),NA()) -> 1.002056555 | BA114: =IFERROR(IF('Materiaalindexen o.w.'!AQ34/'Materiaalindexen o.w.'!AQ$33=0,NA(),'Materiaalindexen o.w.'!AQ34/'Materiaalindexen o.w.'!AQ$33),NA()) -> 1.002120891 | BB114: =IFERROR(IF('Materiaalindexen o.w.'!AR34/'Materiaalindexen o.w.'!AR$33=0,NA(),'Materiaalindexen o.w.'!AR34/'Materiaalindexen o.w.'!AR$33),NA()) -> 1.002128792 | BC114: =IFERROR(IF('Materiaalindexen o.w.'!AS34/'Materiaalindexen o.w.'!AS$33=0,NA(),'Materiaalindexen o.w.'!AS34/'Materiaalindexen o.w.'!AS$33),NA()) -> 1.002101576 | BD114: =IFERROR(IF('Materiaalindexen o.w.'!AT34/'Materiaalindexen o.w.'!AT$33=0,NA(),'Materiaalindexen o.w.'!AT34/'Materiaalindexen o.w.'!AT$33),NA()) -> 1 | BE114: =IFERROR(IF('Materiaalindexen o.w.'!AU34/'Materiaalindexen o.w.'!AU$33=0,NA(),'Materiaalindexen o.w.'!AU34/'Materiaalindexen o.w.'!AU$33),NA()) -> 0.995770612 | BF114: =IFERROR(IF('Materiaalindexen o.w.'!AV34/'Materiaalindexen o.w.'!AV$33=0,NA(),'Materiaalindexen o.w.'!AV34/'Materiaalindexen o.w.'!AV$33),NA()) -> 0.9968679053 | BG114: =IFERROR(IF('Materiaalindexen o.w.'!AW34/'Materiaalindexen o.w.'!AW$33=0,NA(),'Materiaalindexen o.w.'!AW34/'Materiaalindexen o.w.'!AW$33),NA()) -> 0.9964010392 | BH114: =IFERROR(IF('Materiaalindexen o.w.'!AX34/'Materiaalindexen o.w.'!AX$33=0,NA(),'Materiaalindexen o.w.'!AX34/'Materiaalindexen o.w.'!AX$33),NA()) -> 1.018902439 | BI114: =IFERROR(IF('Materiaalindexen o.w.'!AY34/'Materiaalindexen o.w.'!AY$33=0,NA(),'Materiaalindexen o.w.'!AY34/'Materiaalindexen o.w.'!AY$33),NA()) -> 1.019266625 | BJ114: =IFERROR(IF('Materiaalindexen o.w.'!AZ34/'Materiaalindexen o.w.'!AZ$33=0,NA(),'Materiaalindexen o.w.'!AZ34/'Materiaalindexen o.w.'!AZ$33),NA()) -> 1.019302615 | BK114: =IFERROR(IF('Materiaalindexen o.w.'!BA34/'Materiaalindexen o.w.'!BA$33=0,NA(),'Materiaalindexen o.w.'!BA34/'Materiaalindexen o.w.'!BA$33),NA()) -> 1.01915551 | BL114: =IFERROR(IF('Materiaalindexen o.w.'!BB34/'Materiaalindexen o.w.'!BB$33=0,NA(),'Materiaalindexen o.w.'!BB34/'Materiaalindexen o.w.'!BB$33),NA()) -> 1.014773306 | BM114: =IFERROR(IF('Materiaalindexen o.w.'!BC34/'Materiaalindexen o.w.'!BC$33=0,NA(),'Materiaalindexen o.w.'!BC34/'Materiaalindexen o.w.'!BC$33),NA()) -> 0.9730769231 | BN114: =IFERROR(IF('Materiaalindexen o.w.'!BD34/'Materiaalindexen o.w.'!BD$33=0,NA(),'Materiaalindexen o.w.'!BD34/'Materiaalindexen o.w.'!BD$33),NA()) -> 1.008532423 | BO114: =IFERROR(IF('Materiaalindexen o.w.'!BE34/'Materiaalindexen o.w.'!BE$33=0,NA(),'Materiaalindexen o.w.'!BE34/'Materiaalindexen o.w.'!BE$33),NA()) -> 0.9844140062 | BP114: =IFERROR(IF('Materiaalindexen o.w.'!BF34/'Materiaalindexen o.w.'!BF$33=0,NA(),'Materiaalindexen o.w.'!BF34/'Materiaalindexen o.w.'!BF$33),NA()) -> 0.9767998828 | BQ114: =IFERROR(IF('Materiaalindexen o.w.'!BG34/'Materiaalindexen o.w.'!BG$33=0,NA(),'Materiaalindexen o.w.'!BG34/'Materiaalindexen o.w.'!BG$33),NA()) -> 1.016467066 | BR114: =IFERROR(IF('Materiaalindexen o.w.'!BH34/'Materiaalindexen o.w.'!BH$33=0,NA(),'Materiaalindexen o.w.'!BH34/'Materiaalindexen o.w.'!BH$33),NA()) -> 1 | BS114: =IFERROR(IF('Materiaalindexen o.w.'!BI34/'Materiaalindexen o.w.'!BI$33=0,NA(),'Materiaalindexen o.w.'!BI34/'Materiaalindexen o.w.'!BI$33),NA()) -> 0.9756097561 | BT114: =IFERROR(IF('Materiaalindexen o.w.'!BJ34/'Materiaalindexen o.w.'!BJ$33=0,NA(),'Materiaalindexen o.w.'!BJ34/'Materiaalindexen o.w.'!BJ$33),NA()) -> 1.016731017 | BU114: =IFERROR(IF('Materiaalindexen o.w.'!BK34/'Materiaalindexen o.w.'!BK$33=0,NA(),'Materiaalindexen o.w.'!BK34/'Materiaalindexen o.w.'!BK$33),NA()) -> 1.003490401 | BV114: =IFERROR(IF('Materiaalindexen o.w.'!BL34/'Materiaalindexen o.w.'!BL$33=0,NA(),'Materiaalindexen o.w.'!BL34/'Materiaalindexen o.w.'!BL$33),NA()) -> 1.004518072 | BW114: =IFERROR(IF('Materiaalindexen o.w.'!BM34/'Materiaalindexen o.w.'!BM$33=0,NA(),'Materiaalindexen o.w.'!BM34/'Materiaalindexen o.w.'!BM$33),NA()) -> 1.013597033 | BX114: =IFERROR(IF('Materiaalindexen o.w.'!BN34/'Materiaalindexen o.w.'!BN$33=0,NA(),'Materiaalindexen o.w.'!BN34/'Materiaalindexen o.w.'!BN$33),NA()) -> 1.009504413 | BY114: =IFERROR(IF('Materiaalindexen o.w.'!BO34/'Materiaalindexen o.w.'!BO$33=0,NA(),'Materiaalindexen o.w.'!BO34/'Materiaalindexen o.w.'!BO$33),NA()) -> 0.9921259843 | BZ114: =IFERROR(IF('Materiaalindexen o.w.'!BP34/'Materiaalindexen o.w.'!BP$33=0,NA(),'Materiaalindexen o.w.'!BP34/'Materiaalindexen o.w.'!BP$33),NA()) -> 0.9967320261 | CA114: =IFERROR(IF('Materiaalindexen o.w.'!BQ34/'Materiaalindexen o.w.'!BQ$33=0,NA(),'Materiaalindexen o.w.'!BQ34/'Materiaalindexen o.w.'!BQ$33),NA()) -> 1 | CB114: =IFERROR(IF('Materiaalindexen o.w.'!BR34/'Materiaalindexen o.w.'!BR$33=0,NA(),'Materiaalindexen o.w.'!BR34/'Materiaalindexen o.w.'!BR$33),NA()) -> 1 | CC114: =IFERROR(IF('Materiaalindexen o.w.'!BS34/'Materiaalindexen o.w.'!BS$33=0,NA(),'Materiaalindexen o.w.'!BS34/'Materiaalindexen o.w.'!BS$33),NA()) -> 1 | CD114: =IFERROR(IF('Materiaalindexen o.w.'!BT34/'Materiaalindexen o.w.'!BT$33=0,NA(),'Materiaalindexen o.w.'!BT34/'Materiaalindexen o.w.'!BT$33),NA()) -> 1 | CE114: =IFERROR(IF('Materiaalindexen o.w.'!BU34/'Materiaalindexen o.w.'!BU$33=0,NA(),'Materiaalindexen o.w.'!BU34/'Materiaalindexen o.w.'!BU$33),NA()) -> 1 | CF114: =IFERROR(IF('Materiaalindexen o.w.'!BV34/'Materiaalindexen o.w.'!BV$33=0,NA(),'Materiaalindexen o.w.'!BV34/'Materiaalindexen o.w.'!BV$33),NA()) -> 1 | CG114: =IFERROR(IF('Materiaalindexen o.w.'!BW34/'Materiaalindexen o.w.'!BW$33=0,NA(),'Materiaalindexen o.w.'!BW34/'Materiaalindexen o.w.'!BW$33),NA()) -> 1.007214733 | CH114: =IFERROR(IF('Materiaalindexen o.w.'!BX34/'Materiaalindexen o.w.'!BX$33=0,NA(),'Materiaalindexen o.w.'!BX34/'Materiaalindexen o.w.'!BX$33),NA()) -> 1.007280476 | CI114: =IFERROR(IF('Materiaalindexen o.w.'!BY34/'Materiaalindexen o.w.'!BY$33=0,NA(),'Materiaalindexen o.w.'!BY34/'Materiaalindexen o.w.'!BY$33),NA()) -> 1.007214071 | CJ114: =IFERROR(IF('Materiaalindexen o.w.'!BZ34/'Materiaalindexen o.w.'!BZ$33=0,NA(),'Materiaalindexen o.w.'!BZ34/'Materiaalindexen o.w.'!BZ$33),NA()) -> 1.007219624 | CK114: =IFERROR(IF('Materiaalindexen o.w.'!CA34/'Materiaalindexen o.w.'!CA$33=0,NA(),'Materiaalindexen o.w.'!CA34/'Materiaalindexen o.w.'!CA$33),NA()) -> 1.007231829 | CL114: =IFERROR(IF('Materiaalindexen o.w.'!CB34/'Materiaalindexen o.w.'!CB$33=0,NA(),'Materiaalindexen o.w.'!CB34/'Materiaalindexen o.w.'!CB$33),NA()) -> 1 | CM114: =IFERROR(IF('Materiaalindexen o.w.'!CC34/'Materiaalindexen o.w.'!CC$33=0,NA(),'Materiaalindexen o.w.'!CC34/'Materiaalindexen o.w.'!CC$33),NA()) -> 1 | CN114: =IFERROR(IF('Materiaalindexen o.w.'!CD34/'Materiaalindexen o.w.'!CD$33=0,NA(),'Materiaalindexen o.w.'!CD34/'Materiaalindexen o.w.'!CD$33),NA()) -> 1 | CO114: =IFERROR(IF('Materiaalindexen o.w.'!CE34/'Materiaalindexen o.w.'!CE$33=0,NA(),'Materiaalindexen o.w.'!CE34/'Materiaalindexen o.w.'!CE$33),NA()) -> 1 | CP114: =IFERROR(IF('Materiaalindexen o.w.'!CF34/'Materiaalindexen o.w.'!CF$33=0,NA(),'Materiaalindexen o.w.'!CF34/'Materiaalindexen o.w.'!CF$33),NA()) -> 1 | CQ114: =IFERROR(IF('Materiaalindexen o.w.'!CG34/'Materiaalindexen o.w.'!CG$33=0,NA(),'Materiaalindexen o.w.'!CG34/'Materiaalindexen o.w.'!CG$33),NA()) -> 1 | CR114: =IFERROR(IF('Materiaalindexen o.w.'!CH34/'Materiaalindexen o.w.'!CH$33=0,NA(),'Materiaalindexen o.w.'!CH34/'Materiaalindexen o.w.'!CH$33),NA()) -> 1 | CS114: =IFERROR(IF('Materiaalindexen o.w.'!CI34/'Materiaalindexen o.w.'!CI$33=0,NA(),'Materiaalindexen o.w.'!CI34/'Materiaalindexen o.w.'!CI$33),NA()) -> 1 | CT114: =IFERROR(IF('Materiaalindexen o.w.'!CJ34/'Materiaalindexen o.w.'!CJ$33=0,NA(),'Materiaalindexen o.w.'!CJ34/'Materiaalindexen o.w.'!CJ$33),NA()) -> 1 | CU114: =IFERROR(IF('Materiaalindexen o.w.'!CK34/'Materiaalindexen o.w.'!CK$33=0,NA(),'Materiaalindexen o.w.'!CK34/'Materiaalindexen o.w.'!CK$33),NA()) -> 0.9908159319 | CV114: =IFERROR(IF('Materiaalindexen o.w.'!CL34/'Materiaalindexen o.w.'!CL$33=0,NA(),'Materiaalindexen o.w.'!CL34/'Materiaalindexen o.w.'!CL$33),NA()) -> 0.9908163265 | CW114: =IFERROR(IF('Materiaalindexen o.w.'!CM34/'Materiaalindexen o.w.'!CM$33=0,NA(),'Materiaalindexen o.w.'!CM34/'Materiaalindexen o.w.'!CM$33),NA()) -> 0.9908415414 | CX114: =IFERROR(IF('Materiaalindexen o.w.'!CN34/'Materiaalindexen o.w.'!CN$33=0,NA(),'Materiaalindexen o.w.'!CN34/'Materiaalindexen o.w.'!CN$33),NA()) -> 0.9908248708 | CY114: =IFERROR(IF('Materiaalindexen o.w.'!CO34/'Materiaalindexen o.w.'!CO$33=0,NA(),'Materiaalindexen o.w.'!CO34/'Materiaalindexen o.w.'!CO$33),NA()) -> 0.95731478 | CZ114: =IFERROR(IF('Materiaalindexen o.w.'!CP34/'Materiaalindexen o.w.'!CP$33=0,NA(),'Materiaalindexen o.w.'!CP34/'Materiaalindexen o.w.'!CP$33),NA()) -> 0.957345065 | DA114: =IFERROR(IF('Materiaalindexen o.w.'!CQ34/'Materiaalindexen o.w.'!CQ$33=0,NA(),'Materiaalindexen o.w.'!CQ34/'Materiaalindexen o.w.'!CQ$33),NA()) -> 0.9573297933 | DB114: =IFERROR(IF('Materiaalindexen o.w.'!CR34/'Materiaalindexen o.w.'!CR$33=0,NA(),'Materiaalindexen o.w.'!CR34/'Materiaalindexen o.w.'!CR$33),NA()) -> 0.9877228389 | DC114: =IFERROR(IF('Materiaalindexen o.w.'!CS34/'Materiaalindexen o.w.'!CS$33=0,NA(),'Materiaalindexen o.w.'!CS34/'Materiaalindexen o.w.'!CS$33),NA()) -> 0.9877290301 | DD114: =IFERROR(IF('Materiaalindexen o.w.'!CT34/'Materiaalindexen o.w.'!CT$33=0,NA(),'Materiaalindexen o.w.'!CT34/'Materiaalindexen o.w.'!CT$33),NA()) -> 0.9868124531 | DE114: =IFERROR(IF('Materiaalindexen o.w.'!CU34/'Materiaalindexen o.w.'!CU$33=0,NA(),'Materiaalindexen o.w.'!CU34/'Materiaalindexen o.w.'!CU$33),NA()) -> 0.9874199771 | DF114: =IFERROR(IF('Materiaalindexen o.w.'!CV34/'Materiaalindexen o.w.'!CV$33=0,NA(),'Materiaalindexen o.w.'!CV34/'Materiaalindexen o.w.'!CV$33),NA()) -> 0.9175946548 | DG114: =IFERROR(IF('Materiaalindexen o.w.'!CW34/'Materiaalindexen o.w.'!CW$33=0,NA(),'Materiaalindexen o.w.'!CW34/'Materiaalindexen o.w.'!CW$33),NA()) -> 1.000618356 | DH114: =IFERROR(IF('Materiaalindexen o.w.'!CX34/'Materiaalindexen o.w.'!CX$33=0,NA(),'Materiaalindexen o.w.'!CX34/'Materiaalindexen o.w.'!CX$33),NA()) -> 1.000809187 | DI114: =IFERROR(IF('Materiaalindexen o.w.'!CY34/'Materiaalindexen o.w.'!CY$33=0,NA(),'Materiaalindexen o.w.'!CY34/'Materiaalindexen o.w.'!CY$33),NA()) -> 1.000701016 | DJ114: =IFERROR(IF('Materiaalindexen o.w.'!CZ34/'Materiaalindexen o.w.'!CZ$33=0,NA(),'Materiaalindexen o.w.'!CZ34/'Materiaalindexen o.w.'!CZ$33),NA()) -> 1 | DK114: =IFERROR(IF('Materiaalindexen o.w.'!DA34/'Materiaalindexen o.w.'!DA$33=0,NA(),'Materiaalindexen o.w.'!DA34/'Materiaalindexen o.w.'!DA$33),NA()) -> 1 | DL114: =IFERROR(IF('Materiaalindexen o.w.'!DB34/'Materiaalindexen o.w.'!DB$33=0,NA(),'Materiaalindexen o.w.'!DB34/'Materiaalindexen o.w.'!DB$33),NA()) -> 1.012006861 | DM114: =IFERROR(IF('Materiaalindexen o.w.'!DC34/'Materiaalindexen o.w.'!DC$33=0,NA(),'Materiaalindexen o.w.'!DC34/'Materiaalindexen o.w.'!DC$33),NA()) -> 1.011283498 | DN114: =IFERROR(IF('Materiaalindexen o.w.'!DD34/'Materiaalindexen o.w.'!DD$33=0,NA(),'Materiaalindexen o.w.'!DD34/'Materiaalindexen o.w.'!DD$33),NA()) -> 1.002033554 | DO114: =IFERROR(IF('Materiaalindexen o.w.'!DE34/'Materiaalindexen o.w.'!DE$33=0,NA(),'Materiaalindexen o.w.'!DE34/'Materiaalindexen o.w.'!DE$33),NA()) -> 1.010028653 | DP114: =IFERROR(IF('Materiaalindexen o.w.'!DF34/'Materiaalindexen o.w.'!DF$33=0,NA(),'Materiaalindexen o.w.'!DF34/'Materiaalindexen o.w.'!DF$33),NA()) -> 1.009083045 | DQ114: =IFERROR(IF('Materiaalindexen o.w.'!DG34/'Materiaalindexen o.w.'!DG$33=0,NA(),'Materiaalindexen o.w.'!DG34/'Materiaalindexen o.w.'!DG$33),NA()) -> 1.007769552 | DR114: =IFERROR(IF('Materiaalindexen o.w.'!DH34/'Materiaalindexen o.w.'!DH$33=0,NA(),'Materiaalindexen o.w.'!DH34/'Materiaalindexen o.w.'!DH$33),NA()) -> 1.005122832 | DS114: =IFERROR(IF('Materiaalindexen o.w.'!DI34/'Materiaalindexen o.w.'!DI$33=0,NA(),'Materiaalindexen o.w.'!DI34/'Materiaalindexen o.w.'!DI$33),NA()) -> 1.000439367 | DT114: =IFERROR(IF('Materiaalindexen o.w.'!DJ34/'Materiaalindexen o.w.'!DJ$33=0,NA(),'Materiaalindexen o.w.'!DJ34/'Materiaalindexen o.w.'!DJ$33),NA()) -> 1.00150858 | DU114: =IFERROR(IF('Materiaalindexen o.w.'!DK34/'Materiaalindexen o.w.'!DK$33=0,NA(),'Materiaalindexen o.w.'!DK34/'Materiaalindexen o.w.'!DK$33),NA()) -> 0.865497076 | DV114: =IFERROR(IF('Materiaalindexen o.w.'!DL34/'Materiaalindexen o.w.'!DL$33=0,NA(),'Materiaalindexen o.w.'!DL34/'Materiaalindexen o.w.'!DL$33),NA()) -> 1.001598195 | DW114: =IFERROR(IF('Materiaalindexen o.w.'!DM34/'Materiaalindexen o.w.'!DM$33=0,NA(),'Materiaalindexen o.w.'!DM34/'Materiaalindexen o.w.'!DM$33),NA()) -> 1 | EA114: 2018-02-01 | EB114: =IFERROR(IF('Indexen goederen & diensten'!C28/'Indexen goederen & diensten'!C$27=0,NA(),'Indexen goederen & diensten'!C28/'Indexen goederen & diensten'!C$27),NA()) -> 1 | EC114: =IFERROR(IF('Indexen goederen & diensten'!D28/'Indexen goederen & diensten'!D$27=0,NA(),'Indexen goederen & diensten'!D28/'Indexen goederen & diensten'!D$27),NA()) -> 1 | ED114: =IFERROR(IF('Indexen goederen & diensten'!E28/'Indexen goederen & diensten'!E$27=0,NA(),'Indexen goederen & diensten'!E28/'Indexen goederen & diensten'!E$27),NA()) -> 1 | EE114: =IFERROR(IF('Indexen goederen & diensten'!F28/'Indexen goederen & diensten'!F$27=0,NA(),'Indexen goederen & diensten'!F28/'Indexen goederen & diensten'!F$27),NA()) -> 1 | EF114: =IFERROR(IF('Indexen goederen & diensten'!G28/'Indexen goederen & diensten'!G$27=0,NA(),'Indexen goederen & diensten'!G28/'Indexen goederen & diensten'!G$27),NA()) -> 1 | EG114: =IFERROR(IF('Indexen goederen & diensten'!H28/'Indexen goederen & diensten'!H$27=0,NA(),'Indexen goederen & diensten'!H28/'Indexen goederen & diensten'!H$27),NA()) -> 1 | EH114: =IFERROR(IF('Indexen goederen & diensten'!I28/'Indexen goederen & diensten'!I$27=0,NA(),'Indexen goederen & diensten'!I28/'Indexen goederen & diensten'!I$27),NA()) -> 1 | EI114: =IFERROR(IF('Indexen goederen & diensten'!J28/'Indexen goederen & diensten'!J$27=0,NA(),'Indexen goederen & diensten'!J28/'Indexen goederen & diensten'!J$27),NA()) -> 1 | EJ114: =IFERROR(IF('Indexen goederen & diensten'!K28/'Indexen goederen & diensten'!K$27=0,NA(),'Indexen goederen & diensten'!K28/'Indexen goederen & diensten'!K$27),NA()) -> 1 | EK114: =IFERROR(IF('Indexen goederen & diensten'!L28/'Indexen goederen & diensten'!L$27=0,NA(),'Indexen goederen & diensten'!L28/'Indexen goederen & diensten'!L$27),NA()) -> 1 | EL114: =IFERROR(IF('Indexen goederen & diensten'!M28/'Indexen goederen & diensten'!M$27=0,NA(),'Indexen goederen & diensten'!M28/'Indexen goederen & diensten'!M$27),NA()) -> 1 | EM114: =IFERROR(IF('Indexen goederen & diensten'!N28/'Indexen goederen & diensten'!N$27=0,NA(),'Indexen goederen & diensten'!N28/'Indexen goederen & diensten'!N$27),NA()) -> 1 | EN114: =IFERROR(IF('Indexen goederen & diensten'!O28/'Indexen goederen & diensten'!O$27=0,NA(),'Indexen goederen & diensten'!O28/'Indexen goederen & diensten'!O$27),NA()) -> 0.9850498339 | EO114: =IFERROR(IF('Indexen goederen & diensten'!P28/'Indexen goederen & diensten'!P$27=0,NA(),'Indexen goederen & diensten'!P28/'Indexen goederen & diensten'!P$27),NA()) -> 1.008952551 | EP114: =IFERROR(IF('Indexen goederen & diensten'!Q28/'Indexen goederen & diensten'!Q$27=0,NA(),'Indexen goederen & diensten'!Q28/'Indexen goederen & diensten'!Q$27),NA()) -> 1.013220019 | EQ114: =IFERROR(IF('Indexen goederen & diensten'!R28/'Indexen goederen & diensten'!R$27=0,NA(),'Indexen goederen & diensten'!R28/'Indexen goederen & diensten'!R$27),NA()) -> 1.026785714 | ER114: =IFERROR(IF('Indexen goederen & diensten'!S28/'Indexen goederen & diensten'!S$27=0,NA(),'Indexen goederen & diensten'!S28/'Indexen goederen & diensten'!S$27),NA()) -> 1.001749781 | ES114: =IFERROR(IF('Indexen goederen & diensten'!T28/'Indexen goederen & diensten'!T$27=0,NA(),'Indexen goederen & diensten'!T28/'Indexen goederen & diensten'!T$27),NA()) -> 1.00262697 | ET114: =IFERROR(IF('Indexen goederen & diensten'!U28/'Indexen goederen & diensten'!U$27=0,NA(),'Indexen goederen & diensten'!U28/'Indexen goederen & diensten'!U$27),NA()) -> 1 | EU114: =IFERROR(IF('Indexen goederen & diensten'!V28/'Indexen goederen & diensten'!V$27=0,NA(),'Indexen goederen & diensten'!V28/'Indexen goederen & diensten'!V$27),NA()) -> 1.008006405 | EV114: =IFERROR(IF('Indexen goederen & diensten'!W28/'Indexen goederen & diensten'!W$27=0,NA(),'Indexen goederen & diensten'!W28/'Indexen goederen & diensten'!W$27),NA()) -> 1 | EW114: =IFERROR(IF('Indexen goederen & diensten'!X28/'Indexen goederen & diensten'!X$27=0,NA(),'Indexen goederen & diensten'!X28/'Indexen goederen & diensten'!X$27),NA()) -> 1.004321521 | EX114: =IFERROR(IF('Indexen goederen & diensten'!Y28/'Indexen goederen & diensten'!Y$27=0,NA(),'Indexen goederen & diensten'!Y28/'Indexen goederen & diensten'!Y$27),NA()) -> 0.9836909871 | EY114: =IFERROR(IF('Indexen goederen & diensten'!Z28/'Indexen goederen & diensten'!Z$27=0,NA(),'Indexen goederen & diensten'!Z28/'Indexen goederen & diensten'!Z$27),NA()) -> 0.8878416588 | EZ114: =IFERROR(IF('Indexen goederen & diensten'!AA28/'Indexen goederen & diensten'!AA$27=0,NA(),'Indexen goederen & diensten'!AA28/'Indexen goederen & diensten'!AA$27),NA()) -> 1.015177066 | FA114: =IFERROR(IF('Indexen goederen & diensten'!AB28/'Indexen goederen & diensten'!AB$27=0,NA(),'Indexen goederen & diensten'!AB28/'Indexen goederen & diensten'!AB$27),NA()) -> 1.018581081 | FB114: =IFERROR(IF('Indexen goederen & diensten'!AC28/'Indexen goederen & diensten'!AC$27=0,NA(),'Indexen goederen & diensten'!AC28/'Indexen goederen & diensten'!AC$27),NA()) -> 1.014370245 | FC114: =IFERROR(IF('Indexen goederen & diensten'!AD28/'Indexen goederen & diensten'!AD$27=0,NA(),'Indexen goederen & diensten'!AD28/'Indexen goederen & diensten'!AD$27),NA()) -> 1.01177394 | FD114: =IFERROR(IF('Indexen goederen & diensten'!AE28/'Indexen goederen & diensten'!AE$27=0,NA(),'Indexen goederen & diensten'!AE28/'Indexen goederen & diensten'!AE$27),NA()) -> 1.000868056 | FE114: =IFERROR(IF('Indexen goederen & diensten'!AF28/'Indexen goederen & diensten'!AF$27=0,NA(),'Indexen goederen & diensten'!AF28/'Indexen goederen & diensten'!AF$27),NA()) -> 1.003581021 | FF114: =IFERROR(IF('Indexen goederen & diensten'!AG28/'Indexen goederen & diensten'!AG$27=0,NA(),'Indexen goederen & diensten'!AG28/'Indexen goederen & diensten'!AG$27),NA()) -> 0.9704301075 | FG114: =IFERROR(IF('Indexen goederen & diensten'!AH28/'Indexen goederen & diensten'!AH$27=0,NA(),'Indexen goederen & diensten'!AH28/'Indexen goederen & diensten'!AH$27),NA()) -> 0.9982486865 | FH114: =IFERROR(IF('Indexen goederen & diensten'!AI28/'Indexen goederen & diensten'!AI$27=0,NA(),'Indexen goederen & diensten'!AI28/'Indexen goederen & diensten'!AI$27),NA()) -> 1 | FI114: =IFERROR(IF('Indexen goederen & diensten'!AJ28/'Indexen goederen & diensten'!AJ$27=0,NA(),'Indexen goederen & diensten'!AJ28/'Indexen goederen & diensten'!AJ$27),NA()) -> 0.9548989114 | FJ114: =IFERROR(IF('Indexen goederen & diensten'!AK28/'Indexen goederen & diensten'!AK$27=0,NA(),'Indexen goederen & diensten'!AK28/'Indexen goederen & diensten'!AK$27),NA()) -> 1.00483611 | FK114: =IFERROR(IF('Indexen goederen & diensten'!AL28/'Indexen goederen & diensten'!AL$27=0,NA(),'Indexen goederen & diensten'!AL28/'Indexen goederen & diensten'!AL$27),NA()) -> 1.018404908 | FL114: =IFERROR(IF('Indexen goederen & diensten'!AM28/'Indexen goederen & diensten'!AM$27=0,NA(),'Indexen goederen & diensten'!AM28/'Indexen goederen & diensten'!AM$27),NA()) -> 0.986770428 | FM114: =IFERROR(IF('Indexen goederen & diensten'!AN28/'Indexen goederen & diensten'!AN$27=0,NA(),'Indexen goederen & diensten'!AN28/'Indexen goederen & diensten'!AN$27),NA()) -> 1.001771479 | FN114: =IFERROR(IF('Indexen goederen & diensten'!AO28/'Indexen goederen & diensten'!AO$27=0,NA(),'Indexen goederen & diensten'!AO28/'Indexen goederen & diensten'!AO$27),NA()) -> 0.9982222222 | FO114: =IFERROR(IF('Indexen goederen & diensten'!AP28/'Indexen goederen & diensten'!AP$27=0,NA(),'Indexen goederen & diensten'!AP28/'Indexen goederen & diensten'!AP$27),NA()) -> 1.00177305 | FP114: =IFERROR(IF('Indexen goederen & diensten'!AQ28/'Indexen goederen & diensten'!AQ$27=0,NA(),'Indexen goederen & diensten'!AQ28/'Indexen goederen & diensten'!AQ$27),NA()) -> 1.01182266 | FQ114: =IFERROR(IF('Indexen goederen & diensten'!AR28/'Indexen goederen & diensten'!AR$27=0,NA(),'Indexen goederen & diensten'!AR28/'Indexen goederen & diensten'!AR$27),NA()) -> 0.9984152139 | FR114: =IFERROR(IF('Indexen goederen & diensten'!AS28/'Indexen goederen & diensten'!AS$27=0,NA(),'Indexen goederen & diensten'!AS28/'Indexen goederen & diensten'!AS$27),NA()) -> 1.008704062 | FS114: =IFERROR(IF('Indexen goederen & diensten'!AT28/'Indexen goederen & diensten'!AT$27=0,NA(),'Indexen goederen & diensten'!AT28/'Indexen goederen & diensten'!AT$27),NA()) -> 1.011385199 | FT114: =IFERROR(IF('Indexen goederen & diensten'!AU28/'Indexen goederen & diensten'!AU$27=0,NA(),'Indexen goederen & diensten'!AU28/'Indexen goederen & diensten'!AU$27),NA()) -> 1.023162135 | FU114: =IFERROR(IF('Indexen goederen & diensten'!AV28/'Indexen goederen & diensten'!AV$27=0,NA(),'Indexen goederen & diensten'!AV28/'Indexen goederen & diensten'!AV$27),NA()) -> 1.084269663 | FV114: =IFERROR(IF('Indexen goederen & diensten'!AW28/'Indexen goederen & diensten'!AW$27=0,NA(),'Indexen goederen & diensten'!AW28/'Indexen goederen & diensten'!AW$27),NA()) -> 1.01453958 | FW114: =IFERROR(IF('Indexen goederen & diensten'!AX28/'Indexen goederen & diensten'!AX$27=0,NA(),'Indexen goederen & diensten'!AX28/'Indexen goederen & diensten'!AX$27),NA()) -> 1.01453958 | FX114: =IFERROR(IF('Indexen goederen & diensten'!AY28/'Indexen goederen & diensten'!AY$27=0,NA(),'Indexen goederen & diensten'!AY28/'Indexen goederen & diensten'!AY$27),NA()) -> 0.9911242604 | FY114: =IFERROR(IF('Indexen goederen & diensten'!AZ28/'Indexen goederen & diensten'!AZ$27=0,NA(),'Indexen goederen & diensten'!AZ28/'Indexen goederen & diensten'!AZ$27),NA()) -> 0.976386037 | FZ114: =IFERROR(IF('Indexen goederen & diensten'!BA28/'Indexen goederen & diensten'!BA$27=0,NA(),'Indexen goederen & diensten'!BA28/'Indexen goederen & diensten'!BA$27),NA()) -> 1.01605288 | GA114: =IFERROR(IF('Indexen goederen & diensten'!BB28/'Indexen goederen & diensten'!BB$27=0,NA(),'Indexen goederen & diensten'!BB28/'Indexen goederen & diensten'!BB$27),NA()) -> 1.018248175 | GB114: =IFERROR(IF('Indexen goederen & diensten'!BC28/'Indexen goederen & diensten'!BC$27=0,NA(),'Indexen goederen & diensten'!BC28/'Indexen goederen & diensten'!BC$27),NA()) -> 1.018518519 | GC114: =IFERROR(IF('Indexen goederen & diensten'!BD28/'Indexen goederen & diensten'!BD$27=0,NA(),'Indexen goederen & diensten'!BD28/'Indexen goederen & diensten'!BD$27),NA()) -> 0.9930693069 | GD114: =IFERROR(IF('Indexen goederen & diensten'!BE28/'Indexen goederen & diensten'!BE$27=0,NA(),'Indexen goederen & diensten'!BE28/'Indexen goederen & diensten'!BE$27),NA()) -> 1 | GE114: =IFERROR(IF('Indexen goederen & diensten'!BF28/'Indexen goederen & diensten'!BF$27=0,NA(),'Indexen goederen & diensten'!BF28/'Indexen goederen & diensten'!BF$27),NA()) -> 1.012 | GF114: =IFERROR(IF('Indexen goederen & diensten'!BG28/'Indexen goederen & diensten'!BG$27=0,NA(),'Indexen goederen & diensten'!BG28/'Indexen goederen & diensten'!BG$27),NA()) -> 0.9918433931 | GG114: =IFERROR(IF('Indexen goederen & diensten'!BH28/'Indexen goederen & diensten'!BH$27=0,NA(),'Indexen goederen & diensten'!BH28/'Indexen goederen & diensten'!BH$27),NA()) -> 1.00859375 | GH114: =IFERROR(IF('Indexen goederen & diensten'!BI28/'Indexen goederen & diensten'!BI$27=0,NA(),'Indexen goederen & diensten'!BI28/'Indexen goederen & diensten'!BI$27),NA()) -> 0.9933649289 | GI114: =IFERROR(IF('Indexen goederen & diensten'!BJ28/'Indexen goederen & diensten'!BJ$27=0,NA(),'Indexen goederen & diensten'!BJ28/'Indexen goederen & diensten'!BJ$27),NA()) -> 0.9924242424 | GJ114: =IFERROR(IF('Indexen goederen & diensten'!BK28/'Indexen goederen & diensten'!BK$27=0,NA(),'Indexen goederen & diensten'!BK28/'Indexen goederen & diensten'!BK$27),NA()) -> 0.9828767123 | GK114: =IFERROR(IF('Indexen goederen & diensten'!BL28/'Indexen goederen & diensten'!BL$27=0,NA(),'Indexen goederen & diensten'!BL28/'Indexen goederen & diensten'!BL$27),NA()) -> 0.999122807 | GL114: =IFERROR(IF('Indexen goederen & diensten'!BM28/'Indexen goederen & diensten'!BM$27=0,NA(),'Indexen goederen & diensten'!BM28/'Indexen goederen & diensten'!BM$27),NA()) -> 1 | GM114: =IFERROR(IF('Indexen goederen & diensten'!BN28/'Indexen goederen & diensten'!BN$27=0,NA(),'Indexen goederen & diensten'!BN28/'Indexen goederen & diensten'!BN$27),NA()) -> 1 | GN114: =IFERROR(IF('Indexen goederen & diensten'!BO28/'Indexen goederen & diensten'!BO$27=0,NA(),'Indexen goederen & diensten'!BO28/'Indexen goederen & diensten'!BO$27),NA()) -> 1.021052632 | GO114: =IFERROR(IF('Indexen goederen & diensten'!BP28/'Indexen goederen & diensten'!BP$27=0,NA(),'Indexen goederen & diensten'!BP28/'Indexen goederen & diensten'!BP$27),NA()) -> 1.008093525 | GP114: =IFERROR(IF('Indexen goederen & diensten'!BQ28/'Indexen goederen & diensten'!BQ$27=0,NA(),'Indexen goederen & diensten'!BQ28/'Indexen goederen & diensten'!BQ$27),NA()) -> 1.011009174 | GQ114: =IFERROR(IF('Indexen goederen & diensten'!BR28/'Indexen goederen & diensten'!BR$27=0,NA(),'Indexen goederen & diensten'!BR28/'Indexen goederen & diensten'!BR$27),NA()) -> 1.00174216 | GR114: =IFERROR(IF('Indexen goederen & diensten'!BS28/'Indexen goederen & diensten'!BS$27=0,NA(),'Indexen goederen & diensten'!BS28/'Indexen goederen & diensten'!BS$27),NA()) -> 1.008183306 | GS114: =IFERROR(IF('Indexen goederen & diensten'!BT28/'Indexen goederen & diensten'!BT$27=0,NA(),'Indexen goederen & diensten'!BT28/'Indexen goederen & diensten'!BT$27),NA()) -> 1.010507881 | GT114: =IFERROR(IF('Indexen goederen & diensten'!BU28/'Indexen goederen & diensten'!BU$27=0,NA(),'Indexen goederen & diensten'!BU28/'Indexen goederen & diensten'!BU$27),NA()) -> 1.025568182 | GU114: =IFERROR(IF('Indexen goederen & diensten'!BV28/'Indexen goederen & diensten'!BV$27=0,NA(),'Indexen goederen & diensten'!BV28/'Indexen goederen & diensten'!BV$27),NA()) -> 1 | GV114: =IFERROR(IF('Indexen goederen & diensten'!BW28/'Indexen goederen & diensten'!BW$27=0,NA(),'Indexen goederen & diensten'!BW28/'Indexen goederen & diensten'!BW$27),NA()) -> 1.025217391 | GW114: =IFERROR(IF('Indexen goederen & diensten'!BX28/'Indexen goederen & diensten'!BX$27=0,NA(),'Indexen goederen & diensten'!BX28/'Indexen goederen & diensten'!BX$27),NA()) -> 1.043413174 | GX114: =IFERROR(IF('Indexen goederen & diensten'!BY28/'Indexen goederen & diensten'!BY$27=0,NA(),'Indexen goederen & diensten'!BY28/'Indexen goederen & diensten'!BY$27),NA()) -> 1.020462633 | GY114: =IFERROR(IF('Indexen goederen & diensten'!BZ28/'Indexen goederen & diensten'!BZ$27=0,NA(),'Indexen goederen & diensten'!BZ28/'Indexen goederen & diensten'!BZ$27),NA()) -> 1.048212801 | GZ114: =IFERROR(IF('Indexen goederen & diensten'!CA28/'Indexen goederen & diensten'!CA$27=0,NA(),'Indexen goederen & diensten'!CA28/'Indexen goederen & diensten'!CA$27),NA()) -> 1 | HA114: =IFERROR(IF('Indexen goederen & diensten'!CB28/'Indexen goederen & diensten'!CB$27=0,NA(),'Indexen goederen & diensten'!CB28/'Indexen goederen & diensten'!CB$27),NA()) -> 1.001771479 | HB114: =IFERROR(IF('Indexen goederen & diensten'!CC28/'Indexen goederen & diensten'!CC$27=0,NA(),'Indexen goederen & diensten'!CC28/'Indexen goederen & diensten'!CC$27),NA()) -> 1.010110294 | HC114: =IFERROR(IF('Indexen goederen & diensten'!CD28/'Indexen goederen & diensten'!CD$27=0,NA(),'Indexen goederen & diensten'!CD28/'Indexen goederen & diensten'!CD$27),NA()) -> 1.00199005 | HD114: =IFERROR(IF('Indexen goederen & diensten'!CE28/'Indexen goederen & diensten'!CE$27=0,NA(),'Indexen goederen & diensten'!CE28/'Indexen goederen & diensten'!CE$27),NA()) -> 1.001755926 | HE114: =IFERROR(IF('Indexen goederen & diensten'!CF28/'Indexen goederen & diensten'!CF$27=0,NA(),'Indexen goederen & diensten'!CF28/'Indexen goederen & diensten'!CF$27),NA()) -> 1 | HF114: =IFERROR(IF('Indexen goederen & diensten'!CG28/'Indexen goederen & diensten'!CG$27=0,NA(),'Indexen goederen & diensten'!CG28/'Indexen goederen & diensten'!CG$27),NA()) -> 1.000888889 | HG114: =IFERROR(IF('Indexen goederen & diensten'!CH28/'Indexen goederen & diensten'!CH$27=0,NA(),'Indexen goederen & diensten'!CH28/'Indexen goederen & diensten'!CH$27),NA()) -> 1.00292113 | HH114: =IFERROR(IF('Indexen goederen & diensten'!CI28/'Indexen goederen & diensten'!CI$27=0,NA(),'Indexen goederen & diensten'!CI28/'Indexen goederen & diensten'!CI$27),NA()) -> 1.003157895 | HI114: =IFERROR(IF('Indexen goederen & diensten'!CJ28/'Indexen goederen & diensten'!CJ$27=0,NA(),'Indexen goederen & diensten'!CJ28/'Indexen goederen & diensten'!CJ$27),NA()) -> 0.9918276374 | HJ114: =IFERROR(IF('Indexen goederen & diensten'!CK28/'Indexen goederen & diensten'!CK$27=0,NA(),'Indexen goederen & diensten'!CK28/'Indexen goederen & diensten'!CK$27),NA()) -> 0.9887955182 | HK114: =IFERROR(IF('Indexen goederen & diensten'!CL28/'Indexen goederen & diensten'!CL$27=0,NA(),'Indexen goederen & diensten'!CL28/'Indexen goederen & diensten'!CL$27),NA()) -> 1.002923977 | HL114: =IFERROR(IF('Indexen goederen & diensten'!CM28/'Indexen goederen & diensten'!CM$27=0,NA(),'Indexen goederen & diensten'!CM28/'Indexen goederen & diensten'!CM$27),NA()) -> 1.00090009 | HN114: =Tableau21[[#This Row],[datum]] -> 2018-02-01 | HO114: =IFERROR(IF(Standaardindexen!L27/Standaardindexen!L$26=0,NA(),Standaardindexen!L27/Standaardindexen!L$26),NA()) -> 1.000353994 | HP114: =IFERROR(IF(Standaardindexen!M27/Standaardindexen!M$26=0,NA(),Standaardindexen!M27/Standaardindexen!M$26),NA()) -> 1.00031295 | HQ114: =IFERROR(IF(Standaardindexen!N27/Standaardindexen!N$26=0,NA(),Standaardindexen!N27/Standaardindexen!N$26),NA()) -> 1.000344299 | HR114: =IFERROR(IF(Standaardindexen!O27/Standaardindexen!O$26=0,NA(),Standaardindexen!O27/Standaardindexen!O$26),NA()) -> 1.000354359 | HS114: =IFERROR(IF(Standaardindexen!P27/Standaardindexen!P$26=0,NA(),Standaardindexen!P27/Standaardindexen!P$26),NA()) -> 1.000313264 | HT114: =IFERROR(IF(Standaardindexen!Q27/Standaardindexen!Q$26=0,NA(),Standaardindexen!Q27/Standaardindexen!Q$26),NA()) -> 1.000344644 | HU114: =IFERROR(IF(Standaardindexen!R27/Standaardindexen!R$26=0,NA(),Standaardindexen!R27/Standaardindexen!R$26),NA()) -> 1.000361973 | HV114: =IFERROR(IF(Standaardindexen!S27/Standaardindexen!S$26=0,NA(),Standaardindexen!S27/Standaardindexen!S$26),NA()) -> 1.000319806 | HW114: =IFERROR(IF(Standaardindexen!T27/Standaardindexen!T$26=0,NA(),Standaardindexen!T27/Standaardindexen!T$26),NA()) -> 1.000351842 | HX114: =IFERROR(IF(Standaardindexen!U27/Standaardindexen!U$26=0,NA(),Standaardindexen!U27/Standaardindexen!U$26),NA()) -> 1.000367955 | HY114: =IFERROR(IF(Standaardindexen!V27/Standaardindexen!V$26=0,NA(),Standaardindexen!V27/Standaardindexen!V$26),NA()) -> 1.000357433 | HZ114: =IFERROR(IF(Standaardindexen!W27/Standaardindexen!W$26=0,NA(),Standaardindexen!W27/Standaardindexen!W$26),NA()) -> 1.000357491 | IA114: =IFERROR(IF(Standaardindexen!X27/Standaardindexen!X$26=0,NA(),Standaardindexen!X27/Standaardindexen!X$26),NA()) -> 1.000795355 | IB114: =IFERROR(IF(Standaardindexen!Y27/Standaardindexen!Y$26=0,NA(),Standaardindexen!Y27/Standaardindexen!Y$26),NA()) -> 1.000747737 | IC114: =Tableau21[[#This Row],[prijsevolutie - volgens prijsherzieningsformule -index i 2021]] -> 1 | ID114: =Tableau21[[#This Row],[prijsevolutie - volgens prijsherzieningsformule -index i]] -> 1 | IE114: =Tableau21[[#This Row],[prijsherzieningsformule - index i 2021]] -> 1 | IF114: =Tableau21[[#This Row],[prijsherzieningsformule - index i]] -> 1 | IG114: =IFERROR(IF('Indexeringen Lonen per PC'!E52/'Indexeringen Lonen per PC'!E$51=0,NA(),'Indexeringen Lonen per PC'!E52/'Indexeringen Lonen per PC'!E$51),NA()) -> 1 | IH114: =IFERROR(IF('Indexeringen Lonen per PC'!F52/'Indexeringen Lonen per PC'!F$51=0,NA(),'Indexeringen Lonen per PC'!F52/'Indexeringen Lonen per PC'!F$51),NA()) -> 1 | II114: =IFERROR(IF('Indexeringen Lonen per PC'!G52/'Indexeringen Lonen per PC'!G$51=0,NA(),'Indexeringen Lonen per PC'!G52/'Indexeringen Lonen per PC'!G$51),NA()) -> 1 | IJ114: =IFERROR(IF('Indexeringen Lonen per PC'!H52/'Indexeringen Lonen per PC'!H$51=0,NA(),'Indexeringen Lonen per PC'!H52/'Indexeringen Lonen per PC'!H$51),NA()) -> 1 | IK114: =IFERROR(IF('Indexeringen Lonen per PC'!I52/'Indexeringen Lonen per PC'!I$51=0,NA(),'Indexeringen Lonen per PC'!I52/'Indexeringen Lonen per PC'!I$51),NA()) -> 1 | IL114: =IFERROR(IF('Indexeringen Lonen per PC'!J52/'Indexeringen Lonen per PC'!J$51=0,NA(),'Indexeringen Lonen per PC'!J52/'Indexeringen Lonen per PC'!J$51),NA()) -> 1 | IM114: =IFERROR(IF('Indexeringen Lonen per PC'!K52/'Indexeringen Lonen per PC'!K$51=0,NA(),'Indexeringen Lonen per PC'!K52/'Indexeringen Lonen per PC'!K$51),NA()) -> 1 | IN114: =IFERROR(IF('Indexeringen Lonen per PC'!L52/'Indexeringen Lonen per PC'!L$51=0,NA(),'Indexeringen Lonen per PC'!L52/'Indexeringen Lonen per PC'!L$51),NA()) -> 1 | IO114: =IFERROR(IF('Indexeringen Lonen per PC'!M52/'Indexeringen Lonen per PC'!M$51=0,NA(),'Indexeringen Lonen per PC'!M52/'Indexeringen Lonen per PC'!M$51),NA()) -> 1 | IP114: =IFERROR(IF('Indexeringen Lonen per PC'!T52/'Indexeringen Lonen per PC'!T$51=0,NA(),'Indexeringen Lonen per PC'!T52/'Indexeringen Lonen per PC'!T$51),NA()) -> 1 | IQ114: =IFERROR(IF('Indexeringen Lonen per PC'!U52/'Indexeringen Lonen per PC'!U$51=0,NA(),'Indexeringen Lonen per PC'!U52/'Indexeringen Lonen per PC'!U$51),NA()) -> 1 | IR114: =IFERROR(IF('Indexeringen Lonen per PC'!V52/'Indexeringen Lonen per PC'!V$51=0,NA(),'Indexeringen Lonen per PC'!V52/'Indexeringen Lonen per PC'!V$51),NA()) -> 1 | IS114: =IFERROR(IF('Indexeringen Lonen per PC'!W52/'Indexeringen Lonen per PC'!W$51=0,NA(),'Indexeringen Lonen per PC'!W52/'Indexeringen Lonen per PC'!W$51),NA()) -> 1 | IT114: =IFERROR(IF('Indexeringen Lonen per PC'!AD52/'Indexeringen Lonen per PC'!AD$51=0,NA(),'Indexeringen Lonen per PC'!AD52/'Indexeringen Lonen per PC'!AD$51),NA()) -> 1 | IU114: =IFERROR(IF('Indexeringen Lonen per PC'!AE52/'Indexeringen Lonen per PC'!AE$51=0,NA(),'Indexeringen Lonen per PC'!AE52/'Indexeringen Lonen per PC'!AE$51),NA()) -> 1 | IV114: =IFERROR(IF('Indexeringen Lonen per PC'!AF52/'Indexeringen Lonen per PC'!AF$51=0,NA(),'Indexeringen Lonen per PC'!AF52/'Indexeringen Lonen per PC'!AF$51),NA()) -> 1 | IW114: =IFERROR(IF('Indexeringen Lonen per PC'!AG52/'Indexeringen Lonen per PC'!AG$51=0,NA(),'Indexeringen Lonen per PC'!AG52/'Indexeringen Lonen per PC'!AG$51),NA()) -> 1 | IX114: =IFERROR(IF('Indexeringen Lonen per PC'!AH52/'Indexeringen Lonen per PC'!AH$51=0,NA(),'Indexeringen Lonen per PC'!AH52/'Indexeringen Lonen per PC'!AH$51),NA()) -> 1 | IY114: =IFERROR(IF('Indexeringen Lonen per PC'!AI52/'Indexeringen Lonen per PC'!AI$51=0,NA(),'Indexeringen Lonen per PC'!AI52/'Indexeringen Lonen per PC'!AI$51),NA()) -> 1 | IZ114: =IFERROR(IF('Indexeringen Lonen per PC'!AP52/'Indexeringen Lonen per PC'!AP$51=0,NA(),'Indexeringen Lonen per PC'!AP52/'Indexeringen Lonen per PC'!AP$51),NA()) -> 1 | JA114: =IFERROR(IF('Indexeringen Lonen per PC'!AW52/'Indexeringen Lonen per PC'!AW$51=0,NA(),'Indexeringen Lonen per PC'!AW52/'Indexeringen Lonen per PC'!AW$51),NA()) -> 1 | JB114: =IFERROR(IF('Indexeringen Lonen per PC'!AX52/'Indexeringen Lonen per PC'!AX$51=0,NA(),'Indexeringen Lonen per PC'!AX52/'Indexeringen Lonen per PC'!AX$51),NA()) -> 1 | JC114: =IFERROR(IF('Indexeringen Lonen per PC'!AY52/'Indexeringen Lonen per PC'!AY$51=0,NA(),'Indexeringen Lonen per PC'!AY52/'Indexeringen Lonen per PC'!AY$51),NA()) -> 1 | JD114: =IFERROR(IF('Indexeringen Lonen per PC'!AZ52/'Indexeringen Lonen per PC'!AZ$51=0,NA(),'Indexeringen Lonen per PC'!AZ52/'Indexeringen Lonen per PC'!AZ$51),NA()) -> 1 | JE114: =IFERROR(IF('Indexeringen Lonen per PC'!BA52/'Indexeringen Lonen per PC'!BA$51=0,NA(),'Indexeringen Lonen per PC'!BA52/'Indexeringen Lonen per PC'!BA$51),NA()) -> 1 | JF114: =IFERROR(IF('Indexeringen Lonen per PC'!BB52/'Indexeringen Lonen per PC'!BB$51=0,NA(),'Indexeringen Lonen per PC'!BB52/'Indexeringen Lonen per PC'!BB$51),NA()) -> 1 | JG114: =IFERROR(IF('Indexeringen Lonen per PC'!BC52/'Indexeringen Lonen per PC'!BC$51=0,NA(),'Indexeringen Lonen per PC'!BC52/'Indexeringen Lonen per PC'!BC$51),NA()) -> 1 | JH114: =IFERROR(IF('Indexeringen Lonen per PC'!BD52/'Indexeringen Lonen per PC'!BD$51=0,NA(),'Indexeringen Lonen per PC'!BD52/'Indexeringen Lonen per PC'!BD$51),NA()) -> 1 | JI114: =IFERROR(IF('Indexeringen Lonen per PC'!BK52/'Indexeringen Lonen per PC'!BK$51=0,NA(),'Indexeringen Lonen per PC'!BK52/'Indexeringen Lonen per PC'!BK$51),NA()) -> 1 | JJ114: =IFERROR(IF('Indexeringen Lonen per PC'!BR52/'Indexeringen Lonen per PC'!BR$51=0,NA(),'Indexeringen Lonen per PC'!BR52/'Indexeringen Lonen per PC'!BR$51),NA()) -> 1 | JK114: =IFERROR(IF('Indexeringen Lonen per PC'!BS52/'Indexeringen Lonen per PC'!BS$51=0,NA(),'Indexeringen Lonen per PC'!BS52/'Indexeringen Lonen per PC'!BS$51),NA()) -> 1 | JL114: =IFERROR(IF('Indexeringen Lonen per PC'!BT52/'Indexeringen Lonen per PC'!BT$51=0,NA(),'Indexeringen Lonen per PC'!BT52/'Indexeringen Lonen per PC'!BT$51),NA()) -> 1 | JM114: =IFERROR(IF('Indexeringen Lonen per PC'!BU52/'Indexeringen Lonen per PC'!BU$51=0,NA(),'Indexeringen Lonen per PC'!BU52/'Indexeringen Lonen per PC'!BU$51),NA()) -> 1 | JN114: =IFERROR(IF('Indexeringen Lonen per PC'!BV52/'Indexeringen Lonen per PC'!BV$51=0,NA(),'Indexeringen Lonen per PC'!BV52/'Indexeringen Lonen per PC'!BV$51),NA()) -> 1 | JO114: =IFERROR(IF('Indexeringen Lonen per PC'!BW52/'Indexeringen Lonen per PC'!BW$51=0,NA(),'Indexeringen Lonen per PC'!BW52/'Indexeringen Lonen per PC'!BW$51),NA()) -> 1 | JP114: =IFERROR(IF('Indexeringen Lonen per PC'!BX52/'Indexeringen Lonen per PC'!BX$51=0,NA(),'Indexeringen Lonen per PC'!BX52/'Indexeringen Lonen per PC'!BX$51),NA()) -> 1 | JQ114: =IFERROR(IF('Indexeringen Lonen per PC'!BY52/'Indexeringen Lonen per PC'!BY$51=0,NA(),'Indexeringen Lonen per PC'!BY52/'Indexeringen Lonen per PC'!BY$51),NA()) -> 1 | JR114: =IFERROR(IF('Indexeringen Lonen per PC'!BZ52/'Indexeringen Lonen per PC'!BZ$51=0,NA(),'Indexeringen Lonen per PC'!BZ52/'Indexeringen Lonen per PC'!BZ$51),NA()) -> 1 | JS114: =IFERROR(IF('Indexeringen Lonen per PC'!CA52/'Indexeringen Lonen per PC'!CA$51=0,NA(),'Indexeringen Lonen per PC'!CA52/'Indexeringen Lonen per PC'!CA$51),NA()) -> 1 | JT114: =IFERROR(IF('Indexeringen Lonen per PC'!CB52/'Indexeringen Lonen per PC'!CB$51=0,NA(),'Indexeringen Lonen per PC'!CB52/'Indexeringen Lonen per PC'!CB$51),NA()) -> 1 | JU114: =IFERROR(IF('Indexeringen Lonen per PC'!CC52/'Indexeringen Lonen per PC'!CC$51=0,NA(),'Indexeringen Lonen per PC'!CC52/'Indexeringen Lonen per PC'!CC$51),NA()) -> 1 | JV114: =IFERROR(IF('Indexeringen Lonen per PC'!CD52/'Indexeringen Lonen per PC'!CD$51=0,NA(),'Indexeringen Lonen per PC'!CD52/'Indexeringen Lonen per PC'!CD$51),NA()) -> 1 | JW114: =IFERROR(IF('Indexeringen Lonen per PC'!CE52/'Indexeringen Lonen per PC'!CE$51=0,NA(),'Indexeringen Lonen per PC'!CE52/'Indexeringen Lonen per PC'!CE$51),NA()) -> 1 | JX114: =IFERROR(IF('Indexeringen Lonen per PC'!CF52/'Indexeringen Lonen per PC'!CF$51=0,NA(),'Indexeringen Lonen per PC'!CF52/'Indexeringen Lonen per PC'!CF$51),NA()) -> 1 | JY114: =IFERROR(IF('Indexeringen Lonen per PC'!CG52/'Indexeringen Lonen per PC'!CG$51=0,NA(),'Indexeringen Lonen per PC'!CG52/'Indexeringen Lonen per PC'!CG$51),NA()) -> 1 | JZ114: =IFERROR(IF('Indexeringen Lonen per PC'!CH52/'Indexeringen Lonen per PC'!CH$51=0,NA(),'Indexeringen Lonen per PC'!CH52/'Indexeringen Lonen per PC'!CH$51),NA()) -> 1 | KA114: =IFERROR(IF('Indexeringen Lonen per PC'!CI52/'Indexeringen Lonen per PC'!CI$51=0,NA(),'Indexeringen Lonen per PC'!CI52/'Indexeringen Lonen per PC'!CI$51),NA()) -> 1 | KB114: =IFERROR(IF('Indexeringen Lonen per PC'!CJ52/'Indexeringen Lonen per PC'!CJ$51=0,NA(),'Indexeringen Lonen per PC'!CJ52/'Indexeringen Lonen per PC'!CJ$51),NA()) -> 1 | KC114: =IFERROR(IF('Indexeringen Lonen per PC'!CQ52/'Indexeringen Lonen per PC'!CQ$51=0,NA(),'Indexeringen Lonen per PC'!CQ52/'Indexeringen Lonen per PC'!CQ$51),NA()) -> 1 | KD114: =IFERROR(IF('Indexeringen Lonen per PC'!CR52/'Indexeringen Lonen per PC'!CR$51=0,NA(),'Indexeringen Lonen per PC'!CR52/'Indexeringen Lonen per PC'!CR$51),NA()) -> 1 | KE114: =IFERROR(IF('Indexeringen Lonen per PC'!CS52/'Indexeringen Lonen per PC'!CS$51=0,NA(),'Indexeringen Lonen per PC'!CS52/'Indexeringen Lonen per PC'!CS$51),NA()) -> 1 | KF114: =IFERROR(IF('Indexeringen Lonen per PC'!CT52/'Indexeringen Lonen per PC'!CT$51=0,NA(),'Indexeringen Lonen per PC'!CT52/'Indexeringen Lonen per PC'!CT$51),NA()) -> 1 | KG114: =IFERROR(IF('Indexeringen Lonen per PC'!CU52/'Indexeringen Lonen per PC'!CU$51=0,NA(),'Indexeringen Lonen per PC'!CU52/'Indexeringen Lonen per PC'!CU$51),NA()) -> 1 | KH114: =IFERROR(IF('Indexeringen Lonen per PC'!DB52/'Indexeringen Lonen per PC'!DB$51=0,NA(),'Indexeringen Lonen per PC'!DB52/'Indexeringen Lonen per PC'!DB$51),NA()) -> 1 | KI114: =IFERROR(IF('Indexeringen Lonen per PC'!DC52/'Indexeringen Lonen per PC'!DC$51=0,NA(),'Indexeringen Lonen per PC'!DC52/'Indexeringen Lonen per PC'!DC$51),NA()) -> 1 | KJ114: =IFERROR(IF('Indexeringen Lonen per PC'!DD52/'Indexeringen Lonen per PC'!DD$51=0,NA(),'Indexeringen Lonen per PC'!DD52/'Indexeringen Lonen per PC'!DD$51),NA()) -> 1 | KK114: =IFERROR(IF('Indexeringen Lonen per PC'!DE52/'Indexeringen Lonen per PC'!DE$51=0,NA(),'Indexeringen Lonen per PC'!DE52/'Indexeringen Lonen per PC'!DE$51),NA()) -> 1 | KL114: =IFERROR(IF('Indexeringen Lonen per PC'!DL52/'Indexeringen Lonen per PC'!DL$51=0,NA(),'Indexeringen Lonen per PC'!DL52/'Indexeringen Lonen per PC'!DL$51),NA()) -> 1 | KM114: =IFERROR(IF('Indexeringen Lonen per PC'!DM52/'Indexeringen Lonen per PC'!DM$51=0,NA(),'Indexeringen Lonen per PC'!DM52/'Indexeringen Lonen per PC'!DM$51),NA()) -> 1 | KN114: =IFERROR(IF('Indexeringen Lonen per PC'!DN52/'Indexeringen Lonen per PC'!DN$51=0,NA(),'Indexeringen Lonen per PC'!DN52/'Indexeringen Lonen per PC'!DN$51),NA()) -> 1 | KO114: =IFERROR(IF('Indexeringen Lonen per PC'!DO52/'Indexeringen Lonen per PC'!DO$51=0,NA(),'Indexeringen Lonen per PC'!DO52/'Indexeringen Lonen per PC'!DO$51),NA()) -> 1 | KP114: =IFERROR(IF('Indexeringen Lonen per PC'!DP52/'Indexeringen Lonen per PC'!DP$51=0,NA(),'Indexeringen Lonen per PC'!DP52/'Indexeringen Lonen per PC'!DP$51),NA()) -> 1 | KQ114: =IFERROR(IF('Indexeringen Lonen per PC'!DQ52/'Indexeringen Lonen per PC'!DQ$51=0,NA(),'Indexeringen Lonen per PC'!DQ52/'Indexeringen Lonen per PC'!DQ$51),NA()) -> 1 | KR114: =IFERROR(IF('Indexeringen Lonen per PC'!DR52/'Indexeringen Lonen per PC'!DR$51=0,NA(),'Indexeringen Lonen per PC'!DR52/'Indexeringen Lonen per PC'!DR$51),NA()) -> 1 | KS114: =IFERROR(IF('Indexeringen Lonen per PC'!DS52/'Indexeringen Lonen per PC'!DS$51=0,NA(),'Indexeringen Lonen per PC'!DS52/'Indexeringen Lonen per PC'!DS$51),NA()) -> 1 | KT114: =IFERROR(IF('Indexeringen Lonen per PC'!DT52/'Indexeringen Lonen per PC'!DT$51=0,NA(),'Indexeringen Lonen per PC'!DT52/'Indexeringen Lonen per PC'!DT$51),NA()) -> 1 | KU114: =IFERROR(IF('Indexeringen Lonen per PC'!DU52/'Indexeringen Lonen per PC'!DU$51=0,NA(),'Indexeringen Lonen per PC'!DU52/'Indexeringen Lonen per PC'!DU$51),NA()) -> 1 | KV114: =IFERROR(IF('Indexeringen Lonen per PC'!DV52/'Indexeringen Lonen per PC'!DV$51=0,NA(),'Indexeringen Lonen per PC'!DV52/'Indexeringen Lonen per PC'!DV$51),NA()) -> 1 | KW114: =IFERROR(IF('Indexeringen Lonen per PC'!DW52/'Indexeringen Lonen per PC'!DW$51=0,NA(),'Indexeringen Lonen per PC'!DW52/'Indexeringen Lonen per PC'!DW$51),NA()) -> 1 | KX114: =IFERROR(IF('Indexeringen Lonen per PC'!DX52/'Indexeringen Lonen per PC'!DX$51=0,NA(),'Indexeringen Lonen per PC'!DX52/'Indexeringen Lonen per PC'!DX$51),NA()) -> 1
B115: =Tableau41326[[#This Row],[periode]] -> 2018-03-01 | C115: =IFERROR(IF(Standaardindexen!F28/Standaardindexen!F$26=0,NA(),Standaardindexen!F28/Standaardindexen!F$26),NA()) -> 0.9902271862 | D115: =IFERROR(IF(Standaardindexen!G28/Standaardindexen!G$26=0,NA(),Standaardindexen!G28/Standaardindexen!G$26),NA()) -> 1.010853835 | E115: =IFERROR(IF(Standaardindexen!H28/Standaardindexen!H$26=0,NA(),Standaardindexen!H28/Standaardindexen!H$26),NA()) -> 0.9915201005 | F115: =IFERROR(IF(Standaardindexen!I28/Standaardindexen!I$26=0,NA(),Standaardindexen!I28/Standaardindexen!I$26),NA()) -> 0.992338339 | G115: =IFERROR(IF(Standaardindexen!J28/Standaardindexen!J$26=0,NA(),Standaardindexen!J28/Standaardindexen!J$26),NA()) -> 0.9829163855 | H115: =IFERROR(IF(Standaardindexen!K28/Standaardindexen!K$26=0,NA(),Standaardindexen!K28/Standaardindexen!K$26),NA()) -> 1.014556608 | I115: =IF(Standaardindexen!G27=0,NA(),IF(Standaardindexen!L28=0,NA(),IFERROR(ROUND(((StandaardPrijsherzieningformule!$E$33*(Standaardindexen!G27/Standaardindexen!G26)+StandaardPrijsherzieningformule!$E$25*(Standaardindexen!L28/Standaardindexen!L27)+StandaardPrijsherzieningformule!$E$39)*I114),5),NA()))) -> 1.00385 | J115: =IF(Standaardindexen!F27=0,NA(),IF(Standaardindexen!L28=0,NA(),IFERROR(ROUND((((StandaardPrijsherzieningformule!$E$33*(Standaardindexen!F27/Standaardindexen!F26)+StandaardPrijsherzieningformule!$E$25*(Standaardindexen!L28/Standaardindexen!L27)+StandaardPrijsherzieningformule!$E$39))*J114),5),NA()))) -> 1.00071 | K115: =IF(Standaardindexen!G27=0,NA(),IF(Standaardindexen!L28=0,NA(),IFERROR(ROUND(((StandaardPrijsherzieningformule!$E$33*(Standaardindexen!G27/Standaardindexen!G26)+StandaardPrijsherzieningformule!$E$25*(Standaardindexen!L28/Standaardindexen!L27)+StandaardPrijsherzieningformule!$E$39)),5),NA()))) -> 1.00385 | L115: =IF(Standaardindexen!F27=0,NA(),IF(Standaardindexen!L28=0,NA(),IFERROR(ROUND((((StandaardPrijsherzieningformule!$E$33*(Standaardindexen!F27/Standaardindexen!F26)+StandaardPrijsherzieningformule!$E$25*(Standaardindexen!L28/Standaardindexen!L27)+StandaardPrijsherzieningformule!$E$39))),5),NA()))) -> 1.00071 | M115: =IFERROR(IF('Materiaalindexen o.w.'!C35/'Materiaalindexen o.w.'!C$33=0,NA(),'Materiaalindexen o.w.'!C35/'Materiaalindexen o.w.'!C$33),NA()) -> 1 | N115: =IFERROR(IF('Materiaalindexen o.w.'!D35/'Materiaalindexen o.w.'!D$33=0,NA(),'Materiaalindexen o.w.'!D35/'Materiaalindexen o.w.'!D$33),NA()) -> 1 | O115: =IFERROR(IF('Materiaalindexen o.w.'!E35/'Materiaalindexen o.w.'!E$33=0,NA(),'Materiaalindexen o.w.'!E35/'Materiaalindexen o.w.'!E$33),NA()) -> 1 | P115: =IFERROR(IF('Materiaalindexen o.w.'!F35/'Materiaalindexen o.w.'!F$33=0,NA(),'Materiaalindexen o.w.'!F35/'Materiaalindexen o.w.'!F$33),NA()) -> 1 | Q115: =IFERROR(IF('Materiaalindexen o.w.'!G35/'Materiaalindexen o.w.'!G$33=0,NA(),'Materiaalindexen o.w.'!G35/'Materiaalindexen o.w.'!G$33),NA()) -> 1 | R115: =IFERROR(IF('Materiaalindexen o.w.'!H35/'Materiaalindexen o.w.'!H$33=0,NA(),'Materiaalindexen o.w.'!H35/'Materiaalindexen o.w.'!H$33),NA()) -> 1 | S115: =IFERROR(IF('Materiaalindexen o.w.'!I35/'Materiaalindexen o.w.'!I$33=0,NA(),'Materiaalindexen o.w.'!I35/'Materiaalindexen o.w.'!I$33),NA()) -> 1 | T115: =IFERROR(IF('Materiaalindexen o.w.'!J35/'Materiaalindexen o.w.'!J$33=0,NA(),'Materiaalindexen o.w.'!J35/'Materiaalindexen o.w.'!J$33),NA()) -> 1 | U115: =IFERROR(IF('Materiaalindexen o.w.'!K35/'Materiaalindexen o.w.'!K$33=0,NA(),'Materiaalindexen o.w.'!K35/'Materiaalindexen o.w.'!K$33),NA()) -> 1 | V115: =IFERROR(IF('Materiaalindexen o.w.'!L35/'Materiaalindexen o.w.'!L$33=0,NA(),'Materiaalindexen o.w.'!L35/'Materiaalindexen o.w.'!L$33),NA()) -> 1 | W115: =IFERROR(IF('Materiaalindexen o.w.'!M35/'Materiaalindexen o.w.'!M$33=0,NA(),'Materiaalindexen o.w.'!M35/'Materiaalindexen o.w.'!M$33),NA()) -> 1 | X115: =IFERROR(IF('Materiaalindexen o.w.'!N35/'Materiaalindexen o.w.'!N$33=0,NA(),'Materiaalindexen o.w.'!N35/'Materiaalindexen o.w.'!N$33),NA()) -> 1 | Y115: =IFERROR(IF('Materiaalindexen o.w.'!O35/'Materiaalindexen o.w.'!O$33=0,NA(),'Materiaalindexen o.w.'!O35/'Materiaalindexen o.w.'!O$33),NA()) -> 1 | Z115: =IFERROR(IF('Materiaalindexen o.w.'!P35/'Materiaalindexen o.w.'!P$33=0,NA(),'Materiaalindexen o.w.'!P35/'Materiaalindexen o.w.'!P$33),NA()) -> 1 | AA115: =IFERROR(IF('Materiaalindexen o.w.'!Q35/'Materiaalindexen o.w.'!Q$33=0,NA(),'Materiaalindexen o.w.'!Q35/'Materiaalindexen o.w.'!Q$33),NA()) -> 1 | AB115: =IFERROR(IF('Materiaalindexen o.w.'!R35/'Materiaalindexen o.w.'!R$33=0,NA(),'Materiaalindexen o.w.'!R35/'Materiaalindexen o.w.'!R$33),NA()) -> 1 | AC115: =IFERROR(IF('Materiaalindexen o.w.'!S35/'Materiaalindexen o.w.'!S$33=0,NA(),'Materiaalindexen o.w.'!S35/'Materiaalindexen o.w.'!S$33),NA()) -> 1 | AD115: =IFERROR(IF('Materiaalindexen o.w.'!T35/'Materiaalindexen o.w.'!T$33=0,NA(),'Materiaalindexen o.w.'!T35/'Materiaalindexen o.w.'!T$33),NA()) -> 1 | AE115: =IFERROR(IF('Materiaalindexen o.w.'!U35/'Materiaalindexen o.w.'!U$33=0,NA(),'Materiaalindexen o.w.'!U35/'Materiaalindexen o.w.'!U$33),NA()) -> 1 | AF115: =IFERROR(IF('Materiaalindexen o.w.'!V35/'Materiaalindexen o.w.'!V$33=0,NA(),'Materiaalindexen o.w.'!V35/'Materiaalindexen o.w.'!V$33),NA()) -> 1 | AG115: =IFERROR(IF('Materiaalindexen o.w.'!W35/'Materiaalindexen o.w.'!W$33=0,NA(),'Materiaalindexen o.w.'!W35/'Materiaalindexen o.w.'!W$33),NA()) -> 1 | AH115: =IFERROR(IF('Materiaalindexen o.w.'!X35/'Materiaalindexen o.w.'!X$33=0,NA(),'Materiaalindexen o.w.'!X35/'Materiaalindexen o.w.'!X$33),NA()) -> 1 | AI115: =IFERROR(IF('Materiaalindexen o.w.'!Y35/'Materiaalindexen o.w.'!Y$33=0,NA(),'Materiaalindexen o.w.'!Y35/'Materiaalindexen o.w.'!Y$33),NA()) -> 1 | AJ115: =IFERROR(IF('Materiaalindexen o.w.'!Z35/'Materiaalindexen o.w.'!Z$33=0,NA(),'Materiaalindexen o.w.'!Z35/'Materiaalindexen o.w.'!Z$33),NA()) -> 1 | AK115: =IFERROR(IF('Materiaalindexen o.w.'!AA35/'Materiaalindexen o.w.'!AA$33=0,NA(),'Materiaalindexen o.w.'!AA35/'Materiaalindexen o.w.'!AA$33),NA()) -> 1 | AL115: =IFERROR(IF('Materiaalindexen o.w.'!AB35/'Materiaalindexen o.w.'!AB$33=0,NA(),'Materiaalindexen o.w.'!AB35/'Materiaalindexen o.w.'!AB$33),NA()) -> 1.052301255 | AM115: =IFERROR(IF('Materiaalindexen o.w.'!AC35/'Materiaalindexen o.w.'!AC$33=0,NA(),'Materiaalindexen o.w.'!AC35/'Materiaalindexen o.w.'!AC$33),NA()) -> 1.06097561 | AN115: =IFERROR(IF('Materiaalindexen o.w.'!AD35/'Materiaalindexen o.w.'!AD$33=0,NA(),'Materiaalindexen o.w.'!AD35/'Materiaalindexen o.w.'!AD$33),NA()) -> 1.056306306 | AO115: =IFERROR(IF('Materiaalindexen o.w.'!AE35/'Materiaalindexen o.w.'!AE$33=0,NA(),'Materiaalindexen o.w.'!AE35/'Materiaalindexen o.w.'!AE$33),NA()) -> 1.060422961 | AP115: =IFERROR(IF('Materiaalindexen o.w.'!AF35/'Materiaalindexen o.w.'!AF$33=0,NA(),'Materiaalindexen o.w.'!AF35/'Materiaalindexen o.w.'!AF$33),NA()) -> 1.068540096 | AQ115: =IFERROR(IF('Materiaalindexen o.w.'!AG35/'Materiaalindexen o.w.'!AG$33=0,NA(),'Materiaalindexen o.w.'!AG35/'Materiaalindexen o.w.'!AG$33),NA()) -> 1.064226076 | AR115: =IFERROR(IF('Materiaalindexen o.w.'!AH35/'Materiaalindexen o.w.'!AH$33=0,NA(),'Materiaalindexen o.w.'!AH35/'Materiaalindexen o.w.'!AH$33),NA()) -> 1.040263543 | AS115: =IFERROR(IF('Materiaalindexen o.w.'!AI35/'Materiaalindexen o.w.'!AI$33=0,NA(),'Materiaalindexen o.w.'!AI35/'Materiaalindexen o.w.'!AI$33),NA()) -> 1.009905448 | AT115: =IFERROR(IF('Materiaalindexen o.w.'!AJ35/'Materiaalindexen o.w.'!AJ$33=0,NA(),'Materiaalindexen o.w.'!AJ35/'Materiaalindexen o.w.'!AJ$33),NA()) -> 1.009689922 | AU115: =IFERROR(IF('Materiaalindexen o.w.'!AK35/'Materiaalindexen o.w.'!AK$33=0,NA(),'Materiaalindexen o.w.'!AK35/'Materiaalindexen o.w.'!AK$33),NA()) -> 1.009689922 | AV115: =IFERROR(IF('Materiaalindexen o.w.'!AL35/'Materiaalindexen o.w.'!AL$33=0,NA(),'Materiaalindexen o.w.'!AL35/'Materiaalindexen o.w.'!AL$33),NA()) -> 1.009765317 | AW115: =IFERROR(IF('Materiaalindexen o.w.'!AM35/'Materiaalindexen o.w.'!AM$33=0,NA(),'Materiaalindexen o.w.'!AM35/'Materiaalindexen o.w.'!AM$33),NA()) -> 1.010773751 | AX115: =IFERROR(IF('Materiaalindexen o.w.'!AN35/'Materiaalindexen o.w.'!AN$33=0,NA(),'Materiaalindexen o.w.'!AN35/'Materiaalindexen o.w.'!AN$33),NA()) -> 1.011146497 | AY115: =IFERROR(IF('Materiaalindexen o.w.'!AO35/'Materiaalindexen o.w.'!AO$33=0,NA(),'Materiaalindexen o.w.'!AO35/'Materiaalindexen o.w.'!AO$33),NA()) -> 1.010952624 | AZ115: =IFERROR(IF('Materiaalindexen o.w.'!AP35/'Materiaalindexen o.w.'!AP$33=0,NA(),'Materiaalindexen o.w.'!AP35/'Materiaalindexen o.w.'!AP$33),NA()) -> 1.006169666 | BA115: =IFERROR(IF('Materiaalindexen o.w.'!AQ35/'Materiaalindexen o.w.'!AQ$33=0,NA(),'Materiaalindexen o.w.'!AQ35/'Materiaalindexen o.w.'!AQ$33),NA()) -> 1.006362672 | BB115: =IFERROR(IF('Materiaalindexen o.w.'!AR35/'Materiaalindexen o.w.'!AR$33=0,NA(),'Materiaalindexen o.w.'!AR35/'Materiaalindexen o.w.'!AR$33),NA()) -> 1.006386376 | BC115: =IFERROR(IF('Materiaalindexen o.w.'!AS35/'Materiaalindexen o.w.'!AS$33=0,NA(),'Materiaalindexen o.w.'!AS35/'Materiaalindexen o.w.'!AS$33),NA()) -> 1.006304729 | BD115: =IFERROR(IF('Materiaalindexen o.w.'!AT35/'Materiaalindexen o.w.'!AT$33=0,NA(),'Materiaalindexen o.w.'!AT35/'Materiaalindexen o.w.'!AT$33),NA()) -> 1.008153757 | BE115: =IFERROR(IF('Materiaalindexen o.w.'!AU35/'Materiaalindexen o.w.'!AU$33=0,NA(),'Materiaalindexen o.w.'!AU35/'Materiaalindexen o.w.'!AU$33),NA()) -> 0.9981230527 | BF115: =IFERROR(IF('Materiaalindexen o.w.'!AV35/'Materiaalindexen o.w.'!AV$33=0,NA(),'Materiaalindexen o.w.'!AV35/'Materiaalindexen o.w.'!AV$33),NA()) -> 0.9986100171 | BG115: =IFERROR(IF('Materiaalindexen o.w.'!AW35/'Materiaalindexen o.w.'!AW$33=0,NA(),'Materiaalindexen o.w.'!AW35/'Materiaalindexen o.w.'!AW$33),NA()) -> 0.9984028281 | BH115: =IFERROR(IF('Materiaalindexen o.w.'!AX35/'Materiaalindexen o.w.'!AX$33=0,NA(),'Materiaalindexen o.w.'!AX35/'Materiaalindexen o.w.'!AX$33),NA()) -> 1.029268293 | BI115: =IFERROR(IF('Materiaalindexen o.w.'!AY35/'Materiaalindexen o.w.'!AY$33=0,NA(),'Materiaalindexen o.w.'!AY35/'Materiaalindexen o.w.'!AY$33),NA()) -> 1.02921069 | BJ115: =IFERROR(IF('Materiaalindexen o.w.'!AZ35/'Materiaalindexen o.w.'!AZ$33=0,NA(),'Materiaalindexen o.w.'!AZ35/'Materiaalindexen o.w.'!AZ$33),NA()) -> 1.029265255 | BK115: =IFERROR(IF('Materiaalindexen o.w.'!BA35/'Materiaalindexen o.w.'!BA$33=0,NA(),'Materiaalindexen o.w.'!BA35/'Materiaalindexen o.w.'!BA$33),NA()) -> 1.029248198 | BL115: =IFERROR(IF('Materiaalindexen o.w.'!BB35/'Materiaalindexen o.w.'!BB$33=0,NA(),'Materiaalindexen o.w.'!BB35/'Materiaalindexen o.w.'!BB$33),NA()) -> 1.014773306 | BM115: =IFERROR(IF('Materiaalindexen o.w.'!BC35/'Materiaalindexen o.w.'!BC$33=0,NA(),'Materiaalindexen o.w.'!BC35/'Materiaalindexen o.w.'!BC$33),NA()) -> 1.008653846 | BN115: =IFERROR(IF('Materiaalindexen o.w.'!BD35/'Materiaalindexen o.w.'!BD$33=0,NA(),'Materiaalindexen o.w.'!BD35/'Materiaalindexen o.w.'!BD$33),NA()) -> 1.020477816 | BO115: =IFERROR(IF('Materiaalindexen o.w.'!BE35/'Materiaalindexen o.w.'!BE$33=0,NA(),'Materiaalindexen o.w.'!BE35/'Materiaalindexen o.w.'!BE$33),NA()) -> 0.9168652794 | BP115: =IFERROR(IF('Materiaalindexen o.w.'!BF35/'Materiaalindexen o.w.'!BF$33=0,NA(),'Materiaalindexen o.w.'!BF35/'Materiaalindexen o.w.'!BF$33),NA()) -> 0.9489967949 | BQ115: =IFERROR(IF('Materiaalindexen o.w.'!BG35/'Materiaalindexen o.w.'!BG$33=0,NA(),'Materiaalindexen o.w.'!BG35/'Materiaalindexen o.w.'!BG$33),NA()) -> 0.9416167665 | BR115: =IFERROR(IF('Materiaalindexen o.w.'!BH35/'Materiaalindexen o.w.'!BH$33=0,NA(),'Materiaalindexen o.w.'!BH35/'Materiaalindexen o.w.'!BH$33),NA()) -> 1 | BS115: =IFERROR(IF('Materiaalindexen o.w.'!BI35/'Materiaalindexen o.w.'!BI$33=0,NA(),'Materiaalindexen o.w.'!BI35/'Materiaalindexen o.w.'!BI$33),NA()) -> 0.9864498645 | BT115: =IFERROR(IF('Materiaalindexen o.w.'!BJ35/'Materiaalindexen o.w.'!BJ$33=0,NA(),'Materiaalindexen o.w.'!BJ35/'Materiaalindexen o.w.'!BJ$33),NA()) -> 1.016731017 | BU115: =IFERROR(IF('Materiaalindexen o.w.'!BK35/'Materiaalindexen o.w.'!BK$33=0,NA(),'Materiaalindexen o.w.'!BK35/'Materiaalindexen o.w.'!BK$33),NA()) -> 1.006980803 | BV115: =IFERROR(IF('Materiaalindexen o.w.'!BL35/'Materiaalindexen o.w.'!BL$33=0,NA(),'Materiaalindexen o.w.'!BL35/'Materiaalindexen o.w.'!BL$33),NA()) -> 0.9969879518 | BW115: =IFERROR(IF('Materiaalindexen o.w.'!BM35/'Materiaalindexen o.w.'!BM$33=0,NA(),'Materiaalindexen o.w.'!BM35/'Materiaalindexen o.w.'!BM$33),NA()) -> 1.013597033 | BX115: =IFERROR(IF('Materiaalindexen o.w.'!BN35/'Materiaalindexen o.w.'!BN$33=0,NA(),'Materiaalindexen o.w.'!BN35/'Materiaalindexen o.w.'!BN$33),NA()) -> 1.00610998 | BY115: =IFERROR(IF('Materiaalindexen o.w.'!BO35/'Materiaalindexen o.w.'!BO$33=0,NA(),'Materiaalindexen o.w.'!BO35/'Materiaalindexen o.w.'!BO$33),NA()) -> 0.9606299213 | BZ115: =IFERROR(IF('Materiaalindexen o.w.'!BP35/'Materiaalindexen o.w.'!BP$33=0,NA(),'Materiaalindexen o.w.'!BP35/'Materiaalindexen o.w.'!BP$33),NA()) -> 0.9967320261 | CA115: =IFERROR(IF('Materiaalindexen o.w.'!BQ35/'Materiaalindexen o.w.'!BQ$33=0,NA(),'Materiaalindexen o.w.'!BQ35/'Materiaalindexen o.w.'!BQ$33),NA()) -> 1 | CB115: =IFERROR(IF('Materiaalindexen o.w.'!BR35/'Materiaalindexen o.w.'!BR$33=0,NA(),'Materiaalindexen o.w.'!BR35/'Materiaalindexen o.w.'!BR$33),NA()) -> 1 | CC115: =IFERROR(IF('Materiaalindexen o.w.'!BS35/'Materiaalindexen o.w.'!BS$33=0,NA(),'Materiaalindexen o.w.'!BS35/'Materiaalindexen o.w.'!BS$33),NA()) -> 1 | CD115: =IFERROR(IF('Materiaalindexen o.w.'!BT35/'Materiaalindexen o.w.'!BT$33=0,NA(),'Materiaalindexen o.w.'!BT35/'Materiaalindexen o.w.'!BT$33),NA()) -> 1 | CE115: =IFERROR(IF('Materiaalindexen o.w.'!BU35/'Materiaalindexen o.w.'!BU$33=0,NA(),'Materiaalindexen o.w.'!BU35/'Materiaalindexen o.w.'!BU$33),NA()) -> 1 | CF115: =IFERROR(IF('Materiaalindexen o.w.'!BV35/'Materiaalindexen o.w.'!BV$33=0,NA(),'Materiaalindexen o.w.'!BV35/'Materiaalindexen o.w.'!BV$33),NA()) -> 1 | CG115: =IFERROR(IF('Materiaalindexen o.w.'!BW35/'Materiaalindexen o.w.'!BW$33=0,NA(),'Materiaalindexen o.w.'!BW35/'Materiaalindexen o.w.'!BW$33),NA()) -> 0.9833871274 | CH115: =IFERROR(IF('Materiaalindexen o.w.'!BX35/'Materiaalindexen o.w.'!BX$33=0,NA(),'Materiaalindexen o.w.'!BX35/'Materiaalindexen o.w.'!BX$33),NA()) -> 0.9834857498 | CI115: =IFERROR(IF('Materiaalindexen o.w.'!BY35/'Materiaalindexen o.w.'!BY$33=0,NA(),'Materiaalindexen o.w.'!BY35/'Materiaalindexen o.w.'!BY$33),NA()) -> 0.9834643755 | CJ115: =IFERROR(IF('Materiaalindexen o.w.'!BZ35/'Materiaalindexen o.w.'!BZ$33=0,NA(),'Materiaalindexen o.w.'!BZ35/'Materiaalindexen o.w.'!BZ$33),NA()) -> 0.9834276807 | CK115: =IFERROR(IF('Materiaalindexen o.w.'!CA35/'Materiaalindexen o.w.'!CA$33=0,NA(),'Materiaalindexen o.w.'!CA35/'Materiaalindexen o.w.'!CA$33),NA()) -> 0.9834423505 | CL115: =IFERROR(IF('Materiaalindexen o.w.'!CB35/'Materiaalindexen o.w.'!CB$33=0,NA(),'Materiaalindexen o.w.'!CB35/'Materiaalindexen o.w.'!CB$33),NA()) -> 1 | CM115: =IFERROR(IF('Materiaalindexen o.w.'!CC35/'Materiaalindexen o.w.'!CC$33=0,NA(),'Materiaalindexen o.w.'!CC35/'Materiaalindexen o.w.'!CC$33),NA()) -> 1 | CN115: =IFERROR(IF('Materiaalindexen o.w.'!CD35/'Materiaalindexen o.w.'!CD$33=0,NA(),'Materiaalindexen o.w.'!CD35/'Materiaalindexen o.w.'!CD$33),NA()) -> 1 | CO115: =IFERROR(IF('Materiaalindexen o.w.'!CE35/'Materiaalindexen o.w.'!CE$33=0,NA(),'Materiaalindexen o.w.'!CE35/'Materiaalindexen o.w.'!CE$33),NA()) -> 1 | CP115: =IFERROR(IF('Materiaalindexen o.w.'!CF35/'Materiaalindexen o.w.'!CF$33=0,NA(),'Materiaalindexen o.w.'!CF35/'Materiaalindexen o.w.'!CF$33),NA()) -> 1 | CQ115: =IFERROR(IF('Materiaalindexen o.w.'!CG35/'Materiaalindexen o.w.'!CG$33=0,NA(),'Materiaalindexen o.w.'!CG35/'Materiaalindexen o.w.'!CG$33),NA()) -> 1 | CR115: =IFERROR(IF('Materiaalindexen o.w.'!CH35/'Materiaalindexen o.w.'!CH$33=0,NA(),'Materiaalindexen o.w.'!CH35/'Materiaalindexen o.w.'!CH$33),NA()) -> 1 | CS115: =IFERROR(IF('Materiaalindexen o.w.'!CI35/'Materiaalindexen o.w.'!CI$33=0,NA(),'Materiaalindexen o.w.'!CI35/'Materiaalindexen o.w.'!CI$33),NA()) -> 1 | CT115: =IFERROR(IF('Materiaalindexen o.w.'!CJ35/'Materiaalindexen o.w.'!CJ$33=0,NA(),'Materiaalindexen o.w.'!CJ35/'Materiaalindexen o.w.'!CJ$33),NA()) -> 1 | CU115: =IFERROR(IF('Materiaalindexen o.w.'!CK35/'Materiaalindexen o.w.'!CK$33=0,NA(),'Materiaalindexen o.w.'!CK35/'Materiaalindexen o.w.'!CK$33),NA()) -> 1.001353442 | CV115: =IFERROR(IF('Materiaalindexen o.w.'!CL35/'Materiaalindexen o.w.'!CL$33=0,NA(),'Materiaalindexen o.w.'!CL35/'Materiaalindexen o.w.'!CL$33),NA()) -> 1.001360544 | CW115: =IFERROR(IF('Materiaalindexen o.w.'!CM35/'Materiaalindexen o.w.'!CM$33=0,NA(),'Materiaalindexen o.w.'!CM35/'Materiaalindexen o.w.'!CM$33),NA()) -> 1.001382409 | CX115: =IFERROR(IF('Materiaalindexen o.w.'!CN35/'Materiaalindexen o.w.'!CN$33=0,NA(),'Materiaalindexen o.w.'!CN35/'Materiaalindexen o.w.'!CN$33),NA()) -> 1.001365877 | CY115: =IFERROR(IF('Materiaalindexen o.w.'!CO35/'Materiaalindexen o.w.'!CO$33=0,NA(),'Materiaalindexen o.w.'!CO35/'Materiaalindexen o.w.'!CO$33),NA()) -> 0.959759308 | CZ115: =IFERROR(IF('Materiaalindexen o.w.'!CP35/'Materiaalindexen o.w.'!CP$33=0,NA(),'Materiaalindexen o.w.'!CP35/'Materiaalindexen o.w.'!CP$33),NA()) -> 0.9598316756 | DA115: =IFERROR(IF('Materiaalindexen o.w.'!CQ35/'Materiaalindexen o.w.'!CQ$33=0,NA(),'Materiaalindexen o.w.'!CQ35/'Materiaalindexen o.w.'!CQ$33),NA()) -> 0.959795183 | DB115: =IFERROR(IF('Materiaalindexen o.w.'!CR35/'Materiaalindexen o.w.'!CR$33=0,NA(),'Materiaalindexen o.w.'!CR35/'Materiaalindexen o.w.'!CR$33),NA()) -> 0.9708207198 | DC115: =IFERROR(IF('Materiaalindexen o.w.'!CS35/'Materiaalindexen o.w.'!CS$33=0,NA(),'Materiaalindexen o.w.'!CS35/'Materiaalindexen o.w.'!CS$33),NA()) -> 0.9708354345 | DD115: =IFERROR(IF('Materiaalindexen o.w.'!CT35/'Materiaalindexen o.w.'!CT$33=0,NA(),'Materiaalindexen o.w.'!CT35/'Materiaalindexen o.w.'!CT$33),NA()) -> 0.9781320424 | DE115: =IFERROR(IF('Materiaalindexen o.w.'!CU35/'Materiaalindexen o.w.'!CU$33=0,NA(),'Materiaalindexen o.w.'!CU35/'Materiaalindexen o.w.'!CU$33),NA()) -> 0.9732744402 | DF115: =IFERROR(IF('Materiaalindexen o.w.'!CV35/'Materiaalindexen o.w.'!CV$33=0,NA(),'Materiaalindexen o.w.'!CV35/'Materiaalindexen o.w.'!CV$33),NA()) -> 0.9140311804 | DG115: =IFERROR(IF('Materiaalindexen o.w.'!CW35/'Materiaalindexen o.w.'!CW$33=0,NA(),'Materiaalindexen o.w.'!CW35/'Materiaalindexen o.w.'!CW$33),NA()) -> 0.9769067948 | DH115: =IFERROR(IF('Materiaalindexen o.w.'!CX35/'Materiaalindexen o.w.'!CX$33=0,NA(),'Materiaalindexen o.w.'!CX35/'Materiaalindexen o.w.'!CX$33),NA()) -> 0.9697799633 | DI115: =IFERROR(IF('Materiaalindexen o.w.'!CY35/'Materiaalindexen o.w.'!CY$33=0,NA(),'Materiaalindexen o.w.'!CY35/'Materiaalindexen o.w.'!CY$33),NA()) -> 0.9738197309 | DJ115: =IFERROR(IF('Materiaalindexen o.w.'!CZ35/'Materiaalindexen o.w.'!CZ$33=0,NA(),'Materiaalindexen o.w.'!CZ35/'Materiaalindexen o.w.'!CZ$33),NA()) -> 1 | DK115: =IFERROR(IF('Materiaalindexen o.w.'!DA35/'Materiaalindexen o.w.'!DA$33=0,NA(),'Materiaalindexen o.w.'!DA35/'Materiaalindexen o.w.'!DA$33),NA()) -> 1 | DL115: =IFERROR(IF('Materiaalindexen o.w.'!DB35/'Materiaalindexen o.w.'!DB$33=0,NA(),'Materiaalindexen o.w.'!DB35/'Materiaalindexen o.w.'!DB$33),NA()) -> 1.023156089 | DM115: =IFERROR(IF('Materiaalindexen o.w.'!DC35/'Materiaalindexen o.w.'!DC$33=0,NA(),'Materiaalindexen o.w.'!DC35/'Materiaalindexen o.w.'!DC$33),NA()) -> 1.010578279 | DN115: =IFERROR(IF('Materiaalindexen o.w.'!DD35/'Materiaalindexen o.w.'!DD$33=0,NA(),'Materiaalindexen o.w.'!DD35/'Materiaalindexen o.w.'!DD$33),NA()) -> 0.9877986782 | DO115: =IFERROR(IF('Materiaalindexen o.w.'!DE35/'Materiaalindexen o.w.'!DE$33=0,NA(),'Materiaalindexen o.w.'!DE35/'Materiaalindexen o.w.'!DE$33),NA()) -> 1.003820439 | DP115: =IFERROR(IF('Materiaalindexen o.w.'!DF35/'Materiaalindexen o.w.'!DF$33=0,NA(),'Materiaalindexen o.w.'!DF35/'Materiaalindexen o.w.'!DF$33),NA()) -> 1 | DQ115: =IFERROR(IF('Materiaalindexen o.w.'!DG35/'Materiaalindexen o.w.'!DG$33=0,NA(),'Materiaalindexen o.w.'!DG35/'Materiaalindexen o.w.'!DG$33),NA()) -> 1.00784285 | DR115: =IFERROR(IF('Materiaalindexen o.w.'!DH35/'Materiaalindexen o.w.'!DH$33=0,NA(),'Materiaalindexen o.w.'!DH35/'Materiaalindexen o.w.'!DH$33),NA()) -> 0.9925486087 | DS115: =IFERROR(IF('Materiaalindexen o.w.'!DI35/'Materiaalindexen o.w.'!DI$33=0,NA(),'Materiaalindexen o.w.'!DI35/'Materiaalindexen o.w.'!DI$33),NA()) -> 1.000439367 | DT115: =IFERROR(IF('Materiaalindexen o.w.'!DJ35/'Materiaalindexen o.w.'!DJ$33=0,NA(),'Materiaalindexen o.w.'!DJ35/'Materiaalindexen o.w.'!DJ$33),NA()) -> 1.002922874 | DU115: =IFERROR(IF('Materiaalindexen o.w.'!DK35/'Materiaalindexen o.w.'!DK$33=0,NA(),'Materiaalindexen o.w.'!DK35/'Materiaalindexen o.w.'!DK$33),NA()) -> 0.8128654971 | DV115: =IFERROR(IF('Materiaalindexen o.w.'!DL35/'Materiaalindexen o.w.'!DL$33=0,NA(),'Materiaalindexen o.w.'!DL35/'Materiaalindexen o.w.'!DL$33),NA()) -> 1.00319639 | DW115: =IFERROR(IF('Materiaalindexen o.w.'!DM35/'Materiaalindexen o.w.'!DM$33=0,NA(),'Materiaalindexen o.w.'!DM35/'Materiaalindexen o.w.'!DM$33),NA()) -> 1 | EA115: 2018-03-01 | EB115: =IFERROR(IF('Indexen goederen & diensten'!C29/'Indexen goederen & diensten'!C$27=0,NA(),'Indexen goederen & diensten'!C29/'Indexen goederen & diensten'!C$27),NA()) -> 1 | EC115: =IFERROR(IF('Indexen goederen & diensten'!D29/'Indexen goederen & diensten'!D$27=0,NA(),'Indexen goederen & diensten'!D29/'Indexen goederen & diensten'!D$27),NA()) -> 1 | ED115: =IFERROR(IF('Indexen goederen & diensten'!E29/'Indexen goederen & diensten'!E$27=0,NA(),'Indexen goederen & diensten'!E29/'Indexen goederen & diensten'!E$27),NA()) -> 1 | EE115: =IFERROR(IF('Indexen goederen & diensten'!F29/'Indexen goederen & diensten'!F$27=0,NA(),'Indexen goederen & diensten'!F29/'Indexen goederen & diensten'!F$27),NA()) -> 1 | EF115: =IFERROR(IF('Indexen goederen & diensten'!G29/'Indexen goederen & diensten'!G$27=0,NA(),'Indexen goederen & diensten'!G29/'Indexen goederen & diensten'!G$27),NA()) -> 1 | EG115: =IFERROR(IF('Indexen goederen & diensten'!H29/'Indexen goederen & diensten'!H$27=0,NA(),'Indexen goederen & diensten'!H29/'Indexen goederen & diensten'!H$27),NA()) -> 1 | EH115: =IFERROR(IF('Indexen goederen & diensten'!I29/'Indexen goederen & diensten'!I$27=0,NA(),'Indexen goederen & diensten'!I29/'Indexen goederen & diensten'!I$27),NA()) -> 1 | EI115: =IFERROR(IF('Indexen goederen & diensten'!J29/'Indexen goederen & diensten'!J$27=0,NA(),'Indexen goederen & diensten'!J29/'Indexen goederen & diensten'!J$27),NA()) -> 1 | EJ115: =IFERROR(IF('Indexen goederen & diensten'!K29/'Indexen goederen & diensten'!K$27=0,NA(),'Indexen goederen & diensten'!K29/'Indexen goederen & diensten'!K$27),NA()) -> 1 | EK115: =IFERROR(IF('Indexen goederen & diensten'!L29/'Indexen goederen & diensten'!L$27=0,NA(),'Indexen goederen & diensten'!L29/'Indexen goederen & diensten'!L$27),NA()) -> 1 | EL115: =IFERROR(IF('Indexen goederen & diensten'!M29/'Indexen goederen & diensten'!M$27=0,NA(),'Indexen goederen & diensten'!M29/'Indexen goederen & diensten'!M$27),NA()) -> 1 | EM115: =IFERROR(IF('Indexen goederen & diensten'!N29/'Indexen goederen & diensten'!N$27=0,NA(),'Indexen goederen & diensten'!N29/'Indexen goederen & diensten'!N$27),NA()) -> 1 | EN115: =IFERROR(IF('Indexen goederen & diensten'!O29/'Indexen goederen & diensten'!O$27=0,NA(),'Indexen goederen & diensten'!O29/'Indexen goederen & diensten'!O$27),NA()) -> 0.9792358804 | EO115: =IFERROR(IF('Indexen goederen & diensten'!P29/'Indexen goederen & diensten'!P$27=0,NA(),'Indexen goederen & diensten'!P29/'Indexen goederen & diensten'!P$27),NA()) -> 1.007162041 | EP115: =IFERROR(IF('Indexen goederen & diensten'!Q29/'Indexen goederen & diensten'!Q$27=0,NA(),'Indexen goederen & diensten'!Q29/'Indexen goederen & diensten'!Q$27),NA()) -> 1.013220019 | EQ115: =IFERROR(IF('Indexen goederen & diensten'!R29/'Indexen goederen & diensten'!R$27=0,NA(),'Indexen goederen & diensten'!R29/'Indexen goederen & diensten'!R$27),NA()) -> 1.017857143 | ER115: =IFERROR(IF('Indexen goederen & diensten'!S29/'Indexen goederen & diensten'!S$27=0,NA(),'Indexen goederen & diensten'!S29/'Indexen goederen & diensten'!S$27),NA()) -> 1.001749781 | ES115: =IFERROR(IF('Indexen goederen & diensten'!T29/'Indexen goederen & diensten'!T$27=0,NA(),'Indexen goederen & diensten'!T29/'Indexen goederen & diensten'!T$27),NA()) -> 1.00262697 | ET115: =IFERROR(IF('Indexen goederen & diensten'!U29/'Indexen goederen & diensten'!U$27=0,NA(),'Indexen goederen & diensten'!U29/'Indexen goederen & diensten'!U$27),NA()) -> 1 | EU115: =IFERROR(IF('Indexen goederen & diensten'!V29/'Indexen goederen & diensten'!V$27=0,NA(),'Indexen goederen & diensten'!V29/'Indexen goederen & diensten'!V$27),NA()) -> 1.008006405 | EV115: =IFERROR(IF('Indexen goederen & diensten'!W29/'Indexen goederen & diensten'!W$27=0,NA(),'Indexen goederen & diensten'!W29/'Indexen goederen & diensten'!W$27),NA()) -> 1 | EW115: =IFERROR(IF('Indexen goederen & diensten'!X29/'Indexen goederen & diensten'!X$27=0,NA(),'Indexen goederen & diensten'!X29/'Indexen goederen & diensten'!X$27),NA()) -> 1.007778738 | EX115: =IFERROR(IF('Indexen goederen & diensten'!Y29/'Indexen goederen & diensten'!Y$27=0,NA(),'Indexen goederen & diensten'!Y29/'Indexen goederen & diensten'!Y$27),NA()) -> 0.9768240343 | EY115: =IFERROR(IF('Indexen goederen & diensten'!Z29/'Indexen goederen & diensten'!Z$27=0,NA(),'Indexen goederen & diensten'!Z29/'Indexen goederen & diensten'!Z$27),NA()) -> 0.8878416588 | EZ115: =IFERROR(IF('Indexen goederen & diensten'!AA29/'Indexen goederen & diensten'!AA$27=0,NA(),'Indexen goederen & diensten'!AA29/'Indexen goederen & diensten'!AA$27),NA()) -> 1.017706577 | FA115: =IFERROR(IF('Indexen goederen & diensten'!AB29/'Indexen goederen & diensten'!AB$27=0,NA(),'Indexen goederen & diensten'!AB29/'Indexen goederen & diensten'!AB$27),NA()) -> 1.017736486 | FB115: =IFERROR(IF('Indexen goederen & diensten'!AC29/'Indexen goederen & diensten'!AC$27=0,NA(),'Indexen goederen & diensten'!AC29/'Indexen goederen & diensten'!AC$27),NA()) -> 1.018596788 | FC115: =IFERROR(IF('Indexen goederen & diensten'!AD29/'Indexen goederen & diensten'!AD$27=0,NA(),'Indexen goederen & diensten'!AD29/'Indexen goederen & diensten'!AD$27),NA()) -> 1.01177394 | FD115: =IFERROR(IF('Indexen goederen & diensten'!AE29/'Indexen goederen & diensten'!AE$27=0,NA(),'Indexen goederen & diensten'!AE29/'Indexen goederen & diensten'!AE$27),NA()) -> 1.000868056 | FE115: =IFERROR(IF('Indexen goederen & diensten'!AF29/'Indexen goederen & diensten'!AF$27=0,NA(),'Indexen goederen & diensten'!AF29/'Indexen goederen & diensten'!AF$27),NA()) -> 1.005371531 | FF115: =IFERROR(IF('Indexen goederen & diensten'!AG29/'Indexen goederen & diensten'!AG$27=0,NA(),'Indexen goederen & diensten'!AG29/'Indexen goederen & diensten'!AG$27),NA()) -> 0.976702509 | FG115: =IFERROR(IF('Indexen goederen & diensten'!AH29/'Indexen goederen & diensten'!AH$27=0,NA(),'Indexen goederen & diensten'!AH29/'Indexen goederen & diensten'!AH$27),NA()) -> 0.9894921191 | FH115: =IFERROR(IF('Indexen goederen & diensten'!AI29/'Indexen goederen & diensten'!AI$27=0,NA(),'Indexen goederen & diensten'!AI29/'Indexen goederen & diensten'!AI$27),NA()) -> 0.9879414298 | FI115: =IFERROR(IF('Indexen goederen & diensten'!AJ29/'Indexen goederen & diensten'!AJ$27=0,NA(),'Indexen goederen & diensten'!AJ29/'Indexen goederen & diensten'!AJ$27),NA()) -> 0.9517884914 | FJ115: =IFERROR(IF('Indexen goederen & diensten'!AK29/'Indexen goederen & diensten'!AK$27=0,NA(),'Indexen goederen & diensten'!AK29/'Indexen goederen & diensten'!AK$27),NA()) -> 1.00483611 | FK115: =IFERROR(IF('Indexen goederen & diensten'!AL29/'Indexen goederen & diensten'!AL$27=0,NA(),'Indexen goederen & diensten'!AL29/'Indexen goederen & diensten'!AL$27),NA()) -> 1.01051709 | FL115: =IFERROR(IF('Indexen goederen & diensten'!AM29/'Indexen goederen & diensten'!AM$27=0,NA(),'Indexen goederen & diensten'!AM29/'Indexen goederen & diensten'!AM$27),NA()) -> 0.9953307393 | FM115: =IFERROR(IF('Indexen goederen & diensten'!AN29/'Indexen goederen & diensten'!AN$27=0,NA(),'Indexen goederen & diensten'!AN29/'Indexen goederen & diensten'!AN$27),NA()) -> 1.013286094 | FN115: =IFERROR(IF('Indexen goederen & diensten'!AO29/'Indexen goederen & diensten'!AO$27=0,NA(),'Indexen goederen & diensten'!AO29/'Indexen goederen & diensten'!AO$27),NA()) -> 0.9982222222 | FO115: =IFERROR(IF('Indexen goederen & diensten'!AP29/'Indexen goederen & diensten'!AP$27=0,NA(),'Indexen goederen & diensten'!AP29/'Indexen goederen & diensten'!AP$27),NA()) -> 1.015070922 | FP115: =IFERROR(IF('Indexen goederen & diensten'!AQ29/'Indexen goederen & diensten'!AQ$27=0,NA(),'Indexen goederen & diensten'!AQ29/'Indexen goederen & diensten'!AQ$27),NA()) -> 1.02955665 | FQ115: =IFERROR(IF('Indexen goederen & diensten'!AR29/'Indexen goederen & diensten'!AR$27=0,NA(),'Indexen goederen & diensten'!AR29/'Indexen goederen & diensten'!AR$27),NA()) -> 1.006339144 | FR115: =IFERROR(IF('Indexen goederen & diensten'!AS29/'Indexen goederen & diensten'!AS$27=0,NA(),'Indexen goederen & diensten'!AS29/'Indexen goederen & diensten'!AS$27),NA()) -> 1.03384913 | FS115: =IFERROR(IF('Indexen goederen & diensten'!AT29/'Indexen goederen & diensten'!AT$27=0,NA(),'Indexen goederen & diensten'!AT29/'Indexen goederen & diensten'!AT$27),NA()) -> 1.014231499 | FT115: =IFERROR(IF('Indexen goederen & diensten'!AU29/'Indexen goederen & diensten'!AU$27=0,NA(),'Indexen goederen & diensten'!AU29/'Indexen goederen & diensten'!AU$27),NA()) -> 1.026183283 | FU115: =IFERROR(IF('Indexen goederen & diensten'!AV29/'Indexen goederen & diensten'!AV$27=0,NA(),'Indexen goederen & diensten'!AV29/'Indexen goederen & diensten'!AV$27),NA()) -> 1.109550562 | FV115: =IFERROR(IF('Indexen goederen & diensten'!AW29/'Indexen goederen & diensten'!AW$27=0,NA(),'Indexen goederen & diensten'!AW29/'Indexen goederen & diensten'!AW$27),NA()) -> 1.01453958 | FW115: =IFERROR(IF('Indexen goederen & diensten'!AX29/'Indexen goederen & diensten'!AX$27=0,NA(),'Indexen goederen & diensten'!AX29/'Indexen goederen & diensten'!AX$27),NA()) -> 1.01453958 | FX115: =IFERROR(IF('Indexen goederen & diensten'!AY29/'Indexen goederen & diensten'!AY$27=0,NA(),'Indexen goederen & diensten'!AY29/'Indexen goederen & diensten'!AY$27),NA()) -> 0.9921104536 | FY115: =IFERROR(IF('Indexen goederen & diensten'!AZ29/'Indexen goederen & diensten'!AZ$27=0,NA(),'Indexen goederen & diensten'!AZ29/'Indexen goederen & diensten'!AZ$27),NA()) -> 0.9835728953 | FZ115: =IFERROR(IF('Indexen goederen & diensten'!BA29/'Indexen goederen & diensten'!BA$27=0,NA(),'Indexen goederen & diensten'!BA29/'Indexen goederen & diensten'!BA$27),NA()) -> 1.020774315 | GA115: =IFERROR(IF('Indexen goederen & diensten'!BB29/'Indexen goederen & diensten'!BB$27=0,NA(),'Indexen goederen & diensten'!BB29/'Indexen goederen & diensten'!BB$27),NA()) -> 1.025547445 | GB115: =IFERROR(IF('Indexen goederen & diensten'!BC29/'Indexen goederen & diensten'!BC$27=0,NA(),'Indexen goederen & diensten'!BC29/'Indexen goederen & diensten'!BC$27),NA()) -> 1.018518519 | GC115: =IFERROR(IF('Indexen goederen & diensten'!BD29/'Indexen goederen & diensten'!BD$27=0,NA(),'Indexen goederen & diensten'!BD29/'Indexen goederen & diensten'!BD$27),NA()) -> 1.002970297 | GD115: =IFERROR(IF('Indexen goederen & diensten'!BE29/'Indexen goederen & diensten'!BE$27=0,NA(),'Indexen goederen & diensten'!BE29/'Indexen goederen & diensten'!BE$27),NA()) -> 1 | GE115: =IFERROR(IF('Indexen goederen & diensten'!BF29/'Indexen goederen & diensten'!BF$27=0,NA(),'Indexen goederen & diensten'!BF29/'Indexen goederen & diensten'!BF$27),NA()) -> 1.012 | GF115: =IFERROR(IF('Indexen goederen & diensten'!BG29/'Indexen goederen & diensten'!BG$27=0,NA(),'Indexen goederen & diensten'!BG29/'Indexen goederen & diensten'!BG$27),NA()) -> 0.9828711256 | GG115: =IFERROR(IF('Indexen goederen & diensten'!BH29/'Indexen goederen & diensten'!BH$27=0,NA(),'Indexen goederen & diensten'!BH29/'Indexen goederen & diensten'!BH$27),NA()) -> 1.01796875 | GH115: =IFERROR(IF('Indexen goederen & diensten'!BI29/'Indexen goederen & diensten'!BI$27=0,NA(),'Indexen goederen & diensten'!BI29/'Indexen goederen & diensten'!BI$27),NA()) -> 1.012322275 | GI115: =IFERROR(IF('Indexen goederen & diensten'!BJ29/'Indexen goederen & diensten'!BJ$27=0,NA(),'Indexen goederen & diensten'!BJ29/'Indexen goederen & diensten'!BJ$27),NA()) -> 1.013257576 | GJ115: =IFERROR(IF('Indexen goederen & diensten'!BK29/'Indexen goederen & diensten'!BK$27=0,NA(),'Indexen goederen & diensten'!BK29/'Indexen goederen & diensten'!BK$27),NA()) -> 0.9589041096 | GK115: =IFERROR(IF('Indexen goederen & diensten'!BL29/'Indexen goederen & diensten'!BL$27=0,NA(),'Indexen goederen & diensten'!BL29/'Indexen goederen & diensten'!BL$27),NA()) -> 0.951754386 | GL115: =IFERROR(IF('Indexen goederen & diensten'!BM29/'Indexen goederen & diensten'!BM$27=0,NA(),'Indexen goederen & diensten'!BM29/'Indexen goederen & diensten'!BM$27),NA()) -> 1.019467213 | GM115: =IFERROR(IF('Indexen goederen & diensten'!BN29/'Indexen goederen & diensten'!BN$27=0,NA(),'Indexen goederen & diensten'!BN29/'Indexen goederen & diensten'!BN$27),NA()) -> 1.025800712 | GN115: =IFERROR(IF('Indexen goederen & diensten'!BO29/'Indexen goederen & diensten'!BO$27=0,NA(),'Indexen goederen & diensten'!BO29/'Indexen goederen & diensten'!BO$27),NA()) -> 1.025837321 | GO115: =IFERROR(IF('Indexen goederen & diensten'!BP29/'Indexen goederen & diensten'!BP$27=0,NA(),'Indexen goederen & diensten'!BP29/'Indexen goederen & diensten'!BP$27),NA()) -> 1.007194245 | GP115: =IFERROR(IF('Indexen goederen & diensten'!BQ29/'Indexen goederen & diensten'!BQ$27=0,NA(),'Indexen goederen & diensten'!BQ29/'Indexen goederen & diensten'!BQ$27),NA()) -> 1.011009174 | GQ115: =IFERROR(IF('Indexen goederen & diensten'!BR29/'Indexen goederen & diensten'!BR$27=0,NA(),'Indexen goederen & diensten'!BR29/'Indexen goederen & diensten'!BR$27),NA()) -> 1.00174216 | GR115: =IFERROR(IF('Indexen goederen & diensten'!BS29/'Indexen goederen & diensten'!BS$27=0,NA(),'Indexen goederen & diensten'!BS29/'Indexen goederen & diensten'!BS$27),NA()) -> 1.010638298 | GS115: =IFERROR(IF('Indexen goederen & diensten'!BT29/'Indexen goederen & diensten'!BT$27=0,NA(),'Indexen goederen & diensten'!BT29/'Indexen goederen & diensten'!BT$27),NA()) -> 1.010507881 | GT115: =IFERROR(IF('Indexen goederen & diensten'!BU29/'Indexen goederen & diensten'!BU$27=0,NA(),'Indexen goederen & diensten'!BU29/'Indexen goederen & diensten'!BU$27),NA()) -> 1.023674242 | GU115: =IFERROR(IF('Indexen goederen & diensten'!BV29/'Indexen goederen & diensten'!BV$27=0,NA(),'Indexen goederen & diensten'!BV29/'Indexen goederen & diensten'!BV$27),NA()) -> 1 | GV115: =IFERROR(IF('Indexen goederen & diensten'!BW29/'Indexen goederen & diensten'!BW$27=0,NA(),'Indexen goederen & diensten'!BW29/'Indexen goederen & diensten'!BW$27),NA()) -> 1.015652174 | GW115: =IFERROR(IF('Indexen goederen & diensten'!BX29/'Indexen goederen & diensten'!BX$27=0,NA(),'Indexen goederen & diensten'!BX29/'Indexen goederen & diensten'!BX$27),NA()) -> 1.002994012 | GX115: =IFERROR(IF('Indexen goederen & diensten'!BY29/'Indexen goederen & diensten'!BY$27=0,NA(),'Indexen goederen & diensten'!BY29/'Indexen goederen & diensten'!BY$27),NA()) -> 1.020462633 | GY115: =IFERROR(IF('Indexen goederen & diensten'!BZ29/'Indexen goederen & diensten'!BZ$27=0,NA(),'Indexen goederen & diensten'!BZ29/'Indexen goederen & diensten'!BZ$27),NA()) -> 1.048212801 | GZ115: =IFERROR(IF('Indexen goederen & diensten'!CA29/'Indexen goederen & diensten'!CA$27=0,NA(),'Indexen goederen & diensten'!CA29/'Indexen goederen & diensten'!CA$27),NA()) -> 1.004643963 | HA115: =IFERROR(IF('Indexen goederen & diensten'!CB29/'Indexen goederen & diensten'!CB$27=0,NA(),'Indexen goederen & diensten'!CB29/'Indexen goederen & diensten'!CB$27),NA()) -> 1.002657219 | HB115: =IFERROR(IF('Indexen goederen & diensten'!CC29/'Indexen goederen & diensten'!CC$27=0,NA(),'Indexen goederen & diensten'!CC29/'Indexen goederen & diensten'!CC$27),NA()) -> 1.010110294 | HC115: =IFERROR(IF('Indexen goederen & diensten'!CD29/'Indexen goederen & diensten'!CD$27=0,NA(),'Indexen goederen & diensten'!CD29/'Indexen goederen & diensten'!CD$27),NA()) -> 0.9990049751 | HD115: =IFERROR(IF('Indexen goederen & diensten'!CE29/'Indexen goederen & diensten'!CE$27=0,NA(),'Indexen goederen & diensten'!CE29/'Indexen goederen & diensten'!CE$27),NA()) -> 1.005267779 | HE115: =IFERROR(IF('Indexen goederen & diensten'!CF29/'Indexen goederen & diensten'!CF$27=0,NA(),'Indexen goederen & diensten'!CF29/'Indexen goederen & diensten'!CF$27),NA()) -> 1 | HF115: =IFERROR(IF('Indexen goederen & diensten'!CG29/'Indexen goederen & diensten'!CG$27=0,NA(),'Indexen goederen & diensten'!CG29/'Indexen goederen & diensten'!CG$27),NA()) -> 1.000888889 | HG115: =IFERROR(IF('Indexen goederen & diensten'!CH29/'Indexen goederen & diensten'!CH$27=0,NA(),'Indexen goederen & diensten'!CH29/'Indexen goederen & diensten'!CH$27),NA()) -> 1.003894839 | HH115: =IFERROR(IF('Indexen goederen & diensten'!CI29/'Indexen goederen & diensten'!CI$27=0,NA(),'Indexen goederen & diensten'!CI29/'Indexen goederen & diensten'!CI$27),NA()) -> 0.9968421053 | HI115: =IFERROR(IF('Indexen goederen & diensten'!CJ29/'Indexen goederen & diensten'!CJ$27=0,NA(),'Indexen goederen & diensten'!CJ29/'Indexen goederen & diensten'!CJ$27),NA()) -> 0.9806835067 | HJ115: =IFERROR(IF('Indexen goederen & diensten'!CK29/'Indexen goederen & diensten'!CK$27=0,NA(),'Indexen goederen & diensten'!CK29/'Indexen goederen & diensten'!CK$27),NA()) -> 0.9761904762 | HK115: =IFERROR(IF('Indexen goederen & diensten'!CL29/'Indexen goederen & diensten'!CL$27=0,NA(),'Indexen goederen & diensten'!CL29/'Indexen goederen & diensten'!CL$27),NA()) -> 0.9961013645 | HL115: =IFERROR(IF('Indexen goederen & diensten'!CM29/'Indexen goederen & diensten'!CM$27=0,NA(),'Indexen goederen & diensten'!CM29/'Indexen goederen & diensten'!CM$27),NA()) -> 1.00090009 | HN115: =Tableau21[[#This Row],[datum]] -> 2018-03-01 | HO115: =IFERROR(IF(Standaardindexen!L28/Standaardindexen!L$26=0,NA(),Standaardindexen!L28/Standaardindexen!L$26),NA()) -> 1.000353994 | HP115: =IFERROR(IF(Standaardindexen!M28/Standaardindexen!M$26=0,NA(),Standaardindexen!M28/Standaardindexen!M$26),NA()) -> 1.00031295 | HQ115: =IFERROR(IF(Standaardindexen!N28/Standaardindexen!N$26=0,NA(),Standaardindexen!N28/Standaardindexen!N$26),NA()) -> 1.000344299 | HR115: =IFERROR(IF(Standaardindexen!O28/Standaardindexen!O$26=0,NA(),Standaardindexen!O28/Standaardindexen!O$26),NA()) -> 1.000354359 | HS115: =IFERROR(IF(Standaardindexen!P28/Standaardindexen!P$26=0,NA(),Standaardindexen!P28/Standaardindexen!P$26),NA()) -> 1.000313264 | HT115: =IFERROR(IF(Standaardindexen!Q28/Standaardindexen!Q$26=0,NA(),Standaardindexen!Q28/Standaardindexen!Q$26),NA()) -> 1.000344644 | HU115: =IFERROR(IF(Standaardindexen!R28/Standaardindexen!R$26=0,NA(),Standaardindexen!R28/Standaardindexen!R$26),NA()) -> 1.000361973 | HV115: =IFERROR(IF(Standaardindexen!S28/Standaardindexen!S$26=0,NA(),Standaardindexen!S28/Standaardindexen!S$26),NA()) -> 1.000319806 | HW115: =IFERROR(IF(Standaardindexen!T28/Standaardindexen!T$26=0,NA(),Standaardindexen!T28/Standaardindexen!T$26),NA()) -> 1.000351842 | HX115: =IFERROR(IF(Standaardindexen!U28/Standaardindexen!U$26=0,NA(),Standaardindexen!U28/Standaardindexen!U$26),NA()) -> 1.000367955 | HY115: =IFERROR(IF(Standaardindexen!V28/Standaardindexen!V$26=0,NA(),Standaardindexen!V28/Standaardindexen!V$26),NA()) -> 1.000357433 | HZ115: =IFERROR(IF(Standaardindexen!W28/Standaardindexen!W$26=0,NA(),Standaardindexen!W28/Standaardindexen!W$26),NA()) -> 1.000357491 | IA115: =IFERROR(IF(Standaardindexen!X28/Standaardindexen!X$26=0,NA(),Standaardindexen!X28/Standaardindexen!X$26),NA()) -> 1.000795355 | IB115: =IFERROR(IF(Standaardindexen!Y28/Standaardindexen!Y$26=0,NA(),Standaardindexen!Y28/Standaardindexen!Y$26),NA()) -> 1.000747737 | IC115: =Tableau21[[#This Row],[prijsevolutie - volgens prijsherzieningsformule -index i 2021]] -> 1.00385 | ID115: =Tableau21[[#This Row],[prijsevolutie - volgens prijsherzieningsformule -index i]] -> 1.00071 | IE115: =Tableau21[[#This Row],[prijsherzieningsformule - index i 2021]] -> 1.00385 | IF115: =Tableau21[[#This Row],[prijsherzieningsformule - index i]] -> 1.00071 | IG115: =IFERROR(IF('Indexeringen Lonen per PC'!E53/'Indexeringen Lonen per PC'!E$51=0,NA(),'Indexeringen Lonen per PC'!E53/'Indexeringen Lonen per PC'!E$51),NA()) -> 1 | IH115: =IFERROR(IF('Indexeringen Lonen per PC'!F53/'Indexeringen Lonen per PC'!F$51=0,NA(),'Indexeringen Lonen per PC'!F53/'Indexeringen Lonen per PC'!F$51),NA()) -> 1 | II115: =IFERROR(IF('Indexeringen Lonen per PC'!G53/'Indexeringen Lonen per PC'!G$51=0,NA(),'Indexeringen Lonen per PC'!G53/'Indexeringen Lonen per PC'!G$51),NA()) -> 1 | IJ115: =IFERROR(IF('Indexeringen Lonen per PC'!H53/'Indexeringen Lonen per PC'!H$51=0,NA(),'Indexeringen Lonen per PC'!H53/'Indexeringen Lonen per PC'!H$51),NA()) -> 1 | IK115: =IFERROR(IF('Indexeringen Lonen per PC'!I53/'Indexeringen Lonen per PC'!I$51=0,NA(),'Indexeringen Lonen per PC'!I53/'Indexeringen Lonen per PC'!I$51),NA()) -> 1 | IL115: =IFERROR(IF('Indexeringen Lonen per PC'!J53/'Indexeringen Lonen per PC'!J$51=0,NA(),'Indexeringen Lonen per PC'!J53/'Indexeringen Lonen per PC'!J$51),NA()) -> 1 | IM115: =IFERROR(IF('Indexeringen Lonen per PC'!K53/'Indexeringen Lonen per PC'!K$51=0,NA(),'Indexeringen Lonen per PC'!K53/'Indexeringen Lonen per PC'!K$51),NA()) -> 1 | IN115: =IFERROR(IF('Indexeringen Lonen per PC'!L53/'Indexeringen Lonen per PC'!L$51=0,NA(),'Indexeringen Lonen per PC'!L53/'Indexeringen Lonen per PC'!L$51),NA()) -> 1 | IO115: =IFERROR(IF('Indexeringen Lonen per PC'!M53/'Indexeringen Lonen per PC'!M$51=0,NA(),'Indexeringen Lonen per PC'!M53/'Indexeringen Lonen per PC'!M$51),NA()) -> 1 | IP115: =IFERROR(IF('Indexeringen Lonen per PC'!T53/'Indexeringen Lonen per PC'!T$51=0,NA(),'Indexeringen Lonen per PC'!T53/'Indexeringen Lonen per PC'!T$51),NA()) -> 1 | IQ115: =IFERROR(IF('Indexeringen Lonen per PC'!U53/'Indexeringen Lonen per PC'!U$51=0,NA(),'Indexeringen Lonen per PC'!U53/'Indexeringen Lonen per PC'!U$51),NA()) -> 1 | IR115: =IFERROR(IF('Indexeringen Lonen per PC'!V53/'Indexeringen Lonen per PC'!V$51=0,NA(),'Indexeringen Lonen per PC'!V53/'Indexeringen Lonen per PC'!V$51),NA()) -> 1 | IS115: =IFERROR(IF('Indexeringen Lonen per PC'!W53/'Indexeringen Lonen per PC'!W$51=0,NA(),'Indexeringen Lonen per PC'!W53/'Indexeringen Lonen per PC'!W$51),NA()) -> 1 | IT115: =IFERROR(IF('Indexeringen Lonen per PC'!AD53/'Indexeringen Lonen per PC'!AD$51=0,NA(),'Indexeringen Lonen per PC'!AD53/'Indexeringen Lonen per PC'!AD$51),NA()) -> 1 | IU115: =IFERROR(IF('Indexeringen Lonen per PC'!AE53/'Indexeringen Lonen per PC'!AE$51=0,NA(),'Indexeringen Lonen per PC'!AE53/'Indexeringen Lonen per PC'!AE$51),NA()) -> 1 | IV115: =IFERROR(IF('Indexeringen Lonen per PC'!AF53/'Indexeringen Lonen per PC'!AF$51=0,NA(),'Indexeringen Lonen per PC'!AF53/'Indexeringen Lonen per PC'!AF$51),NA()) -> 1 | IW115: =IFERROR(IF('Indexeringen Lonen per PC'!AG53/'Indexeringen Lonen per PC'!AG$51=0,NA(),'Indexeringen Lonen per PC'!AG53/'Indexeringen Lonen per PC'!AG$51),NA()) -> 1 | IX115: =IFERROR(IF('Indexeringen Lonen per PC'!AH53/'Indexeringen Lonen per PC'!AH$51=0,NA(),'Indexeringen Lonen per PC'!AH53/'Indexeringen Lonen per PC'!AH$51),NA()) -> 1 | IY115: =IFERROR(IF('Indexeringen Lonen per PC'!AI53/'Indexeringen Lonen per PC'!AI$51=0,NA(),'Indexeringen Lonen per PC'!AI53/'Indexeringen Lonen per PC'!AI$51),NA()) -> 1 | IZ115: =IFERROR(IF('Indexeringen Lonen per PC'!AP53/'Indexeringen Lonen per PC'!AP$51=0,NA(),'Indexeringen Lonen per PC'!AP53/'Indexeringen Lonen per PC'!AP$51),NA()) -> 1 | JA115: =IFERROR(IF('Indexeringen Lonen per PC'!AW53/'Indexeringen Lonen per PC'!AW$51=0,NA(),'Indexeringen Lonen per PC'!AW53/'Indexeringen Lonen per PC'!AW$51),NA()) -> 1 | JB115: =IFERROR(IF('Indexeringen Lonen per PC'!AX53/'Indexeringen Lonen per PC'!AX$51=0,NA(),'Indexeringen Lonen per PC'!AX53/'Indexeringen Lonen per PC'!AX$51),NA()) -> 1 | JC115: =IFERROR(IF('Indexeringen Lonen per PC'!AY53/'Indexeringen Lonen per PC'!AY$51=0,NA(),'Indexeringen Lonen per PC'!AY53/'Indexeringen Lonen per PC'!AY$51),NA()) -> 1 | JD115: =IFERROR(IF('Indexeringen Lonen per PC'!AZ53/'Indexeringen Lonen per PC'!AZ$51=0,NA(),'Indexeringen Lonen per PC'!AZ53/'Indexeringen Lonen per PC'!AZ$51),NA()) -> 1 | JE115: =IFERROR(IF('Indexeringen Lonen per PC'!BA53/'Indexeringen Lonen per PC'!BA$51=0,NA(),'Indexeringen Lonen per PC'!BA53/'Indexeringen Lonen per PC'!BA$51),NA()) -> 1 | JF115: =IFERROR(IF('Indexeringen Lonen per PC'!BB53/'Indexeringen Lonen per PC'!BB$51=0,NA(),'Indexeringen Lonen per PC'!BB53/'Indexeringen Lonen per PC'!BB$51),NA()) -> 1 | JG115: =IFERROR(IF('Indexeringen Lonen per PC'!BC53/'Indexeringen Lonen per PC'!BC$51=0,NA(),'Indexeringen Lonen per PC'!BC53/'Indexeringen Lonen per PC'!BC$51),NA()) -> 1 | JH115: =IFERROR(IF('Indexeringen Lonen per PC'!BD53/'Indexeringen Lonen per PC'!BD$51=0,NA(),'Indexeringen Lonen per PC'!BD53/'Indexeringen Lonen per PC'!BD$51),NA()) -> 1 | JI115: =IFERROR(IF('Indexeringen Lonen per PC'!BK53/'Indexeringen Lonen per PC'!BK$51=0,NA(),'Indexeringen Lonen per PC'!BK53/'Indexeringen Lonen per PC'!BK$51),NA()) -> 1 | JJ115: =IFERROR(IF('Indexeringen Lonen per PC'!BR53/'Indexeringen Lonen per PC'!BR$51=0,NA(),'Indexeringen Lonen per PC'!BR53/'Indexeringen Lonen per PC'!BR$51),NA()) -> 1 | JK115: =IFERROR(IF('Indexeringen Lonen per PC'!BS53/'Indexeringen Lonen per PC'!BS$51=0,NA(),'Indexeringen Lonen per PC'!BS53/'Indexeringen Lonen per PC'!BS$51),NA()) -> 1 | JL115: =IFERROR(IF('Indexeringen Lonen per PC'!BT53/'Indexeringen Lonen per PC'!BT$51=0,NA(),'Indexeringen Lonen per PC'!BT53/'Indexeringen Lonen per PC'!BT$51),NA()) -> 1 | JM115: =IFERROR(IF('Indexeringen Lonen per PC'!BU53/'Indexeringen Lonen per PC'!BU$51=0,NA(),'Indexeringen Lonen per PC'!BU53/'Indexeringen Lonen per PC'!BU$51),NA()) -> 1 | JN115: =IFERROR(IF('Indexeringen Lonen per PC'!BV53/'Indexeringen Lonen per PC'!BV$51=0,NA(),'Indexeringen Lonen per PC'!BV53/'Indexeringen Lonen per PC'!BV$51),NA()) -> 1 | JO115: =IFERROR(IF('Indexeringen Lonen per PC'!BW53/'Indexeringen Lonen per PC'!BW$51=0,NA(),'Indexeringen Lonen per PC'!BW53/'Indexeringen Lonen per PC'!BW$51),NA()) -> 1 | JP115: =IFERROR(IF('Indexeringen Lonen per PC'!BX53/'Indexeringen Lonen per PC'!BX$51=0,NA(),'Indexeringen Lonen per PC'!BX53/'Indexeringen Lonen per PC'!BX$51),NA()) -> 1 | JQ115: =IFERROR(IF('Indexeringen Lonen per PC'!BY53/'Indexeringen Lonen per PC'!BY$51=0,NA(),'Indexeringen Lonen per PC'!BY53/'Indexeringen Lonen per PC'!BY$51),NA()) -> 1 | JR115: =IFERROR(IF('Indexeringen Lonen per PC'!BZ53/'Indexeringen Lonen per PC'!BZ$51=0,NA(),'Indexeringen Lonen per PC'!BZ53/'Indexeringen Lonen per PC'!BZ$51),NA()) -> 1 | JS115: =IFERROR(IF('Indexeringen Lonen per PC'!CA53/'Indexeringen Lonen per PC'!CA$51=0,NA(),'Indexeringen Lonen per PC'!CA53/'Indexeringen Lonen per PC'!CA$51),NA()) -> 1 | JT115: =IFERROR(IF('Indexeringen Lonen per PC'!CB53/'Indexeringen Lonen per PC'!CB$51=0,NA(),'Indexeringen Lonen per PC'!CB53/'Indexeringen Lonen per PC'!CB$51),NA()) -> 1 | JU115: =IFERROR(IF('Indexeringen Lonen per PC'!CC53/'Indexeringen Lonen per PC'!CC$51=0,NA(),'Indexeringen Lonen per PC'!CC53/'Indexeringen Lonen per PC'!CC$51),NA()) -> 1 | JV115: =IFERROR(IF('Indexeringen Lonen per PC'!CD53/'Indexeringen Lonen per PC'!CD$51=0,NA(),'Indexeringen Lonen per PC'!CD53/'Indexeringen Lonen per PC'!CD$51),NA()) -> 1 | JW115: =IFERROR(IF('Indexeringen Lonen per PC'!CE53/'Indexeringen Lonen per PC'!CE$51=0,NA(),'Indexeringen Lonen per PC'!CE53/'Indexeringen Lonen per PC'!CE$51),NA()) -> 1 | JX115: =IFERROR(IF('Indexeringen Lonen per PC'!CF53/'Indexeringen Lonen per PC'!CF$51=0,NA(),'Indexeringen Lonen per PC'!CF53/'Indexeringen Lonen per PC'!CF$51),NA()) -> 1 | JY115: =IFERROR(IF('Indexeringen Lonen per PC'!CG53/'Indexeringen Lonen per PC'!CG$51=0,NA(),'Indexeringen Lonen per PC'!CG53/'Indexeringen Lonen per PC'!CG$51),NA()) -> 1 | JZ115: =IFERROR(IF('Indexeringen Lonen per PC'!CH53/'Indexeringen Lonen per PC'!CH$51=0,NA(),'Indexeringen Lonen per PC'!CH53/'Indexeringen Lonen per PC'!CH$51),NA()) -> 1 | KA115: =IFERROR(IF('Indexeringen Lonen per PC'!CI53/'Indexeringen Lonen per PC'!CI$51=0,NA(),'Indexeringen Lonen per PC'!CI53/'Indexeringen Lonen per PC'!CI$51),NA()) -> 1 | KB115: =IFERROR(IF('Indexeringen Lonen per PC'!CJ53/'Indexeringen Lonen per PC'!CJ$51=0,NA(),'Indexeringen Lonen per PC'!CJ53/'Indexeringen Lonen per PC'!CJ$51),NA()) -> 1 | KC115: =IFERROR(IF('Indexeringen Lonen per PC'!CQ53/'Indexeringen Lonen per PC'!CQ$51=0,NA(),'Indexeringen Lonen per PC'!CQ53/'Indexeringen Lonen per PC'!CQ$51),NA()) -> 1 | KD115: =IFERROR(IF('Indexeringen Lonen per PC'!CR53/'Indexeringen Lonen per PC'!CR$51=0,NA(),'Indexeringen Lonen per PC'!CR53/'Indexeringen Lonen per PC'!CR$51),NA()) -> 1 | KE115: =IFERROR(IF('Indexeringen Lonen per PC'!CS53/'Indexeringen Lonen per PC'!CS$51=0,NA(),'Indexeringen Lonen per PC'!CS53/'Indexeringen Lonen per PC'!CS$51),NA()) -> 1 | KF115: =IFERROR(IF('Indexeringen Lonen per PC'!CT53/'Indexeringen Lonen per PC'!CT$51=0,NA(),'Indexeringen Lonen per PC'!CT53/'Indexeringen Lonen per PC'!CT$51),NA()) -> 1 | KG115: =IFERROR(IF('Indexeringen Lonen per PC'!CU53/'Indexeringen Lonen per PC'!CU$51=0,NA(),'Indexeringen Lonen per PC'!CU53/'Indexeringen Lonen per PC'!CU$51),NA()) -> 1 | KH115: =IFERROR(IF('Indexeringen Lonen per PC'!DB53/'Indexeringen Lonen per PC'!DB$51=0,NA(),'Indexeringen Lonen per PC'!DB53/'Indexeringen Lonen per PC'!DB$51),NA()) -> 1 | KI115: =IFERROR(IF('Indexeringen Lonen per PC'!DC53/'Indexeringen Lonen per PC'!DC$51=0,NA(),'Indexeringen Lonen per PC'!DC53/'Indexeringen Lonen per PC'!DC$51),NA()) -> 1 | KJ115: =IFERROR(IF('Indexeringen Lonen per PC'!DD53/'Indexeringen Lonen per PC'!DD$51=0,NA(),'Indexeringen Lonen per PC'!DD53/'Indexeringen Lonen per PC'!DD$51),NA()) -> 1 | KK115: =IFERROR(IF('Indexeringen Lonen per PC'!DE53/'Indexeringen Lonen per PC'!DE$51=0,NA(),'Indexeringen Lonen per PC'!DE53/'Indexeringen Lonen per PC'!DE$51),NA()) -> 1 | KL115: =IFERROR(IF('Indexeringen Lonen per PC'!DL53/'Indexeringen Lonen per PC'!DL$51=0,NA(),'Indexeringen Lonen per PC'!DL53/'Indexeringen Lonen per PC'!DL$51),NA()) -> 1 | KM115: =IFERROR(IF('Indexeringen Lonen per PC'!DM53/'Indexeringen Lonen per PC'!DM$51=0,NA(),'Indexeringen Lonen per PC'!DM53/'Indexeringen Lonen per PC'!DM$51),NA()) -> 1 | KN115: =IFERROR(IF('Indexeringen Lonen per PC'!DN53/'Indexeringen Lonen per PC'!DN$51=0,NA(),'Indexeringen Lonen per PC'!DN53/'Indexeringen Lonen per PC'!DN$51),NA()) -> 1 | KO115: =IFERROR(IF('Indexeringen Lonen per PC'!DO53/'Indexeringen Lonen per PC'!DO$51=0,NA(),'Indexeringen Lonen per PC'!DO53/'Indexeringen Lonen per PC'!DO$51),NA()) -> 1 | KP115: =IFERROR(IF('Indexeringen Lonen per PC'!DP53/'Indexeringen Lonen per PC'!DP$51=0,NA(),'Indexeringen Lonen per PC'!DP53/'Indexeringen Lonen per PC'!DP$51),NA()) -> 1 | KQ115: =IFERROR(IF('Indexeringen Lonen per PC'!DQ53/'Indexeringen Lonen per PC'!DQ$51=0,NA(),'Indexeringen Lonen per PC'!DQ53/'Indexeringen Lonen per PC'!DQ$51),NA()) -> 1 | KR115: =IFERROR(IF('Indexeringen Lonen per PC'!DR53/'Indexeringen Lonen per PC'!DR$51=0,NA(),'Indexeringen Lonen per PC'!DR53/'Indexeringen Lonen per PC'!DR$51),NA()) -> 1 | KS115: =IFERROR(IF('Indexeringen Lonen per PC'!DS53/'Indexeringen Lonen per PC'!DS$51=0,NA(),'Indexeringen Lonen per PC'!DS53/'Indexeringen Lonen per PC'!DS$51),NA()) -> 1 | KT115: =IFERROR(IF('Indexeringen Lonen per PC'!DT53/'Indexeringen Lonen per PC'!DT$51=0,NA(),'Indexeringen Lonen per PC'!DT53/'Indexeringen Lonen per PC'!DT$51),NA()) -> 1 | KU115: =IFERROR(IF('Indexeringen Lonen per PC'!DU53/'Indexeringen Lonen per PC'!DU$51=0,NA(),'Indexeringen Lonen per PC'!DU53/'Indexeringen Lonen per PC'!DU$51),NA()) -> 1 | KV115: =IFERROR(IF('Indexeringen Lonen per PC'!DV53/'Indexeringen Lonen per PC'!DV$51=0,NA(),'Indexeringen Lonen per PC'!DV53/'Indexeringen Lonen per PC'!DV$51),NA()) -> 1 | KW115: =IFERROR(IF('Indexeringen Lonen per PC'!DW53/'Indexeringen Lonen per PC'!DW$51=0,NA(),'Indexeringen Lonen per PC'!DW53/'Indexeringen Lonen per PC'!DW$51),NA()) -> 1 | KX115: =IFERROR(IF('Indexeringen Lonen per PC'!DX53/'Indexeringen Lonen per PC'!DX$51=0,NA(),'Indexeringen Lonen per PC'!DX53/'Indexeringen Lonen per PC'!DX$51),NA()) -> 1
B116: =Tableau41326[[#This Row],[periode]] -> 2018-04-01 | C116: =IFERROR(IF(Standaardindexen!F29/Standaardindexen!F$26=0,NA(),Standaardindexen!F29/Standaardindexen!F$26),NA()) -> 0.9914963828 | D116: =IFERROR(IF(Standaardindexen!G29/Standaardindexen!G$26=0,NA(),Standaardindexen!G29/Standaardindexen!G$26),NA()) -> 1.012197643 | E116: =IFERROR(IF(Standaardindexen!H29/Standaardindexen!H$26=0,NA(),Standaardindexen!H29/Standaardindexen!H$26),NA()) -> 1.000628141 | F116: =IFERROR(IF(Standaardindexen!I29/Standaardindexen!I$26=0,NA(),Standaardindexen!I29/Standaardindexen!I$26),NA()) -> 0.9993870671 | G116: =IFERROR(IF(Standaardindexen!J29/Standaardindexen!J$26=0,NA(),Standaardindexen!J29/Standaardindexen!J$26),NA()) -> 0.9923470182 | H116: =IFERROR(IF(Standaardindexen!K29/Standaardindexen!K$26=0,NA(),Standaardindexen!K29/Standaardindexen!K$26),NA()) -> 1.026494387 | I116: =IF(Standaardindexen!G28=0,NA(),IF(Standaardindexen!L29=0,NA(),IFERROR(ROUND(((StandaardPrijsherzieningformule!$E$33*(Standaardindexen!G28/Standaardindexen!G27)+StandaardPrijsherzieningformule!$E$25*(Standaardindexen!L29/Standaardindexen!L28)+StandaardPrijsherzieningformule!$E$39)*I115),5),NA()))) -> 1.00239 | J116: =IF(Standaardindexen!F28=0,NA(),IF(Standaardindexen!L29=0,NA(),IFERROR(ROUND((((StandaardPrijsherzieningformule!$E$33*(Standaardindexen!F28/Standaardindexen!F27)+StandaardPrijsherzieningformule!$E$25*(Standaardindexen!L29/Standaardindexen!L28)+StandaardPrijsherzieningformule!$E$39))*J115),5),NA()))) -> 0.99415 | K116: =IF(Standaardindexen!G28=0,NA(),IF(Standaardindexen!L29=0,NA(),IFERROR(ROUND(((StandaardPrijsherzieningformule!$E$33*(Standaardindexen!G28/Standaardindexen!G27)+StandaardPrijsherzieningformule!$E$25*(Standaardindexen!L29/Standaardindexen!L28)+StandaardPrijsherzieningformule!$E$39)),5),NA()))) -> 0.99855 | L116: =IF(Standaardindexen!F28=0,NA(),IF(Standaardindexen!L29=0,NA(),IFERROR(ROUND((((StandaardPrijsherzieningformule!$E$33*(Standaardindexen!F28/Standaardindexen!F27)+StandaardPrijsherzieningformule!$E$25*(Standaardindexen!L29/Standaardindexen!L28)+StandaardPrijsherzieningformule!$E$39))),5),NA()))) -> 0.99345 | M116: =IFERROR(IF('Materiaalindexen o.w.'!C36/'Materiaalindexen o.w.'!C$33=0,NA(),'Materiaalindexen o.w.'!C36/'Materiaalindexen o.w.'!C$33),NA()) -> 1 | N116: =IFERROR(IF('Materiaalindexen o.w.'!D36/'Materiaalindexen o.w.'!D$33=0,NA(),'Materiaalindexen o.w.'!D36/'Materiaalindexen o.w.'!D$33),NA()) -> 1 | O116: =IFERROR(IF('Materiaalindexen o.w.'!E36/'Materiaalindexen o.w.'!E$33=0,NA(),'Materiaalindexen o.w.'!E36/'Materiaalindexen o.w.'!E$33),NA()) -> 1 | P116: =IFERROR(IF('Materiaalindexen o.w.'!F36/'Materiaalindexen o.w.'!F$33=0,NA(),'Materiaalindexen o.w.'!F36/'Materiaalindexen o.w.'!F$33),NA()) -> 1 | Q116: =IFERROR(IF('Materiaalindexen o.w.'!G36/'Materiaalindexen o.w.'!G$33=0,NA(),'Materiaalindexen o.w.'!G36/'Materiaalindexen o.w.'!G$33),NA()) -> 1 | R116: =IFERROR(IF('Materiaalindexen o.w.'!H36/'Materiaalindexen o.w.'!H$33=0,NA(),'Materiaalindexen o.w.'!H36/'Materiaalindexen o.w.'!H$33),NA()) -> 1 | S116: =IFERROR(IF('Materiaalindexen o.w.'!I36/'Materiaalindexen o.w.'!I$33=0,NA(),'Materiaalindexen o.w.'!I36/'Materiaalindexen o.w.'!I$33),NA()) -> 1 | T116: =IFERROR(IF('Materiaalindexen o.w.'!J36/'Materiaalindexen o.w.'!J$33=0,NA(),'Materiaalindexen o.w.'!J36/'Materiaalindexen o.w.'!J$33),NA()) -> 1 | U116: =IFERROR(IF('Materiaalindexen o.w.'!K36/'Materiaalindexen o.w.'!K$33=0,NA(),'Materiaalindexen o.w.'!K36/'Materiaalindexen o.w.'!K$33),NA()) -> 1 | V116: =IFERROR(IF('Materiaalindexen o.w.'!L36/'Materiaalindexen o.w.'!L$33=0,NA(),'Materiaalindexen o.w.'!L36/'Materiaalindexen o.w.'!L$33),NA()) -> 1 | W116: =IFERROR(IF('Materiaalindexen o.w.'!M36/'Materiaalindexen o.w.'!M$33=0,NA(),'Materiaalindexen o.w.'!M36/'Materiaalindexen o.w.'!M$33),NA()) -> 1 | X116: =IFERROR(IF('Materiaalindexen o.w.'!N36/'Materiaalindexen o.w.'!N$33=0,NA(),'Materiaalindexen o.w.'!N36/'Materiaalindexen o.w.'!N$33),NA()) -> 1 | Y116: =IFERROR(IF('Materiaalindexen o.w.'!O36/'Materiaalindexen o.w.'!O$33=0,NA(),'Materiaalindexen o.w.'!O36/'Materiaalindexen o.w.'!O$33),NA()) -> 1 | Z116: =IFERROR(IF('Materiaalindexen o.w.'!P36/'Materiaalindexen o.w.'!P$33=0,NA(),'Materiaalindexen o.w.'!P36/'Materiaalindexen o.w.'!P$33),NA()) -> 1 | AA116: =IFERROR(IF('Materiaalindexen o.w.'!Q36/'Materiaalindexen o.w.'!Q$33=0,NA(),'Materiaalindexen o.w.'!Q36/'Materiaalindexen o.w.'!Q$33),NA()) -> 1 | AB116: =IFERROR(IF('Materiaalindexen o.w.'!R36/'Materiaalindexen o.w.'!R$33=0,NA(),'Materiaalindexen o.w.'!R36/'Materiaalindexen o.w.'!R$33),NA()) -> 1 | AC116: =IFERROR(IF('Materiaalindexen o.w.'!S36/'Materiaalindexen o.w.'!S$33=0,NA(),'Materiaalindexen o.w.'!S36/'Materiaalindexen o.w.'!S$33),NA()) -> 1 | AD116: =IFERROR(IF('Materiaalindexen o.w.'!T36/'Materiaalindexen o.w.'!T$33=0,NA(),'Materiaalindexen o.w.'!T36/'Materiaalindexen o.w.'!T$33),NA()) -> 1 | AE116: =IFERROR(IF('Materiaalindexen o.w.'!U36/'Materiaalindexen o.w.'!U$33=0,NA(),'Materiaalindexen o.w.'!U36/'Materiaalindexen o.w.'!U$33),NA()) -> 1 | AF116: =IFERROR(IF('Materiaalindexen o.w.'!V36/'Materiaalindexen o.w.'!V$33=0,NA(),'Materiaalindexen o.w.'!V36/'Materiaalindexen o.w.'!V$33),NA()) -> 1 | AG116: =IFERROR(IF('Materiaalindexen o.w.'!W36/'Materiaalindexen o.w.'!W$33=0,NA(),'Materiaalindexen o.w.'!W36/'Materiaalindexen o.w.'!W$33),NA()) -> 1 | AH116: =IFERROR(IF('Materiaalindexen o.w.'!X36/'Materiaalindexen o.w.'!X$33=0,NA(),'Materiaalindexen o.w.'!X36/'Materiaalindexen o.w.'!X$33),NA()) -> 1 | AI116: =IFERROR(IF('Materiaalindexen o.w.'!Y36/'Materiaalindexen o.w.'!Y$33=0,NA(),'Materiaalindexen o.w.'!Y36/'Materiaalindexen o.w.'!Y$33),NA()) -> 1 | AJ116: =IFERROR(IF('Materiaalindexen o.w.'!Z36/'Materiaalindexen o.w.'!Z$33=0,NA(),'Materiaalindexen o.w.'!Z36/'Materiaalindexen o.w.'!Z$33),NA()) -> 1 | AK116: =IFERROR(IF('Materiaalindexen o.w.'!AA36/'Materiaalindexen o.w.'!AA$33=0,NA(),'Materiaalindexen o.w.'!AA36/'Materiaalindexen o.w.'!AA$33),NA()) -> 1 | AL116: =IFERROR(IF('Materiaalindexen o.w.'!AB36/'Materiaalindexen o.w.'!AB$33=0,NA(),'Materiaalindexen o.w.'!AB36/'Materiaalindexen o.w.'!AB$33),NA()) -> 1.052301255 | AM116: =IFERROR(IF('Materiaalindexen o.w.'!AC36/'Materiaalindexen o.w.'!AC$33=0,NA(),'Materiaalindexen o.w.'!AC36/'Materiaalindexen o.w.'!AC$33),NA()) -> 1.06097561 | AN116: =IFERROR(IF('Materiaalindexen o.w.'!AD36/'Materiaalindexen o.w.'!AD$33=0,NA(),'Materiaalindexen o.w.'!AD36/'Materiaalindexen o.w.'!AD$33),NA()) -> 1.056306306 | AO116: =IFERROR(IF('Materiaalindexen o.w.'!AE36/'Materiaalindexen o.w.'!AE$33=0,NA(),'Materiaalindexen o.w.'!AE36/'Materiaalindexen o.w.'!AE$33),NA()) -> 1.060422961 | AP116: =IFERROR(IF('Materiaalindexen o.w.'!AF36/'Materiaalindexen o.w.'!AF$33=0,NA(),'Materiaalindexen o.w.'!AF36/'Materiaalindexen o.w.'!AF$33),NA()) -> 1.068540096 | AQ116: =IFERROR(IF('Materiaalindexen o.w.'!AG36/'Materiaalindexen o.w.'!AG$33=0,NA(),'Materiaalindexen o.w.'!AG36/'Materiaalindexen o.w.'!AG$33),NA()) -> 1.064226076 | AR116: =IFERROR(IF('Materiaalindexen o.w.'!AH36/'Materiaalindexen o.w.'!AH$33=0,NA(),'Materiaalindexen o.w.'!AH36/'Materiaalindexen o.w.'!AH$33),NA()) -> 1.040263543 | AS116: =IFERROR(IF('Materiaalindexen o.w.'!AI36/'Materiaalindexen o.w.'!AI$33=0,NA(),'Materiaalindexen o.w.'!AI36/'Materiaalindexen o.w.'!AI$33),NA()) -> 1.018009905 | AT116: =IFERROR(IF('Materiaalindexen o.w.'!AJ36/'Materiaalindexen o.w.'!AJ$33=0,NA(),'Materiaalindexen o.w.'!AJ36/'Materiaalindexen o.w.'!AJ$33),NA()) -> 1.017926357 | AU116: =IFERROR(IF('Materiaalindexen o.w.'!AK36/'Materiaalindexen o.w.'!AK$33=0,NA(),'Materiaalindexen o.w.'!AK36/'Materiaalindexen o.w.'!AK$33),NA()) -> 1.017926357 | AV116: =IFERROR(IF('Materiaalindexen o.w.'!AL36/'Materiaalindexen o.w.'!AL$33=0,NA(),'Materiaalindexen o.w.'!AL36/'Materiaalindexen o.w.'!AL$33),NA()) -> 1.017955584 | AW116: =IFERROR(IF('Materiaalindexen o.w.'!AM36/'Materiaalindexen o.w.'!AM$33=0,NA(),'Materiaalindexen o.w.'!AM36/'Materiaalindexen o.w.'!AM$33),NA()) -> 1.011753183 | AX116: =IFERROR(IF('Materiaalindexen o.w.'!AN36/'Materiaalindexen o.w.'!AN$33=0,NA(),'Materiaalindexen o.w.'!AN36/'Materiaalindexen o.w.'!AN$33),NA()) -> 1.012208068 | AY116: =IFERROR(IF('Materiaalindexen o.w.'!AO36/'Materiaalindexen o.w.'!AO$33=0,NA(),'Materiaalindexen o.w.'!AO36/'Materiaalindexen o.w.'!AO$33),NA()) -> 1.011971472 | AZ116: =IFERROR(IF('Materiaalindexen o.w.'!AP36/'Materiaalindexen o.w.'!AP$33=0,NA(),'Materiaalindexen o.w.'!AP36/'Materiaalindexen o.w.'!AP$33),NA()) -> 1.03033419 | BA116: =IFERROR(IF('Materiaalindexen o.w.'!AQ36/'Materiaalindexen o.w.'!AQ$33=0,NA(),'Materiaalindexen o.w.'!AQ36/'Materiaalindexen o.w.'!AQ$33),NA()) -> 1.030752916 | BB116: =IFERROR(IF('Materiaalindexen o.w.'!AR36/'Materiaalindexen o.w.'!AR$33=0,NA(),'Materiaalindexen o.w.'!AR36/'Materiaalindexen o.w.'!AR$33),NA()) -> 1.030335285 | BC116: =IFERROR(IF('Materiaalindexen o.w.'!AS36/'Materiaalindexen o.w.'!AS$33=0,NA(),'Materiaalindexen o.w.'!AS36/'Materiaalindexen o.w.'!AS$33),NA()) -> 1.030472855 | BD116: =IFERROR(IF('Materiaalindexen o.w.'!AT36/'Materiaalindexen o.w.'!AT$33=0,NA(),'Materiaalindexen o.w.'!AT36/'Materiaalindexen o.w.'!AT$33),NA()) -> 1.013977868 | BE116: =IFERROR(IF('Materiaalindexen o.w.'!AU36/'Materiaalindexen o.w.'!AU$33=0,NA(),'Materiaalindexen o.w.'!AU36/'Materiaalindexen o.w.'!AU$33),NA()) -> 0.9884505174 | BF116: =IFERROR(IF('Materiaalindexen o.w.'!AV36/'Materiaalindexen o.w.'!AV$33=0,NA(),'Materiaalindexen o.w.'!AV36/'Materiaalindexen o.w.'!AV$33),NA()) -> 0.9914469722 | BG116: =IFERROR(IF('Materiaalindexen o.w.'!AW36/'Materiaalindexen o.w.'!AW$33=0,NA(),'Materiaalindexen o.w.'!AW36/'Materiaalindexen o.w.'!AW$33),NA()) -> 0.9901720687 | BH116: =IFERROR(IF('Materiaalindexen o.w.'!AX36/'Materiaalindexen o.w.'!AX$33=0,NA(),'Materiaalindexen o.w.'!AX36/'Materiaalindexen o.w.'!AX$33),NA()) -> 1.035365854 | BI116: =IFERROR(IF('Materiaalindexen o.w.'!AY36/'Materiaalindexen o.w.'!AY$33=0,NA(),'Materiaalindexen o.w.'!AY36/'Materiaalindexen o.w.'!AY$33),NA()) -> 1.03542573 | BJ116: =IFERROR(IF('Materiaalindexen o.w.'!AZ36/'Materiaalindexen o.w.'!AZ$33=0,NA(),'Materiaalindexen o.w.'!AZ36/'Materiaalindexen o.w.'!AZ$33),NA()) -> 1.035491905 | BK116: =IFERROR(IF('Materiaalindexen o.w.'!BA36/'Materiaalindexen o.w.'!BA$33=0,NA(),'Materiaalindexen o.w.'!BA36/'Materiaalindexen o.w.'!BA$33),NA()) -> 1.035427394 | BL116: =IFERROR(IF('Materiaalindexen o.w.'!BB36/'Materiaalindexen o.w.'!BB$33=0,NA(),'Materiaalindexen o.w.'!BB36/'Materiaalindexen o.w.'!BB$33),NA()) -> 1.024961793 | BM116: =IFERROR(IF('Materiaalindexen o.w.'!BC36/'Materiaalindexen o.w.'!BC$33=0,NA(),'Materiaalindexen o.w.'!BC36/'Materiaalindexen o.w.'!BC$33),NA()) -> 1.008653846 | BN116: =IFERROR(IF('Materiaalindexen o.w.'!BD36/'Materiaalindexen o.w.'!BD$33=0,NA(),'Materiaalindexen o.w.'!BD36/'Materiaalindexen o.w.'!BD$33),NA()) -> 1.034129693 | BO116: =IFERROR(IF('Materiaalindexen o.w.'!BE36/'Materiaalindexen o.w.'!BE$33=0,NA(),'Materiaalindexen o.w.'!BE36/'Materiaalindexen o.w.'!BE$33),NA()) -> 0.9044963402 | BP116: =IFERROR(IF('Materiaalindexen o.w.'!BF36/'Materiaalindexen o.w.'!BF$33=0,NA(),'Materiaalindexen o.w.'!BF36/'Materiaalindexen o.w.'!BF$33),NA()) -> 0.9596410592 | BQ116: =IFERROR(IF('Materiaalindexen o.w.'!BG36/'Materiaalindexen o.w.'!BG$33=0,NA(),'Materiaalindexen o.w.'!BG36/'Materiaalindexen o.w.'!BG$33),NA()) -> 0.9206586826 | BR116: =IFERROR(IF('Materiaalindexen o.w.'!BH36/'Materiaalindexen o.w.'!BH$33=0,NA(),'Materiaalindexen o.w.'!BH36/'Materiaalindexen o.w.'!BH$33),NA()) -> 1.018939394 | BS116: =IFERROR(IF('Materiaalindexen o.w.'!BI36/'Materiaalindexen o.w.'!BI$33=0,NA(),'Materiaalindexen o.w.'!BI36/'Materiaalindexen o.w.'!BI$33),NA()) -> 0.9864498645 | BT116: =IFERROR(IF('Materiaalindexen o.w.'!BJ36/'Materiaalindexen o.w.'!BJ$33=0,NA(),'Materiaalindexen o.w.'!BJ36/'Materiaalindexen o.w.'!BJ$33),NA()) -> 0.9845559846 | BU116: =IFERROR(IF('Materiaalindexen o.w.'!BK36/'Materiaalindexen o.w.'!BK$33=0,NA(),'Materiaalindexen o.w.'!BK36/'Materiaalindexen o.w.'!BK$33),NA()) -> 0.9851657941 | BV116: =IFERROR(IF('Materiaalindexen o.w.'!BL36/'Materiaalindexen o.w.'!BL$33=0,NA(),'Materiaalindexen o.w.'!BL36/'Materiaalindexen o.w.'!BL$33),NA()) -> 0.9924698795 | BW116: =IFERROR(IF('Materiaalindexen o.w.'!BM36/'Materiaalindexen o.w.'!BM$33=0,NA(),'Materiaalindexen o.w.'!BM36/'Materiaalindexen o.w.'!BM$33),NA()) -> 1.013597033 | BX116: =IFERROR(IF('Materiaalindexen o.w.'!BN36/'Materiaalindexen o.w.'!BN$33=0,NA(),'Materiaalindexen o.w.'!BN36/'Materiaalindexen o.w.'!BN$33),NA()) -> 1.00407332 | BY116: =IFERROR(IF('Materiaalindexen o.w.'!BO36/'Materiaalindexen o.w.'!BO$33=0,NA(),'Materiaalindexen o.w.'!BO36/'Materiaalindexen o.w.'!BO$33),NA()) -> 0.9968503937 | BZ116: =IFERROR(IF('Materiaalindexen o.w.'!BP36/'Materiaalindexen o.w.'!BP$33=0,NA(),'Materiaalindexen o.w.'!BP36/'Materiaalindexen o.w.'!BP$33),NA()) -> 0.9885620915 | CA116: =IFERROR(IF('Materiaalindexen o.w.'!BQ36/'Materiaalindexen o.w.'!BQ$33=0,NA(),'Materiaalindexen o.w.'!BQ36/'Materiaalindexen o.w.'!BQ$33),NA()) -> 1 | CB116: =IFERROR(IF('Materiaalindexen o.w.'!BR36/'Materiaalindexen o.w.'!BR$33=0,NA(),'Materiaalindexen o.w.'!BR36/'Materiaalindexen o.w.'!BR$33),NA()) -> 1 | CC116: =IFERROR(IF('Materiaalindexen o.w.'!BS36/'Materiaalindexen o.w.'!BS$33=0,NA(),'Materiaalindexen o.w.'!BS36/'Materiaalindexen o.w.'!BS$33),NA()) -> 1 | CD116: =IFERROR(IF('Materiaalindexen o.w.'!BT36/'Materiaalindexen o.w.'!BT$33=0,NA(),'Materiaalindexen o.w.'!BT36/'Materiaalindexen o.w.'!BT$33),NA()) -> 1 | CE116: =IFERROR(IF('Materiaalindexen o.w.'!BU36/'Materiaalindexen o.w.'!BU$33=0,NA(),'Materiaalindexen o.w.'!BU36/'Materiaalindexen o.w.'!BU$33),NA()) -> 1 | CF116: =IFERROR(IF('Materiaalindexen o.w.'!BV36/'Materiaalindexen o.w.'!BV$33=0,NA(),'Materiaalindexen o.w.'!BV36/'Materiaalindexen o.w.'!BV$33),NA()) -> 1 | CG116: =IFERROR(IF('Materiaalindexen o.w.'!BW36/'Materiaalindexen o.w.'!BW$33=0,NA(),'Materiaalindexen o.w.'!BW36/'Materiaalindexen o.w.'!BW$33),NA()) -> 0.9906018606 | CH116: =IFERROR(IF('Materiaalindexen o.w.'!BX36/'Materiaalindexen o.w.'!BX$33=0,NA(),'Materiaalindexen o.w.'!BX36/'Materiaalindexen o.w.'!BX$33),NA()) -> 0.9907662257 | CI116: =IFERROR(IF('Materiaalindexen o.w.'!BY36/'Materiaalindexen o.w.'!BY$33=0,NA(),'Materiaalindexen o.w.'!BY36/'Materiaalindexen o.w.'!BY$33),NA()) -> 0.9906784469 | CJ116: =IFERROR(IF('Materiaalindexen o.w.'!BZ36/'Materiaalindexen o.w.'!BZ$33=0,NA(),'Materiaalindexen o.w.'!BZ36/'Materiaalindexen o.w.'!BZ$33),NA()) -> 0.9906473049 | CK116: =IFERROR(IF('Materiaalindexen o.w.'!CA36/'Materiaalindexen o.w.'!CA$33=0,NA(),'Materiaalindexen o.w.'!CA36/'Materiaalindexen o.w.'!CA$33),NA()) -> 0.9906741791 | CL116: =IFERROR(IF('Materiaalindexen o.w.'!CB36/'Materiaalindexen o.w.'!CB$33=0,NA(),'Materiaalindexen o.w.'!CB36/'Materiaalindexen o.w.'!CB$33),NA()) -> 1 | CM116: =IFERROR(IF('Materiaalindexen o.w.'!CC36/'Materiaalindexen o.w.'!CC$33=0,NA(),'Materiaalindexen o.w.'!CC36/'Materiaalindexen o.w.'!CC$33),NA()) -> 1 | CN116: =IFERROR(IF('Materiaalindexen o.w.'!CD36/'Materiaalindexen o.w.'!CD$33=0,NA(),'Materiaalindexen o.w.'!CD36/'Materiaalindexen o.w.'!CD$33),NA()) -> 1 | CO116: =IFERROR(IF('Materiaalindexen o.w.'!CE36/'Materiaalindexen o.w.'!CE$33=0,NA(),'Materiaalindexen o.w.'!CE36/'Materiaalindexen o.w.'!CE$33),NA()) -> 1 | CP116: =IFERROR(IF('Materiaalindexen o.w.'!CF36/'Materiaalindexen o.w.'!CF$33=0,NA(),'Materiaalindexen o.w.'!CF36/'Materiaalindexen o.w.'!CF$33),NA()) -> 1 | CQ116: =IFERROR(IF('Materiaalindexen o.w.'!CG36/'Materiaalindexen o.w.'!CG$33=0,NA(),'Materiaalindexen o.w.'!CG36/'Materiaalindexen o.w.'!CG$33),NA()) -> 1 | CR116: =IFERROR(IF('Materiaalindexen o.w.'!CH36/'Materiaalindexen o.w.'!CH$33=0,NA(),'Materiaalindexen o.w.'!CH36/'Materiaalindexen o.w.'!CH$33),NA()) -> 1 | CS116: =IFERROR(IF('Materiaalindexen o.w.'!CI36/'Materiaalindexen o.w.'!CI$33=0,NA(),'Materiaalindexen o.w.'!CI36/'Materiaalindexen o.w.'!CI$33),NA()) -> 1 | CT116: =IFERROR(IF('Materiaalindexen o.w.'!CJ36/'Materiaalindexen o.w.'!CJ$33=0,NA(),'Materiaalindexen o.w.'!CJ36/'Materiaalindexen o.w.'!CJ$33),NA()) -> 1 | CU116: =IFERROR(IF('Materiaalindexen o.w.'!CK36/'Materiaalindexen o.w.'!CK$33=0,NA(),'Materiaalindexen o.w.'!CK36/'Materiaalindexen o.w.'!CK$33),NA()) -> 1.030645785 | CV116: =IFERROR(IF('Materiaalindexen o.w.'!CL36/'Materiaalindexen o.w.'!CL$33=0,NA(),'Materiaalindexen o.w.'!CL36/'Materiaalindexen o.w.'!CL$33),NA()) -> 1.030612245 | CW116: =IFERROR(IF('Materiaalindexen o.w.'!CM36/'Materiaalindexen o.w.'!CM$33=0,NA(),'Materiaalindexen o.w.'!CM36/'Materiaalindexen o.w.'!CM$33),NA()) -> 1.030672196 | CX116: =IFERROR(IF('Materiaalindexen o.w.'!CN36/'Materiaalindexen o.w.'!CN$33=0,NA(),'Materiaalindexen o.w.'!CN36/'Materiaalindexen o.w.'!CN$33),NA()) -> 1.03064315 | CY116: =IFERROR(IF('Materiaalindexen o.w.'!CO36/'Materiaalindexen o.w.'!CO$33=0,NA(),'Materiaalindexen o.w.'!CO36/'Materiaalindexen o.w.'!CO$33),NA()) -> 1.022940955 | CZ116: =IFERROR(IF('Materiaalindexen o.w.'!CP36/'Materiaalindexen o.w.'!CP$33=0,NA(),'Materiaalindexen o.w.'!CP36/'Materiaalindexen o.w.'!CP$33),NA()) -> 1.022953328 | DA116: =IFERROR(IF('Materiaalindexen o.w.'!CQ36/'Materiaalindexen o.w.'!CQ$33=0,NA(),'Materiaalindexen o.w.'!CQ36/'Materiaalindexen o.w.'!CQ$33),NA()) -> 1.022947089 | DB116: =IFERROR(IF('Materiaalindexen o.w.'!CR36/'Materiaalindexen o.w.'!CR$33=0,NA(),'Materiaalindexen o.w.'!CR36/'Materiaalindexen o.w.'!CR$33),NA()) -> 1.015136226 | DC116: =IFERROR(IF('Materiaalindexen o.w.'!CS36/'Materiaalindexen o.w.'!CS$33=0,NA(),'Materiaalindexen o.w.'!CS36/'Materiaalindexen o.w.'!CS$33),NA()) -> 1.015128593 | DD116: =IFERROR(IF('Materiaalindexen o.w.'!CT36/'Materiaalindexen o.w.'!CT$33=0,NA(),'Materiaalindexen o.w.'!CT36/'Materiaalindexen o.w.'!CT$33),NA()) -> 1.017611218 | DE116: =IFERROR(IF('Materiaalindexen o.w.'!CU36/'Materiaalindexen o.w.'!CU$33=0,NA(),'Materiaalindexen o.w.'!CU36/'Materiaalindexen o.w.'!CU$33),NA()) -> 1.015962651 | DF116: =IFERROR(IF('Materiaalindexen o.w.'!CV36/'Materiaalindexen o.w.'!CV$33=0,NA(),'Materiaalindexen o.w.'!CV36/'Materiaalindexen o.w.'!CV$33),NA()) -> 0.9485523385 | DG116: =IFERROR(IF('Materiaalindexen o.w.'!CW36/'Materiaalindexen o.w.'!CW$33=0,NA(),'Materiaalindexen o.w.'!CW36/'Materiaalindexen o.w.'!CW$33),NA()) -> 0.9731015292 | DH116: =IFERROR(IF('Materiaalindexen o.w.'!CX36/'Materiaalindexen o.w.'!CX$33=0,NA(),'Materiaalindexen o.w.'!CX36/'Materiaalindexen o.w.'!CX$33),NA()) -> 0.9648003486 | DI116: =IFERROR(IF('Materiaalindexen o.w.'!CY36/'Materiaalindexen o.w.'!CY$33=0,NA(),'Materiaalindexen o.w.'!CY36/'Materiaalindexen o.w.'!CY$33),NA()) -> 0.9695057834 | DJ116: =IFERROR(IF('Materiaalindexen o.w.'!CZ36/'Materiaalindexen o.w.'!CZ$33=0,NA(),'Materiaalindexen o.w.'!CZ36/'Materiaalindexen o.w.'!CZ$33),NA()) -> 1 | DK116: =IFERROR(IF('Materiaalindexen o.w.'!DA36/'Materiaalindexen o.w.'!DA$33=0,NA(),'Materiaalindexen o.w.'!DA36/'Materiaalindexen o.w.'!DA$33),NA()) -> 1 | DL116: =IFERROR(IF('Materiaalindexen o.w.'!DB36/'Materiaalindexen o.w.'!DB$33=0,NA(),'Materiaalindexen o.w.'!DB36/'Materiaalindexen o.w.'!DB$33),NA()) -> 1.020011435 | DM116: =IFERROR(IF('Materiaalindexen o.w.'!DC36/'Materiaalindexen o.w.'!DC$33=0,NA(),'Materiaalindexen o.w.'!DC36/'Materiaalindexen o.w.'!DC$33),NA()) -> 1.017630465 | DN116: =IFERROR(IF('Materiaalindexen o.w.'!DD36/'Materiaalindexen o.w.'!DD$33=0,NA(),'Materiaalindexen o.w.'!DD36/'Materiaalindexen o.w.'!DD$33),NA()) -> 0.9816980173 | DO116: =IFERROR(IF('Materiaalindexen o.w.'!DE36/'Materiaalindexen o.w.'!DE$33=0,NA(),'Materiaalindexen o.w.'!DE36/'Materiaalindexen o.w.'!DE$33),NA()) -> 1.026743075 | DP116: =IFERROR(IF('Materiaalindexen o.w.'!DF36/'Materiaalindexen o.w.'!DF$33=0,NA(),'Materiaalindexen o.w.'!DF36/'Materiaalindexen o.w.'!DF$33),NA()) -> 1.041089965 | DQ116: =IFERROR(IF('Materiaalindexen o.w.'!DG36/'Materiaalindexen o.w.'!DG$33=0,NA(),'Materiaalindexen o.w.'!DG36/'Materiaalindexen o.w.'!DG$33),NA()) -> 0.9920105549 | DR116: =IFERROR(IF('Materiaalindexen o.w.'!DH36/'Materiaalindexen o.w.'!DH$33=0,NA(),'Materiaalindexen o.w.'!DH36/'Materiaalindexen o.w.'!DH$33),NA()) -> 0.9841657935 | DS116: =IFERROR(IF('Materiaalindexen o.w.'!DI36/'Materiaalindexen o.w.'!DI$33=0,NA(),'Materiaalindexen o.w.'!DI36/'Materiaalindexen o.w.'!DI$33),NA()) -> 1.000439367 | DT116: =IFERROR(IF('Materiaalindexen o.w.'!DJ36/'Materiaalindexen o.w.'!DJ$33=0,NA(),'Materiaalindexen o.w.'!DJ36/'Materiaalindexen o.w.'!DJ$33),NA()) -> 1.005940034 | DU116: =IFERROR(IF('Materiaalindexen o.w.'!DK36/'Materiaalindexen o.w.'!DK$33=0,NA(),'Materiaalindexen o.w.'!DK36/'Materiaalindexen o.w.'!DK$33),NA()) -> 0.8888888889 | DV116: =IFERROR(IF('Materiaalindexen o.w.'!DL36/'Materiaalindexen o.w.'!DL$33=0,NA(),'Materiaalindexen o.w.'!DL36/'Materiaalindexen o.w.'!DL$33),NA()) -> 1.004888596 | DW116: =IFERROR(IF('Materiaalindexen o.w.'!DM36/'Materiaalindexen o.w.'!DM$33=0,NA(),'Materiaalindexen o.w.'!DM36/'Materiaalindexen o.w.'!DM$33),NA()) -> 1.002868069 | EA116: 2018-04-01 | EB116: =IFERROR(IF('Indexen goederen & diensten'!C30/'Indexen goederen & diensten'!C$27=0,NA(),'Indexen goederen & diensten'!C30/'Indexen goederen & diensten'!C$27),NA()) -> 1.00619469 | EC116: =IFERROR(IF('Indexen goederen & diensten'!D30/'Indexen goederen & diensten'!D$27=0,NA(),'Indexen goederen & diensten'!D30/'Indexen goederen & diensten'!D$27),NA()) -> 1.05861244 | ED116: =IFERROR(IF('Indexen goederen & diensten'!E30/'Indexen goederen & diensten'!E$27=0,NA(),'Indexen goederen & diensten'!E30/'Indexen goederen & diensten'!E$27),NA()) -> 1.023430178 | EE116: =IFERROR(IF('Indexen goederen & diensten'!F30/'Indexen goederen & diensten'!F$27=0,NA(),'Indexen goederen & diensten'!F30/'Indexen goederen & diensten'!F$27),NA()) -> 0.9990740741 | EF116: =IFERROR(IF('Indexen goederen & diensten'!G30/'Indexen goederen & diensten'!G$27=0,NA(),'Indexen goederen & diensten'!G30/'Indexen goederen & diensten'!G$27),NA()) -> 1.00170503 | EG116: =IFERROR(IF('Indexen goederen & diensten'!H30/'Indexen goederen & diensten'!H$27=0,NA(),'Indexen goederen & diensten'!H30/'Indexen goederen & diensten'!H$27),NA()) -> 0.9680111266 | EH116: =IFERROR(IF('Indexen goederen & diensten'!I30/'Indexen goederen & diensten'!I$27=0,NA(),'Indexen goederen & diensten'!I30/'Indexen goederen & diensten'!I$27),NA()) -> 1.003676471 | EI116: =IFERROR(IF('Indexen goederen & diensten'!J30/'Indexen goederen & diensten'!J$27=0,NA(),'Indexen goederen & diensten'!J30/'Indexen goederen & diensten'!J$27),NA()) -> 0.9955357143 | EJ116: =IFERROR(IF('Indexen goederen & diensten'!K30/'Indexen goederen & diensten'!K$27=0,NA(),'Indexen goederen & diensten'!K30/'Indexen goederen & diensten'!K$27),NA()) -> 1 | EK116: =IFERROR(IF('Indexen goederen & diensten'!L30/'Indexen goederen & diensten'!L$27=0,NA(),'Indexen goederen & diensten'!L30/'Indexen goederen & diensten'!L$27),NA()) -> 1.006161972 | EL116: =IFERROR(IF('Indexen goederen & diensten'!M30/'Indexen goederen & diensten'!M$27=0,NA(),'Indexen goederen & diensten'!M30/'Indexen goederen & diensten'!M$27),NA()) -> 1.004052685 | EM116: =IFERROR(IF('Indexen goederen & diensten'!N30/'Indexen goederen & diensten'!N$27=0,NA(),'Indexen goederen & diensten'!N30/'Indexen goederen & diensten'!N$27),NA()) -> 1 | EN116: =IFERROR(IF('Indexen goederen & diensten'!O30/'Indexen goederen & diensten'!O$27=0,NA(),'Indexen goederen & diensten'!O30/'Indexen goederen & diensten'!O$27),NA()) -> 0.976744186 | EO116: =IFERROR(IF('Indexen goederen & diensten'!P30/'Indexen goederen & diensten'!P$27=0,NA(),'Indexen goederen & diensten'!P30/'Indexen goederen & diensten'!P$27),NA()) -> 1.012533572 | EP116: =IFERROR(IF('Indexen goederen & diensten'!Q30/'Indexen goederen & diensten'!Q$27=0,NA(),'Indexen goederen & diensten'!Q30/'Indexen goederen & diensten'!Q$27),NA()) -> 1.013220019 | EQ116: =IFERROR(IF('Indexen goederen & diensten'!R30/'Indexen goederen & diensten'!R$27=0,NA(),'Indexen goederen & diensten'!R30/'Indexen goederen & diensten'!R$27),NA()) -> 1.015178571 | ER116: =IFERROR(IF('Indexen goederen & diensten'!S30/'Indexen goederen & diensten'!S$27=0,NA(),'Indexen goederen & diensten'!S30/'Indexen goederen & diensten'!S$27),NA()) -> 1.015748031 | ES116: =IFERROR(IF('Indexen goederen & diensten'!T30/'Indexen goederen & diensten'!T$27=0,NA(),'Indexen goederen & diensten'!T30/'Indexen goederen & diensten'!T$27),NA()) -> 1.020140105 | ET116: =IFERROR(IF('Indexen goederen & diensten'!U30/'Indexen goederen & diensten'!U$27=0,NA(),'Indexen goederen & diensten'!U30/'Indexen goederen & diensten'!U$27),NA()) -> 1.025069638 | EU116: =IFERROR(IF('Indexen goederen & diensten'!V30/'Indexen goederen & diensten'!V$27=0,NA(),'Indexen goederen & diensten'!V30/'Indexen goederen & diensten'!V$27),NA()) -> 1.008807046 | EV116: =IFERROR(IF('Indexen goederen & diensten'!W30/'Indexen goederen & diensten'!W$27=0,NA(),'Indexen goederen & diensten'!W30/'Indexen goederen & diensten'!W$27),NA()) -> 1.009495982 | EW116: =IFERROR(IF('Indexen goederen & diensten'!X30/'Indexen goederen & diensten'!X$27=0,NA(),'Indexen goederen & diensten'!X30/'Indexen goederen & diensten'!X$27),NA()) -> 1.007778738 | EX116: =IFERROR(IF('Indexen goederen & diensten'!Y30/'Indexen goederen & diensten'!Y$27=0,NA(),'Indexen goederen & diensten'!Y30/'Indexen goederen & diensten'!Y$27),NA()) -> 0.9802575107 | EY116: =IFERROR(IF('Indexen goederen & diensten'!Z30/'Indexen goederen & diensten'!Z$27=0,NA(),'Indexen goederen & diensten'!Z30/'Indexen goederen & diensten'!Z$27),NA()) -> 0.8878416588 | EZ116: =IFERROR(IF('Indexen goederen & diensten'!AA30/'Indexen goederen & diensten'!AA$27=0,NA(),'Indexen goederen & diensten'!AA30/'Indexen goederen & diensten'!AA$27),NA()) -> 1.019392917 | FA116: =IFERROR(IF('Indexen goederen & diensten'!AB30/'Indexen goederen & diensten'!AB$27=0,NA(),'Indexen goederen & diensten'!AB30/'Indexen goederen & diensten'!AB$27),NA()) -> 1.027027027 | FB116: =IFERROR(IF('Indexen goederen & diensten'!AC30/'Indexen goederen & diensten'!AC$27=0,NA(),'Indexen goederen & diensten'!AC30/'Indexen goederen & diensten'!AC$27),NA()) -> 1.017751479 | FC116: =IFERROR(IF('Indexen goederen & diensten'!AD30/'Indexen goederen & diensten'!AD$27=0,NA(),'Indexen goederen & diensten'!AD30/'Indexen goederen & diensten'!AD$27),NA()) -> 1.007849294 | FD116: =IFERROR(IF('Indexen goederen & diensten'!AE30/'Indexen goederen & diensten'!AE$27=0,NA(),'Indexen goederen & diensten'!AE30/'Indexen goederen & diensten'!AE$27),NA()) -> 1.000868056 | FE116: =IFERROR(IF('Indexen goederen & diensten'!AF30/'Indexen goederen & diensten'!AF$27=0,NA(),'Indexen goederen & diensten'!AF30/'Indexen goederen & diensten'!AF$27),NA()) -> 1.017905103 | FF116: =IFERROR(IF('Indexen goederen & diensten'!AG30/'Indexen goederen & diensten'!AG$27=0,NA(),'Indexen goederen & diensten'!AG30/'Indexen goederen & diensten'!AG$27),NA()) -> 1.028673835 | FG116: =IFERROR(IF('Indexen goederen & diensten'!AH30/'Indexen goederen & diensten'!AH$27=0,NA(),'Indexen goederen & diensten'!AH30/'Indexen goederen & diensten'!AH$27),NA()) -> 0.9868651489 | FH116: =IFERROR(IF('Indexen goederen & diensten'!AI30/'Indexen goederen & diensten'!AI$27=0,NA(),'Indexen goederen & diensten'!AI30/'Indexen goederen & diensten'!AI$27),NA()) -> 0.992248062 | FI116: =IFERROR(IF('Indexen goederen & diensten'!AJ30/'Indexen goederen & diensten'!AJ$27=0,NA(),'Indexen goederen & diensten'!AJ30/'Indexen goederen & diensten'!AJ$27),NA()) -> 0.9533437014 | FJ116: =IFERROR(IF('Indexen goederen & diensten'!AK30/'Indexen goederen & diensten'!AK$27=0,NA(),'Indexen goederen & diensten'!AK30/'Indexen goederen & diensten'!AK$27),NA()) -> 0.9994626545 | FK116: =IFERROR(IF('Indexen goederen & diensten'!AL30/'Indexen goederen & diensten'!AL$27=0,NA(),'Indexen goederen & diensten'!AL30/'Indexen goederen & diensten'!AL$27),NA()) -> 1.031551271 | FL116: =IFERROR(IF('Indexen goederen & diensten'!AM30/'Indexen goederen & diensten'!AM$27=0,NA(),'Indexen goederen & diensten'!AM30/'Indexen goederen & diensten'!AM$27),NA()) -> 1.004669261 | FM116: =IFERROR(IF('Indexen goederen & diensten'!AN30/'Indexen goederen & diensten'!AN$27=0,NA(),'Indexen goederen & diensten'!AN30/'Indexen goederen & diensten'!AN$27),NA()) -> 1.005314438 | FN116: =IFERROR(IF('Indexen goederen & diensten'!AO30/'Indexen goederen & diensten'!AO$27=0,NA(),'Indexen goederen & diensten'!AO30/'Indexen goederen & diensten'!AO$27),NA()) -> 0.9982222222 | FO116: =IFERROR(IF('Indexen goederen & diensten'!AP30/'Indexen goederen & diensten'!AP$27=0,NA(),'Indexen goederen & diensten'!AP30/'Indexen goederen & diensten'!AP$27),NA()) -> 1.006205674 | FP116: =IFERROR(IF('Indexen goederen & diensten'!AQ30/'Indexen goederen & diensten'!AQ$27=0,NA(),'Indexen goederen & diensten'!AQ30/'Indexen goederen & diensten'!AQ$27),NA()) -> 0.9950738916 | FQ116: =IFERROR(IF('Indexen goederen & diensten'!AR30/'Indexen goederen & diensten'!AR$27=0,NA(),'Indexen goederen & diensten'!AR30/'Indexen goederen & diensten'!AR$27),NA()) -> 1.006339144 | FR116: =IFERROR(IF('Indexen goederen & diensten'!AS30/'Indexen goederen & diensten'!AS$27=0,NA(),'Indexen goederen & diensten'!AS30/'Indexen goederen & diensten'!AS$27),NA()) -> 1.034816248 | FS116: =IFERROR(IF('Indexen goederen & diensten'!AT30/'Indexen goederen & diensten'!AT$27=0,NA(),'Indexen goederen & diensten'!AT30/'Indexen goederen & diensten'!AT$27),NA()) -> 1.019924099 | FT116: =IFERROR(IF('Indexen goederen & diensten'!AU30/'Indexen goederen & diensten'!AU$27=0,NA(),'Indexen goederen & diensten'!AU30/'Indexen goederen & diensten'!AU$27),NA()) -> 1.036253776 | FU116: =IFERROR(IF('Indexen goederen & diensten'!AV30/'Indexen goederen & diensten'!AV$27=0,NA(),'Indexen goederen & diensten'!AV30/'Indexen goederen & diensten'!AV$27),NA()) -> 1.102996255 | FV116: =IFERROR(IF('Indexen goederen & diensten'!AW30/'Indexen goederen & diensten'!AW$27=0,NA(),'Indexen goederen & diensten'!AW30/'Indexen goederen & diensten'!AW$27),NA()) -> 1.01453958 | FW116: =IFERROR(IF('Indexen goederen & diensten'!AX30/'Indexen goederen & diensten'!AX$27=0,NA(),'Indexen goederen & diensten'!AX30/'Indexen goederen & diensten'!AX$27),NA()) -> 1.01453958 | FX116: =IFERROR(IF('Indexen goederen & diensten'!AY30/'Indexen goederen & diensten'!AY$27=0,NA(),'Indexen goederen & diensten'!AY30/'Indexen goederen & diensten'!AY$27),NA()) -> 1.003944773 | FY116: =IFERROR(IF('Indexen goederen & diensten'!AZ30/'Indexen goederen & diensten'!AZ$27=0,NA(),'Indexen goederen & diensten'!AZ30/'Indexen goederen & diensten'!AZ$27),NA()) -> 1.003080082 | FZ116: =IFERROR(IF('Indexen goederen & diensten'!BA30/'Indexen goederen & diensten'!BA$27=0,NA(),'Indexen goederen & diensten'!BA30/'Indexen goederen & diensten'!BA$27),NA()) -> 1.021718602 | GA116: =IFERROR(IF('Indexen goederen & diensten'!BB30/'Indexen goederen & diensten'!BB$27=0,NA(),'Indexen goederen & diensten'!BB30/'Indexen goederen & diensten'!BB$27),NA()) -> 1.027372263 | GB116: =IFERROR(IF('Indexen goederen & diensten'!BC30/'Indexen goederen & diensten'!BC$27=0,NA(),'Indexen goederen & diensten'!BC30/'Indexen goederen & diensten'!BC$27),NA()) -> 1.019547325 | GC116: =IFERROR(IF('Indexen goederen & diensten'!BD30/'Indexen goederen & diensten'!BD$27=0,NA(),'Indexen goederen & diensten'!BD30/'Indexen goederen & diensten'!BD$27),NA()) -> 0.996039604 | GD116: =IFERROR(IF('Indexen goederen & diensten'!BE30/'Indexen goederen & diensten'!BE$27=0,NA(),'Indexen goederen & diensten'!BE30/'Indexen goederen & diensten'!BE$27),NA()) -> 1.00280112 | GE116: =IFERROR(IF('Indexen goederen & diensten'!BF30/'Indexen goederen & diensten'!BF$27=0,NA(),'Indexen goederen & diensten'!BF30/'Indexen goederen & diensten'!BF$27),NA()) -> 1.0168 | GF116: =IFERROR(IF('Indexen goederen & diensten'!BG30/'Indexen goederen & diensten'!BG$27=0,NA(),'Indexen goederen & diensten'!BG30/'Indexen goederen & diensten'!BG$27),NA()) -> 0.9959216966 | GG116: =IFERROR(IF('Indexen goederen & diensten'!BH30/'Indexen goederen & diensten'!BH$27=0,NA(),'Indexen goederen & diensten'!BH30/'Indexen goederen & diensten'!BH$27),NA()) -> 1.03046875 | GH116: =IFERROR(IF('Indexen goederen & diensten'!BI30/'Indexen goederen & diensten'!BI$27=0,NA(),'Indexen goederen & diensten'!BI30/'Indexen goederen & diensten'!BI$27),NA()) -> 1.002843602 | GI116: =IFERROR(IF('Indexen goederen & diensten'!BJ30/'Indexen goederen & diensten'!BJ$27=0,NA(),'Indexen goederen & diensten'!BJ30/'Indexen goederen & diensten'!BJ$27),NA()) -> 1.001893939 | GJ116: =IFERROR(IF('Indexen goederen & diensten'!BK30/'Indexen goederen & diensten'!BK$27=0,NA(),'Indexen goederen & diensten'!BK30/'Indexen goederen & diensten'!BK$27),NA()) -> 0.9760273973 | GK116: =IFERROR(IF('Indexen goederen & diensten'!BL30/'Indexen goederen & diensten'!BL$27=0,NA(),'Indexen goederen & diensten'!BL30/'Indexen goederen & diensten'!BL$27),NA()) -> 0.9807017544 | GL116: =IFERROR(IF('Indexen goederen & diensten'!BM30/'Indexen goederen & diensten'!BM$27=0,NA(),'Indexen goederen & diensten'!BM30/'Indexen goederen & diensten'!BM$27),NA()) -> 1.019467213 | GM116: =IFERROR(IF('Indexen goederen & diensten'!BN30/'Indexen goederen & diensten'!BN$27=0,NA(),'Indexen goederen & diensten'!BN30/'Indexen goederen & diensten'!BN$27),NA()) -> 1.025800712 | GN116: =IFERROR(IF('Indexen goederen & diensten'!BO30/'Indexen goederen & diensten'!BO$27=0,NA(),'Indexen goederen & diensten'!BO30/'Indexen goederen & diensten'!BO$27),NA()) -> 1.023923445 | GO116: =IFERROR(IF('Indexen goederen & diensten'!BP30/'Indexen goederen & diensten'!BP$27=0,NA(),'Indexen goederen & diensten'!BP30/'Indexen goederen & diensten'!BP$27),NA()) -> 1.008992806 | GP116: =IFERROR(IF('Indexen goederen & diensten'!BQ30/'Indexen goederen & diensten'!BQ$27=0,NA(),'Indexen goederen & diensten'!BQ30/'Indexen goederen & diensten'!BQ$27),NA()) -> 1.012844037 | GQ116: =IFERROR(IF('Indexen goederen & diensten'!BR30/'Indexen goederen & diensten'!BR$27=0,NA(),'Indexen goederen & diensten'!BR30/'Indexen goederen & diensten'!BR$27),NA()) -> 1.00174216 | GR116: =IFERROR(IF('Indexen goederen & diensten'!BS30/'Indexen goederen & diensten'!BS$27=0,NA(),'Indexen goederen & diensten'!BS30/'Indexen goederen & diensten'!BS$27),NA()) -> 1.011456628 | GS116: =IFERROR(IF('Indexen goederen & diensten'!BT30/'Indexen goederen & diensten'!BT$27=0,NA(),'Indexen goederen & diensten'!BT30/'Indexen goederen & diensten'!BT$27),NA()) -> 1.010507881 | GT116: =IFERROR(IF('Indexen goederen & diensten'!BU30/'Indexen goederen & diensten'!BU$27=0,NA(),'Indexen goederen & diensten'!BU30/'Indexen goederen & diensten'!BU$27),NA()) -> 1.023674242 | GU116: =IFERROR(IF('Indexen goederen & diensten'!BV30/'Indexen goederen & diensten'!BV$27=0,NA(),'Indexen goederen & diensten'!BV30/'Indexen goederen & diensten'!BV$27),NA()) -> 1 | GV116: =IFERROR(IF('Indexen goederen & diensten'!BW30/'Indexen goederen & diensten'!BW$27=0,NA(),'Indexen goederen & diensten'!BW30/'Indexen goederen & diensten'!BW$27),NA()) -> 1.011304348 | GW116: =IFERROR(IF('Indexen goederen & diensten'!BX30/'Indexen goederen & diensten'!BX$27=0,NA(),'Indexen goederen & diensten'!BX30/'Indexen goederen & diensten'!BX$27),NA()) -> 0.9842814371 | GX116: =IFERROR(IF('Indexen goederen & diensten'!BY30/'Indexen goederen & diensten'!BY$27=0,NA(),'Indexen goederen & diensten'!BY30/'Indexen goederen & diensten'!BY$27),NA()) -> 1.019572954 | GY116: =IFERROR(IF('Indexen goederen & diensten'!BZ30/'Indexen goederen & diensten'!BZ$27=0,NA(),'Indexen goederen & diensten'!BZ30/'Indexen goederen & diensten'!BZ$27),NA()) -> 1.059019119 | GZ116: =IFERROR(IF('Indexen goederen & diensten'!CA30/'Indexen goederen & diensten'!CA$27=0,NA(),'Indexen goederen & diensten'!CA30/'Indexen goederen & diensten'!CA$27),NA()) -> 1.004643963 | HA116: =IFERROR(IF('Indexen goederen & diensten'!CB30/'Indexen goederen & diensten'!CB$27=0,NA(),'Indexen goederen & diensten'!CB30/'Indexen goederen & diensten'!CB$27),NA()) -> 1.00088574 | HB116: =IFERROR(IF('Indexen goederen & diensten'!CC30/'Indexen goederen & diensten'!CC$27=0,NA(),'Indexen goederen & diensten'!CC30/'Indexen goederen & diensten'!CC$27),NA()) -> 1.010110294 | HC116: =IFERROR(IF('Indexen goederen & diensten'!CD30/'Indexen goederen & diensten'!CD$27=0,NA(),'Indexen goederen & diensten'!CD30/'Indexen goederen & diensten'!CD$27),NA()) -> 1.00199005 | HD116: =IFERROR(IF('Indexen goederen & diensten'!CE30/'Indexen goederen & diensten'!CE$27=0,NA(),'Indexen goederen & diensten'!CE30/'Indexen goederen & diensten'!CE$27),NA()) -> 1.005267779 | HE116: =IFERROR(IF('Indexen goederen & diensten'!CF30/'Indexen goederen & diensten'!CF$27=0,NA(),'Indexen goederen & diensten'!CF30/'Indexen goederen & diensten'!CF$27),NA()) -> 1 | HF116: =IFERROR(IF('Indexen goederen & diensten'!CG30/'Indexen goederen & diensten'!CG$27=0,NA(),'Indexen goederen & diensten'!CG30/'Indexen goederen & diensten'!CG$27),NA()) -> 1.000888889 | HG116: =IFERROR(IF('Indexen goederen & diensten'!CH30/'Indexen goederen & diensten'!CH$27=0,NA(),'Indexen goederen & diensten'!CH30/'Indexen goederen & diensten'!CH$27),NA()) -> 1.009737098 | HH116: =IFERROR(IF('Indexen goederen & diensten'!CI30/'Indexen goederen & diensten'!CI$27=0,NA(),'Indexen goederen & diensten'!CI30/'Indexen goederen & diensten'!CI$27),NA()) -> 0.9936842105 | HI116: =IFERROR(IF('Indexen goederen & diensten'!CJ30/'Indexen goederen & diensten'!CJ$27=0,NA(),'Indexen goederen & diensten'!CJ30/'Indexen goederen & diensten'!CJ$27),NA()) -> 0.9494799406 | HJ116: =IFERROR(IF('Indexen goederen & diensten'!CK30/'Indexen goederen & diensten'!CK$27=0,NA(),'Indexen goederen & diensten'!CK30/'Indexen goederen & diensten'!CK$27),NA()) -> 0.9530812325 | HK116: =IFERROR(IF('Indexen goederen & diensten'!CL30/'Indexen goederen & diensten'!CL$27=0,NA(),'Indexen goederen & diensten'!CL30/'Indexen goederen & diensten'!CL$27),NA()) -> 0.9385964912 | HL116: =IFERROR(IF('Indexen goederen & diensten'!CM30/'Indexen goederen & diensten'!CM$27=0,NA(),'Indexen goederen & diensten'!CM30/'Indexen goederen & diensten'!CM$27),NA()) -> 1.00090009 | HN116: =Tableau21[[#This Row],[datum]] -> 2018-04-01 | HO116: =IFERROR(IF(Standaardindexen!L29/Standaardindexen!L$26=0,NA(),Standaardindexen!L29/Standaardindexen!L$26),NA()) -> 0.9954946257 | HP116: =IFERROR(IF(Standaardindexen!M29/Standaardindexen!M$26=0,NA(),Standaardindexen!M29/Standaardindexen!M$26),NA()) -> 0.9956812919 | HQ116: =IFERROR(IF(Standaardindexen!N29/Standaardindexen!N$26=0,NA(),Standaardindexen!N29/Standaardindexen!N$26),NA()) -> 0.9957119159 | HR116: =IFERROR(IF(Standaardindexen!O29/Standaardindexen!O$26=0,NA(),Standaardindexen!O29/Standaardindexen!O$26),NA()) -> 0.9954899813 | HS116: =IFERROR(IF(Standaardindexen!P29/Standaardindexen!P$26=0,NA(),Standaardindexen!P29/Standaardindexen!P$26),NA()) -> 0.9956769626 | HT116: =IFERROR(IF(Standaardindexen!Q29/Standaardindexen!Q$26=0,NA(),Standaardindexen!Q29/Standaardindexen!Q$26),NA()) -> 0.9956762854 | HU116: =IFERROR(IF(Standaardindexen!R29/Standaardindexen!R$26=0,NA(),Standaardindexen!R29/Standaardindexen!R$26),NA()) -> 0.9952943499 | HV116: =IFERROR(IF(Standaardindexen!S29/Standaardindexen!S$26=0,NA(),Standaardindexen!S29/Standaardindexen!S$26),NA()) -> 0.9954907416 | HW116: =IFERROR(IF(Standaardindexen!T29/Standaardindexen!T$26=0,NA(),Standaardindexen!T29/Standaardindexen!T$26),NA()) -> 0.9954900205 | HX116: =IFERROR(IF(Standaardindexen!U29/Standaardindexen!U$26=0,NA(),Standaardindexen!U29/Standaardindexen!U$26),NA()) -> 0.995183141 | HY116: =IFERROR(IF(Standaardindexen!V29/Standaardindexen!V$26=0,NA(),Standaardindexen!V29/Standaardindexen!V$26),NA()) -> 0.9953858652 | HZ116: =IFERROR(IF(Standaardindexen!W29/Standaardindexen!W$26=0,NA(),Standaardindexen!W29/Standaardindexen!W$26),NA()) -> 0.9953851154 | IA116: =IFERROR(IF(Standaardindexen!X29/Standaardindexen!X$26=0,NA(),Standaardindexen!X29/Standaardindexen!X$26),NA()) -> 1.000795355 | IB116: =IFERROR(IF(Standaardindexen!Y29/Standaardindexen!Y$26=0,NA(),Standaardindexen!Y29/Standaardindexen!Y$26),NA()) -> 1.000747737 | IC116: =Tableau21[[#This Row],[prijsevolutie - volgens prijsherzieningsformule -index i 2021]] -> 1.00239 | ID116: =Tableau21[[#This Row],[prijsevolutie - volgens prijsherzieningsformule -index i]] -> 0.99415 | IE116: =Tableau21[[#This Row],[prijsherzieningsformule - index i 2021]] -> 0.99855 | IF116: =Tableau21[[#This Row],[prijsherzieningsformule - index i]] -> 0.99345 | IG116: =IFERROR(IF('Indexeringen Lonen per PC'!E54/'Indexeringen Lonen per PC'!E$51=0,NA(),'Indexeringen Lonen per PC'!E54/'Indexeringen Lonen per PC'!E$51),NA()) -> 1.004216093 | IH116: =IFERROR(IF('Indexeringen Lonen per PC'!F54/'Indexeringen Lonen per PC'!F$51=0,NA(),'Indexeringen Lonen per PC'!F54/'Indexeringen Lonen per PC'!F$51),NA()) -> 1.004221133 | II116: =IFERROR(IF('Indexeringen Lonen per PC'!G54/'Indexeringen Lonen per PC'!G$51=0,NA(),'Indexeringen Lonen per PC'!G54/'Indexeringen Lonen per PC'!G$51),NA()) -> 1.004223652 | IJ116: =IFERROR(IF('Indexeringen Lonen per PC'!H54/'Indexeringen Lonen per PC'!H$51=0,NA(),'Indexeringen Lonen per PC'!H54/'Indexeringen Lonen per PC'!H$51),NA()) -> 1.00421429 | IK116: =IFERROR(IF('Indexeringen Lonen per PC'!I54/'Indexeringen Lonen per PC'!I$51=0,NA(),'Indexeringen Lonen per PC'!I54/'Indexeringen Lonen per PC'!I$51),NA()) -> 1.004223399 | IL116: =IFERROR(IF('Indexeringen Lonen per PC'!J54/'Indexeringen Lonen per PC'!J$51=0,NA(),'Indexeringen Lonen per PC'!J54/'Indexeringen Lonen per PC'!J$51),NA()) -> 1.004216402 | IM116: =IFERROR(IF('Indexeringen Lonen per PC'!K54/'Indexeringen Lonen per PC'!K$51=0,NA(),'Indexeringen Lonen per PC'!K54/'Indexeringen Lonen per PC'!K$51),NA()) -> 1.004240688 | IN116: =IFERROR(IF('Indexeringen Lonen per PC'!L54/'Indexeringen Lonen per PC'!L$51=0,NA(),'Indexeringen Lonen per PC'!L54/'Indexeringen Lonen per PC'!L$51),NA()) -> 1.004210981 | IO116: =IFERROR(IF('Indexeringen Lonen per PC'!M54/'Indexeringen Lonen per PC'!M$51=0,NA(),'Indexeringen Lonen per PC'!M54/'Indexeringen Lonen per PC'!M$51),NA()) -> 1.004206463 | IP116: =IFERROR(IF('Indexeringen Lonen per PC'!T54/'Indexeringen Lonen per PC'!T$51=0,NA(),'Indexeringen Lonen per PC'!T54/'Indexeringen Lonen per PC'!T$51),NA()) -> 1 | IQ116: =IFERROR(IF('Indexeringen Lonen per PC'!U54/'Indexeringen Lonen per PC'!U$51=0,NA(),'Indexeringen Lonen per PC'!U54/'Indexeringen Lonen per PC'!U$51),NA()) -> 1 | IR116: =IFERROR(IF('Indexeringen Lonen per PC'!V54/'Indexeringen Lonen per PC'!V$51=0,NA(),'Indexeringen Lonen per PC'!V54/'Indexeringen Lonen per PC'!V$51),NA()) -> 1 | IS116: =IFERROR(IF('Indexeringen Lonen per PC'!W54/'Indexeringen Lonen per PC'!W$51=0,NA(),'Indexeringen Lonen per PC'!W54/'Indexeringen Lonen per PC'!W$51),NA()) -> 1 | IT116: =IFERROR(IF('Indexeringen Lonen per PC'!AD54/'Indexeringen Lonen per PC'!AD$51=0,NA(),'Indexeringen Lonen per PC'!AD54/'Indexeringen Lonen per PC'!AD$51),NA()) -> 1 | IU116: =IFERROR(IF('Indexeringen Lonen per PC'!AE54/'Indexeringen Lonen per PC'!AE$51=0,NA(),'Indexeringen Lonen per PC'!AE54/'Indexeringen Lonen per PC'!AE$51),NA()) -> 1 | IV116: =IFERROR(IF('Indexeringen Lonen per PC'!AF54/'Indexeringen Lonen per PC'!AF$51=0,NA(),'Indexeringen Lonen per PC'!AF54/'Indexeringen Lonen per PC'!AF$51),NA()) -> 1 | IW116: =IFERROR(IF('Indexeringen Lonen per PC'!AG54/'Indexeringen Lonen per PC'!AG$51=0,NA(),'Indexeringen Lonen per PC'!AG54/'Indexeringen Lonen per PC'!AG$51),NA()) -> 1 | IX116: =IFERROR(IF('Indexeringen Lonen per PC'!AH54/'Indexeringen Lonen per PC'!AH$51=0,NA(),'Indexeringen Lonen per PC'!AH54/'Indexeringen Lonen per PC'!AH$51),NA()) -> 1 | IY116: =IFERROR(IF('Indexeringen Lonen per PC'!AI54/'Indexeringen Lonen per PC'!AI$51=0,NA(),'Indexeringen Lonen per PC'!AI54/'Indexeringen Lonen per PC'!AI$51),NA()) -> 1 | IZ116: =IFERROR(IF('Indexeringen Lonen per PC'!AP54/'Indexeringen Lonen per PC'!AP$51=0,NA(),'Indexeringen Lonen per PC'!AP54/'Indexeringen Lonen per PC'!AP$51),NA()) -> 1.020033389 | JA116: =IFERROR(IF('Indexeringen Lonen per PC'!AW54/'Indexeringen Lonen per PC'!AW$51=0,NA(),'Indexeringen Lonen per PC'!AW54/'Indexeringen Lonen per PC'!AW$51),NA()) -> 1 | JB116: =IFERROR(IF('Indexeringen Lonen per PC'!AX54/'Indexeringen Lonen per PC'!AX$51=0,NA(),'Indexeringen Lonen per PC'!AX54/'Indexeringen Lonen per PC'!AX$51),NA()) -> 1 | JC116: =IFERROR(IF('Indexeringen Lonen per PC'!AY54/'Indexeringen Lonen per PC'!AY$51=0,NA(),'Indexeringen Lonen per PC'!AY54/'Indexeringen Lonen per PC'!AY$51),NA()) -> 1 | JD116: =IFERROR(IF('Indexeringen Lonen per PC'!AZ54/'Indexeringen Lonen per PC'!AZ$51=0,NA(),'Indexeringen Lonen per PC'!AZ54/'Indexeringen Lonen per PC'!AZ$51),NA()) -> 1 | JE116: =IFERROR(IF('Indexeringen Lonen per PC'!BA54/'Indexeringen Lonen per PC'!BA$51=0,NA(),'Indexeringen Lonen per PC'!BA54/'Indexeringen Lonen per PC'!BA$51),NA()) -> 1 | JF116: =IFERROR(IF('Indexeringen Lonen per PC'!BB54/'Indexeringen Lonen per PC'!BB$51=0,NA(),'Indexeringen Lonen per PC'!BB54/'Indexeringen Lonen per PC'!BB$51),NA()) -> 1 | JG116: =IFERROR(IF('Indexeringen Lonen per PC'!BC54/'Indexeringen Lonen per PC'!BC$51=0,NA(),'Indexeringen Lonen per PC'!BC54/'Indexeringen Lonen per PC'!BC$51),NA()) -> 1 | JH116: =IFERROR(IF('Indexeringen Lonen per PC'!BD54/'Indexeringen Lonen per PC'!BD$51=0,NA(),'Indexeringen Lonen per PC'!BD54/'Indexeringen Lonen per PC'!BD$51),NA()) -> 1 | JI116: =IFERROR(IF('Indexeringen Lonen per PC'!BK54/'Indexeringen Lonen per PC'!BK$51=0,NA(),'Indexeringen Lonen per PC'!BK54/'Indexeringen Lonen per PC'!BK$51),NA()) -> 1 | JJ116: =IFERROR(IF('Indexeringen Lonen per PC'!BR54/'Indexeringen Lonen per PC'!BR$51=0,NA(),'Indexeringen Lonen per PC'!BR54/'Indexeringen Lonen per PC'!BR$51),NA()) -> 1 | JK116: =IFERROR(IF('Indexeringen Lonen per PC'!BS54/'Indexeringen Lonen per PC'!BS$51=0,NA(),'Indexeringen Lonen per PC'!BS54/'Indexeringen Lonen per PC'!BS$51),NA()) -> 1 | JL116: =IFERROR(IF('Indexeringen Lonen per PC'!BT54/'Indexeringen Lonen per PC'!BT$51=0,NA(),'Indexeringen Lonen per PC'!BT54/'Indexeringen Lonen per PC'!BT$51),NA()) -> 1 | JM116: =IFERROR(IF('Indexeringen Lonen per PC'!BU54/'Indexeringen Lonen per PC'!BU$51=0,NA(),'Indexeringen Lonen per PC'!BU54/'Indexeringen Lonen per PC'!BU$51),NA()) -> 1 | JN116: =IFERROR(IF('Indexeringen Lonen per PC'!BV54/'Indexeringen Lonen per PC'!BV$51=0,NA(),'Indexeringen Lonen per PC'!BV54/'Indexeringen Lonen per PC'!BV$51),NA()) -> 1 | JO116: =IFERROR(IF('Indexeringen Lonen per PC'!BW54/'Indexeringen Lonen per PC'!BW$51=0,NA(),'Indexeringen Lonen per PC'!BW54/'Indexeringen Lonen per PC'!BW$51),NA()) -> 1 | JP116: =IFERROR(IF('Indexeringen Lonen per PC'!BX54/'Indexeringen Lonen per PC'!BX$51=0,NA(),'Indexeringen Lonen per PC'!BX54/'Indexeringen Lonen per PC'!BX$51),NA()) -> 1 | JQ116: =IFERROR(IF('Indexeringen Lonen per PC'!BY54/'Indexeringen Lonen per PC'!BY$51=0,NA(),'Indexeringen Lonen per PC'!BY54/'Indexeringen Lonen per PC'!BY$51),NA()) -> 1 | JR116: =IFERROR(IF('Indexeringen Lonen per PC'!BZ54/'Indexeringen Lonen per PC'!BZ$51=0,NA(),'Indexeringen Lonen per PC'!BZ54/'Indexeringen Lonen per PC'!BZ$51),NA()) -> 1 | JS116: =IFERROR(IF('Indexeringen Lonen per PC'!CA54/'Indexeringen Lonen per PC'!CA$51=0,NA(),'Indexeringen Lonen per PC'!CA54/'Indexeringen Lonen per PC'!CA$51),NA()) -> 1 | JT116: =IFERROR(IF('Indexeringen Lonen per PC'!CB54/'Indexeringen Lonen per PC'!CB$51=0,NA(),'Indexeringen Lonen per PC'!CB54/'Indexeringen Lonen per PC'!CB$51),NA()) -> 1 | JU116: =IFERROR(IF('Indexeringen Lonen per PC'!CC54/'Indexeringen Lonen per PC'!CC$51=0,NA(),'Indexeringen Lonen per PC'!CC54/'Indexeringen Lonen per PC'!CC$51),NA()) -> 1 | JV116: =IFERROR(IF('Indexeringen Lonen per PC'!CD54/'Indexeringen Lonen per PC'!CD$51=0,NA(),'Indexeringen Lonen per PC'!CD54/'Indexeringen Lonen per PC'!CD$51),NA()) -> 1 | JW116: =IFERROR(IF('Indexeringen Lonen per PC'!CE54/'Indexeringen Lonen per PC'!CE$51=0,NA(),'Indexeringen Lonen per PC'!CE54/'Indexeringen Lonen per PC'!CE$51),NA()) -> 1 | JX116: =IFERROR(IF('Indexeringen Lonen per PC'!CF54/'Indexeringen Lonen per PC'!CF$51=0,NA(),'Indexeringen Lonen per PC'!CF54/'Indexeringen Lonen per PC'!CF$51),NA()) -> 1 | JY116: =IFERROR(IF('Indexeringen Lonen per PC'!CG54/'Indexeringen Lonen per PC'!CG$51=0,NA(),'Indexeringen Lonen per PC'!CG54/'Indexeringen Lonen per PC'!CG$51),NA()) -> 1 | JZ116: =IFERROR(IF('Indexeringen Lonen per PC'!CH54/'Indexeringen Lonen per PC'!CH$51=0,NA(),'Indexeringen Lonen per PC'!CH54/'Indexeringen Lonen per PC'!CH$51),NA()) -> 1 | KA116: =IFERROR(IF('Indexeringen Lonen per PC'!CI54/'Indexeringen Lonen per PC'!CI$51=0,NA(),'Indexeringen Lonen per PC'!CI54/'Indexeringen Lonen per PC'!CI$51),NA()) -> 1 | KB116: =IFERROR(IF('Indexeringen Lonen per PC'!CJ54/'Indexeringen Lonen per PC'!CJ$51=0,NA(),'Indexeringen Lonen per PC'!CJ54/'Indexeringen Lonen per PC'!CJ$51),NA()) -> 1 | KC116: =IFERROR(IF('Indexeringen Lonen per PC'!CQ54/'Indexeringen Lonen per PC'!CQ$51=0,NA(),'Indexeringen Lonen per PC'!CQ54/'Indexeringen Lonen per PC'!CQ$51),NA()) -> 1.008723127 | KD116: =IFERROR(IF('Indexeringen Lonen per PC'!CR54/'Indexeringen Lonen per PC'!CR$51=0,NA(),'Indexeringen Lonen per PC'!CR54/'Indexeringen Lonen per PC'!CR$51),NA()) -> 1.008679086 | KE116: =IFERROR(IF('Indexeringen Lonen per PC'!CS54/'Indexeringen Lonen per PC'!CS$51=0,NA(),'Indexeringen Lonen per PC'!CS54/'Indexeringen Lonen per PC'!CS$51),NA()) -> 1.008696282 | KF116: =IFERROR(IF('Indexeringen Lonen per PC'!CT54/'Indexeringen Lonen per PC'!CT$51=0,NA(),'Indexeringen Lonen per PC'!CT54/'Indexeringen Lonen per PC'!CT$51),NA()) -> 1.00866577 | KG116: =IFERROR(IF('Indexeringen Lonen per PC'!CU54/'Indexeringen Lonen per PC'!CU$51=0,NA(),'Indexeringen Lonen per PC'!CU54/'Indexeringen Lonen per PC'!CU$51),NA()) -> 1.008716446 | KH116: =IFERROR(IF('Indexeringen Lonen per PC'!DB54/'Indexeringen Lonen per PC'!DB$51=0,NA(),'Indexeringen Lonen per PC'!DB54/'Indexeringen Lonen per PC'!DB$51),NA()) -> 1 | KI116: =IFERROR(IF('Indexeringen Lonen per PC'!DC54/'Indexeringen Lonen per PC'!DC$51=0,NA(),'Indexeringen Lonen per PC'!DC54/'Indexeringen Lonen per PC'!DC$51),NA()) -> 1 | KJ116: =IFERROR(IF('Indexeringen Lonen per PC'!DD54/'Indexeringen Lonen per PC'!DD$51=0,NA(),'Indexeringen Lonen per PC'!DD54/'Indexeringen Lonen per PC'!DD$51),NA()) -> 1 | KK116: =IFERROR(IF('Indexeringen Lonen per PC'!DE54/'Indexeringen Lonen per PC'!DE$51=0,NA(),'Indexeringen Lonen per PC'!DE54/'Indexeringen Lonen per PC'!DE$51),NA()) -> 1 | KL116: =IFERROR(IF('Indexeringen Lonen per PC'!DL54/'Indexeringen Lonen per PC'!DL$51=0,NA(),'Indexeringen Lonen per PC'!DL54/'Indexeringen Lonen per PC'!DL$51),NA()) -> 1 | KM116: =IFERROR(IF('Indexeringen Lonen per PC'!DM54/'Indexeringen Lonen per PC'!DM$51=0,NA(),'Indexeringen Lonen per PC'!DM54/'Indexeringen Lonen per PC'!DM$51),NA()) -> 1 | KN116: =IFERROR(IF('Indexeringen Lonen per PC'!DN54/'Indexeringen Lonen per PC'!DN$51=0,NA(),'Indexeringen Lonen per PC'!DN54/'Indexeringen Lonen per PC'!DN$51),NA()) -> 1 | KO116: =IFERROR(IF('Indexeringen Lonen per PC'!DO54/'Indexeringen Lonen per PC'!DO$51=0,NA(),'Indexeringen Lonen per PC'!DO54/'Indexeringen Lonen per PC'!DO$51),NA()) -> 1 | KP116: =IFERROR(IF('Indexeringen Lonen per PC'!DP54/'Indexeringen Lonen per PC'!DP$51=0,NA(),'Indexeringen Lonen per PC'!DP54/'Indexeringen Lonen per PC'!DP$51),NA()) -> 1 | KQ116: =IFERROR(IF('Indexeringen Lonen per PC'!DQ54/'Indexeringen Lonen per PC'!DQ$51=0,NA(),'Indexeringen Lonen per PC'!DQ54/'Indexeringen Lonen per PC'!DQ$51),NA()) -> 1 | KR116: =IFERROR(IF('Indexeringen Lonen per PC'!DR54/'Indexeringen Lonen per PC'!DR$51=0,NA(),'Indexeringen Lonen per PC'!DR54/'Indexeringen Lonen per PC'!DR$51),NA()) -> 1 | KS116: =IFERROR(IF('Indexeringen Lonen per PC'!DS54/'Indexeringen Lonen per PC'!DS$51=0,NA(),'Indexeringen Lonen per PC'!DS54/'Indexeringen Lonen per PC'!DS$51),NA()) -> 1 | KT116: =IFERROR(IF('Indexeringen Lonen per PC'!DT54/'Indexeringen Lonen per PC'!DT$51=0,NA(),'Indexeringen Lonen per PC'!DT54/'Indexeringen Lonen per PC'!DT$51),NA()) -> 1 | KU116: =IFERROR(IF('Indexeringen Lonen per PC'!DU54/'Indexeringen Lonen per PC'!DU$51=0,NA(),'Indexeringen Lonen per PC'!DU54/'Indexeringen Lonen per PC'!DU$51),NA()) -> 1 | KV116: =IFERROR(IF('Indexeringen Lonen per PC'!DV54/'Indexeringen Lonen per PC'!DV$51=0,NA(),'Indexeringen Lonen per PC'!DV54/'Indexeringen Lonen per PC'!DV$51),NA()) -> 1 | KW116: =IFERROR(IF('Indexeringen Lonen per PC'!DW54/'Indexeringen Lonen per PC'!DW$51=0,NA(),'Indexeringen Lonen per PC'!DW54/'Indexeringen Lonen per PC'!DW$51),NA()) -> 1 | KX116: =IFERROR(IF('Indexeringen Lonen per PC'!DX54/'Indexeringen Lonen per PC'!DX$51=0,NA(),'Indexeringen Lonen per PC'!DX54/'Indexeringen Lonen per PC'!DX$51),NA()) -> 1
B117: =Tableau41326[[#This Row],[periode]] -> 2018-05-01 | C117: =IFERROR(IF(Standaardindexen!F30/Standaardindexen!F$26=0,NA(),Standaardindexen!F30/Standaardindexen!F$26),NA()) -> 1.00380759 | D117: =IFERROR(IF(Standaardindexen!G30/Standaardindexen!G$26=0,NA(),Standaardindexen!G30/Standaardindexen!G$26),NA()) -> 1.015712218 | E117: =IFERROR(IF(Standaardindexen!H30/Standaardindexen!H$26=0,NA(),Standaardindexen!H30/Standaardindexen!H$26),NA()) -> 1.022298995 | F117: =IFERROR(IF(Standaardindexen!I30/Standaardindexen!I$26=0,NA(),Standaardindexen!I30/Standaardindexen!I$26),NA()) -> 1.01379099 | G117: =IFERROR(IF(Standaardindexen!J30/Standaardindexen!J$26=0,NA(),Standaardindexen!J30/Standaardindexen!J$26),NA()) -> 1.019689106 | H117: =IFERROR(IF(Standaardindexen!K30/Standaardindexen!K$26=0,NA(),Standaardindexen!K30/Standaardindexen!K$26),NA()) -> 1.02545242 | I117: =IF(Standaardindexen!G29=0,NA(),IF(Standaardindexen!L30=0,NA(),IFERROR(ROUND(((StandaardPrijsherzieningformule!$E$33*(Standaardindexen!G29/Standaardindexen!G28)+StandaardPrijsherzieningformule!$E$25*(Standaardindexen!L30/Standaardindexen!L29)+StandaardPrijsherzieningformule!$E$39)*I116),5),NA()))) -> 1.00292 | J117: =IF(Standaardindexen!F29=0,NA(),IF(Standaardindexen!L30=0,NA(),IFERROR(ROUND((((StandaardPrijsherzieningformule!$E$33*(Standaardindexen!F29/Standaardindexen!F28)+StandaardPrijsherzieningformule!$E$25*(Standaardindexen!L30/Standaardindexen!L29)+StandaardPrijsherzieningformule!$E$39))*J116),5),NA()))) -> 0.99466 | K117: =IF(Standaardindexen!G29=0,NA(),IF(Standaardindexen!L30=0,NA(),IFERROR(ROUND(((StandaardPrijsherzieningformule!$E$33*(Standaardindexen!G29/Standaardindexen!G28)+StandaardPrijsherzieningformule!$E$25*(Standaardindexen!L30/Standaardindexen!L29)+StandaardPrijsherzieningformule!$E$39)),5),NA()))) -> 1.00053 | L117: =IF(Standaardindexen!F29=0,NA(),IF(Standaardindexen!L30=0,NA(),IFERROR(ROUND((((StandaardPrijsherzieningformule!$E$33*(Standaardindexen!F29/Standaardindexen!F28)+StandaardPrijsherzieningformule!$E$25*(Standaardindexen!L30/Standaardindexen!L29)+StandaardPrijsherzieningformule!$E$39))),5),NA()))) -> 1.00051 | M117: =IFERROR(IF('Materiaalindexen o.w.'!C37/'Materiaalindexen o.w.'!C$33=0,NA(),'Materiaalindexen o.w.'!C37/'Materiaalindexen o.w.'!C$33),NA()) -> 1 | N117: =IFERROR(IF('Materiaalindexen o.w.'!D37/'Materiaalindexen o.w.'!D$33=0,NA(),'Materiaalindexen o.w.'!D37/'Materiaalindexen o.w.'!D$33),NA()) -> 1 | O117: =IFERROR(IF('Materiaalindexen o.w.'!E37/'Materiaalindexen o.w.'!E$33=0,NA(),'Materiaalindexen o.w.'!E37/'Materiaalindexen o.w.'!E$33),NA()) -> 1 | P117: =IFERROR(IF('Materiaalindexen o.w.'!F37/'Materiaalindexen o.w.'!F$33=0,NA(),'Materiaalindexen o.w.'!F37/'Materiaalindexen o.w.'!F$33),NA()) -> 1 | Q117: =IFERROR(IF('Materiaalindexen o.w.'!G37/'Materiaalindexen o.w.'!G$33=0,NA(),'Materiaalindexen o.w.'!G37/'Materiaalindexen o.w.'!G$33),NA()) -> 1 | R117: =IFERROR(IF('Materiaalindexen o.w.'!H37/'Materiaalindexen o.w.'!H$33=0,NA(),'Materiaalindexen o.w.'!H37/'Materiaalindexen o.w.'!H$33),NA()) -> 1 | S117: =IFERROR(IF('Materiaalindexen o.w.'!I37/'Materiaalindexen o.w.'!I$33=0,NA(),'Materiaalindexen o.w.'!I37/'Materiaalindexen o.w.'!I$33),NA()) -> 1 | T117: =IFERROR(IF('Materiaalindexen o.w.'!J37/'Materiaalindexen o.w.'!J$33=0,NA(),'Materiaalindexen o.w.'!J37/'Materiaalindexen o.w.'!J$33),NA()) -> 1 | U117: =IFERROR(IF('Materiaalindexen o.w.'!K37/'Materiaalindexen o.w.'!K$33=0,NA(),'Materiaalindexen o.w.'!K37/'Materiaalindexen o.w.'!K$33),NA()) -> 1 | V117: =IFERROR(IF('Materiaalindexen o.w.'!L37/'Materiaalindexen o.w.'!L$33=0,NA(),'Materiaalindexen o.w.'!L37/'Materiaalindexen o.w.'!L$33),NA()) -> 1 | W117: =IFERROR(IF('Materiaalindexen o.w.'!M37/'Materiaalindexen o.w.'!M$33=0,NA(),'Materiaalindexen o.w.'!M37/'Materiaalindexen o.w.'!M$33),NA()) -> 1 | X117: =IFERROR(IF('Materiaalindexen o.w.'!N37/'Materiaalindexen o.w.'!N$33=0,NA(),'Materiaalindexen o.w.'!N37/'Materiaalindexen o.w.'!N$33),NA()) -> 1 | Y117: =IFERROR(IF('Materiaalindexen o.w.'!O37/'Materiaalindexen o.w.'!O$33=0,NA(),'Materiaalindexen o.w.'!O37/'Materiaalindexen o.w.'!O$33),NA()) -> 1 | Z117: =IFERROR(IF('Materiaalindexen o.w.'!P37/'Materiaalindexen o.w.'!P$33=0,NA(),'Materiaalindexen o.w.'!P37/'Materiaalindexen o.w.'!P$33),NA()) -> 1 | AA117: =IFERROR(IF('Materiaalindexen o.w.'!Q37/'Materiaalindexen o.w.'!Q$33=0,NA(),'Materiaalindexen o.w.'!Q37/'Materiaalindexen o.w.'!Q$33),NA()) -> 1 | AB117: =IFERROR(IF('Materiaalindexen o.w.'!R37/'Materiaalindexen o.w.'!R$33=0,NA(),'Materiaalindexen o.w.'!R37/'Materiaalindexen o.w.'!R$33),NA()) -> 1 | AC117: =IFERROR(IF('Materiaalindexen o.w.'!S37/'Materiaalindexen o.w.'!S$33=0,NA(),'Materiaalindexen o.w.'!S37/'Materiaalindexen o.w.'!S$33),NA()) -> 1 | AD117: =IFERROR(IF('Materiaalindexen o.w.'!T37/'Materiaalindexen o.w.'!T$33=0,NA(),'Materiaalindexen o.w.'!T37/'Materiaalindexen o.w.'!T$33),NA()) -> 1 | AE117: =IFERROR(IF('Materiaalindexen o.w.'!U37/'Materiaalindexen o.w.'!U$33=0,NA(),'Materiaalindexen o.w.'!U37/'Materiaalindexen o.w.'!U$33),NA()) -> 1 | AF117: =IFERROR(IF('Materiaalindexen o.w.'!V37/'Materiaalindexen o.w.'!V$33=0,NA(),'Materiaalindexen o.w.'!V37/'Materiaalindexen o.w.'!V$33),NA()) -> 1 | AG117: =IFERROR(IF('Materiaalindexen o.w.'!W37/'Materiaalindexen o.w.'!W$33=0,NA(),'Materiaalindexen o.w.'!W37/'Materiaalindexen o.w.'!W$33),NA()) -> 1 | AH117: =IFERROR(IF('Materiaalindexen o.w.'!X37/'Materiaalindexen o.w.'!X$33=0,NA(),'Materiaalindexen o.w.'!X37/'Materiaalindexen o.w.'!X$33),NA()) -> 1 | AI117: =IFERROR(IF('Materiaalindexen o.w.'!Y37/'Materiaalindexen o.w.'!Y$33=0,NA(),'Materiaalindexen o.w.'!Y37/'Materiaalindexen o.w.'!Y$33),NA()) -> 1 | AJ117: =IFERROR(IF('Materiaalindexen o.w.'!Z37/'Materiaalindexen o.w.'!Z$33=0,NA(),'Materiaalindexen o.w.'!Z37/'Materiaalindexen o.w.'!Z$33),NA()) -> 1 | AK117: =IFERROR(IF('Materiaalindexen o.w.'!AA37/'Materiaalindexen o.w.'!AA$33=0,NA(),'Materiaalindexen o.w.'!AA37/'Materiaalindexen o.w.'!AA$33),NA()) -> 1 | AL117: =IFERROR(IF('Materiaalindexen o.w.'!AB37/'Materiaalindexen o.w.'!AB$33=0,NA(),'Materiaalindexen o.w.'!AB37/'Materiaalindexen o.w.'!AB$33),NA()) -> 1.052301255 | AM117: =IFERROR(IF('Materiaalindexen o.w.'!AC37/'Materiaalindexen o.w.'!AC$33=0,NA(),'Materiaalindexen o.w.'!AC37/'Materiaalindexen o.w.'!AC$33),NA()) -> 1.06097561 | AN117: =IFERROR(IF('Materiaalindexen o.w.'!AD37/'Materiaalindexen o.w.'!AD$33=0,NA(),'Materiaalindexen o.w.'!AD37/'Materiaalindexen o.w.'!AD$33),NA()) -> 1.056306306 | AO117: =IFERROR(IF('Materiaalindexen o.w.'!AE37/'Materiaalindexen o.w.'!AE$33=0,NA(),'Materiaalindexen o.w.'!AE37/'Materiaalindexen o.w.'!AE$33),NA()) -> 1.060422961 | AP117: =IFERROR(IF('Materiaalindexen o.w.'!AF37/'Materiaalindexen o.w.'!AF$33=0,NA(),'Materiaalindexen o.w.'!AF37/'Materiaalindexen o.w.'!AF$33),NA()) -> 1.068540096 | AQ117: =IFERROR(IF('Materiaalindexen o.w.'!AG37/'Materiaalindexen o.w.'!AG$33=0,NA(),'Materiaalindexen o.w.'!AG37/'Materiaalindexen o.w.'!AG$33),NA()) -> 1.064226076 | AR117: =IFERROR(IF('Materiaalindexen o.w.'!AH37/'Materiaalindexen o.w.'!AH$33=0,NA(),'Materiaalindexen o.w.'!AH37/'Materiaalindexen o.w.'!AH$33),NA()) -> 1.033674963 | AS117: =IFERROR(IF('Materiaalindexen o.w.'!AI37/'Materiaalindexen o.w.'!AI$33=0,NA(),'Materiaalindexen o.w.'!AI37/'Materiaalindexen o.w.'!AI$33),NA()) -> 1.015758667 | AT117: =IFERROR(IF('Materiaalindexen o.w.'!AJ37/'Materiaalindexen o.w.'!AJ$33=0,NA(),'Materiaalindexen o.w.'!AJ37/'Materiaalindexen o.w.'!AJ$33),NA()) -> 1.015988372 | AU117: =IFERROR(IF('Materiaalindexen o.w.'!AK37/'Materiaalindexen o.w.'!AK$33=0,NA(),'Materiaalindexen o.w.'!AK37/'Materiaalindexen o.w.'!AK$33),NA()) -> 1.015988372 | AV117: =IFERROR(IF('Materiaalindexen o.w.'!AL37/'Materiaalindexen o.w.'!AL$33=0,NA(),'Materiaalindexen o.w.'!AL37/'Materiaalindexen o.w.'!AL$33),NA()) -> 1.015908017 | AW117: =IFERROR(IF('Materiaalindexen o.w.'!AM37/'Materiaalindexen o.w.'!AM$33=0,NA(),'Materiaalindexen o.w.'!AM37/'Materiaalindexen o.w.'!AM$33),NA()) -> 1.011753183 | AX117: =IFERROR(IF('Materiaalindexen o.w.'!AN37/'Materiaalindexen o.w.'!AN$33=0,NA(),'Materiaalindexen o.w.'!AN37/'Materiaalindexen o.w.'!AN$33),NA()) -> 1.012208068 | AY117: =IFERROR(IF('Materiaalindexen o.w.'!AO37/'Materiaalindexen o.w.'!AO$33=0,NA(),'Materiaalindexen o.w.'!AO37/'Materiaalindexen o.w.'!AO$33),NA()) -> 1.011971472 | AZ117: =IFERROR(IF('Materiaalindexen o.w.'!AP37/'Materiaalindexen o.w.'!AP$33=0,NA(),'Materiaalindexen o.w.'!AP37/'Materiaalindexen o.w.'!AP$33),NA()) -> 1.03033419 | BA117: =IFERROR(IF('Materiaalindexen o.w.'!AQ37/'Materiaalindexen o.w.'!AQ$33=0,NA(),'Materiaalindexen o.w.'!AQ37/'Materiaalindexen o.w.'!AQ$33),NA()) -> 1.030752916 | BB117: =IFERROR(IF('Materiaalindexen o.w.'!AR37/'Materiaalindexen o.w.'!AR$33=0,NA(),'Materiaalindexen o.w.'!AR37/'Materiaalindexen o.w.'!AR$33),NA()) -> 1.030335285 | BC117: =IFERROR(IF('Materiaalindexen o.w.'!AS37/'Materiaalindexen o.w.'!AS$33=0,NA(),'Materiaalindexen o.w.'!AS37/'Materiaalindexen o.w.'!AS$33),NA()) -> 1.030472855 | BD117: =IFERROR(IF('Materiaalindexen o.w.'!AT37/'Materiaalindexen o.w.'!AT$33=0,NA(),'Materiaalindexen o.w.'!AT37/'Materiaalindexen o.w.'!AT$33),NA()) -> 1.013977868 | BE117: =IFERROR(IF('Materiaalindexen o.w.'!AU37/'Materiaalindexen o.w.'!AU$33=0,NA(),'Materiaalindexen o.w.'!AU37/'Materiaalindexen o.w.'!AU$33),NA()) -> 0.9771137555 | BF117: =IFERROR(IF('Materiaalindexen o.w.'!AV37/'Materiaalindexen o.w.'!AV$33=0,NA(),'Materiaalindexen o.w.'!AV37/'Materiaalindexen o.w.'!AV$33),NA()) -> 0.9828661447 | BG117: =IFERROR(IF('Materiaalindexen o.w.'!AW37/'Materiaalindexen o.w.'!AW$33=0,NA(),'Materiaalindexen o.w.'!AW37/'Materiaalindexen o.w.'!AW$33),NA()) -> 0.980418672 | BH117: =IFERROR(IF('Materiaalindexen o.w.'!AX37/'Materiaalindexen o.w.'!AX$33=0,NA(),'Materiaalindexen o.w.'!AX37/'Materiaalindexen o.w.'!AX$33),NA()) -> 1.031097561 | BI117: =IFERROR(IF('Materiaalindexen o.w.'!AY37/'Materiaalindexen o.w.'!AY$33=0,NA(),'Materiaalindexen o.w.'!AY37/'Materiaalindexen o.w.'!AY$33),NA()) -> 1.031075202 | BJ117: =IFERROR(IF('Materiaalindexen o.w.'!AZ37/'Materiaalindexen o.w.'!AZ$33=0,NA(),'Materiaalindexen o.w.'!AZ37/'Materiaalindexen o.w.'!AZ$33),NA()) -> 1.03113325 | BK117: =IFERROR(IF('Materiaalindexen o.w.'!BA37/'Materiaalindexen o.w.'!BA$33=0,NA(),'Materiaalindexen o.w.'!BA37/'Materiaalindexen o.w.'!BA$33),NA()) -> 1.031101957 | BL117: =IFERROR(IF('Materiaalindexen o.w.'!BB37/'Materiaalindexen o.w.'!BB$33=0,NA(),'Materiaalindexen o.w.'!BB37/'Materiaalindexen o.w.'!BB$33),NA()) -> 1.03515028 | BM117: =IFERROR(IF('Materiaalindexen o.w.'!BC37/'Materiaalindexen o.w.'!BC$33=0,NA(),'Materiaalindexen o.w.'!BC37/'Materiaalindexen o.w.'!BC$33),NA()) -> 1.008653846 | BN117: =IFERROR(IF('Materiaalindexen o.w.'!BD37/'Materiaalindexen o.w.'!BD$33=0,NA(),'Materiaalindexen o.w.'!BD37/'Materiaalindexen o.w.'!BD$33),NA()) -> 1.046075085 | BO117: =IFERROR(IF('Materiaalindexen o.w.'!BE37/'Materiaalindexen o.w.'!BE$33=0,NA(),'Materiaalindexen o.w.'!BE37/'Materiaalindexen o.w.'!BE$33),NA()) -> 0.9416219984 | BP117: =IFERROR(IF('Materiaalindexen o.w.'!BF37/'Materiaalindexen o.w.'!BF$33=0,NA(),'Materiaalindexen o.w.'!BF37/'Materiaalindexen o.w.'!BF$33),NA()) -> 0.9936134414 | BQ117: =IFERROR(IF('Materiaalindexen o.w.'!BG37/'Materiaalindexen o.w.'!BG$33=0,NA(),'Materiaalindexen o.w.'!BG37/'Materiaalindexen o.w.'!BG$33),NA()) -> 0.9161676647 | BR117: =IFERROR(IF('Materiaalindexen o.w.'!BH37/'Materiaalindexen o.w.'!BH$33=0,NA(),'Materiaalindexen o.w.'!BH37/'Materiaalindexen o.w.'!BH$33),NA()) -> 1.09469697 | BS117: =IFERROR(IF('Materiaalindexen o.w.'!BI37/'Materiaalindexen o.w.'!BI$33=0,NA(),'Materiaalindexen o.w.'!BI37/'Materiaalindexen o.w.'!BI$33),NA()) -> 1.029810298 | BT117: =IFERROR(IF('Materiaalindexen o.w.'!BJ37/'Materiaalindexen o.w.'!BJ$33=0,NA(),'Materiaalindexen o.w.'!BJ37/'Materiaalindexen o.w.'!BJ$33),NA()) -> 1.033462033 | BU117: =IFERROR(IF('Materiaalindexen o.w.'!BK37/'Materiaalindexen o.w.'!BK$33=0,NA(),'Materiaalindexen o.w.'!BK37/'Materiaalindexen o.w.'!BK$33),NA()) -> 1.032286213 | BV117: =IFERROR(IF('Materiaalindexen o.w.'!BL37/'Materiaalindexen o.w.'!BL$33=0,NA(),'Materiaalindexen o.w.'!BL37/'Materiaalindexen o.w.'!BL$33),NA()) -> 1.05873494 | BW117: =IFERROR(IF('Materiaalindexen o.w.'!BM37/'Materiaalindexen o.w.'!BM$33=0,NA(),'Materiaalindexen o.w.'!BM37/'Materiaalindexen o.w.'!BM$33),NA()) -> 1.05315204 | BX117: =IFERROR(IF('Materiaalindexen o.w.'!BN37/'Materiaalindexen o.w.'!BN$33=0,NA(),'Materiaalindexen o.w.'!BN37/'Materiaalindexen o.w.'!BN$33),NA()) -> 1.055668703 | BY117: =IFERROR(IF('Materiaalindexen o.w.'!BO37/'Materiaalindexen o.w.'!BO$33=0,NA(),'Materiaalindexen o.w.'!BO37/'Materiaalindexen o.w.'!BO$33),NA()) -> 1.020472441 | BZ117: =IFERROR(IF('Materiaalindexen o.w.'!BP37/'Materiaalindexen o.w.'!BP$33=0,NA(),'Materiaalindexen o.w.'!BP37/'Materiaalindexen o.w.'!BP$33),NA()) -> 1.006535948 | CA117: =IFERROR(IF('Materiaalindexen o.w.'!BQ37/'Materiaalindexen o.w.'!BQ$33=0,NA(),'Materiaalindexen o.w.'!BQ37/'Materiaalindexen o.w.'!BQ$33),NA()) -> 1 | CB117: =IFERROR(IF('Materiaalindexen o.w.'!BR37/'Materiaalindexen o.w.'!BR$33=0,NA(),'Materiaalindexen o.w.'!BR37/'Materiaalindexen o.w.'!BR$33),NA()) -> 1 | CC117: =IFERROR(IF('Materiaalindexen o.w.'!BS37/'Materiaalindexen o.w.'!BS$33=0,NA(),'Materiaalindexen o.w.'!BS37/'Materiaalindexen o.w.'!BS$33),NA()) -> 1 | CD117: =IFERROR(IF('Materiaalindexen o.w.'!BT37/'Materiaalindexen o.w.'!BT$33=0,NA(),'Materiaalindexen o.w.'!BT37/'Materiaalindexen o.w.'!BT$33),NA()) -> 1 | CE117: =IFERROR(IF('Materiaalindexen o.w.'!BU37/'Materiaalindexen o.w.'!BU$33=0,NA(),'Materiaalindexen o.w.'!BU37/'Materiaalindexen o.w.'!BU$33),NA()) -> 1 | CF117: =IFERROR(IF('Materiaalindexen o.w.'!BV37/'Materiaalindexen o.w.'!BV$33=0,NA(),'Materiaalindexen o.w.'!BV37/'Materiaalindexen o.w.'!BV$33),NA()) -> 1 | CG117: =IFERROR(IF('Materiaalindexen o.w.'!BW37/'Materiaalindexen o.w.'!BW$33=0,NA(),'Materiaalindexen o.w.'!BW37/'Materiaalindexen o.w.'!BW$33),NA()) -> 1.010062654 | CH117: =IFERROR(IF('Materiaalindexen o.w.'!BX37/'Materiaalindexen o.w.'!BX$33=0,NA(),'Materiaalindexen o.w.'!BX37/'Materiaalindexen o.w.'!BX$33),NA()) -> 1.010210424 | CI117: =IFERROR(IF('Materiaalindexen o.w.'!BY37/'Materiaalindexen o.w.'!BY$33=0,NA(),'Materiaalindexen o.w.'!BY37/'Materiaalindexen o.w.'!BY$33),NA()) -> 1.010132123 | CJ117: =IFERROR(IF('Materiaalindexen o.w.'!BZ37/'Materiaalindexen o.w.'!BZ$33=0,NA(),'Materiaalindexen o.w.'!BZ37/'Materiaalindexen o.w.'!BZ$33),NA()) -> 1.010091066 | CK117: =IFERROR(IF('Materiaalindexen o.w.'!CA37/'Materiaalindexen o.w.'!CA$33=0,NA(),'Materiaalindexen o.w.'!CA37/'Materiaalindexen o.w.'!CA$33),NA()) -> 1.01012456 | CL117: =IFERROR(IF('Materiaalindexen o.w.'!CB37/'Materiaalindexen o.w.'!CB$33=0,NA(),'Materiaalindexen o.w.'!CB37/'Materiaalindexen o.w.'!CB$33),NA()) -> 1 | CM117: =IFERROR(IF('Materiaalindexen o.w.'!CC37/'Materiaalindexen o.w.'!CC$33=0,NA(),'Materiaalindexen o.w.'!CC37/'Materiaalindexen o.w.'!CC$33),NA()) -> 1 | CN117: =IFERROR(IF('Materiaalindexen o.w.'!CD37/'Materiaalindexen o.w.'!CD$33=0,NA(),'Materiaalindexen o.w.'!CD37/'Materiaalindexen o.w.'!CD$33),NA()) -> 1 | CO117: =IFERROR(IF('Materiaalindexen o.w.'!CE37/'Materiaalindexen o.w.'!CE$33=0,NA(),'Materiaalindexen o.w.'!CE37/'Materiaalindexen o.w.'!CE$33),NA()) -> 1 | CP117: =IFERROR(IF('Materiaalindexen o.w.'!CF37/'Materiaalindexen o.w.'!CF$33=0,NA(),'Materiaalindexen o.w.'!CF37/'Materiaalindexen o.w.'!CF$33),NA()) -> 1 | CQ117: =IFERROR(IF('Materiaalindexen o.w.'!CG37/'Materiaalindexen o.w.'!CG$33=0,NA(),'Materiaalindexen o.w.'!CG37/'Materiaalindexen o.w.'!CG$33),NA()) -> 1 | CR117: =IFERROR(IF('Materiaalindexen o.w.'!CH37/'Materiaalindexen o.w.'!CH$33=0,NA(),'Materiaalindexen o.w.'!CH37/'Materiaalindexen o.w.'!CH$33),NA()) -> 1 | CS117: =IFERROR(IF('Materiaalindexen o.w.'!CI37/'Materiaalindexen o.w.'!CI$33=0,NA(),'Materiaalindexen o.w.'!CI37/'Materiaalindexen o.w.'!CI$33),NA()) -> 1 | CT117: =IFERROR(IF('Materiaalindexen o.w.'!CJ37/'Materiaalindexen o.w.'!CJ$33=0,NA(),'Materiaalindexen o.w.'!CJ37/'Materiaalindexen o.w.'!CJ$33),NA()) -> 1 | CU117: =IFERROR(IF('Materiaalindexen o.w.'!CK37/'Materiaalindexen o.w.'!CK$33=0,NA(),'Materiaalindexen o.w.'!CK37/'Materiaalindexen o.w.'!CK$33),NA()) -> 1.074729312 | CV117: =IFERROR(IF('Materiaalindexen o.w.'!CL37/'Materiaalindexen o.w.'!CL$33=0,NA(),'Materiaalindexen o.w.'!CL37/'Materiaalindexen o.w.'!CL$33),NA()) -> 1.074659864 | CW117: =IFERROR(IF('Materiaalindexen o.w.'!CM37/'Materiaalindexen o.w.'!CM$33=0,NA(),'Materiaalindexen o.w.'!CM37/'Materiaalindexen o.w.'!CM$33),NA()) -> 1.074736478 | CX117: =IFERROR(IF('Materiaalindexen o.w.'!CN37/'Materiaalindexen o.w.'!CN$33=0,NA(),'Materiaalindexen o.w.'!CN37/'Materiaalindexen o.w.'!CN$33),NA()) -> 1.074707524 | CY117: =IFERROR(IF('Materiaalindexen o.w.'!CO37/'Materiaalindexen o.w.'!CO$33=0,NA(),'Materiaalindexen o.w.'!CO37/'Materiaalindexen o.w.'!CO$33),NA()) -> 1.100413689 | CZ117: =IFERROR(IF('Materiaalindexen o.w.'!CP37/'Materiaalindexen o.w.'!CP$33=0,NA(),'Materiaalindexen o.w.'!CP37/'Materiaalindexen o.w.'!CP$33),NA()) -> 1.100420811 | DA117: =IFERROR(IF('Materiaalindexen o.w.'!CQ37/'Materiaalindexen o.w.'!CQ$33=0,NA(),'Materiaalindexen o.w.'!CQ37/'Materiaalindexen o.w.'!CQ$33),NA()) -> 1.10041722 | DB117: =IFERROR(IF('Materiaalindexen o.w.'!CR37/'Materiaalindexen o.w.'!CR$33=0,NA(),'Materiaalindexen o.w.'!CR37/'Materiaalindexen o.w.'!CR$33),NA()) -> 1.050622267 | DC117: =IFERROR(IF('Materiaalindexen o.w.'!CS37/'Materiaalindexen o.w.'!CS$33=0,NA(),'Materiaalindexen o.w.'!CS37/'Materiaalindexen o.w.'!CS$33),NA()) -> 1.050596739 | DD117: =IFERROR(IF('Materiaalindexen o.w.'!CT37/'Materiaalindexen o.w.'!CT$33=0,NA(),'Materiaalindexen o.w.'!CT37/'Materiaalindexen o.w.'!CT$33),NA()) -> 1.043235122 | DE117: =IFERROR(IF('Materiaalindexen o.w.'!CU37/'Materiaalindexen o.w.'!CU$33=0,NA(),'Materiaalindexen o.w.'!CU37/'Materiaalindexen o.w.'!CU$33),NA()) -> 1.048139554 | DF117: =IFERROR(IF('Materiaalindexen o.w.'!CV37/'Materiaalindexen o.w.'!CV$33=0,NA(),'Materiaalindexen o.w.'!CV37/'Materiaalindexen o.w.'!CV$33),NA()) -> 0.959688196 | DG117: =IFERROR(IF('Materiaalindexen o.w.'!CW37/'Materiaalindexen o.w.'!CW$33=0,NA(),'Materiaalindexen o.w.'!CW37/'Materiaalindexen o.w.'!CW$33),NA()) -> 1.016648037 | DH117: =IFERROR(IF('Materiaalindexen o.w.'!CX37/'Materiaalindexen o.w.'!CX$33=0,NA(),'Materiaalindexen o.w.'!CX37/'Materiaalindexen o.w.'!CX$33),NA()) -> 1.021785814 | DI117: =IFERROR(IF('Materiaalindexen o.w.'!CY37/'Materiaalindexen o.w.'!CY$33=0,NA(),'Materiaalindexen o.w.'!CY37/'Materiaalindexen o.w.'!CY$33),NA()) -> 1.01887352 | DJ117: =IFERROR(IF('Materiaalindexen o.w.'!CZ37/'Materiaalindexen o.w.'!CZ$33=0,NA(),'Materiaalindexen o.w.'!CZ37/'Materiaalindexen o.w.'!CZ$33),NA()) -> 1 | DK117: =IFERROR(IF('Materiaalindexen o.w.'!DA37/'Materiaalindexen o.w.'!DA$33=0,NA(),'Materiaalindexen o.w.'!DA37/'Materiaalindexen o.w.'!DA$33),NA()) -> 1 | DL117: =IFERROR(IF('Materiaalindexen o.w.'!DB37/'Materiaalindexen o.w.'!DB$33=0,NA(),'Materiaalindexen o.w.'!DB37/'Materiaalindexen o.w.'!DB$33),NA()) -> 1.014865638 | DM117: =IFERROR(IF('Materiaalindexen o.w.'!DC37/'Materiaalindexen o.w.'!DC$33=0,NA(),'Materiaalindexen o.w.'!DC37/'Materiaalindexen o.w.'!DC$33),NA()) -> 1.017630465 | DN117: =IFERROR(IF('Materiaalindexen o.w.'!DD37/'Materiaalindexen o.w.'!DD$33=0,NA(),'Materiaalindexen o.w.'!DD37/'Materiaalindexen o.w.'!DD$33),NA()) -> 0.988815455 | DO117: =IFERROR(IF('Materiaalindexen o.w.'!DE37/'Materiaalindexen o.w.'!DE$33=0,NA(),'Materiaalindexen o.w.'!DE37/'Materiaalindexen o.w.'!DE$33),NA()) -> 1.042024833 | DP117: =IFERROR(IF('Materiaalindexen o.w.'!DF37/'Materiaalindexen o.w.'!DF$33=0,NA(),'Materiaalindexen o.w.'!DF37/'Materiaalindexen o.w.'!DF$33),NA()) -> 1.063148789 | DQ117: =IFERROR(IF('Materiaalindexen o.w.'!DG37/'Materiaalindexen o.w.'!DG$33=0,NA(),'Materiaalindexen o.w.'!DG37/'Materiaalindexen o.w.'!DG$33),NA()) -> 0.9989005351 | DR117: =IFERROR(IF('Materiaalindexen o.w.'!DH37/'Materiaalindexen o.w.'!DH$33=0,NA(),'Materiaalindexen o.w.'!DH37/'Materiaalindexen o.w.'!DH$33),NA()) -> 0.9924321807 | DS117: =IFERROR(IF('Materiaalindexen o.w.'!DI37/'Materiaalindexen o.w.'!DI$33=0,NA(),'Materiaalindexen o.w.'!DI37/'Materiaalindexen o.w.'!DI$33),NA()) -> 1.000439367 | DT117: =IFERROR(IF('Materiaalindexen o.w.'!DJ37/'Materiaalindexen o.w.'!DJ$33=0,NA(),'Materiaalindexen o.w.'!DJ37/'Materiaalindexen o.w.'!DJ$33),NA()) -> 1.008014332 | DU117: =IFERROR(IF('Materiaalindexen o.w.'!DK37/'Materiaalindexen o.w.'!DK$33=0,NA(),'Materiaalindexen o.w.'!DK37/'Materiaalindexen o.w.'!DK$33),NA()) -> 1.064327485 | DV117: =IFERROR(IF('Materiaalindexen o.w.'!DL37/'Materiaalindexen o.w.'!DL$33=0,NA(),'Materiaalindexen o.w.'!DL37/'Materiaalindexen o.w.'!DL$33),NA()) -> 1.005828711 | DW117: =IFERROR(IF('Materiaalindexen o.w.'!DM37/'Materiaalindexen o.w.'!DM$33=0,NA(),'Materiaalindexen o.w.'!DM37/'Materiaalindexen o.w.'!DM$33),NA()) -> 1.002868069 | EA117: 2018-05-01 | EB117: =IFERROR(IF('Indexen goederen & diensten'!C31/'Indexen goederen & diensten'!C$27=0,NA(),'Indexen goederen & diensten'!C31/'Indexen goederen & diensten'!C$27),NA()) -> 1.00619469 | EC117: =IFERROR(IF('Indexen goederen & diensten'!D31/'Indexen goederen & diensten'!D$27=0,NA(),'Indexen goederen & diensten'!D31/'Indexen goederen & diensten'!D$27),NA()) -> 1.05861244 | ED117: =IFERROR(IF('Indexen goederen & diensten'!E31/'Indexen goederen & diensten'!E$27=0,NA(),'Indexen goederen & diensten'!E31/'Indexen goederen & diensten'!E$27),NA()) -> 1.023430178 | EE117: =IFERROR(IF('Indexen goederen & diensten'!F31/'Indexen goederen & diensten'!F$27=0,NA(),'Indexen goederen & diensten'!F31/'Indexen goederen & diensten'!F$27),NA()) -> 0.9990740741 | EF117: =IFERROR(IF('Indexen goederen & diensten'!G31/'Indexen goederen & diensten'!G$27=0,NA(),'Indexen goederen & diensten'!G31/'Indexen goederen & diensten'!G$27),NA()) -> 1.00170503 | EG117: =IFERROR(IF('Indexen goederen & diensten'!H31/'Indexen goederen & diensten'!H$27=0,NA(),'Indexen goederen & diensten'!H31/'Indexen goederen & diensten'!H$27),NA()) -> 0.9680111266 | EH117: =IFERROR(IF('Indexen goederen & diensten'!I31/'Indexen goederen & diensten'!I$27=0,NA(),'Indexen goederen & diensten'!I31/'Indexen goederen & diensten'!I$27),NA()) -> 1.003676471 | EI117: =IFERROR(IF('Indexen goederen & diensten'!J31/'Indexen goederen & diensten'!J$27=0,NA(),'Indexen goederen & diensten'!J31/'Indexen goederen & diensten'!J$27),NA()) -> 0.9955357143 | EJ117: =IFERROR(IF('Indexen goederen & diensten'!K31/'Indexen goederen & diensten'!K$27=0,NA(),'Indexen goederen & diensten'!K31/'Indexen goederen & diensten'!K$27),NA()) -> 1 | EK117: =IFERROR(IF('Indexen goederen & diensten'!L31/'Indexen goederen & diensten'!L$27=0,NA(),'Indexen goederen & diensten'!L31/'Indexen goederen & diensten'!L$27),NA()) -> 1.006161972 | EL117: =IFERROR(IF('Indexen goederen & diensten'!M31/'Indexen goederen & diensten'!M$27=0,NA(),'Indexen goederen & diensten'!M31/'Indexen goederen & diensten'!M$27),NA()) -> 1.004052685 | EM117: =IFERROR(IF('Indexen goederen & diensten'!N31/'Indexen goederen & diensten'!N$27=0,NA(),'Indexen goederen & diensten'!N31/'Indexen goederen & diensten'!N$27),NA()) -> 1 | EN117: =IFERROR(IF('Indexen goederen & diensten'!O31/'Indexen goederen & diensten'!O$27=0,NA(),'Indexen goederen & diensten'!O31/'Indexen goederen & diensten'!O$27),NA()) -> 1.004983389 | EO117: =IFERROR(IF('Indexen goederen & diensten'!P31/'Indexen goederen & diensten'!P$27=0,NA(),'Indexen goederen & diensten'!P31/'Indexen goederen & diensten'!P$27),NA()) -> 1.014324082 | EP117: =IFERROR(IF('Indexen goederen & diensten'!Q31/'Indexen goederen & diensten'!Q$27=0,NA(),'Indexen goederen & diensten'!Q31/'Indexen goederen & diensten'!Q$27),NA()) -> 1.015108593 | EQ117: =IFERROR(IF('Indexen goederen & diensten'!R31/'Indexen goederen & diensten'!R$27=0,NA(),'Indexen goederen & diensten'!R31/'Indexen goederen & diensten'!R$27),NA()) -> 1.017857143 | ER117: =IFERROR(IF('Indexen goederen & diensten'!S31/'Indexen goederen & diensten'!S$27=0,NA(),'Indexen goederen & diensten'!S31/'Indexen goederen & diensten'!S$27),NA()) -> 1.028871391 | ES117: =IFERROR(IF('Indexen goederen & diensten'!T31/'Indexen goederen & diensten'!T$27=0,NA(),'Indexen goederen & diensten'!T31/'Indexen goederen & diensten'!T$27),NA()) -> 1.036777583 | ET117: =IFERROR(IF('Indexen goederen & diensten'!U31/'Indexen goederen & diensten'!U$27=0,NA(),'Indexen goederen & diensten'!U31/'Indexen goederen & diensten'!U$27),NA()) -> 1.050139276 | EU117: =IFERROR(IF('Indexen goederen & diensten'!V31/'Indexen goederen & diensten'!V$27=0,NA(),'Indexen goederen & diensten'!V31/'Indexen goederen & diensten'!V$27),NA()) -> 1.008006405 | EV117: =IFERROR(IF('Indexen goederen & diensten'!W31/'Indexen goederen & diensten'!W$27=0,NA(),'Indexen goederen & diensten'!W31/'Indexen goederen & diensten'!W$27),NA()) -> 1.069393718 | EW117: =IFERROR(IF('Indexen goederen & diensten'!X31/'Indexen goederen & diensten'!X$27=0,NA(),'Indexen goederen & diensten'!X31/'Indexen goederen & diensten'!X$27),NA()) -> 1.007778738 | EX117: =IFERROR(IF('Indexen goederen & diensten'!Y31/'Indexen goederen & diensten'!Y$27=0,NA(),'Indexen goederen & diensten'!Y31/'Indexen goederen & diensten'!Y$27),NA()) -> 0.9811158798 | EY117: =IFERROR(IF('Indexen goederen & diensten'!Z31/'Indexen goederen & diensten'!Z$27=0,NA(),'Indexen goederen & diensten'!Z31/'Indexen goederen & diensten'!Z$27),NA()) -> 0.8878416588 | EZ117: =IFERROR(IF('Indexen goederen & diensten'!AA31/'Indexen goederen & diensten'!AA$27=0,NA(),'Indexen goederen & diensten'!AA31/'Indexen goederen & diensten'!AA$27),NA()) -> 1.024451939 | FA117: =IFERROR(IF('Indexen goederen & diensten'!AB31/'Indexen goederen & diensten'!AB$27=0,NA(),'Indexen goederen & diensten'!AB31/'Indexen goederen & diensten'!AB$27),NA()) -> 1.032939189 | FB117: =IFERROR(IF('Indexen goederen & diensten'!AC31/'Indexen goederen & diensten'!AC$27=0,NA(),'Indexen goederen & diensten'!AC31/'Indexen goederen & diensten'!AC$27),NA()) -> 1.022823331 | FC117: =IFERROR(IF('Indexen goederen & diensten'!AD31/'Indexen goederen & diensten'!AD$27=0,NA(),'Indexen goederen & diensten'!AD31/'Indexen goederen & diensten'!AD$27),NA()) -> 1.023547881 | FD117: =IFERROR(IF('Indexen goederen & diensten'!AE31/'Indexen goederen & diensten'!AE$27=0,NA(),'Indexen goederen & diensten'!AE31/'Indexen goederen & diensten'!AE$27),NA()) -> 1.000868056 | FE117: =IFERROR(IF('Indexen goederen & diensten'!AF31/'Indexen goederen & diensten'!AF$27=0,NA(),'Indexen goederen & diensten'!AF31/'Indexen goederen & diensten'!AF$27),NA()) -> 1.023276634 | FF117: =IFERROR(IF('Indexen goederen & diensten'!AG31/'Indexen goederen & diensten'!AG$27=0,NA(),'Indexen goederen & diensten'!AG31/'Indexen goederen & diensten'!AG$27),NA()) -> 1.099462366 | FG117: =IFERROR(IF('Indexen goederen & diensten'!AH31/'Indexen goederen & diensten'!AH$27=0,NA(),'Indexen goederen & diensten'!AH31/'Indexen goederen & diensten'!AH$27),NA()) -> 0.9947460595 | FH117: =IFERROR(IF('Indexen goederen & diensten'!AI31/'Indexen goederen & diensten'!AI$27=0,NA(),'Indexen goederen & diensten'!AI31/'Indexen goederen & diensten'!AI$27),NA()) -> 1.002583979 | FI117: =IFERROR(IF('Indexen goederen & diensten'!AJ31/'Indexen goederen & diensten'!AJ$27=0,NA(),'Indexen goederen & diensten'!AJ31/'Indexen goederen & diensten'!AJ$27),NA()) -> 0.9525660964 | FJ117: =IFERROR(IF('Indexen goederen & diensten'!AK31/'Indexen goederen & diensten'!AK$27=0,NA(),'Indexen goederen & diensten'!AK31/'Indexen goederen & diensten'!AK$27),NA()) -> 0.9951638904 | FK117: =IFERROR(IF('Indexen goederen & diensten'!AL31/'Indexen goederen & diensten'!AL$27=0,NA(),'Indexen goederen & diensten'!AL31/'Indexen goederen & diensten'!AL$27),NA()) -> 1.02716915 | FL117: =IFERROR(IF('Indexen goederen & diensten'!AM31/'Indexen goederen & diensten'!AM$27=0,NA(),'Indexen goederen & diensten'!AM31/'Indexen goederen & diensten'!AM$27),NA()) -> 1.00233463 | FM117: =IFERROR(IF('Indexen goederen & diensten'!AN31/'Indexen goederen & diensten'!AN$27=0,NA(),'Indexen goederen & diensten'!AN31/'Indexen goederen & diensten'!AN$27),NA()) -> 1.003542958 | FN117: =IFERROR(IF('Indexen goederen & diensten'!AO31/'Indexen goederen & diensten'!AO$27=0,NA(),'Indexen goederen & diensten'!AO31/'Indexen goederen & diensten'!AO$27),NA()) -> 0.9982222222 | FO117: =IFERROR(IF('Indexen goederen & diensten'!AP31/'Indexen goederen & diensten'!AP$27=0,NA(),'Indexen goederen & diensten'!AP31/'Indexen goederen & diensten'!AP$27),NA()) -> 1.004432624 | FP117: =IFERROR(IF('Indexen goederen & diensten'!AQ31/'Indexen goederen & diensten'!AQ$27=0,NA(),'Indexen goederen & diensten'!AQ31/'Indexen goederen & diensten'!AQ$27),NA()) -> 0.9990147783 | FQ117: =IFERROR(IF('Indexen goederen & diensten'!AR31/'Indexen goederen & diensten'!AR$27=0,NA(),'Indexen goederen & diensten'!AR31/'Indexen goederen & diensten'!AR$27),NA()) -> 1.007131537 | FR117: =IFERROR(IF('Indexen goederen & diensten'!AS31/'Indexen goederen & diensten'!AS$27=0,NA(),'Indexen goederen & diensten'!AS31/'Indexen goederen & diensten'!AS$27),NA()) -> 1.026112186 | FS117: =IFERROR(IF('Indexen goederen & diensten'!AT31/'Indexen goederen & diensten'!AT$27=0,NA(),'Indexen goederen & diensten'!AT31/'Indexen goederen & diensten'!AT$27),NA()) -> 1.024667932 | FT117: =IFERROR(IF('Indexen goederen & diensten'!AU31/'Indexen goederen & diensten'!AU$27=0,NA(),'Indexen goederen & diensten'!AU31/'Indexen goederen & diensten'!AU$27),NA()) -> 1.032225579 | FU117: =IFERROR(IF('Indexen goederen & diensten'!AV31/'Indexen goederen & diensten'!AV$27=0,NA(),'Indexen goederen & diensten'!AV31/'Indexen goederen & diensten'!AV$27),NA()) -> 1.073033708 | FV117: =IFERROR(IF('Indexen goederen & diensten'!AW31/'Indexen goederen & diensten'!AW$27=0,NA(),'Indexen goederen & diensten'!AW31/'Indexen goederen & diensten'!AW$27),NA()) -> 1.01453958 | FW117: =IFERROR(IF('Indexen goederen & diensten'!AX31/'Indexen goederen & diensten'!AX$27=0,NA(),'Indexen goederen & diensten'!AX31/'Indexen goederen & diensten'!AX$27),NA()) -> 1.01453958 | FX117: =IFERROR(IF('Indexen goederen & diensten'!AY31/'Indexen goederen & diensten'!AY$27=0,NA(),'Indexen goederen & diensten'!AY31/'Indexen goederen & diensten'!AY$27),NA()) -> 1.032544379 | FY117: =IFERROR(IF('Indexen goederen & diensten'!AZ31/'Indexen goederen & diensten'!AZ$27=0,NA(),'Indexen goederen & diensten'!AZ31/'Indexen goederen & diensten'!AZ$27),NA()) -> 1.047227926 | FZ117: =IFERROR(IF('Indexen goederen & diensten'!BA31/'Indexen goederen & diensten'!BA$27=0,NA(),'Indexen goederen & diensten'!BA31/'Indexen goederen & diensten'!BA$27),NA()) -> 1.02266289 | GA117: =IFERROR(IF('Indexen goederen & diensten'!BB31/'Indexen goederen & diensten'!BB$27=0,NA(),'Indexen goederen & diensten'!BB31/'Indexen goederen & diensten'!BB$27),NA()) -> 1.028284672 | GB117: =IFERROR(IF('Indexen goederen & diensten'!BC31/'Indexen goederen & diensten'!BC$27=0,NA(),'Indexen goederen & diensten'!BC31/'Indexen goederen & diensten'!BC$27),NA()) -> 1.019547325 | GC117: =IFERROR(IF('Indexen goederen & diensten'!BD31/'Indexen goederen & diensten'!BD$27=0,NA(),'Indexen goederen & diensten'!BD31/'Indexen goederen & diensten'!BD$27),NA()) -> 0.998019802 | GD117: =IFERROR(IF('Indexen goederen & diensten'!BE31/'Indexen goederen & diensten'!BE$27=0,NA(),'Indexen goederen & diensten'!BE31/'Indexen goederen & diensten'!BE$27),NA()) -> 1.00280112 | GE117: =IFERROR(IF('Indexen goederen & diensten'!BF31/'Indexen goederen & diensten'!BF$27=0,NA(),'Indexen goederen & diensten'!BF31/'Indexen goederen & diensten'!BF$27),NA()) -> 1.0256 | GF117: =IFERROR(IF('Indexen goederen & diensten'!BG31/'Indexen goederen & diensten'!BG$27=0,NA(),'Indexen goederen & diensten'!BG31/'Indexen goederen & diensten'!BG$27),NA()) -> 0.9959216966 | GG117: =IFERROR(IF('Indexen goederen & diensten'!BH31/'Indexen goederen & diensten'!BH$27=0,NA(),'Indexen goederen & diensten'!BH31/'Indexen goederen & diensten'!BH$27),NA()) -> 1.02890625 | GH117: =IFERROR(IF('Indexen goederen & diensten'!BI31/'Indexen goederen & diensten'!BI$27=0,NA(),'Indexen goederen & diensten'!BI31/'Indexen goederen & diensten'!BI$27),NA()) -> 0.9867298578 | GI117: =IFERROR(IF('Indexen goederen & diensten'!BJ31/'Indexen goederen & diensten'!BJ$27=0,NA(),'Indexen goederen & diensten'!BJ31/'Indexen goederen & diensten'!BJ$27),NA()) -> 0.9848484848 | GJ117: =IFERROR(IF('Indexen goederen & diensten'!BK31/'Indexen goederen & diensten'!BK$27=0,NA(),'Indexen goederen & diensten'!BK31/'Indexen goederen & diensten'!BK$27),NA()) -> 0.9794520548 | GK117: =IFERROR(IF('Indexen goederen & diensten'!BL31/'Indexen goederen & diensten'!BL$27=0,NA(),'Indexen goederen & diensten'!BL31/'Indexen goederen & diensten'!BL$27),NA()) -> 0.9903508772 | GL117: =IFERROR(IF('Indexen goederen & diensten'!BM31/'Indexen goederen & diensten'!BM$27=0,NA(),'Indexen goederen & diensten'!BM31/'Indexen goederen & diensten'!BM$27),NA()) -> 1.018442623 | GM117: =IFERROR(IF('Indexen goederen & diensten'!BN31/'Indexen goederen & diensten'!BN$27=0,NA(),'Indexen goederen & diensten'!BN31/'Indexen goederen & diensten'!BN$27),NA()) -> 1.024021352 | GN117: =IFERROR(IF('Indexen goederen & diensten'!BO31/'Indexen goederen & diensten'!BO$27=0,NA(),'Indexen goederen & diensten'!BO31/'Indexen goederen & diensten'!BO$27),NA()) -> 1.026794258 | GO117: =IFERROR(IF('Indexen goederen & diensten'!BP31/'Indexen goederen & diensten'!BP$27=0,NA(),'Indexen goederen & diensten'!BP31/'Indexen goederen & diensten'!BP$27),NA()) -> 1.008093525 | GP117: =IFERROR(IF('Indexen goederen & diensten'!BQ31/'Indexen goederen & diensten'!BQ$27=0,NA(),'Indexen goederen & diensten'!BQ31/'Indexen goederen & diensten'!BQ$27),NA()) -> 1.011926606 | GQ117: =IFERROR(IF('Indexen goederen & diensten'!BR31/'Indexen goederen & diensten'!BR$27=0,NA(),'Indexen goederen & diensten'!BR31/'Indexen goederen & diensten'!BR$27),NA()) -> 1.00174216 | GR117: =IFERROR(IF('Indexen goederen & diensten'!BS31/'Indexen goederen & diensten'!BS$27=0,NA(),'Indexen goederen & diensten'!BS31/'Indexen goederen & diensten'!BS$27),NA()) -> 1.022913257 | GS117: =IFERROR(IF('Indexen goederen & diensten'!BT31/'Indexen goederen & diensten'!BT$27=0,NA(),'Indexen goederen & diensten'!BT31/'Indexen goederen & diensten'!BT$27),NA()) -> 1.038528897 | GT117: =IFERROR(IF('Indexen goederen & diensten'!BU31/'Indexen goederen & diensten'!BU$27=0,NA(),'Indexen goederen & diensten'!BU31/'Indexen goederen & diensten'!BU$27),NA()) -> 1.023674242 | GU117: =IFERROR(IF('Indexen goederen & diensten'!BV31/'Indexen goederen & diensten'!BV$27=0,NA(),'Indexen goederen & diensten'!BV31/'Indexen goederen & diensten'!BV$27),NA()) -> 1 | GV117: =IFERROR(IF('Indexen goederen & diensten'!BW31/'Indexen goederen & diensten'!BW$27=0,NA(),'Indexen goederen & diensten'!BW31/'Indexen goederen & diensten'!BW$27),NA()) -> 1.015652174 | GW117: =IFERROR(IF('Indexen goederen & diensten'!BX31/'Indexen goederen & diensten'!BX$27=0,NA(),'Indexen goederen & diensten'!BX31/'Indexen goederen & diensten'!BX$27),NA()) -> 0.998502994 | GX117: =IFERROR(IF('Indexen goederen & diensten'!BY31/'Indexen goederen & diensten'!BY$27=0,NA(),'Indexen goederen & diensten'!BY31/'Indexen goederen & diensten'!BY$27),NA()) -> 1.019572954 | GY117: =IFERROR(IF('Indexen goederen & diensten'!BZ31/'Indexen goederen & diensten'!BZ$27=0,NA(),'Indexen goederen & diensten'!BZ31/'Indexen goederen & diensten'!BZ$27),NA()) -> 1.058187864 | GZ117: =IFERROR(IF('Indexen goederen & diensten'!CA31/'Indexen goederen & diensten'!CA$27=0,NA(),'Indexen goederen & diensten'!CA31/'Indexen goederen & diensten'!CA$27),NA()) -> 1.004643963 | HA117: =IFERROR(IF('Indexen goederen & diensten'!CB31/'Indexen goederen & diensten'!CB$27=0,NA(),'Indexen goederen & diensten'!CB31/'Indexen goederen & diensten'!CB$27),NA()) -> 1.005314438 | HB117: =IFERROR(IF('Indexen goederen & diensten'!CC31/'Indexen goederen & diensten'!CC$27=0,NA(),'Indexen goederen & diensten'!CC31/'Indexen goederen & diensten'!CC$27),NA()) -> 1.011948529 | HC117: =IFERROR(IF('Indexen goederen & diensten'!CD31/'Indexen goederen & diensten'!CD$27=0,NA(),'Indexen goederen & diensten'!CD31/'Indexen goederen & diensten'!CD$27),NA()) -> 1.00199005 | HD117: =IFERROR(IF('Indexen goederen & diensten'!CE31/'Indexen goederen & diensten'!CE$27=0,NA(),'Indexen goederen & diensten'!CE31/'Indexen goederen & diensten'!CE$27),NA()) -> 1.006145742 | HE117: =IFERROR(IF('Indexen goederen & diensten'!CF31/'Indexen goederen & diensten'!CF$27=0,NA(),'Indexen goederen & diensten'!CF31/'Indexen goederen & diensten'!CF$27),NA()) -> 1 | HF117: =IFERROR(IF('Indexen goederen & diensten'!CG31/'Indexen goederen & diensten'!CG$27=0,NA(),'Indexen goederen & diensten'!CG31/'Indexen goederen & diensten'!CG$27),NA()) -> 1.004444444 | HG117: =IFERROR(IF('Indexen goederen & diensten'!CH31/'Indexen goederen & diensten'!CH$27=0,NA(),'Indexen goederen & diensten'!CH31/'Indexen goederen & diensten'!CH$27),NA()) -> 1.009737098 | HH117: =IFERROR(IF('Indexen goederen & diensten'!CI31/'Indexen goederen & diensten'!CI$27=0,NA(),'Indexen goederen & diensten'!CI31/'Indexen goederen & diensten'!CI$27),NA()) -> 0.9968421053 | HI117: =IFERROR(IF('Indexen goederen & diensten'!CJ31/'Indexen goederen & diensten'!CJ$27=0,NA(),'Indexen goederen & diensten'!CJ31/'Indexen goederen & diensten'!CJ$27),NA()) -> 0.9569093611 | HJ117: =IFERROR(IF('Indexen goederen & diensten'!CK31/'Indexen goederen & diensten'!CK$27=0,NA(),'Indexen goederen & diensten'!CK31/'Indexen goederen & diensten'!CK$27),NA()) -> 0.9628851541 | HK117: =IFERROR(IF('Indexen goederen & diensten'!CL31/'Indexen goederen & diensten'!CL$27=0,NA(),'Indexen goederen & diensten'!CL31/'Indexen goederen & diensten'!CL$27),NA()) -> 0.9395711501 | HL117: =IFERROR(IF('Indexen goederen & diensten'!CM31/'Indexen goederen & diensten'!CM$27=0,NA(),'Indexen goederen & diensten'!CM31/'Indexen goederen & diensten'!CM$27),NA()) -> 1.00090009 | HN117: =Tableau21[[#This Row],[datum]] -> 2018-05-01 | HO117: =IFERROR(IF(Standaardindexen!L30/Standaardindexen!L$26=0,NA(),Standaardindexen!L30/Standaardindexen!L$26),NA()) -> 0.9954946257 | HP117: =IFERROR(IF(Standaardindexen!M30/Standaardindexen!M$26=0,NA(),Standaardindexen!M30/Standaardindexen!M$26),NA()) -> 0.9956812919 | HQ117: =IFERROR(IF(Standaardindexen!N30/Standaardindexen!N$26=0,NA(),Standaardindexen!N30/Standaardindexen!N$26),NA()) -> 0.9957119159 | HR117: =IFERROR(IF(Standaardindexen!O30/Standaardindexen!O$26=0,NA(),Standaardindexen!O30/Standaardindexen!O$26),NA()) -> 0.9954899813 | HS117: =IFERROR(IF(Standaardindexen!P30/Standaardindexen!P$26=0,NA(),Standaardindexen!P30/Standaardindexen!P$26),NA()) -> 0.9956769626 | HT117: =IFERROR(IF(Standaardindexen!Q30/Standaardindexen!Q$26=0,NA(),Standaardindexen!Q30/Standaardindexen!Q$26),NA()) -> 0.9956762854 | HU117: =IFERROR(IF(Standaardindexen!R30/Standaardindexen!R$26=0,NA(),Standaardindexen!R30/Standaardindexen!R$26),NA()) -> 0.9952943499 | HV117: =IFERROR(IF(Standaardindexen!S30/Standaardindexen!S$26=0,NA(),Standaardindexen!S30/Standaardindexen!S$26),NA()) -> 0.9954907416 | HW117: =IFERROR(IF(Standaardindexen!T30/Standaardindexen!T$26=0,NA(),Standaardindexen!T30/Standaardindexen!T$26),NA()) -> 0.9954900205 | HX117: =IFERROR(IF(Standaardindexen!U30/Standaardindexen!U$26=0,NA(),Standaardindexen!U30/Standaardindexen!U$26),NA()) -> 0.995183141 | HY117: =IFERROR(IF(Standaardindexen!V30/Standaardindexen!V$26=0,NA(),Standaardindexen!V30/Standaardindexen!V$26),NA()) -> 0.9953858652 | HZ117: =IFERROR(IF(Standaardindexen!W30/Standaardindexen!W$26=0,NA(),Standaardindexen!W30/Standaardindexen!W$26),NA()) -> 0.9953851154 | IA117: =IFERROR(IF(Standaardindexen!X30/Standaardindexen!X$26=0,NA(),Standaardindexen!X30/Standaardindexen!X$26),NA()) -> 1.000795355 | IB117: =IFERROR(IF(Standaardindexen!Y30/Standaardindexen!Y$26=0,NA(),Standaardindexen!Y30/Standaardindexen!Y$26),NA()) -> 1.000747737 | IC117: =Tableau21[[#This Row],[prijsevolutie - volgens prijsherzieningsformule -index i 2021]] -> 1.00292 | ID117: =Tableau21[[#This Row],[prijsevolutie - volgens prijsherzieningsformule -index i]] -> 0.99466 | IE117: =Tableau21[[#This Row],[prijsherzieningsformule - index i 2021]] -> 1.00053 | IF117: =Tableau21[[#This Row],[prijsherzieningsformule - index i]] -> 1.00051 | IG117: =IFERROR(IF('Indexeringen Lonen per PC'!E55/'Indexeringen Lonen per PC'!E$51=0,NA(),'Indexeringen Lonen per PC'!E55/'Indexeringen Lonen per PC'!E$51),NA()) -> 1.004216093 | IH117: =IFERROR(IF('Indexeringen Lonen per PC'!F55/'Indexeringen Lonen per PC'!F$51=0,NA(),'Indexeringen Lonen per PC'!F55/'Indexeringen Lonen per PC'!F$51),NA()) -> 1.004221133 | II117: =IFERROR(IF('Indexeringen Lonen per PC'!G55/'Indexeringen Lonen per PC'!G$51=0,NA(),'Indexeringen Lonen per PC'!G55/'Indexeringen Lonen per PC'!G$51),NA()) -> 1.004223652 | IJ117: =IFERROR(IF('Indexeringen Lonen per PC'!H55/'Indexeringen Lonen per PC'!H$51=0,NA(),'Indexeringen Lonen per PC'!H55/'Indexeringen Lonen per PC'!H$51),NA()) -> 1.00421429 | IK117: =IFERROR(IF('Indexeringen Lonen per PC'!I55/'Indexeringen Lonen per PC'!I$51=0,NA(),'Indexeringen Lonen per PC'!I55/'Indexeringen Lonen per PC'!I$51),NA()) -> 1.004223399 | IL117: =IFERROR(IF('Indexeringen Lonen per PC'!J55/'Indexeringen Lonen per PC'!J$51=0,NA(),'Indexeringen Lonen per PC'!J55/'Indexeringen Lonen per PC'!J$51),NA()) -> 1.004216402 | IM117: =IFERROR(IF('Indexeringen Lonen per PC'!K55/'Indexeringen Lonen per PC'!K$51=0,NA(),'Indexeringen Lonen per PC'!K55/'Indexeringen Lonen per PC'!K$51),NA()) -> 1.004240688 | IN117: =IFERROR(IF('Indexeringen Lonen per PC'!L55/'Indexeringen Lonen per PC'!L$51=0,NA(),'Indexeringen Lonen per PC'!L55/'Indexeringen Lonen per PC'!L$51),NA()) -> 1.004210981 | IO117: =IFERROR(IF('Indexeringen Lonen per PC'!M55/'Indexeringen Lonen per PC'!M$51=0,NA(),'Indexeringen Lonen per PC'!M55/'Indexeringen Lonen per PC'!M$51),NA()) -> 1.004206463 | IP117: =IFERROR(IF('Indexeringen Lonen per PC'!T55/'Indexeringen Lonen per PC'!T$51=0,NA(),'Indexeringen Lonen per PC'!T55/'Indexeringen Lonen per PC'!T$51),NA()) -> 1 | IQ117: =IFERROR(IF('Indexeringen Lonen per PC'!U55/'Indexeringen Lonen per PC'!U$51=0,NA(),'Indexeringen Lonen per PC'!U55/'Indexeringen Lonen per PC'!U$51),NA()) -> 1 | IR117: =IFERROR(IF('Indexeringen Lonen per PC'!V55/'Indexeringen Lonen per PC'!V$51=0,NA(),'Indexeringen Lonen per PC'!V55/'Indexeringen Lonen per PC'!V$51),NA()) -> 1 | IS117: =IFERROR(IF('Indexeringen Lonen per PC'!W55/'Indexeringen Lonen per PC'!W$51=0,NA(),'Indexeringen Lonen per PC'!W55/'Indexeringen Lonen per PC'!W$51),NA()) -> 1 | IT117: =IFERROR(IF('Indexeringen Lonen per PC'!AD55/'Indexeringen Lonen per PC'!AD$51=0,NA(),'Indexeringen Lonen per PC'!AD55/'Indexeringen Lonen per PC'!AD$51),NA()) -> 1 | IU117: =IFERROR(IF('Indexeringen Lonen per PC'!AE55/'Indexeringen Lonen per PC'!AE$51=0,NA(),'Indexeringen Lonen per PC'!AE55/'Indexeringen Lonen per PC'!AE$51),NA()) -> 1 | IV117: =IFERROR(IF('Indexeringen Lonen per PC'!AF55/'Indexeringen Lonen per PC'!AF$51=0,NA(),'Indexeringen Lonen per PC'!AF55/'Indexeringen Lonen per PC'!AF$51),NA()) -> 1 | IW117: =IFERROR(IF('Indexeringen Lonen per PC'!AG55/'Indexeringen Lonen per PC'!AG$51=0,NA(),'Indexeringen Lonen per PC'!AG55/'Indexeringen Lonen per PC'!AG$51),NA()) -> 1 | IX117: =IFERROR(IF('Indexeringen Lonen per PC'!AH55/'Indexeringen Lonen per PC'!AH$51=0,NA(),'Indexeringen Lonen per PC'!AH55/'Indexeringen Lonen per PC'!AH$51),NA()) -> 1 | IY117: =IFERROR(IF('Indexeringen Lonen per PC'!AI55/'Indexeringen Lonen per PC'!AI$51=0,NA(),'Indexeringen Lonen per PC'!AI55/'Indexeringen Lonen per PC'!AI$51),NA()) -> 1 | IZ117: =IFERROR(IF('Indexeringen Lonen per PC'!AP55/'Indexeringen Lonen per PC'!AP$51=0,NA(),'Indexeringen Lonen per PC'!AP55/'Indexeringen Lonen per PC'!AP$51),NA()) -> 1.020033389 | JA117: =IFERROR(IF('Indexeringen Lonen per PC'!AW55/'Indexeringen Lonen per PC'!AW$51=0,NA(),'Indexeringen Lonen per PC'!AW55/'Indexeringen Lonen per PC'!AW$51),NA()) -> 1 | JB117: =IFERROR(IF('Indexeringen Lonen per PC'!AX55/'Indexeringen Lonen per PC'!AX$51=0,NA(),'Indexeringen Lonen per PC'!AX55/'Indexeringen Lonen per PC'!AX$51),NA()) -> 1 | JC117: =IFERROR(IF('Indexeringen Lonen per PC'!AY55/'Indexeringen Lonen per PC'!AY$51=0,NA(),'Indexeringen Lonen per PC'!AY55/'Indexeringen Lonen per PC'!AY$51),NA()) -> 1 | JD117: =IFERROR(IF('Indexeringen Lonen per PC'!AZ55/'Indexeringen Lonen per PC'!AZ$51=0,NA(),'Indexeringen Lonen per PC'!AZ55/'Indexeringen Lonen per PC'!AZ$51),NA()) -> 1 | JE117: =IFERROR(IF('Indexeringen Lonen per PC'!BA55/'Indexeringen Lonen per PC'!BA$51=0,NA(),'Indexeringen Lonen per PC'!BA55/'Indexeringen Lonen per PC'!BA$51),NA()) -> 1 | JF117: =IFERROR(IF('Indexeringen Lonen per PC'!BB55/'Indexeringen Lonen per PC'!BB$51=0,NA(),'Indexeringen Lonen per PC'!BB55/'Indexeringen Lonen per PC'!BB$51),NA()) -> 1 | JG117: =IFERROR(IF('Indexeringen Lonen per PC'!BC55/'Indexeringen Lonen per PC'!BC$51=0,NA(),'Indexeringen Lonen per PC'!BC55/'Indexeringen Lonen per PC'!BC$51),NA()) -> 1 | JH117: =IFERROR(IF('Indexeringen Lonen per PC'!BD55/'Indexeringen Lonen per PC'!BD$51=0,NA(),'Indexeringen Lonen per PC'!BD55/'Indexeringen Lonen per PC'!BD$51),NA()) -> 1 | JI117: =IFERROR(IF('Indexeringen Lonen per PC'!BK55/'Indexeringen Lonen per PC'!BK$51=0,NA(),'Indexeringen Lonen per PC'!BK55/'Indexeringen Lonen per PC'!BK$51),NA()) -> 1 | JJ117: =IFERROR(IF('Indexeringen Lonen per PC'!BR55/'Indexeringen Lonen per PC'!BR$51=0,NA(),'Indexeringen Lonen per PC'!BR55/'Indexeringen Lonen per PC'!BR$51),NA()) -> 1 | JK117: =IFERROR(IF('Indexeringen Lonen per PC'!BS55/'Indexeringen Lonen per PC'!BS$51=0,NA(),'Indexeringen Lonen per PC'!BS55/'Indexeringen Lonen per PC'!BS$51),NA()) -> 1 | JL117: =IFERROR(IF('Indexeringen Lonen per PC'!BT55/'Indexeringen Lonen per PC'!BT$51=0,NA(),'Indexeringen Lonen per PC'!BT55/'Indexeringen Lonen per PC'!BT$51),NA()) -> 1 | JM117: =IFERROR(IF('Indexeringen Lonen per PC'!BU55/'Indexeringen Lonen per PC'!BU$51=0,NA(),'Indexeringen Lonen per PC'!BU55/'Indexeringen Lonen per PC'!BU$51),NA()) -> 1 | JN117: =IFERROR(IF('Indexeringen Lonen per PC'!BV55/'Indexeringen Lonen per PC'!BV$51=0,NA(),'Indexeringen Lonen per PC'!BV55/'Indexeringen Lonen per PC'!BV$51),NA()) -> 1 | JO117: =IFERROR(IF('Indexeringen Lonen per PC'!BW55/'Indexeringen Lonen per PC'!BW$51=0,NA(),'Indexeringen Lonen per PC'!BW55/'Indexeringen Lonen per PC'!BW$51),NA()) -> 1 | JP117: =IFERROR(IF('Indexeringen Lonen per PC'!BX55/'Indexeringen Lonen per PC'!BX$51=0,NA(),'Indexeringen Lonen per PC'!BX55/'Indexeringen Lonen per PC'!BX$51),NA()) -> 1 | JQ117: =IFERROR(IF('Indexeringen Lonen per PC'!BY55/'Indexeringen Lonen per PC'!BY$51=0,NA(),'Indexeringen Lonen per PC'!BY55/'Indexeringen Lonen per PC'!BY$51),NA()) -> 1 | JR117: =IFERROR(IF('Indexeringen Lonen per PC'!BZ55/'Indexeringen Lonen per PC'!BZ$51=0,NA(),'Indexeringen Lonen per PC'!BZ55/'Indexeringen Lonen per PC'!BZ$51),NA()) -> 1 | JS117: =IFERROR(IF('Indexeringen Lonen per PC'!CA55/'Indexeringen Lonen per PC'!CA$51=0,NA(),'Indexeringen Lonen per PC'!CA55/'Indexeringen Lonen per PC'!CA$51),NA()) -> 1 | JT117: =IFERROR(IF('Indexeringen Lonen per PC'!CB55/'Indexeringen Lonen per PC'!CB$51=0,NA(),'Indexeringen Lonen per PC'!CB55/'Indexeringen Lonen per PC'!CB$51),NA()) -> 1 | JU117: =IFERROR(IF('Indexeringen Lonen per PC'!CC55/'Indexeringen Lonen per PC'!CC$51=0,NA(),'Indexeringen Lonen per PC'!CC55/'Indexeringen Lonen per PC'!CC$51),NA()) -> 1 | JV117: =IFERROR(IF('Indexeringen Lonen per PC'!CD55/'Indexeringen Lonen per PC'!CD$51=0,NA(),'Indexeringen Lonen per PC'!CD55/'Indexeringen Lonen per PC'!CD$51),NA()) -> 1 | JW117: =IFERROR(IF('Indexeringen Lonen per PC'!CE55/'Indexeringen Lonen per PC'!CE$51=0,NA(),'Indexeringen Lonen per PC'!CE55/'Indexeringen Lonen per PC'!CE$51),NA()) -> 1 | JX117: =IFERROR(IF('Indexeringen Lonen per PC'!CF55/'Indexeringen Lonen per PC'!CF$51=0,NA(),'Indexeringen Lonen per PC'!CF55/'Indexeringen Lonen per PC'!CF$51),NA()) -> 1 | JY117: =IFERROR(IF('Indexeringen Lonen per PC'!CG55/'Indexeringen Lonen per PC'!CG$51=0,NA(),'Indexeringen Lonen per PC'!CG55/'Indexeringen Lonen per PC'!CG$51),NA()) -> 1 | JZ117: =IFERROR(IF('Indexeringen Lonen per PC'!CH55/'Indexeringen Lonen per PC'!CH$51=0,NA(),'Indexeringen Lonen per PC'!CH55/'Indexeringen Lonen per PC'!CH$51),NA()) -> 1 | KA117: =IFERROR(IF('Indexeringen Lonen per PC'!CI55/'Indexeringen Lonen per PC'!CI$51=0,NA(),'Indexeringen Lonen per PC'!CI55/'Indexeringen Lonen per PC'!CI$51),NA()) -> 1 | KB117: =IFERROR(IF('Indexeringen Lonen per PC'!CJ55/'Indexeringen Lonen per PC'!CJ$51=0,NA(),'Indexeringen Lonen per PC'!CJ55/'Indexeringen Lonen per PC'!CJ$51),NA()) -> 1 | KC117: =IFERROR(IF('Indexeringen Lonen per PC'!CQ55/'Indexeringen Lonen per PC'!CQ$51=0,NA(),'Indexeringen Lonen per PC'!CQ55/'Indexeringen Lonen per PC'!CQ$51),NA()) -> 1.008723127 | KD117: =IFERROR(IF('Indexeringen Lonen per PC'!CR55/'Indexeringen Lonen per PC'!CR$51=0,NA(),'Indexeringen Lonen per PC'!CR55/'Indexeringen Lonen per PC'!CR$51),NA()) -> 1.008679086 | KE117: =IFERROR(IF('Indexeringen Lonen per PC'!CS55/'Indexeringen Lonen per PC'!CS$51=0,NA(),'Indexeringen Lonen per PC'!CS55/'Indexeringen Lonen per PC'!CS$51),NA()) -> 1.008696282 | KF117: =IFERROR(IF('Indexeringen Lonen per PC'!CT55/'Indexeringen Lonen per PC'!CT$51=0,NA(),'Indexeringen Lonen per PC'!CT55/'Indexeringen Lonen per PC'!CT$51),NA()) -> 1.00866577 | KG117: =IFERROR(IF('Indexeringen Lonen per PC'!CU55/'Indexeringen Lonen per PC'!CU$51=0,NA(),'Indexeringen Lonen per PC'!CU55/'Indexeringen Lonen per PC'!CU$51),NA()) -> 1.008716446 | KH117: =IFERROR(IF('Indexeringen Lonen per PC'!DB55/'Indexeringen Lonen per PC'!DB$51=0,NA(),'Indexeringen Lonen per PC'!DB55/'Indexeringen Lonen per PC'!DB$51),NA()) -> 1 | KI117: =IFERROR(IF('Indexeringen Lonen per PC'!DC55/'Indexeringen Lonen per PC'!DC$51=0,NA(),'Indexeringen Lonen per PC'!DC55/'Indexeringen Lonen per PC'!DC$51),NA()) -> 1 | KJ117: =IFERROR(IF('Indexeringen Lonen per PC'!DD55/'Indexeringen Lonen per PC'!DD$51=0,NA(),'Indexeringen Lonen per PC'!DD55/'Indexeringen Lonen per PC'!DD$51),NA()) -> 1 | KK117: =IFERROR(IF('Indexeringen Lonen per PC'!DE55/'Indexeringen Lonen per PC'!DE$51=0,NA(),'Indexeringen Lonen per PC'!DE55/'Indexeringen Lonen per PC'!DE$51),NA()) -> 1 | KL117: =IFERROR(IF('Indexeringen Lonen per PC'!DL55/'Indexeringen Lonen per PC'!DL$51=0,NA(),'Indexeringen Lonen per PC'!DL55/'Indexeringen Lonen per PC'!DL$51),NA()) -> 1 | KM117: =IFERROR(IF('Indexeringen Lonen per PC'!DM55/'Indexeringen Lonen per PC'!DM$51=0,NA(),'Indexeringen Lonen per PC'!DM55/'Indexeringen Lonen per PC'!DM$51),NA()) -> 1 | KN117: =IFERROR(IF('Indexeringen Lonen per PC'!DN55/'Indexeringen Lonen per PC'!DN$51=0,NA(),'Indexeringen Lonen per PC'!DN55/'Indexeringen Lonen per PC'!DN$51),NA()) -> 1 | KO117: =IFERROR(IF('Indexeringen Lonen per PC'!DO55/'Indexeringen Lonen per PC'!DO$51=0,NA(),'Indexeringen Lonen per PC'!DO55/'Indexeringen Lonen per PC'!DO$51),NA()) -> 1 | KP117: =IFERROR(IF('Indexeringen Lonen per PC'!DP55/'Indexeringen Lonen per PC'!DP$51=0,NA(),'Indexeringen Lonen per PC'!DP55/'Indexeringen Lonen per PC'!DP$51),NA()) -> 1 | KQ117: =IFERROR(IF('Indexeringen Lonen per PC'!DQ55/'Indexeringen Lonen per PC'!DQ$51=0,NA(),'Indexeringen Lonen per PC'!DQ55/'Indexeringen Lonen per PC'!DQ$51),NA()) -> 1 | KR117: =IFERROR(IF('Indexeringen Lonen per PC'!DR55/'Indexeringen Lonen per PC'!DR$51=0,NA(),'Indexeringen Lonen per PC'!DR55/'Indexeringen Lonen per PC'!DR$51),NA()) -> 1 | KS117: =IFERROR(IF('Indexeringen Lonen per PC'!DS55/'Indexeringen Lonen per PC'!DS$51=0,NA(),'Indexeringen Lonen per PC'!DS55/'Indexeringen Lonen per PC'!DS$51),NA()) -> 1 | KT117: =IFERROR(IF('Indexeringen Lonen per PC'!DT55/'Indexeringen Lonen per PC'!DT$51=0,NA(),'Indexeringen Lonen per PC'!DT55/'Indexeringen Lonen per PC'!DT$51),NA()) -> 1 | KU117: =IFERROR(IF('Indexeringen Lonen per PC'!DU55/'Indexeringen Lonen per PC'!DU$51=0,NA(),'Indexeringen Lonen per PC'!DU55/'Indexeringen Lonen per PC'!DU$51),NA()) -> 1 | KV117: =IFERROR(IF('Indexeringen Lonen per PC'!DV55/'Indexeringen Lonen per PC'!DV$51=0,NA(),'Indexeringen Lonen per PC'!DV55/'Indexeringen Lonen per PC'!DV$51),NA()) -> 1 | KW117: =IFERROR(IF('Indexeringen Lonen per PC'!DW55/'Indexeringen Lonen per PC'!DW$51=0,NA(),'Indexeringen Lonen per PC'!DW55/'Indexeringen Lonen per PC'!DW$51),NA()) -> 1 | KX117: =IFERROR(IF('Indexeringen Lonen per PC'!DX55/'Indexeringen Lonen per PC'!DX$51=0,NA(),'Indexeringen Lonen per PC'!DX55/'Indexeringen Lonen per PC'!DX$51),NA()) -> 1
